Workbook

Sheet INTRO
B2: Formulaire de demande commune de médicaments pour CP v.4.1
B4: Dans le cadre des efforts mondiaux entrepris pour accélérer l'expansion de la chimioprévention (CP) pour l'élimination de la filariose lymphatique et la lutte contre la schistosomiase et les géohelminthiases, l'Organisation mondiale de la Santé (OMS) facilite l'approvisionnement en albendazole, comprimés de 400 mg (GSK), pour les programmes nationaux d'élimination de la filariose lymphatique et programmes nationaux de lutte contre les géohelminthiases; en diethylcarbamazine, comprimés de 100 mg (Eisai), pour les programmes nationaux d'élimination de la filariose lymphatique; en mebendazole, comprimés de 500 mg (J&J) pour les programmes nationaux de lutte contre les géohelminthiases et en praziquantel, comprimés de 600 mg (Merck KGaA), destinés aux enfants d'âge scolaire, pour les programmes nationaux de lutte contre la schistosomiase. L'OMS contribue également à l'approvisionnement en ivermectine, comprimés de 3 mg (Merck), pour les programmes de donation pour l'onchocercose et la filariose lymphatique. Cet outil Excel est concu pour aider les pays à quantifier le nombre de comprimés nécessaires, selon le traitement de chimioprévention requis, pour atteindre les objectifs de couverture de traitement de populations et districts pour l'année de la demande de médicaments. Le résultat de cet outil est une demande commune de médicaments pour la chimioprévention des maladies tropicales négligées, qui peut être imprimée, signée et soumise à l'OMS pour la demande de ces médicaments.
B6: Structure de l'application (feuilles de travail) :
B8: INTRO | C8: Cette feuille contient des instructions pour compléter le formulaire de demande de médicaments pour la chimioprévention et des informations sur le statut de la chimioprévention pour les maladies d'endémie du pays.
B9: COUNTRY_INFO | C9: Cette feuille contient des informations sur la structure administrative du pays, la population par groupe d'âge, le statut d'endémicité pour chaque maladie, la population devant être traitée par chimioprévention et les interventions prévues.
B10: DEC, ALB_MBD, PZQ et IVM | C10: Ces feuilles contiennent des informations sur l'endémicité des districts ciblés pour le traitement aux médicaments spécifiques à la chimioprévention, les plans de traitement, et le nombre de comprimés requis et demandés.
B11: SUMMARY | C11: Cette feuille inclut un résumé du nombre de comprimés demandés, des informations concernant le stock et les dates de soumission de la demande de médicaments. Avant de générer le rapport (run macros), veuillez sélectionner le médicament pour lequel le rapport est nécessaire. Veuillez suivre la même règle pour voir le nombre de personnes à traiter pour les maladies spécifiques. Cette feuille doit être imprimée et soumise en tant que "Formulaire de demande commune de médicaments pour chimioprévention" (voir les instructions pour la soumission du formulaire sous la feuille SUMMARY).
B13: Instructions pour la saisie des données
B15: La plupart des cellules des feuilles de travail mentionnées ci-dessus contiennent des formules calculées automatiquement en fonction du protocole de traitement recommandé par l'OMS pour chaque maladie. Voir : https://www.who.int/publications/i/item/9789241599993.
B17: Veuillez entrer vos données dans les cellules en fonction de leur code de couleur :
C19: Blanc - la cellule n'est pas protégée. Veuillez entrer la valeur de l'indicateur demandé.
C21: Jaune - la cellule est protégée et inclut le nom de l'indicateur. Aucune entrée de données requise.
C23: Orange - la cellule n'est pas protégée et contient un menu déroulant. Veuillez sélectionner la valeur dans le menu déroulant.
C26: Vert - la cellule n'est pas protégée et contient des formules. Veuillez changer la valeur indiquée uniquement si vos données sont différentes de celles calculées automatiquement.
C29: Bleu - la cellule est protégée et contient des formules. Aucune entrée de données requise.
B31: Données pays
B33: PAYS | E33: Burundi
E34: 5
B35: Année de la demande de médicaments | E35: 2024
B37: Le pays est-il endémique à la filariose lymphatique (FL) ? | E37: Non endémique
B39: Le pays est-il endémique à l'onchocercose (ONCHO) ? | E39: Endémique
B41: Le pays est-il endémique aux géohelminthiases (STH) ? | E41: Endémique
B43: Le pays est-il endémique à la schistosomiase (SCH) ? | E43: Endémique
B45: Combien d'unités administratives compte le pays ? | E45: 49
B47: Si les données démographiques par groupe d'âge ne sont pas disponibles au second niveau administratif, veuillez entrer la proportion (%) de population, par groupe d'âge, du pays. Si les données sont disponibles, veuillez laisser les cellules vierges.
B48: 1-4 ans | C48: Enfants d'âge pré-scolaire (EAPréS) | E48: 0.13
B49: 5-14 ans | C49: Enfants d'âge scolaire (EAS) | E49: 0.2993
B50: 15 ans et plus | C50: Adultes | E50: 0.5371
B51: 15-49 ans | C51: Femmes en âge de procréer (FAP) | E51: 0.2312

Sheet COUNTRY_INFO
A1: INFORMATIONS PAYS
A2: Struture administrative, population par groupe d'âge, statut d'endémicité et interventions planifiées
R3: Mise à jour basée sur les classeurs de sous-IU
A4: TOTAL | D4: =SUBTOTAL(9,D$10:D$1010) -> 13519257 | E4: =SUBTOTAL(9,E$10:E$1010) -> 1757503 | F4: 4046317 | G4: 7261198 | L4: =SUBTOTAL(9,L$10:L$1010) -> 0 | M4: 3226941 | N4: 347332 | O4: 799665 | P4: 617716 | Q4: 1764713 | R4: 108387 | S4: 249285 | T4: 447716 | U4: 805388
A6: Structure administrative du pays | D6: Population | H6: Endémicité | L6: Population nécessitant la CP | V6: Nombre de tournées de traitement prévues pour l'année | Z6: Criteria to apply for IVM+DEC+ALB therapy | AA6: Enquêtes épidémiologiques planifiées pour l’année
A7: Pays | B7: Région/Département | C7: District | D7: Total | E7: EAPréS | F7: EAS | G7: Adultes | H7: FL | I7: Oncho | J7: STH | K7: SCH | L7: FL | M7: ONCHO | N7: STH | R7: SCH | V7: FL | W7: Oncho | X7: STH | Y7: SCH | Z7: FL | AA7: FL | AB7: Oncho | AC7: STH | AD7: SCH
N8: EAPréS | O8: EAS | P8: FAP | Q8: TOTAL | R8: EAPréS | S8: EAS | T8: Adultes | U8: TOTAL
AF9: IU ID | AG9: IU NAME
A10: =IF(INTRO!$E$33<>0,INTRO!$E$33, " ") -> Burundi | B10: Bubanza | C10: Bubanza | D10: 278465 | E10: =IF(INTRO!$E$48="","",ROUND($D10*INTRO!$E$48,0)) -> 36200 | F10: =IF(INTRO!$E$49="","",ROUND($D10*INTRO!$E$49,0)) -> 83345 | G10: =IF(INTRO!$E$50="","",ROUND($D10*INTRO!$E$50,0)) -> 149564 | I10: 1 | J10: 1 | K10: 1 | L10: =IF(INTRO!$E$37="Endémique",IF($H10>0,IF($H10=4,"Inconnu",IF($H10=99,"Interrompu",$D10)),0),"Non requis") -> Non requis | M10: =IF(INTRO!$E$39="Endémique", IF($I10>0, IF($I10=4,"Inconnu",IF($I10=99,"Interrompu",$D10)), 0),"Non requis") -> 278465 | N10: =IF(INTRO!$E$41="Endémique", IF($J10>1, IF($J10=4, "Inconnu", IF($J10=99, "Surveillance", E10)), 0),"Non requis") -> 0 | O10: =IF(INTRO!$E$41="Endémique", IF($J10>1, IF($J10=4, "Inconnu", IF($J10=99, "Surveillance", F10)), 0),"Non requis") -> 0 | P10: =IF(INTRO!$E$41="Endémique", IF($J10>1, IF($J10=4, "Inconnu", IF($J10=99, "Surveillance", ROUND(D10*INTRO!$E$51,0))), 0),"Non requis") -> 0 | Q10: =IF(INTRO!$E$41="Endémique", IF($J10>1, IF($J10=4, "Inconnu", IF($J10=99, "Surveillance", SUM($N10:$P10))), 0),"Non requis") -> 0 | R10: 0 | S10: 0 | T10: 0 | U10: 0 | W10: 1 | X10: 0 | Y10: 0 | AF10: 6375 | AG10: Bubanza | AJ10: 271355 | AL10: 6375 | AM10: =AL10=AF10 -> TRUE
A11: =IF(INTRO!$E$33<>0,INTRO!$E$33, " ") -> Burundi | B11: Bubanza | C11: Mpanda | D11: 288963 | E11: =IF(INTRO!$E$48="","",ROUND($D11*INTRO!$E$48,0)) -> 37565 | F11: =IF(INTRO!$E$49="","",ROUND($D11*INTRO!$E$49,0)) -> 86487 | G11: =IF(INTRO!$E$50="","",ROUND($D11*INTRO!$E$50,0)) -> 155202 | I11: 1 | J11: 1 | K11: 3 | L11: =IF(INTRO!$E$37="Endémique",IF($H11>0,IF($H11=4,"Inconnu",IF($H11=99,"Interrompu",$D11)),0),"Non requis") -> Non requis | M11: =IF(INTRO!$E$39="Endémique", IF($I11>0, IF($I11=4,"Inconnu",IF($I11=99,"Interrompu",$D11)), 0),"Non requis") -> 288963 | N11: =IF(INTRO!$E$41="Endémique", IF($J11>1, IF($J11=4, "Inconnu", IF($J11=99, "Surveillance", E11)), 0),"Non requis") -> 0 | O11: =IF(INTRO!$E$41="Endémique", IF($J11>1, IF($J11=4, "Inconnu", IF($J11=99, "Surveillance", F11)), 0),"Non requis") -> 0 | P11: =IF(INTRO!$E$41="Endémique", IF($J11>1, IF($J11=4, "Inconnu", IF($J11=99, "Surveillance", ROUND(D11*INTRO!$E$51,0))), 0),"Non requis") -> 0 | Q11: =IF(INTRO!$E$41="Endémique", IF($J11>1, IF($J11=4, "Inconnu", IF($J11=99, "Surveillance", SUM($N11:$P11))), 0),"Non requis") -> 0 | R11: 10539 | S11: 24240 | T11: 43534 | U11: 78313 | W11: 1 | X11: 0 | Y11: 1 | AF11: 6376 | AG11: Mpanda | AJ11: 281585 | AL11: 6376 | AM11: =AL11=AF11 -> TRUE
A12: =IF(INTRO!$E$33<>0,INTRO!$E$33, " ") -> Burundi | B12: Bujumbura Mairie | C12: Zone Centre | D12: 207172 | E12: =IF(INTRO!$E$48="","",ROUND($D12*INTRO!$E$48,0)) -> 26932 | F12: =IF(INTRO!$E$49="","",ROUND($D12*INTRO!$E$49,0)) -> 62007 | G12: =IF(INTRO!$E$50="","",ROUND($D12*INTRO!$E$50,0)) -> 111272 | I12: 0 | J12: 0 | K12: 3 | L12: =IF(INTRO!$E$37="Endémique",IF($H12>0,IF($H12=4,"Inconnu",IF($H12=99,"Interrompu",$D12)),0),"Non requis") -> Non requis | M12: =IF(INTRO!$E$39="Endémique", IF($I12>0, IF($I12=4,"Inconnu",IF($I12=99,"Interrompu",$D12)), 0),"Non requis") -> 0 | N12: =IF(INTRO!$E$41="Endémique", IF($J12>1, IF($J12=4, "Inconnu", IF($J12=99, "Surveillance", E12)), 0),"Non requis") -> 0 | O12: =IF(INTRO!$E$41="Endémique", IF($J12>1, IF($J12=4, "Inconnu", IF($J12=99, "Surveillance", F12)), 0),"Non requis") -> 0 | P12: =IF(INTRO!$E$41="Endémique", IF($J12>1, IF($J12=4, "Inconnu", IF($J12=99, "Surveillance", ROUND(D12*INTRO!$E$51,0))), 0),"Non requis") -> 0 | Q12: =IF(INTRO!$E$41="Endémique", IF($J12>1, IF($J12=4, "Inconnu", IF($J12=99, "Surveillance", SUM($N12:$P12))), 0),"Non requis") -> 0 | R12: 4351 | S12: 10010 | T12: 17977 | U12: 32338 | W12: 0 | X12: 0 | Y12: 1 | AF12: 6380 | AG12: Zone centre | AJ12: 201883 | AL12: 6380 | AM12: TRUE
A13: =IF(INTRO!$E$33<>0,INTRO!$E$33, " ") -> Burundi | B13: Bujumbura Mairie | C13: Zone Nord | D13: 417845 | E13: =IF(INTRO!$E$48="","",ROUND($D13*INTRO!$E$48,0)) -> 54320 | F13: =IF(INTRO!$E$49="","",ROUND($D13*INTRO!$E$49,0)) -> 125061 | G13: =IF(INTRO!$E$50="","",ROUND($D13*INTRO!$E$50,0)) -> 224425 | I13: 0 | J13: 1 | K13: 3 | L13: =IF(INTRO!$E$37="Endémique",IF($H13>0,IF($H13=4,"Inconnu",IF($H13=99,"Interrompu",$D13)),0),"Non requis") -> Non requis | M13: =IF(INTRO!$E$39="Endémique", IF($I13>0, IF($I13=4,"Inconnu",IF($I13=99,"Interrompu",$D13)), 0),"Non requis") -> 0 | N13: =IF(INTRO!$E$41="Endémique", IF($J13>1, IF($J13=4, "Inconnu", IF($J13=99, "Surveillance", E13)), 0),"Non requis") -> 0 | O13: =IF(INTRO!$E$41="Endémique", IF($J13>1, IF($J13=4, "Inconnu", IF($J13=99, "Surveillance", F13)), 0),"Non requis") -> 0 | P13: =IF(INTRO!$E$41="Endémique", IF($J13>1, IF($J13=4, "Inconnu", IF($J13=99, "Surveillance", ROUND(D13*INTRO!$E$51,0))), 0),"Non requis") -> 0 | Q13: =IF(INTRO!$E$41="Endémique", IF($J13>1, IF($J13=4, "Inconnu", IF($J13=99, "Surveillance", SUM($N13:$P13))), 0),"Non requis") -> 0 | R13: 12750 | S13: 29322 | T13: 52664 | U13: 94736 | W13: 0 | X13: 0 | Y13: 1 | AF13: 6381 | AG13: Zone Nord | AJ13: 407177 | AL13: 6381 | AM13: TRUE
A14: =IF(INTRO!$E$33<>0,INTRO!$E$33, " ") -> Burundi | B14: Bujumbura Mairie | C14: Zone Sud | D14: 209558 | E14: =IF(INTRO!$E$48="","",ROUND($D14*INTRO!$E$48,0)) -> 27243 | F14: =IF(INTRO!$E$49="","",ROUND($D14*INTRO!$E$49,0)) -> 62721 | G14: =IF(INTRO!$E$50="","",ROUND($D14*INTRO!$E$50,0)) -> 112554 | I14: 0 | J14: 1 | K14: 0 | L14: =IF(INTRO!$E$37="Endémique",IF($H14>0,IF($H14=4,"Inconnu",IF($H14=99,"Interrompu",$D14)),0),"Non requis") -> Non requis | M14: =IF(INTRO!$E$39="Endémique", IF($I14>0, IF($I14=4,"Inconnu",IF($I14=99,"Interrompu",$D14)), 0),"Non requis") -> 0 | N14: =IF(INTRO!$E$41="Endémique", IF($J14>1, IF($J14=4, "Inconnu", IF($J14=99, "Surveillance", E14)), 0),"Non requis") -> 0 | O14: =IF(INTRO!$E$41="Endémique", IF($J14>1, IF($J14=4, "Inconnu", IF($J14=99, "Surveillance", F14)), 0),"Non requis") -> 0 | P14: =IF(INTRO!$E$41="Endémique", IF($J14>1, IF($J14=4, "Inconnu", IF($J14=99, "Surveillance", ROUND(D14*INTRO!$E$51,0))), 0),"Non requis") -> 0 | Q14: =IF(INTRO!$E$41="Endémique", IF($J14>1, IF($J14=4, "Inconnu", IF($J14=99, "Surveillance", SUM($N14:$P14))), 0),"Non requis") -> 0 | R14: 0 | S14: 0 | T14: 0 | U14: 0 | W14: 0 | X14: 0 | Y14: 0 | AF14: 6382 | AG14: Zone Sud | AJ14: 204208 | AL14: 6382 | AM14: TRUE
A15: =IF(INTRO!$E$33<>0,INTRO!$E$33, " ") -> Burundi | B15: Bujumbura Rural | C15: Isare | D15: 318869 | E15: =IF(INTRO!$E$48="","",ROUND($D15*INTRO!$E$48,0)) -> 41453 | F15: =IF(INTRO!$E$49="","",ROUND($D15*INTRO!$E$49,0)) -> 95437 | G15: =IF(INTRO!$E$50="","",ROUND($D15*INTRO!$E$50,0)) -> 171265 | I15: 0 | J15: 2 | K15: 3 | L15: =IF(INTRO!$E$37="Endémique",IF($H15>0,IF($H15=4,"Inconnu",IF($H15=99,"Interrompu",$D15)),0),"Non requis") -> Non requis | M15: =IF(INTRO!$E$39="Endémique", IF($I15>0, IF($I15=4,"Inconnu",IF($I15=99,"Interrompu",$D15)), 0),"Non requis") -> 0 | N15: =IF(INTRO!$E$41="Endémique", IF($J15>1, IF($J15=4, "Inconnu", IF($J15=99, "Surveillance", E15)), 0),"Non requis") -> 41453 | O15: =IF(INTRO!$E$41="Endémique", IF($J15>1, IF($J15=4, "Inconnu", IF($J15=99, "Surveillance", F15)), 0),"Non requis") -> 95437 | P15: =IF(INTRO!$E$41="Endémique", IF($J15>1, IF($J15=4, "Inconnu", IF($J15=99, "Surveillance", ROUND(D15*INTRO!$E$51,0))), 0),"Non requis") -> 73723 | Q15: =IF(INTRO!$E$41="Endémique", IF($J15>1, IF($J15=4, "Inconnu", IF($J15=99, "Surveillance", SUM($N15:$P15))), 0),"Non requis") -> 210613 | R15: 6286 | S15: 14458 | T15: 25967 | U15: 46711 | W15: 0 | X15: 1 | Y15: 1 | AF15: 6377 | AG15: Isale | AJ15: 310728 | AL15: 6377 | AM15: TRUE
A16: =IF(INTRO!$E$33<>0,INTRO!$E$33, " ") -> Burundi | B16: Bujumbura Rural | C16: Kabezi | D16: 288167 | E16: =IF(INTRO!$E$48="","",ROUND($D16*INTRO!$E$48,0)) -> 37462 | F16: =IF(INTRO!$E$49="","",ROUND($D16*INTRO!$E$49,0)) -> 86248 | G16: =IF(INTRO!$E$50="","",ROUND($D16*INTRO!$E$50,0)) -> 154774 | I16: 0 | J16: 2 | K16: 0 | L16: =IF(INTRO!$E$37="Endémique",IF($H16>0,IF($H16=4,"Inconnu",IF($H16=99,"Interrompu",$D16)),0),"Non requis") -> Non requis | M16: =IF(INTRO!$E$39="Endémique", IF($I16>0, IF($I16=4,"Inconnu",IF($I16=99,"Interrompu",$D16)), 0),"Non requis") -> 0 | N16: =IF(INTRO!$E$41="Endémique", IF($J16>1, IF($J16=4, "Inconnu", IF($J16=99, "Surveillance", E16)), 0),"Non requis") -> 37462 | O16: =IF(INTRO!$E$41="Endémique", IF($J16>1, IF($J16=4, "Inconnu", IF($J16=99, "Surveillance", F16)), 0),"Non requis") -> 86248 | P16: =IF(INTRO!$E$41="Endémique", IF($J16>1, IF($J16=4, "Inconnu", IF($J16=99, "Surveillance", ROUND(D16*INTRO!$E$51,0))), 0),"Non requis") -> 66624 | Q16: =IF(INTRO!$E$41="Endémique", IF($J16>1, IF($J16=4, "Inconnu", IF($J16=99, "Surveillance", SUM($N16:$P16))), 0),"Non requis") -> 190334 | R16: 0 | S16: 0 | T16: 0 | U16: 0 | W16: 0 | X16: 1 | Y16: 0 | AF16: 6378 | AG16: Kabezi | AJ16: 280810 | AL16: 6378 | AM16: TRUE
A17: =IF(INTRO!$E$33<>0,INTRO!$E$33, " ") -> Burundi | B17: Bujumbura Rural | C17: Rwibaga | D17: 173236 | E17: =IF(INTRO!$E$48="","",ROUND($D17*INTRO!$E$48,0)) -> 22521 | F17: =IF(INTRO!$E$49="","",ROUND($D17*INTRO!$E$49,0)) -> 51850 | G17: =IF(INTRO!$E$50="","",ROUND($D17*INTRO!$E$50,0)) -> 93045 | I17: 0 | J17: 2 | K17: 0 | L17: =IF(INTRO!$E$37="Endémique",IF($H17>0,IF($H17=4,"Inconnu",IF($H17=99,"Interrompu",$D17)),0),"Non requis") -> Non requis | M17: =IF(INTRO!$E$39="Endémique", IF($I17>0, IF($I17=4,"Inconnu",IF($I17=99,"Interrompu",$D17)), 0),"Non requis") -> 0 | N17: =IF(INTRO!$E$41="Endémique", IF($J17>1, IF($J17=4, "Inconnu", IF($J17=99, "Surveillance", E17)), 0),"Non requis") -> 22521 | O17: =IF(INTRO!$E$41="Endémique", IF($J17>1, IF($J17=4, "Inconnu", IF($J17=99, "Surveillance", F17)), 0),"Non requis") -> 51850 | P17: =IF(INTRO!$E$41="Endémique", IF($J17>1, IF($J17=4, "Inconnu", IF($J17=99, "Surveillance", ROUND(D17*INTRO!$E$51,0))), 0),"Non requis") -> 40052 | Q17: =IF(INTRO!$E$41="Endémique", IF($J17>1, IF($J17=4, "Inconnu", IF($J17=99, "Surveillance", SUM($N17:$P17))), 0),"Non requis") -> 114423 | R17: 0 | S17: 0 | T17: 0 | U17: 0 | W17: 0 | X17: 1 | Y17: 0 | AF17: 6379 | AG17: Rwibaga | AJ17: 168813 | AL17: 6379 | AM17: TRUE
A18: =IF(INTRO!$E$33<>0,INTRO!$E$33, " ") -> Burundi | B18: Bururi | C18: Bururi | D18: 190191 | E18: =IF(INTRO!$E$48="","",ROUND($D18*INTRO!$E$48,0)) -> 24725 | F18: =IF(INTRO!$E$49="","",ROUND($D18*INTRO!$E$49,0)) -> 56924 | G18: =IF(INTRO!$E$50="","",ROUND($D18*INTRO!$E$50,0)) -> 102152 | I18: 1 | J18: 1 | K18: 1 | L18: =IF(INTRO!$E$37="Endémique",IF($H18>0,IF($H18=4,"Inconnu",IF($H18=99,"Interrompu",$D18)),0),"Non requis") -> Non requis | M18: =IF(INTRO!$E$39="Endémique", IF($I18>0, IF($I18=4,"Inconnu",IF($I18=99,"Interrompu",$D18)), 0),"Non requis") -> 190191 | N18: =IF(INTRO!$E$41="Endémique", IF($J18>1, IF($J18=4, "Inconnu", IF($J18=99, "Surveillance", E18)), 0),"Non requis") -> 0 | O18: =IF(INTRO!$E$41="Endémique", IF($J18>1, IF($J18=4, "Inconnu", IF($J18=99, "Surveillance", F18)), 0),"Non requis") -> 0 | P18: =IF(INTRO!$E$41="Endémique", IF($J18>1, IF($J18=4, "Inconnu", IF($J18=99, "Surveillance", ROUND(D18*INTRO!$E$51,0))), 0),"Non requis") -> 0 | Q18: =IF(INTRO!$E$41="Endémique", IF($J18>1, IF($J18=4, "Inconnu", IF($J18=99, "Surveillance", SUM($N18:$P18))), 0),"Non requis") -> 0 | R18: 0 | S18: 0 | T18: 0 | U18: 0 | W18: 1 | X18: 0 | Y18: 0 | AF18: 6383 | AG18: Bururi | AJ18: 185335 | AL18: 6383 | AM18: TRUE
A19: =IF(INTRO!$E$33<>0,INTRO!$E$33, " ") -> Burundi | B19: Bururi | C19: Matana | D19: 170990 | E19: =IF(INTRO!$E$48="","",ROUND($D19*INTRO!$E$48,0)) -> 22229 | F19: =IF(INTRO!$E$49="","",ROUND($D19*INTRO!$E$49,0)) -> 51177 | G19: =IF(INTRO!$E$50="","",ROUND($D19*INTRO!$E$50,0)) -> 91839 | I19: 0 | J19: 1 | K19: 0 | L19: =IF(INTRO!$E$37="Endémique",IF($H19>0,IF($H19=4,"Inconnu",IF($H19=99,"Interrompu",$D19)),0),"Non requis") -> Non requis | M19: =IF(INTRO!$E$39="Endémique", IF($I19>0, IF($I19=4,"Inconnu",IF($I19=99,"Interrompu",$D19)), 0),"Non requis") -> 0 | N19: =IF(INTRO!$E$41="Endémique", IF($J19>1, IF($J19=4, "Inconnu", IF($J19=99, "Surveillance", E19)), 0),"Non requis") -> 0 | O19: =IF(INTRO!$E$41="Endémique", IF($J19>1, IF($J19=4, "Inconnu", IF($J19=99, "Surveillance", F19)), 0),"Non requis") -> 0 | P19: =IF(INTRO!$E$41="Endémique", IF($J19>1, IF($J19=4, "Inconnu", IF($J19=99, "Surveillance", ROUND(D19*INTRO!$E$51,0))), 0),"Non requis") -> 0 | Q19: =IF(INTRO!$E$41="Endémique", IF($J19>1, IF($J19=4, "Inconnu", IF($J19=99, "Surveillance", SUM($N19:$P19))), 0),"Non requis") -> 0 | R19: 0 | S19: 0 | T19: 0 | U19: 0 | W19: 0 | X19: 0 | Y19: 0 | AF19: 6384 | AG19: Matana | AJ19: 166624 | AL19: 6384 | AM19: TRUE
A20: =IF(INTRO!$E$33<>0,INTRO!$E$33, " ") -> Burundi | B20: Bururi | C20: Rutovu | D20: 164412 | E20: =IF(INTRO!$E$48="","",ROUND($D20*INTRO!$E$48,0)) -> 21374 | F20: =IF(INTRO!$E$49="","",ROUND($D20*INTRO!$E$49,0)) -> 49209 | G20: =IF(INTRO!$E$50="","",ROUND($D20*INTRO!$E$50,0)) -> 88306 | I20: 1 | J20: 1 | K20: 0 | L20: =IF(INTRO!$E$37="Endémique",IF($H20>0,IF($H20=4,"Inconnu",IF($H20=99,"Interrompu",$D20)),0),"Non requis") -> Non requis | M20: =IF(INTRO!$E$39="Endémique", IF($I20>0, IF($I20=4,"Inconnu",IF($I20=99,"Interrompu",$D20)), 0),"Non requis") -> 164412 | N20: =IF(INTRO!$E$41="Endémique", IF($J20>1, IF($J20=4, "Inconnu", IF($J20=99, "Surveillance", E20)), 0),"Non requis") -> 0 | O20: =IF(INTRO!$E$41="Endémique", IF($J20>1, IF($J20=4, "Inconnu", IF($J20=99, "Surveillance", F20)), 0),"Non requis") -> 0 | P20: =IF(INTRO!$E$41="Endémique", IF($J20>1, IF($J20=4, "Inconnu", IF($J20=99, "Surveillance", ROUND(D20*INTRO!$E$51,0))), 0),"Non requis") -> 0 | Q20: =IF(INTRO!$E$41="Endémique", IF($J20>1, IF($J20=4, "Inconnu", IF($J20=99, "Surveillance", SUM($N20:$P20))), 0),"Non requis") -> 0 | R20: 0 | S20: 0 | T20: 0 | U20: 0 | W20: 1 | X20: 0 | Y20: 0 | AF20: 6424 | AG20: Rutovu | AJ20: 160214 | AL20: 6424 | AM20: TRUE
A21: =IF(INTRO!$E$33<>0,INTRO!$E$33, " ") -> Burundi | B21: Cankuzo | C21: Cankuzo | D21: 203459 | E21: =IF(INTRO!$E$48="","",ROUND($D21*INTRO!$E$48,0)) -> 26450 | F21: =IF(INTRO!$E$49="","",ROUND($D21*INTRO!$E$49,0)) -> 60895 | G21: =IF(INTRO!$E$50="","",ROUND($D21*INTRO!$E$50,0)) -> 109278 | I21: 0 | J21: 1 | K21: 1 | L21: =IF(INTRO!$E$37="Endémique",IF($H21>0,IF($H21=4,"Inconnu",IF($H21=99,"Interrompu",$D21)),0),"Non requis") -> Non requis | M21: =IF(INTRO!$E$39="Endémique", IF($I21>0, IF($I21=4,"Inconnu",IF($I21=99,"Interrompu",$D21)), 0),"Non requis") -> 0 | N21: =IF(INTRO!$E$41="Endémique", IF($J21>1, IF($J21=4, "Inconnu", IF($J21=99, "Surveillance", E21)), 0),"Non requis") -> 0 | O21: =IF(INTRO!$E$41="Endémique", IF($J21>1, IF($J21=4, "Inconnu", IF($J21=99, "Surveillance", F21)), 0),"Non requis") -> 0 | P21: =IF(INTRO!$E$41="Endémique", IF($J21>1, IF($J21=4, "Inconnu", IF($J21=99, "Surveillance", ROUND(D21*INTRO!$E$51,0))), 0),"Non requis") -> 0 | Q21: =IF(INTRO!$E$41="Endémique", IF($J21>1, IF($J21=4, "Inconnu", IF($J21=99, "Surveillance", SUM($N21:$P21))), 0),"Non requis") -> 0 | R21: 0 | S21: 0 | T21: 0 | U21: 0 | W21: 0 | X21: 0 | Y21: 0 | AF21: 6386 | AG21: Cankuzo | AJ21: 198264 | AL21: 6386 | AM21: TRUE
A22: =IF(INTRO!$E$33<>0,INTRO!$E$33, " ") -> Burundi | B22: Cankuzo | C22: Murore | D22: 180743 | E22: =IF(INTRO!$E$48="","",ROUND($D22*INTRO!$E$48,0)) -> 23497 | F22: =IF(INTRO!$E$49="","",ROUND($D22*INTRO!$E$49,0)) -> 54096 | G22: =IF(INTRO!$E$50="","",ROUND($D22*INTRO!$E$50,0)) -> 97077 | I22: 0 | J22: 1 | K22: 0 | L22: =IF(INTRO!$E$37="Endémique",IF($H22>0,IF($H22=4,"Inconnu",IF($H22=99,"Interrompu",$D22)),0),"Non requis") -> Non requis | M22: =IF(INTRO!$E$39="Endémique", IF($I22>0, IF($I22=4,"Inconnu",IF($I22=99,"Interrompu",$D22)), 0),"Non requis") -> 0 | N22: =IF(INTRO!$E$41="Endémique", IF($J22>1, IF($J22=4, "Inconnu", IF($J22=99, "Surveillance", E22)), 0),"Non requis") -> 0 | O22: =IF(INTRO!$E$41="Endémique", IF($J22>1, IF($J22=4, "Inconnu", IF($J22=99, "Surveillance", F22)), 0),"Non requis") -> 0 | P22: =IF(INTRO!$E$41="Endémique", IF($J22>1, IF($J22=4, "Inconnu", IF($J22=99, "Surveillance", ROUND(D22*INTRO!$E$51,0))), 0),"Non requis") -> 0 | Q22: =IF(INTRO!$E$41="Endémique", IF($J22>1, IF($J22=4, "Inconnu", IF($J22=99, "Surveillance", SUM($N22:$P22))), 0),"Non requis") -> 0 | R22: 0 | S22: 0 | T22: 0 | U22: 0 | W22: 0 | X22: 0 | Y22: 0 | AF22: 6387 | AG22: Murore | AJ22: 176128 | AL22: 6387 | AM22: TRUE
A23: =IF(INTRO!$E$33<>0,INTRO!$E$33, " ") -> Burundi | B23: Cibitoke | C23: Bukinanyana | D23: 265204 | E23: =IF(INTRO!$E$48="","",ROUND($D23*INTRO!$E$48,0)) -> 34477 | F23: =IF(INTRO!$E$49="","",ROUND($D23*INTRO!$E$49,0)) -> 79376 | G23: =IF(INTRO!$E$50="","",ROUND($D23*INTRO!$E$50,0)) -> 142441 | I23: 1 | J23: 1 | K23: 1 | L23: =IF(INTRO!$E$37="Endémique",IF($H23>0,IF($H23=4,"Inconnu",IF($H23=99,"Interrompu",$D23)),0),"Non requis") -> Non requis | M23: =IF(INTRO!$E$39="Endémique", IF($I23>0, IF($I23=4,"Inconnu",IF($I23=99,"Interrompu",$D23)), 0),"Non requis") -> 265204 | N23: =IF(INTRO!$E$41="Endémique", IF($J23>1, IF($J23=4, "Inconnu", IF($J23=99, "Surveillance", E23)), 0),"Non requis") -> 0 | O23: =IF(INTRO!$E$41="Endémique", IF($J23>1, IF($J23=4, "Inconnu", IF($J23=99, "Surveillance", F23)), 0),"Non requis") -> 0 | P23: =IF(INTRO!$E$41="Endémique", IF($J23>1, IF($J23=4, "Inconnu", IF($J23=99, "Surveillance", ROUND(D23*INTRO!$E$51,0))), 0),"Non requis") -> 0 | Q23: =IF(INTRO!$E$41="Endémique", IF($J23>1, IF($J23=4, "Inconnu", IF($J23=99, "Surveillance", SUM($N23:$P23))), 0),"Non requis") -> 0 | R23: 0 | S23: 0 | T23: 0 | U23: 0 | W23: 1 | X23: 0 | Y23: 0 | AF23: 6421 | AG23: Bukinanyana | AJ23: 258433 | AL23: 6422 | AM23: FALSE
A24: =IF(INTRO!$E$33<>0,INTRO!$E$33, " ") -> Burundi | B24: Cibitoke | C24: Cibitoke | D24: 247825 | E24: =IF(INTRO!$E$48="","",ROUND($D24*INTRO!$E$48,0)) -> 32217 | F24: =IF(INTRO!$E$49="","",ROUND($D24*INTRO!$E$49,0)) -> 74174 | G24: =IF(INTRO!$E$50="","",ROUND($D24*INTRO!$E$50,0)) -> 133107 | I24: 1 | J24: 1 | K24: 2 | L24: =IF(INTRO!$E$37="Endémique",IF($H24>0,IF($H24=4,"Inconnu",IF($H24=99,"Interrompu",$D24)),0),"Non requis") -> Non requis | M24: =IF(INTRO!$E$39="Endémique", IF($I24>0, IF($I24=4,"Inconnu",IF($I24=99,"Interrompu",$D24)), 0),"Non requis") -> 247825 | N24: =IF(INTRO!$E$41="Endémique", IF($J24>1, IF($J24=4, "Inconnu", IF($J24=99, "Surveillance", E24)), 0),"Non requis") -> 0 | O24: =IF(INTRO!$E$41="Endémique", IF($J24>1, IF($J24=4, "Inconnu", IF($J24=99, "Surveillance", F24)), 0),"Non requis") -> 0 | P24: =IF(INTRO!$E$41="Endémique", IF($J24>1, IF($J24=4, "Inconnu", IF($J24=99, "Surveillance", ROUND(D24*INTRO!$E$51,0))), 0),"Non requis") -> 0 | Q24: =IF(INTRO!$E$41="Endémique", IF($J24>1, IF($J24=4, "Inconnu", IF($J24=99, "Surveillance", SUM($N24:$P24))), 0),"Non requis") -> 0 | R24: 6955 | S24: 15996 | T24: 28729 | U24: 51680 | W24: 1 | X24: 0 | Y24: 1 | AF24: 6422 | AG24: Cibitoke | AJ24: 241498 | AL24: 6423 | AM24: FALSE
A25: =IF(INTRO!$E$33<>0,INTRO!$E$33, " ") -> Burundi | B25: Cibitoke | C25: Mabayi | D25: 259888 | E25: =IF(INTRO!$E$48="","",ROUND($D25*INTRO!$E$48,0)) -> 33785 | F25: =IF(INTRO!$E$49="","",ROUND($D25*INTRO!$E$49,0)) -> 77784 | G25: =IF(INTRO!$E$50="","",ROUND($D25*INTRO!$E$50,0)) -> 139586 | I25: 1 | J25: 1 | K25: 2 | L25: =IF(INTRO!$E$37="Endémique",IF($H25>0,IF($H25=4,"Inconnu",IF($H25=99,"Interrompu",$D25)),0),"Non requis") -> Non requis | M25: =IF(INTRO!$E$39="Endémique", IF($I25>0, IF($I25=4,"Inconnu",IF($I25=99,"Interrompu",$D25)), 0),"Non requis") -> 259888 | N25: =IF(INTRO!$E$41="Endémique", IF($J25>1, IF($J25=4, "Inconnu", IF($J25=99, "Surveillance", E25)), 0),"Non requis") -> 0 | O25: =IF(INTRO!$E$41="Endémique", IF($J25>1, IF($J25=4, "Inconnu", IF($J25=99, "Surveillance", F25)), 0),"Non requis") -> 0 | P25: =IF(INTRO!$E$41="Endémique", IF($J25>1, IF($J25=4, "Inconnu", IF($J25=99, "Surveillance", ROUND(D25*INTRO!$E$51,0))), 0),"Non requis") -> 0 | Q25: =IF(INTRO!$E$41="Endémique", IF($J25>1, IF($J25=4, "Inconnu", IF($J25=99, "Surveillance", SUM($N25:$P25))), 0),"Non requis") -> 0 | R25: 7204 | S25: 16567 | T25: 29754 | U25: 53525 | W25: 1 | X25: 0 | Y25: 1 | AF25: 6423 | AG25: Mabayi | AJ25: 253253 | AL25: 6421 | AM25: FALSE
A26: =IF(INTRO!$E$33<>0,INTRO!$E$33, " ") -> Burundi | B26: Gitega | C26: Gitega | D26: 382773 | E26: =IF(INTRO!$E$48="","",ROUND($D26*INTRO!$E$48,0)) -> 49760 | F26: =IF(INTRO!$E$49="","",ROUND($D26*INTRO!$E$49,0)) -> 114564 | G26: =IF(INTRO!$E$50="","",ROUND($D26*INTRO!$E$50,0)) -> 205587 | I26: 0 | J26: 1 | K26: 0 | L26: =IF(INTRO!$E$37="Endémique",IF($H26>0,IF($H26=4,"Inconnu",IF($H26=99,"Interrompu",$D26)),0),"Non requis") -> Non requis | M26: =IF(INTRO!$E$39="Endémique", IF($I26>0, IF($I26=4,"Inconnu",IF($I26=99,"Interrompu",$D26)), 0),"Non requis") -> 0 | N26: =IF(INTRO!$E$41="Endémique", IF($J26>1, IF($J26=4, "Inconnu", IF($J26=99, "Surveillance", E26)), 0),"Non requis") -> 0 | O26: =IF(INTRO!$E$41="Endémique", IF($J26>1, IF($J26=4, "Inconnu", IF($J26=99, "Surveillance", F26)), 0),"Non requis") -> 0 | P26: =IF(INTRO!$E$41="Endémique", IF($J26>1, IF($J26=4, "Inconnu", IF($J26=99, "Surveillance", ROUND(D26*INTRO!$E$51,0))), 0),"Non requis") -> 0 | Q26: =IF(INTRO!$E$41="Endémique", IF($J26>1, IF($J26=4, "Inconnu", IF($J26=99, "Surveillance", SUM($N26:$P26))), 0),"Non requis") -> 0 | R26: 0 | S26: 0 | T26: 0 | U26: 0 | W26: 0 | X26: 0 | Y26: 0 | AF26: 6390 | AG26: Gitega | AJ26: 373000 | AL26: 6390 | AM26: TRUE
A27: =IF(INTRO!$E$33<>0,INTRO!$E$33, " ") -> Burundi | B27: Gitega | C27: Kibuye | D27: 320279 | E27: =IF(INTRO!$E$48="","",ROUND($D27*INTRO!$E$48,0)) -> 41636 | F27: =IF(INTRO!$E$49="","",ROUND($D27*INTRO!$E$49,0)) -> 95860 | G27: =IF(INTRO!$E$50="","",ROUND($D27*INTRO!$E$50,0)) -> 172022 | I27: 0 | J27: 1 | K27: 0 | L27: =IF(INTRO!$E$37="Endémique",IF($H27>0,IF($H27=4,"Inconnu",IF($H27=99,"Interrompu",$D27)),0),"Non requis") -> Non requis | M27: =IF(INTRO!$E$39="Endémique", IF($I27>0, IF($I27=4,"Inconnu",IF($I27=99,"Interrompu",$D27)), 0),"Non requis") -> 0 | N27: =IF(INTRO!$E$41="Endémique", IF($J27>1, IF($J27=4, "Inconnu", IF($J27=99, "Surveillance", E27)), 0),"Non requis") -> 0 | O27: =IF(INTRO!$E$41="Endémique", IF($J27>1, IF($J27=4, "Inconnu", IF($J27=99, "Surveillance", F27)), 0),"Non requis") -> 0 | P27: =IF(INTRO!$E$41="Endémique", IF($J27>1, IF($J27=4, "Inconnu", IF($J27=99, "Surveillance", ROUND(D27*INTRO!$E$51,0))), 0),"Non requis") -> 0 | Q27: =IF(INTRO!$E$41="Endémique", IF($J27>1, IF($J27=4, "Inconnu", IF($J27=99, "Surveillance", SUM($N27:$P27))), 0),"Non requis") -> 0 | R27: 0 | S27: 0 | T27: 0 | U27: 0 | W27: 0 | X27: 0 | Y27: 0 | AF27: 6391 | AG27: Kibuye | AJ27: 312102 | AL27: 6391 | AM27: TRUE
A28: =IF(INTRO!$E$33<>0,INTRO!$E$33, " ") -> Burundi | B28: Gitega | C28: Mutaho | D28: 291653 | E28: =IF(INTRO!$E$48="","",ROUND($D28*INTRO!$E$48,0)) -> 37915 | F28: =IF(INTRO!$E$49="","",ROUND($D28*INTRO!$E$49,0)) -> 87292 | G28: =IF(INTRO!$E$50="","",ROUND($D28*INTRO!$E$50,0)) -> 156647 | I28: 0 | J28: 1 | K28: 0 | L28: =IF(INTRO!$E$37="Endémique",IF($H28>0,IF($H28=4,"Inconnu",IF($H28=99,"Interrompu",$D28)),0),"Non requis") -> Non requis | M28: =IF(INTRO!$E$39="Endémique", IF($I28>0, IF($I28=4,"Inconnu",IF($I28=99,"Interrompu",$D28)), 0),"Non requis") -> 0 | N28: =IF(INTRO!$E$41="Endémique", IF($J28>1, IF($J28=4, "Inconnu", IF($J28=99, "Surveillance", E28)), 0),"Non requis") -> 0 | O28: =IF(INTRO!$E$41="Endémique", IF($J28>1, IF($J28=4, "Inconnu", IF($J28=99, "Surveillance", F28)), 0),"Non requis") -> 0 | P28: =IF(INTRO!$E$41="Endémique", IF($J28>1, IF($J28=4, "Inconnu", IF($J28=99, "Surveillance", ROUND(D28*INTRO!$E$51,0))), 0),"Non requis") -> 0 | Q28: =IF(INTRO!$E$41="Endémique", IF($J28>1, IF($J28=4, "Inconnu", IF($J28=99, "Surveillance", SUM($N28:$P28))), 0),"Non requis") -> 0 | R28: 0 | S28: 0 | T28: 0 | U28: 0 | W28: 0 | X28: 0 | Y28: 0 | AF28: 6392 | AG28: Mutaho | AJ28: 284207 | AL28: 6392 | AM28: TRUE
A29: =IF(INTRO!$E$33<>0,INTRO!$E$33, " ") -> Burundi | B29: Gitega | C29: Ryansoro | D29: 222703 | E29: =IF(INTRO!$E$48="","",ROUND($D29*INTRO!$E$48,0)) -> 28951 | F29: =IF(INTRO!$E$49="","",ROUND($D29*INTRO!$E$49,0)) -> 66655 | G29: =IF(INTRO!$E$50="","",ROUND($D29*INTRO!$E$50,0)) -> 119614 | I29: 0 | J29: 1 | K29: 0 | L29: =IF(INTRO!$E$37="Endémique",IF($H29>0,IF($H29=4,"Inconnu",IF($H29=99,"Interrompu",$D29)),0),"Non requis") -> Non requis | M29: =IF(INTRO!$E$39="Endémique", IF($I29>0, IF($I29=4,"Inconnu",IF($I29=99,"Interrompu",$D29)), 0),"Non requis") -> 0 | N29: =IF(INTRO!$E$41="Endémique", IF($J29>1, IF($J29=4, "Inconnu", IF($J29=99, "Surveillance", E29)), 0),"Non requis") -> 0 | O29: =IF(INTRO!$E$41="Endémique", IF($J29>1, IF($J29=4, "Inconnu", IF($J29=99, "Surveillance", F29)), 0),"Non requis") -> 0 | P29: =IF(INTRO!$E$41="Endémique", IF($J29>1, IF($J29=4, "Inconnu", IF($J29=99, "Surveillance", ROUND(D29*INTRO!$E$51,0))), 0),"Non requis") -> 0 | Q29: =IF(INTRO!$E$41="Endémique", IF($J29>1, IF($J29=4, "Inconnu", IF($J29=99, "Surveillance", SUM($N29:$P29))), 0),"Non requis") -> 0 | R29: 0 | S29: 0 | T29: 0 | U29: 0 | W29: 0 | X29: 0 | Y29: 0 | AF29: 6393 | AG29: Ryansoro | AJ29: 217017 | AL29: 6393 | AM29: TRUE
A30: =IF(INTRO!$E$33<>0,INTRO!$E$33, " ") -> Burundi | B30: Karusi | C30: Buhiga | D30: 388666 | E30: =IF(INTRO!$E$48="","",ROUND($D30*INTRO!$E$48,0)) -> 50527 | F30: =IF(INTRO!$E$49="","",ROUND($D30*INTRO!$E$49,0)) -> 116328 | G30: =IF(INTRO!$E$50="","",ROUND($D30*INTRO!$E$50,0)) -> 208753 | I30: 0 | J30: 1 | K30: 0 | L30: =IF(INTRO!$E$37="Endémique",IF($H30>0,IF($H30=4,"Inconnu",IF($H30=99,"Interrompu",$D30)),0),"Non requis") -> Non requis | M30: =IF(INTRO!$E$39="Endémique", IF($I30>0, IF($I30=4,"Inconnu",IF($I30=99,"Interrompu",$D30)), 0),"Non requis") -> 0 | N30: =IF(INTRO!$E$41="Endémique", IF($J30>1, IF($J30=4, "Inconnu", IF($J30=99, "Surveillance", E30)), 0),"Non requis") -> 0 | O30: =IF(INTRO!$E$41="Endémique", IF($J30>1, IF($J30=4, "Inconnu", IF($J30=99, "Surveillance", F30)), 0),"Non requis") -> 0 | P30: =IF(INTRO!$E$41="Endémique", IF($J30>1, IF($J30=4, "Inconnu", IF($J30=99, "Surveillance", ROUND(D30*INTRO!$E$51,0))), 0),"Non requis") -> 0 | Q30: =IF(INTRO!$E$41="Endémique", IF($J30>1, IF($J30=4, "Inconnu", IF($J30=99, "Surveillance", SUM($N30:$P30))), 0),"Non requis") -> 0 | R30: 0 | S30: 0 | T30: 0 | U30: 0 | W30: 0 | X30: 0 | Y30: 0 | AF30: 6394 | AG30: Buhiga | AJ30: 378743 | AL30: 6394 | AM30: TRUE
A31: =IF(INTRO!$E$33<>0,INTRO!$E$33, " ") -> Burundi | B31: Karusi | C31: Nyabikere | D31: 343977 | E31: =IF(INTRO!$E$48="","",ROUND($D31*INTRO!$E$48,0)) -> 44717 | F31: =IF(INTRO!$E$49="","",ROUND($D31*INTRO!$E$49,0)) -> 102952 | G31: =IF(INTRO!$E$50="","",ROUND($D31*INTRO!$E$50,0)) -> 184750 | I31: 0 | J31: 1 | K31: 0 | L31: =IF(INTRO!$E$37="Endémique",IF($H31>0,IF($H31=4,"Inconnu",IF($H31=99,"Interrompu",$D31)),0),"Non requis") -> Non requis | M31: =IF(INTRO!$E$39="Endémique", IF($I31>0, IF($I31=4,"Inconnu",IF($I31=99,"Interrompu",$D31)), 0),"Non requis") -> 0 | N31: =IF(INTRO!$E$41="Endémique", IF($J31>1, IF($J31=4, "Inconnu", IF($J31=99, "Surveillance", E31)), 0),"Non requis") -> 0 | O31: =IF(INTRO!$E$41="Endémique", IF($J31>1, IF($J31=4, "Inconnu", IF($J31=99, "Surveillance", F31)), 0),"Non requis") -> 0 | P31: =IF(INTRO!$E$41="Endémique", IF($J31>1, IF($J31=4, "Inconnu", IF($J31=99, "Surveillance", ROUND(D31*INTRO!$E$51,0))), 0),"Non requis") -> 0 | Q31: =IF(INTRO!$E$41="Endémique", IF($J31>1, IF($J31=4, "Inconnu", IF($J31=99, "Surveillance", SUM($N31:$P31))), 0),"Non requis") -> 0 | R31: 0 | S31: 0 | T31: 0 | U31: 0 | W31: 0 | X31: 0 | Y31: 0 | AF31: 6395 | AG31: Nyabikere | AJ31: 335195 | AL31: 6395 | AM31: TRUE
A32: =IF(INTRO!$E$33<>0,INTRO!$E$33, " ") -> Burundi | B32: Kayanza | C32: Gahombo | D32: 282394 | E32: =IF(INTRO!$E$48="","",ROUND($D32*INTRO!$E$48,0)) -> 36711 | F32: =IF(INTRO!$E$49="","",ROUND($D32*INTRO!$E$49,0)) -> 84521 | G32: =IF(INTRO!$E$50="","",ROUND($D32*INTRO!$E$50,0)) -> 151674 | I32: 0 | J32: 2 | K32: 2 | L32: =IF(INTRO!$E$37="Endémique",IF($H32>0,IF($H32=4,"Inconnu",IF($H32=99,"Interrompu",$D32)),0),"Non requis") -> Non requis | M32: =IF(INTRO!$E$39="Endémique", IF($I32>0, IF($I32=4,"Inconnu",IF($I32=99,"Interrompu",$D32)), 0),"Non requis") -> 0 | N32: =IF(INTRO!$E$41="Endémique", IF($J32>1, IF($J32=4, "Inconnu", IF($J32=99, "Surveillance", E32)), 0),"Non requis") -> 36711 | O32: =IF(INTRO!$E$41="Endémique", IF($J32>1, IF($J32=4, "Inconnu", IF($J32=99, "Surveillance", F32)), 0),"Non requis") -> 84521 | P32: =IF(INTRO!$E$41="Endémique", IF($J32>1, IF($J32=4, "Inconnu", IF($J32=99, "Surveillance", ROUND(D32*INTRO!$E$51,0))), 0),"Non requis") -> 65289 | Q32: =IF(INTRO!$E$41="Endémique", IF($J32>1, IF($J32=4, "Inconnu", IF($J32=99, "Surveillance", SUM($N32:$P32))), 0),"Non requis") -> 186521 | R32: 9741 | S32: 22402 | T32: 40236 | U32: 72379 | W32: 0 | X32: 1 | Y32: 1 | AF32: 6396 | AG32: Gahombo | AJ32: 275184 | AL32: 6396 | AM32: TRUE
A33: =IF(INTRO!$E$33<>0,INTRO!$E$33, " ") -> Burundi | B33: Kayanza | C33: Kayanza | D33: 365014 | E33: =IF(INTRO!$E$48="","",ROUND($D33*INTRO!$E$48,0)) -> 47452 | F33: =IF(INTRO!$E$49="","",ROUND($D33*INTRO!$E$49,0)) -> 109249 | G33: =IF(INTRO!$E$50="","",ROUND($D33*INTRO!$E$50,0)) -> 196049 | I33: 0 | J33: 3 | K33: 0 | L33: =IF(INTRO!$E$37="Endémique",IF($H33>0,IF($H33=4,"Inconnu",IF($H33=99,"Interrompu",$D33)),0),"Non requis") -> Non requis | M33: =IF(INTRO!$E$39="Endémique", IF($I33>0, IF($I33=4,"Inconnu",IF($I33=99,"Interrompu",$D33)), 0),"Non requis") -> 0 | N33: =IF(INTRO!$E$41="Endémique", IF($J33>1, IF($J33=4, "Inconnu", IF($J33=99, "Surveillance", E33)), 0),"Non requis") -> 47452 | O33: =IF(INTRO!$E$41="Endémique", IF($J33>1, IF($J33=4, "Inconnu", IF($J33=99, "Surveillance", F33)), 0),"Non requis") -> 109249 | P33: =IF(INTRO!$E$41="Endémique", IF($J33>1, IF($J33=4, "Inconnu", IF($J33=99, "Surveillance", ROUND(D33*INTRO!$E$51,0))), 0),"Non requis") -> 84391 | Q33: =IF(INTRO!$E$41="Endémique", IF($J33>1, IF($J33=4, "Inconnu", IF($J33=99, "Surveillance", SUM($N33:$P33))), 0),"Non requis") -> 241092 | R33: 0 | S33: 0 | T33: 0 | U33: 0 | W33: 0 | X33: 1 | Y33: 0 | AF33: 6397 | AG33: Kayanza | AJ33: 355695 | AL33: 6397 | AM33: TRUE
A34: =IF(INTRO!$E$33<>0,INTRO!$E$33, " ") -> Burundi | B34: Kayanza | C34: Musema | D34: 335303 | E34: =IF(INTRO!$E$48="","",ROUND($D34*INTRO!$E$48,0)) -> 43589 | F34: =IF(INTRO!$E$49="","",ROUND($D34*INTRO!$E$49,0)) -> 100356 | G34: =IF(INTRO!$E$50="","",ROUND($D34*INTRO!$E$50,0)) -> 180091 | I34: 0 | J34: 2 | K34: 1 | L34: =IF(INTRO!$E$37="Endémique",IF($H34>0,IF($H34=4,"Inconnu",IF($H34=99,"Interrompu",$D34)),0),"Non requis") -> Non requis | M34: =IF(INTRO!$E$39="Endémique", IF($I34>0, IF($I34=4,"Inconnu",IF($I34=99,"Interrompu",$D34)), 0),"Non requis") -> 0 | N34: =IF(INTRO!$E$41="Endémique", IF($J34>1, IF($J34=4, "Inconnu", IF($J34=99, "Surveillance", E34)), 0),"Non requis") -> 43589 | O34: =IF(INTRO!$E$41="Endémique", IF($J34>1, IF($J34=4, "Inconnu", IF($J34=99, "Surveillance", F34)), 0),"Non requis") -> 100356 | P34: =IF(INTRO!$E$41="Endémique", IF($J34>1, IF($J34=4, "Inconnu", IF($J34=99, "Surveillance", ROUND(D34*INTRO!$E$51,0))), 0),"Non requis") -> 77522 | Q34: =IF(INTRO!$E$41="Endémique", IF($J34>1, IF($J34=4, "Inconnu", IF($J34=99, "Surveillance", SUM($N34:$P34))), 0),"Non requis") -> 221467 | R34: 0 | S34: 0 | T34: 0 | U34: 0 | W34: 0 | X34: 1 | Y34: 0 | AF34: 6398 | AG34: Musema | AJ34: 326742 | AL34: 6398 | AM34: TRUE
A35: =IF(INTRO!$E$33<>0,INTRO!$E$33, " ") -> Burundi | B35: Kirundo | C35: Busoni | D35: 244118 | E35: =IF(INTRO!$E$48="","",ROUND($D35*INTRO!$E$48,0)) -> 31735 | F35: =IF(INTRO!$E$49="","",ROUND($D35*INTRO!$E$49,0)) -> 73065 | G35: =IF(INTRO!$E$50="","",ROUND($D35*INTRO!$E$50,0)) -> 131116 | I35: 0 | J35: 1 | K35: 0 | L35: =IF(INTRO!$E$37="Endémique",IF($H35>0,IF($H35=4,"Inconnu",IF($H35=99,"Interrompu",$D35)),0),"Non requis") -> Non requis | M35: =IF(INTRO!$E$39="Endémique", IF($I35>0, IF($I35=4,"Inconnu",IF($I35=99,"Interrompu",$D35)), 0),"Non requis") -> 0 | N35: =IF(INTRO!$E$41="Endémique", IF($J35>1, IF($J35=4, "Inconnu", IF($J35=99, "Surveillance", E35)), 0),"Non requis") -> 0 | O35: =IF(INTRO!$E$41="Endémique", IF($J35>1, IF($J35=4, "Inconnu", IF($J35=99, "Surveillance", F35)), 0),"Non requis") -> 0 | P35: =IF(INTRO!$E$41="Endémique", IF($J35>1, IF($J35=4, "Inconnu", IF($J35=99, "Surveillance", ROUND(D35*INTRO!$E$51,0))), 0),"Non requis") -> 0 | Q35: =IF(INTRO!$E$41="Endémique", IF($J35>1, IF($J35=4, "Inconnu", IF($J35=99, "Surveillance", SUM($N35:$P35))), 0),"Non requis") -> 0 | R35: 0 | S35: 0 | T35: 0 | U35: 0 | W35: 0 | X35: 0 | Y35: 0 | AF35: 6399 | AG35: Busoni | AJ35: 237885 | AL35: 6399 | AM35: TRUE
A36: =IF(INTRO!$E$33<>0,INTRO!$E$33, " ") -> Burundi | B36: Kirundo | C36: Kirundo | D36: 306136 | E36: =IF(INTRO!$E$48="","",ROUND($D36*INTRO!$E$48,0)) -> 39798 | F36: =IF(INTRO!$E$49="","",ROUND($D36*INTRO!$E$49,0)) -> 91627 | G36: =IF(INTRO!$E$50="","",ROUND($D36*INTRO!$E$50,0)) -> 164426 | I36: 0 | J36: 1 | K36: 0 | L36: =IF(INTRO!$E$37="Endémique",IF($H36>0,IF($H36=4,"Inconnu",IF($H36=99,"Interrompu",$D36)),0),"Non requis") -> Non requis | M36: =IF(INTRO!$E$39="Endémique", IF($I36>0, IF($I36=4,"Inconnu",IF($I36=99,"Interrompu",$D36)), 0),"Non requis") -> 0 | N36: =IF(INTRO!$E$41="Endémique", IF($J36>1, IF($J36=4, "Inconnu", IF($J36=99, "Surveillance", E36)), 0),"Non requis") -> 0 | O36: =IF(INTRO!$E$41="Endémique", IF($J36>1, IF($J36=4, "Inconnu", IF($J36=99, "Surveillance", F36)), 0),"Non requis") -> 0 | P36: =IF(INTRO!$E$41="Endémique", IF($J36>1, IF($J36=4, "Inconnu", IF($J36=99, "Surveillance", ROUND(D36*INTRO!$E$51,0))), 0),"Non requis") -> 0 | Q36: =IF(INTRO!$E$41="Endémique", IF($J36>1, IF($J36=4, "Inconnu", IF($J36=99, "Surveillance", SUM($N36:$P36))), 0),"Non requis") -> 0 | R36: 0 | S36: 0 | T36: 0 | U36: 0 | W36: 0 | X36: 0 | Y36: 0 | AF36: 6400 | AG36: Kirundo | AJ36: 298320 | AL36: 6400 | AM36: TRUE
A37: =IF(INTRO!$E$33<>0,INTRO!$E$33, " ") -> Burundi | B37: Kirundo | C37: Mukenke | D37: 208394 | E37: =IF(INTRO!$E$48="","",ROUND($D37*INTRO!$E$48,0)) -> 27091 | F37: =IF(INTRO!$E$49="","",ROUND($D37*INTRO!$E$49,0)) -> 62372 | G37: =IF(INTRO!$E$50="","",ROUND($D37*INTRO!$E$50,0)) -> 111928 | I37: 0 | J37: 1 | K37: 0 | L37: =IF(INTRO!$E$37="Endémique",IF($H37>0,IF($H37=4,"Inconnu",IF($H37=99,"Interrompu",$D37)),0),"Non requis") -> Non requis | M37: =IF(INTRO!$E$39="Endémique", IF($I37>0, IF($I37=4,"Inconnu",IF($I37=99,"Interrompu",$D37)), 0),"Non requis") -> 0 | N37: =IF(INTRO!$E$41="Endémique", IF($J37>1, IF($J37=4, "Inconnu", IF($J37=99, "Surveillance", E37)), 0),"Non requis") -> 0 | O37: =IF(INTRO!$E$41="Endémique", IF($J37>1, IF($J37=4, "Inconnu", IF($J37=99, "Surveillance", F37)), 0),"Non requis") -> 0 | P37: =IF(INTRO!$E$41="Endémique", IF($J37>1, IF($J37=4, "Inconnu", IF($J37=99, "Surveillance", ROUND(D37*INTRO!$E$51,0))), 0),"Non requis") -> 0 | Q37: =IF(INTRO!$E$41="Endémique", IF($J37>1, IF($J37=4, "Inconnu", IF($J37=99, "Surveillance", SUM($N37:$P37))), 0),"Non requis") -> 0 | R37: 0 | S37: 0 | T37: 0 | U37: 0 | W37: 0 | X37: 0 | Y37: 0 | AF37: 6401 | AG37: Mukenke | AJ37: 203073 | AL37: 6401 | AM37: TRUE
A38: =IF(INTRO!$E$33<>0,INTRO!$E$33, " ") -> Burundi | B38: Kirundo | C38: Vumbi | D38: 295984 | E38: =IF(INTRO!$E$48="","",ROUND($D38*INTRO!$E$48,0)) -> 38478 | F38: =IF(INTRO!$E$49="","",ROUND($D38*INTRO!$E$49,0)) -> 88588 | G38: =IF(INTRO!$E$50="","",ROUND($D38*INTRO!$E$50,0)) -> 158973 | I38: 0 | J38: 1 | K38: 0 | L38: =IF(INTRO!$E$37="Endémique",IF($H38>0,IF($H38=4,"Inconnu",IF($H38=99,"Interrompu",$D38)),0),"Non requis") -> Non requis | M38: =IF(INTRO!$E$39="Endémique", IF($I38>0, IF($I38=4,"Inconnu",IF($I38=99,"Interrompu",$D38)), 0),"Non requis") -> 0 | N38: =IF(INTRO!$E$41="Endémique", IF($J38>1, IF($J38=4, "Inconnu", IF($J38=99, "Surveillance", E38)), 0),"Non requis") -> 0 | O38: =IF(INTRO!$E$41="Endémique", IF($J38>1, IF($J38=4, "Inconnu", IF($J38=99, "Surveillance", F38)), 0),"Non requis") -> 0 | P38: =IF(INTRO!$E$41="Endémique", IF($J38>1, IF($J38=4, "Inconnu", IF($J38=99, "Surveillance", ROUND(D38*INTRO!$E$51,0))), 0),"Non requis") -> 0 | Q38: =IF(INTRO!$E$41="Endémique", IF($J38>1, IF($J38=4, "Inconnu", IF($J38=99, "Surveillance", SUM($N38:$P38))), 0),"Non requis") -> 0 | R38: 0 | S38: 0 | T38: 0 | U38: 0 | W38: 0 | X38: 0 | Y38: 0 | AF38: 6402 | AG38: Vumbi | AJ38: 288427 | AL38: 6402 | AM38: TRUE
A39: =IF(INTRO!$E$33<>0,INTRO!$E$33, " ") -> Burundi | B39: Makamba | C39: Makamba | D39: 381206 | E39: =IF(INTRO!$E$48="","",ROUND($D39*INTRO!$E$48,0)) -> 49557 | F39: =IF(INTRO!$E$49="","",ROUND($D39*INTRO!$E$49,0)) -> 114095 | G39: =IF(INTRO!$E$50="","",ROUND($D39*INTRO!$E$50,0)) -> 204746 | I39: 1 | J39: 1 | K39: 1 | L39: =IF(INTRO!$E$37="Endémique",IF($H39>0,IF($H39=4,"Inconnu",IF($H39=99,"Interrompu",$D39)),0),"Non requis") -> Non requis | M39: =IF(INTRO!$E$39="Endémique", IF($I39>0, IF($I39=4,"Inconnu",IF($I39=99,"Interrompu",$D39)), 0),"Non requis") -> 381206 | N39: =IF(INTRO!$E$41="Endémique", IF($J39>1, IF($J39=4, "Inconnu", IF($J39=99, "Surveillance", E39)), 0),"Non requis") -> 0 | O39: =IF(INTRO!$E$41="Endémique", IF($J39>1, IF($J39=4, "Inconnu", IF($J39=99, "Surveillance", F39)), 0),"Non requis") -> 0 | P39: =IF(INTRO!$E$41="Endémique", IF($J39>1, IF($J39=4, "Inconnu", IF($J39=99, "Surveillance", ROUND(D39*INTRO!$E$51,0))), 0),"Non requis") -> 0 | Q39: =IF(INTRO!$E$41="Endémique", IF($J39>1, IF($J39=4, "Inconnu", IF($J39=99, "Surveillance", SUM($N39:$P39))), 0),"Non requis") -> 0 | R39: 0 | S39: 0 | T39: 0 | U39: 0 | W39: 1 | X39: 0 | Y39: 0 | AF39: 6403 | AG39: Makamba | AJ39: 371473 | AL39: 6403 | AM39: TRUE
A40: =IF(INTRO!$E$33<>0,INTRO!$E$33, " ") -> Burundi | B40: Makamba | C40: Nyanza-Lac | D40: 342131 | E40: =IF(INTRO!$E$48="","",ROUND($D40*INTRO!$E$48,0)) -> 44477 | F40: =IF(INTRO!$E$49="","",ROUND($D40*INTRO!$E$49,0)) -> 102400 | G40: =IF(INTRO!$E$50="","",ROUND($D40*INTRO!$E$50,0)) -> 183759 | I40: 0 | J40: 1 | K40: 2 | L40: =IF(INTRO!$E$37="Endémique",IF($H40>0,IF($H40=4,"Inconnu",IF($H40=99,"Interrompu",$D40)),0),"Non requis") -> Non requis | M40: =IF(INTRO!$E$39="Endémique", IF($I40>0, IF($I40=4,"Inconnu",IF($I40=99,"Interrompu",$D40)), 0),"Non requis") -> 0 | N40: =IF(INTRO!$E$41="Endémique", IF($J40>1, IF($J40=4, "Inconnu", IF($J40=99, "Surveillance", E40)), 0),"Non requis") -> 0 | O40: =IF(INTRO!$E$41="Endémique", IF($J40>1, IF($J40=4, "Inconnu", IF($J40=99, "Surveillance", F40)), 0),"Non requis") -> 0 | P40: =IF(INTRO!$E$41="Endémique", IF($J40>1, IF($J40=4, "Inconnu", IF($J40=99, "Surveillance", ROUND(D40*INTRO!$E$51,0))), 0),"Non requis") -> 0 | Q40: =IF(INTRO!$E$41="Endémique", IF($J40>1, IF($J40=4, "Inconnu", IF($J40=99, "Surveillance", SUM($N40:$P40))), 0),"Non requis") -> 0 | R40: 23692 | S40: 54493 | T40: 97868 | U40: 176053 | W40: 0 | X40: 0 | Y40: 1 | AF40: 6404 | AG40: Nyanza Lac | AJ40: 333396 | AL40: 6404 | AM40: TRUE
A41: =IF(INTRO!$E$33<>0,INTRO!$E$33, " ") -> Burundi | B41: Muramvya | C41: Kiganda | D41: 243813 | E41: =IF(INTRO!$E$48="","",ROUND($D41*INTRO!$E$48,0)) -> 31696 | F41: =IF(INTRO!$E$49="","",ROUND($D41*INTRO!$E$49,0)) -> 72973 | G41: =IF(INTRO!$E$50="","",ROUND($D41*INTRO!$E$50,0)) -> 130952 | I41: 0 | J41: 2 | K41: 1 | L41: =IF(INTRO!$E$37="Endémique",IF($H41>0,IF($H41=4,"Inconnu",IF($H41=99,"Interrompu",$D41)),0),"Non requis") -> Non requis | M41: =IF(INTRO!$E$39="Endémique", IF($I41>0, IF($I41=4,"Inconnu",IF($I41=99,"Interrompu",$D41)), 0),"Non requis") -> 0 | N41: =IF(INTRO!$E$41="Endémique", IF($J41>1, IF($J41=4, "Inconnu", IF($J41=99, "Surveillance", E41)), 0),"Non requis") -> 31696 | O41: =IF(INTRO!$E$41="Endémique", IF($J41>1, IF($J41=4, "Inconnu", IF($J41=99, "Surveillance", F41)), 0),"Non requis") -> 72973 | P41: =IF(INTRO!$E$41="Endémique", IF($J41>1, IF($J41=4, "Inconnu", IF($J41=99, "Surveillance", ROUND(D41*INTRO!$E$51,0))), 0),"Non requis") -> 56370 | Q41: =IF(INTRO!$E$41="Endémique", IF($J41>1, IF($J41=4, "Inconnu", IF($J41=99, "Surveillance", SUM($N41:$P41))), 0),"Non requis") -> 161039 | R41: 0 | S41: 0 | T41: 0 | U41: 0 | W41: 0 | X41: 1 | Y41: 0 | AF41: 6405 | AG41: Kiganda | AJ41: 237588 | AL41: 6405 | AM41: TRUE
A42: =IF(INTRO!$E$33<>0,INTRO!$E$33, " ") -> Burundi | B42: Muramvya | C42: Muramvya | D42: 247346 | E42: =IF(INTRO!$E$48="","",ROUND($D42*INTRO!$E$48,0)) -> 32155 | F42: =IF(INTRO!$E$49="","",ROUND($D42*INTRO!$E$49,0)) -> 74031 | G42: =IF(INTRO!$E$50="","",ROUND($D42*INTRO!$E$50,0)) -> 132850 | I42: 0 | J42: 1 | K42: 0 | L42: =IF(INTRO!$E$37="Endémique",IF($H42>0,IF($H42=4,"Inconnu",IF($H42=99,"Interrompu",$D42)),0),"Non requis") -> Non requis | M42: =IF(INTRO!$E$39="Endémique", IF($I42>0, IF($I42=4,"Inconnu",IF($I42=99,"Interrompu",$D42)), 0),"Non requis") -> 0 | N42: =IF(INTRO!$E$41="Endémique", IF($J42>1, IF($J42=4, "Inconnu", IF($J42=99, "Surveillance", E42)), 0),"Non requis") -> 0 | O42: =IF(INTRO!$E$41="Endémique", IF($J42>1, IF($J42=4, "Inconnu", IF($J42=99, "Surveillance", F42)), 0),"Non requis") -> 0 | P42: =IF(INTRO!$E$41="Endémique", IF($J42>1, IF($J42=4, "Inconnu", IF($J42=99, "Surveillance", ROUND(D42*INTRO!$E$51,0))), 0),"Non requis") -> 0 | Q42: =IF(INTRO!$E$41="Endémique", IF($J42>1, IF($J42=4, "Inconnu", IF($J42=99, "Surveillance", SUM($N42:$P42))), 0),"Non requis") -> 0 | R42: 0 | S42: 0 | T42: 0 | U42: 0 | W42: 0 | X42: 0 | Y42: 0 | AF42: 6406 | AG42: Muramvya | AJ42: 241031 | AL42: 6406 | AM42: TRUE
A43: =IF(INTRO!$E$33<>0,INTRO!$E$33, " ") -> Burundi | B43: Muyinga | C43: Gashoho | D43: 248617 | E43: =IF(INTRO!$E$48="","",ROUND($D43*INTRO!$E$48,0)) -> 32320 | F43: =IF(INTRO!$E$49="","",ROUND($D43*INTRO!$E$49,0)) -> 74411 | G43: =IF(INTRO!$E$50="","",ROUND($D43*INTRO!$E$50,0)) -> 133532 | I43: 0 | J43: 2 | K43: 0 | L43: =IF(INTRO!$E$37="Endémique",IF($H43>0,IF($H43=4,"Inconnu",IF($H43=99,"Interrompu",$D43)),0),"Non requis") -> Non requis | M43: =IF(INTRO!$E$39="Endémique", IF($I43>0, IF($I43=4,"Inconnu",IF($I43=99,"Interrompu",$D43)), 0),"Non requis") -> 0 | N43: =IF(INTRO!$E$41="Endémique", IF($J43>1, IF($J43=4, "Inconnu", IF($J43=99, "Surveillance", E43)), 0),"Non requis") -> 32320 | O43: =IF(INTRO!$E$41="Endémique", IF($J43>1, IF($J43=4, "Inconnu", IF($J43=99, "Surveillance", F43)), 0),"Non requis") -> 74411 | P43: =IF(INTRO!$E$41="Endémique", IF($J43>1, IF($J43=4, "Inconnu", IF($J43=99, "Surveillance", ROUND(D43*INTRO!$E$51,0))), 0),"Non requis") -> 57480 | Q43: =IF(INTRO!$E$41="Endémique", IF($J43>1, IF($J43=4, "Inconnu", IF($J43=99, "Surveillance", SUM($N43:$P43))), 0),"Non requis") -> 164211 | R43: 0 | S43: 0 | T43: 0 | U43: 0 | W43: 0 | X43: 1 | Y43: 0 | AF43: 6407 | AG43: Gashoho | AJ43: 242270 | AL43: 6407 | AM43: TRUE
A44: =IF(INTRO!$E$33<>0,INTRO!$E$33, " ") -> Burundi | B44: Muyinga | C44: Giteranyi | D44: 416510 | E44: =IF(INTRO!$E$48="","",ROUND($D44*INTRO!$E$48,0)) -> 54146 | F44: =IF(INTRO!$E$49="","",ROUND($D44*INTRO!$E$49,0)) -> 124661 | G44: =IF(INTRO!$E$50="","",ROUND($D44*INTRO!$E$50,0)) -> 223708 | I44: 0 | J44: 1 | K44: 0 | L44: =IF(INTRO!$E$37="Endémique",IF($H44>0,IF($H44=4,"Inconnu",IF($H44=99,"Interrompu",$D44)),0),"Non requis") -> Non requis | M44: =IF(INTRO!$E$39="Endémique", IF($I44>0, IF($I44=4,"Inconnu",IF($I44=99,"Interrompu",$D44)), 0),"Non requis") -> 0 | N44: =IF(INTRO!$E$41="Endémique", IF($J44>1, IF($J44=4, "Inconnu", IF($J44=99, "Surveillance", E44)), 0),"Non requis") -> 0 | O44: =IF(INTRO!$E$41="Endémique", IF($J44>1, IF($J44=4, "Inconnu", IF($J44=99, "Surveillance", F44)), 0),"Non requis") -> 0 | P44: =IF(INTRO!$E$41="Endémique", IF($J44>1, IF($J44=4, "Inconnu", IF($J44=99, "Surveillance", ROUND(D44*INTRO!$E$51,0))), 0),"Non requis") -> 0 | Q44: =IF(INTRO!$E$41="Endémique", IF($J44>1, IF($J44=4, "Inconnu", IF($J44=99, "Surveillance", SUM($N44:$P44))), 0),"Non requis") -> 0 | R44: 0 | S44: 0 | T44: 0 | U44: 0 | W44: 0 | X44: 0 | Y44: 0 | AF44: 6408 | AG44: Giteranyi | AJ44: 405876 | AL44: 6408 | AM44: TRUE
A45: =IF(INTRO!$E$33<>0,INTRO!$E$33, " ") -> Burundi | B45: Muyinga | C45: Muyinga | D45: 396474 | E45: =IF(INTRO!$E$48="","",ROUND($D45*INTRO!$E$48,0)) -> 51542 | F45: =IF(INTRO!$E$49="","",ROUND($D45*INTRO!$E$49,0)) -> 118665 | G45: =IF(INTRO!$E$50="","",ROUND($D45*INTRO!$E$50,0)) -> 212946 | I45: 0 | J45: 1 | K45: 0 | L45: =IF(INTRO!$E$37="Endémique",IF($H45>0,IF($H45=4,"Inconnu",IF($H45=99,"Interrompu",$D45)),0),"Non requis") -> Non requis | M45: =IF(INTRO!$E$39="Endémique", IF($I45>0, IF($I45=4,"Inconnu",IF($I45=99,"Interrompu",$D45)), 0),"Non requis") -> 0 | N45: =IF(INTRO!$E$41="Endémique", IF($J45>1, IF($J45=4, "Inconnu", IF($J45=99, "Surveillance", E45)), 0),"Non requis") -> 0 | O45: =IF(INTRO!$E$41="Endémique", IF($J45>1, IF($J45=4, "Inconnu", IF($J45=99, "Surveillance", F45)), 0),"Non requis") -> 0 | P45: =IF(INTRO!$E$41="Endémique", IF($J45>1, IF($J45=4, "Inconnu", IF($J45=99, "Surveillance", ROUND(D45*INTRO!$E$51,0))), 0),"Non requis") -> 0 | Q45: =IF(INTRO!$E$41="Endémique", IF($J45>1, IF($J45=4, "Inconnu", IF($J45=99, "Surveillance", SUM($N45:$P45))), 0),"Non requis") -> 0 | R45: 0 | S45: 0 | T45: 0 | U45: 0 | W45: 0 | X45: 0 | Y45: 0 | AF45: 6409 | AG45: Muyinga | AJ45: 386352 | AL45: 6409 | AM45: TRUE
A46: =IF(INTRO!$E$33<>0,INTRO!$E$33, " ") -> Burundi | B46: Mwaro | C46: Fota | D46: 217437 | E46: =IF(INTRO!$E$48="","",ROUND($D46*INTRO!$E$48,0)) -> 28267 | F46: =IF(INTRO!$E$49="","",ROUND($D46*INTRO!$E$49,0)) -> 65079 | G46: =IF(INTRO!$E$50="","",ROUND($D46*INTRO!$E$50,0)) -> 116785 | I46: 0 | J46: 1 | K46: 0 | L46: =IF(INTRO!$E$37="Endémique",IF($H46>0,IF($H46=4,"Inconnu",IF($H46=99,"Interrompu",$D46)),0),"Non requis") -> Non requis | M46: =IF(INTRO!$E$39="Endémique", IF($I46>0, IF($I46=4,"Inconnu",IF($I46=99,"Interrompu",$D46)), 0),"Non requis") -> 0 | N46: =IF(INTRO!$E$41="Endémique", IF($J46>1, IF($J46=4, "Inconnu", IF($J46=99, "Surveillance", E46)), 0),"Non requis") -> 0 | O46: =IF(INTRO!$E$41="Endémique", IF($J46>1, IF($J46=4, "Inconnu", IF($J46=99, "Surveillance", F46)), 0),"Non requis") -> 0 | P46: =IF(INTRO!$E$41="Endémique", IF($J46>1, IF($J46=4, "Inconnu", IF($J46=99, "Surveillance", ROUND(D46*INTRO!$E$51,0))), 0),"Non requis") -> 0 | Q46: =IF(INTRO!$E$41="Endémique", IF($J46>1, IF($J46=4, "Inconnu", IF($J46=99, "Surveillance", SUM($N46:$P46))), 0),"Non requis") -> 0 | R46: 0 | S46: 0 | T46: 0 | U46: 0 | W46: 0 | X46: 0 | Y46: 0 | AF46: 6410 | AG46: Fota | AJ46: 211886 | AL46: 6410 | AM46: TRUE
A47: =IF(INTRO!$E$33<>0,INTRO!$E$33, " ") -> Burundi | B47: Mwaro | C47: Kibumbu | D47: 241078 | E47: =IF(INTRO!$E$48="","",ROUND($D47*INTRO!$E$48,0)) -> 31340 | F47: =IF(INTRO!$E$49="","",ROUND($D47*INTRO!$E$49,0)) -> 72155 | G47: =IF(INTRO!$E$50="","",ROUND($D47*INTRO!$E$50,0)) -> 129483 | I47: 0 | J47: 1 | K47: 0 | L47: =IF(INTRO!$E$37="Endémique",IF($H47>0,IF($H47=4,"Inconnu",IF($H47=99,"Interrompu",$D47)),0),"Non requis") -> Non requis | M47: =IF(INTRO!$E$39="Endémique", IF($I47>0, IF($I47=4,"Inconnu",IF($I47=99,"Interrompu",$D47)), 0),"Non requis") -> 0 | N47: =IF(INTRO!$E$41="Endémique", IF($J47>1, IF($J47=4, "Inconnu", IF($J47=99, "Surveillance", E47)), 0),"Non requis") -> 0 | O47: =IF(INTRO!$E$41="Endémique", IF($J47>1, IF($J47=4, "Inconnu", IF($J47=99, "Surveillance", F47)), 0),"Non requis") -> 0 | P47: =IF(INTRO!$E$41="Endémique", IF($J47>1, IF($J47=4, "Inconnu", IF($J47=99, "Surveillance", ROUND(D47*INTRO!$E$51,0))), 0),"Non requis") -> 0 | Q47: =IF(INTRO!$E$41="Endémique", IF($J47>1, IF($J47=4, "Inconnu", IF($J47=99, "Surveillance", SUM($N47:$P47))), 0),"Non requis") -> 0 | R47: 0 | S47: 0 | T47: 0 | U47: 0 | W47: 0 | X47: 0 | Y47: 0 | AF47: 6411 | AG47: Kibumbu | AJ47: 234923 | AL47: 6411 | AM47: TRUE
A48: =IF(INTRO!$E$33<>0,INTRO!$E$33, " ") -> Burundi | B48: Ngozi | C48: Buye | D48: 295231 | E48: =IF(INTRO!$E$48="","",ROUND($D48*INTRO!$E$48,0)) -> 38380 | F48: =IF(INTRO!$E$49="","",ROUND($D48*INTRO!$E$49,0)) -> 88363 | G48: =IF(INTRO!$E$50="","",ROUND($D48*INTRO!$E$50,0)) -> 158569 | I48: 0 | J48: 1 | K48: 1 | L48: =IF(INTRO!$E$37="Endémique",IF($H48>0,IF($H48=4,"Inconnu",IF($H48=99,"Interrompu",$D48)),0),"Non requis") -> Non requis | M48: =IF(INTRO!$E$39="Endémique", IF($I48>0, IF($I48=4,"Inconnu",IF($I48=99,"Interrompu",$D48)), 0),"Non requis") -> 0 | N48: =IF(INTRO!$E$41="Endémique", IF($J48>1, IF($J48=4, "Inconnu", IF($J48=99, "Surveillance", E48)), 0),"Non requis") -> 0 | O48: =IF(INTRO!$E$41="Endémique", IF($J48>1, IF($J48=4, "Inconnu", IF($J48=99, "Surveillance", F48)), 0),"Non requis") -> 0 | P48: =IF(INTRO!$E$41="Endémique", IF($J48>1, IF($J48=4, "Inconnu", IF($J48=99, "Surveillance", ROUND(D48*INTRO!$E$51,0))), 0),"Non requis") -> 0 | Q48: =IF(INTRO!$E$41="Endémique", IF($J48>1, IF($J48=4, "Inconnu", IF($J48=99, "Surveillance", SUM($N48:$P48))), 0),"Non requis") -> 0 | R48: 0 | S48: 0 | T48: 0 | U48: 0 | W48: 0 | X48: 0 | Y48: 0 | AF48: 6412 | AG48: Buye | AJ48: 287693 | AL48: 6412 | AM48: TRUE
A49: =IF(INTRO!$E$33<>0,INTRO!$E$33, " ") -> Burundi | B49: Ngozi | C49: Kiremba | D49: 397521 | E49: =IF(INTRO!$E$48="","",ROUND($D49*INTRO!$E$48,0)) -> 51678 | F49: =IF(INTRO!$E$49="","",ROUND($D49*INTRO!$E$49,0)) -> 118978 | G49: =IF(INTRO!$E$50="","",ROUND($D49*INTRO!$E$50,0)) -> 213509 | I49: 0 | J49: 1 | K49: 0 | L49: =IF(INTRO!$E$37="Endémique",IF($H49>0,IF($H49=4,"Inconnu",IF($H49=99,"Interrompu",$D49)),0),"Non requis") -> Non requis | M49: =IF(INTRO!$E$39="Endémique", IF($I49>0, IF($I49=4,"Inconnu",IF($I49=99,"Interrompu",$D49)), 0),"Non requis") -> 0 | N49: =IF(INTRO!$E$41="Endémique", IF($J49>1, IF($J49=4, "Inconnu", IF($J49=99, "Surveillance", E49)), 0),"Non requis") -> 0 | O49: =IF(INTRO!$E$41="Endémique", IF($J49>1, IF($J49=4, "Inconnu", IF($J49=99, "Surveillance", F49)), 0),"Non requis") -> 0 | P49: =IF(INTRO!$E$41="Endémique", IF($J49>1, IF($J49=4, "Inconnu", IF($J49=99, "Surveillance", ROUND(D49*INTRO!$E$51,0))), 0),"Non requis") -> 0 | Q49: =IF(INTRO!$E$41="Endémique", IF($J49>1, IF($J49=4, "Inconnu", IF($J49=99, "Surveillance", SUM($N49:$P49))), 0),"Non requis") -> 0 | R49: 0 | S49: 0 | T49: 0 | U49: 0 | W49: 0 | X49: 0 | Y49: 0 | AF49: 6413 | AG49: Kiremba | AJ49: 387372 | AL49: 6413 | AM49: TRUE
A50: =IF(INTRO!$E$33<>0,INTRO!$E$33, " ") -> Burundi | B50: Ngozi | C50: Ngozi | D50: 416371 | E50: =IF(INTRO!$E$48="","",ROUND($D50*INTRO!$E$48,0)) -> 54128 | F50: =IF(INTRO!$E$49="","",ROUND($D50*INTRO!$E$49,0)) -> 124620 | G50: =IF(INTRO!$E$50="","",ROUND($D50*INTRO!$E$50,0)) -> 223633 | I50: 0 | J50: 2 | K50: 0 | L50: =IF(INTRO!$E$37="Endémique",IF($H50>0,IF($H50=4,"Inconnu",IF($H50=99,"Interrompu",$D50)),0),"Non requis") -> Non requis | M50: =IF(INTRO!$E$39="Endémique", IF($I50>0, IF($I50=4,"Inconnu",IF($I50=99,"Interrompu",$D50)), 0),"Non requis") -> 0 | N50: =IF(INTRO!$E$41="Endémique", IF($J50>1, IF($J50=4, "Inconnu", IF($J50=99, "Surveillance", E50)), 0),"Non requis") -> 54128 | O50: =IF(INTRO!$E$41="Endémique", IF($J50>1, IF($J50=4, "Inconnu", IF($J50=99, "Surveillance", F50)), 0),"Non requis") -> 124620 | P50: =IF(INTRO!$E$41="Endémique", IF($J50>1, IF($J50=4, "Inconnu", IF($J50=99, "Surveillance", ROUND(D50*INTRO!$E$51,0))), 0),"Non requis") -> 96265 | Q50: =IF(INTRO!$E$41="Endémique", IF($J50>1, IF($J50=4, "Inconnu", IF($J50=99, "Surveillance", SUM($N50:$P50))), 0),"Non requis") -> 275013 | R50: 0 | S50: 0 | T50: 0 | U50: 0 | W50: 0 | X50: 1 | Y50: 0 | AF50: 6414 | AG50: Ngozi | AJ50: 405741 | AL50: 6414 | AM50: TRUE
A51: =IF(INTRO!$E$33<>0,INTRO!$E$33, " ") -> Burundi | B51: Rumonge | C51: Bugarama | D51: 248917 | E51: =IF(INTRO!$E$48="","",ROUND($D51*INTRO!$E$48,0)) -> 32359 | F51: =IF(INTRO!$E$49="","",ROUND($D51*INTRO!$E$49,0)) -> 74501 | G51: =IF(INTRO!$E$50="","",ROUND($D51*INTRO!$E$50,0)) -> 133693 | I51: 1 | J51: 1 | K51: 1 | L51: =IF(INTRO!$E$37="Endémique",IF($H51>0,IF($H51=4,"Inconnu",IF($H51=99,"Interrompu",$D51)),0),"Non requis") -> Non requis | M51: =IF(INTRO!$E$39="Endémique", IF($I51>0, IF($I51=4,"Inconnu",IF($I51=99,"Interrompu",$D51)), 0),"Non requis") -> 248917 | N51: =IF(INTRO!$E$41="Endémique", IF($J51>1, IF($J51=4, "Inconnu", IF($J51=99, "Surveillance", E51)), 0),"Non requis") -> 0 | O51: =IF(INTRO!$E$41="Endémique", IF($J51>1, IF($J51=4, "Inconnu", IF($J51=99, "Surveillance", F51)), 0),"Non requis") -> 0 | P51: =IF(INTRO!$E$41="Endémique", IF($J51>1, IF($J51=4, "Inconnu", IF($J51=99, "Surveillance", ROUND(D51*INTRO!$E$51,0))), 0),"Non requis") -> 0 | Q51: =IF(INTRO!$E$41="Endémique", IF($J51>1, IF($J51=4, "Inconnu", IF($J51=99, "Surveillance", SUM($N51:$P51))), 0),"Non requis") -> 0 | R51: 0 | S51: 0 | T51: 0 | U51: 0 | W51: 1 | X51: 0 | Y51: 0 | AF51: 6420 | AG51: Bugarama | AJ51: 242562 | AL51: 6420 | AM51: TRUE
A52: =IF(INTRO!$E$33<>0,INTRO!$E$33, " ") -> Burundi | B52: Rumonge | C52: Rumonge | D52: 342018 | E52: =IF(INTRO!$E$48="","",ROUND($D52*INTRO!$E$48,0)) -> 44462 | F52: =IF(INTRO!$E$49="","",ROUND($D52*INTRO!$E$49,0)) -> 102366 | G52: =IF(INTRO!$E$50="","",ROUND($D52*INTRO!$E$50,0)) -> 183698 | I52: 1 | J52: 1 | K52: 2 | L52: =IF(INTRO!$E$37="Endémique",IF($H52>0,IF($H52=4,"Inconnu",IF($H52=99,"Interrompu",$D52)),0),"Non requis") -> Non requis | M52: =IF(INTRO!$E$39="Endémique", IF($I52>0, IF($I52=4,"Inconnu",IF($I52=99,"Interrompu",$D52)), 0),"Non requis") -> 342018 | N52: =IF(INTRO!$E$41="Endémique", IF($J52>1, IF($J52=4, "Inconnu", IF($J52=99, "Surveillance", E52)), 0),"Non requis") -> 0 | O52: =IF(INTRO!$E$41="Endémique", IF($J52>1, IF($J52=4, "Inconnu", IF($J52=99, "Surveillance", F52)), 0),"Non requis") -> 0 | P52: =IF(INTRO!$E$41="Endémique", IF($J52>1, IF($J52=4, "Inconnu", IF($J52=99, "Surveillance", ROUND(D52*INTRO!$E$51,0))), 0),"Non requis") -> 0 | Q52: =IF(INTRO!$E$41="Endémique", IF($J52>1, IF($J52=4, "Inconnu", IF($J52=99, "Surveillance", SUM($N52:$P52))), 0),"Non requis") -> 0 | R52: 26869 | S52: 61797 | T52: 110987 | U52: 199653 | W52: 1 | X52: 0 | Y52: 1 | AF52: 6385 | AG52: Rumonge | AJ52: 333286 | AL52: 6385 | AM52: TRUE
A53: =IF(INTRO!$E$33<>0,INTRO!$E$33, " ") -> Burundi | B53: Rutana | C53: Gihofi | D53: 289676 | E53: =IF(INTRO!$E$48="","",ROUND($D53*INTRO!$E$48,0)) -> 37658 | F53: =IF(INTRO!$E$49="","",ROUND($D53*INTRO!$E$49,0)) -> 86700 | G53: =IF(INTRO!$E$50="","",ROUND($D53*INTRO!$E$50,0)) -> 155585 | I53: 1 | J53: 1 | K53: 1 | L53: =IF(INTRO!$E$37="Endémique",IF($H53>0,IF($H53=4,"Inconnu",IF($H53=99,"Interrompu",$D53)),0),"Non requis") -> Non requis | M53: =IF(INTRO!$E$39="Endémique", IF($I53>0, IF($I53=4,"Inconnu",IF($I53=99,"Interrompu",$D53)), 0),"Non requis") -> 289676 | N53: =IF(INTRO!$E$41="Endémique", IF($J53>1, IF($J53=4, "Inconnu", IF($J53=99, "Surveillance", E53)), 0),"Non requis") -> 0 | O53: =IF(INTRO!$E$41="Endémique", IF($J53>1, IF($J53=4, "Inconnu", IF($J53=99, "Surveillance", F53)), 0),"Non requis") -> 0 | P53: =IF(INTRO!$E$41="Endémique", IF($J53>1, IF($J53=4, "Inconnu", IF($J53=99, "Surveillance", ROUND(D53*INTRO!$E$51,0))), 0),"Non requis") -> 0 | Q53: =IF(INTRO!$E$41="Endémique", IF($J53>1, IF($J53=4, "Inconnu", IF($J53=99, "Surveillance", SUM($N53:$P53))), 0),"Non requis") -> 0 | R53: 0 | S53: 0 | T53: 0 | U53: 0 | W53: 1 | X53: 0 | Y53: 0 | AF53: 6415 | AG53: Gihofi | AJ53: 282280 | AL53: 6415 | AM53: TRUE
A54: =IF(INTRO!$E$33<>0,INTRO!$E$33, " ") -> Burundi | B54: Rutana | C54: Rutana | D54: 270176 | E54: =IF(INTRO!$E$48="","",ROUND($D54*INTRO!$E$48,0)) -> 35123 | F54: =IF(INTRO!$E$49="","",ROUND($D54*INTRO!$E$49,0)) -> 80864 | G54: =IF(INTRO!$E$50="","",ROUND($D54*INTRO!$E$50,0)) -> 145112 | I54: 1 | J54: 1 | K54: 1 | L54: =IF(INTRO!$E$37="Endémique",IF($H54>0,IF($H54=4,"Inconnu",IF($H54=99,"Interrompu",$D54)),0),"Non requis") -> Non requis | M54: =IF(INTRO!$E$39="Endémique", IF($I54>0, IF($I54=4,"Inconnu",IF($I54=99,"Interrompu",$D54)), 0),"Non requis") -> 270176 | N54: =IF(INTRO!$E$41="Endémique", IF($J54>1, IF($J54=4, "Inconnu", IF($J54=99, "Surveillance", E54)), 0),"Non requis") -> 0 | O54: =IF(INTRO!$E$41="Endémique", IF($J54>1, IF($J54=4, "Inconnu", IF($J54=99, "Surveillance", F54)), 0),"Non requis") -> 0 | P54: =IF(INTRO!$E$41="Endémique", IF($J54>1, IF($J54=4, "Inconnu", IF($J54=99, "Surveillance", ROUND(D54*INTRO!$E$51,0))), 0),"Non requis") -> 0 | Q54: =IF(INTRO!$E$41="Endémique", IF($J54>1, IF($J54=4, "Inconnu", IF($J54=99, "Surveillance", SUM($N54:$P54))), 0),"Non requis") -> 0 | R54: 0 | S54: 0 | T54: 0 | U54: 0 | W54: 1 | X54: 0 | Y54: 0 | AF54: 6416 | AG54: Rutana | AJ54: 263278 | AL54: 6416 | AM54: TRUE
A55: =IF(INTRO!$E$33<>0,INTRO!$E$33, " ") -> Burundi | B55: Ruyigi | C55: Butezi | D55: 171834 | E55: =IF(INTRO!$E$48="","",ROUND($D55*INTRO!$E$48,0)) -> 22338 | F55: =IF(INTRO!$E$49="","",ROUND($D55*INTRO!$E$49,0)) -> 51430 | G55: =IF(INTRO!$E$50="","",ROUND($D55*INTRO!$E$50,0)) -> 92292 | I55: 0 | J55: 1 | K55: 0 | L55: =IF(INTRO!$E$37="Endémique",IF($H55>0,IF($H55=4,"Inconnu",IF($H55=99,"Interrompu",$D55)),0),"Non requis") -> Non requis | M55: =IF(INTRO!$E$39="Endémique", IF($I55>0, IF($I55=4,"Inconnu",IF($I55=99,"Interrompu",$D55)), 0),"Non requis") -> 0 | N55: =IF(INTRO!$E$41="Endémique", IF($J55>1, IF($J55=4, "Inconnu", IF($J55=99, "Surveillance", E55)), 0),"Non requis") -> 0 | O55: =IF(INTRO!$E$41="Endémique", IF($J55>1, IF($J55=4, "Inconnu", IF($J55=99, "Surveillance", F55)), 0),"Non requis") -> 0 | P55: =IF(INTRO!$E$41="Endémique", IF($J55>1, IF($J55=4, "Inconnu", IF($J55=99, "Surveillance", ROUND(D55*INTRO!$E$51,0))), 0),"Non requis") -> 0 | Q55: =IF(INTRO!$E$41="Endémique", IF($J55>1, IF($J55=4, "Inconnu", IF($J55=99, "Surveillance", SUM($N55:$P55))), 0),"Non requis") -> 0 | R55: 0 | S55: 0 | T55: 0 | U55: 0 | W55: 0 | X55: 0 | Y55: 0 | AF55: 6417 | AG55: Butezi | AJ55: 167447 | AL55: 6417 | AM55: TRUE
A56: =IF(INTRO!$E$33<>0,INTRO!$E$33, " ") -> Burundi | B56: Gisuru | C56: Gisuru | D56: 166962 | E56: =IF(INTRO!$E$48="","",ROUND($D56*INTRO!$E$48,0)) -> 21705 | F56: =IF(INTRO!$E$49="","",ROUND($D56*INTRO!$E$49,0)) -> 49972 | G56: =IF(INTRO!$E$50="","",ROUND($D56*INTRO!$E$50,0)) -> 89675 | I56: 0 | J56: 1 | K56: 1 | L56: =IF(INTRO!$E$37="Endémique",IF($H56>0,IF($H56=4,"Inconnu",IF($H56=99,"Interrompu",$D56)),0),"Non requis") -> Non requis | M56: =IF(INTRO!$E$39="Endémique", IF($I56>0, IF($I56=4,"Inconnu",IF($I56=99,"Interrompu",$D56)), 0),"Non requis") -> 0 | N56: =IF(INTRO!$E$41="Endémique", IF($J56>1, IF($J56=4, "Inconnu", IF($J56=99, "Surveillance", E56)), 0),"Non requis") -> 0 | O56: =IF(INTRO!$E$41="Endémique", IF($J56>1, IF($J56=4, "Inconnu", IF($J56=99, "Surveillance", F56)), 0),"Non requis") -> 0 | P56: =IF(INTRO!$E$41="Endémique", IF($J56>1, IF($J56=4, "Inconnu", IF($J56=99, "Surveillance", ROUND(D56*INTRO!$E$51,0))), 0),"Non requis") -> 0 | Q56: =IF(INTRO!$E$41="Endémique", IF($J56>1, IF($J56=4, "Inconnu", IF($J56=99, "Surveillance", SUM($N56:$P56))), 0),"Non requis") -> 0 | R56: 0 | S56: 0 | T56: 0 | U56: 0 | W56: 0 | X56: 0 | Y56: 0 | AF56: 6425 | AG56: Gisuru | AJ56: 162699 | AL56: 6418 | AM56: FALSE
A57: =IF(INTRO!$E$33<>0,INTRO!$E$33, " ") -> Burundi | B57: Ruyigi | C57: Kinyinya | D57: 175541 | E57: =IF(INTRO!$E$48="","",ROUND($D57*INTRO!$E$48,0)) -> 22820 | F57: =IF(INTRO!$E$49="","",ROUND($D57*INTRO!$E$49,0)) -> 52539 | G57: =IF(INTRO!$E$50="","",ROUND($D57*INTRO!$E$50,0)) -> 94283 | I57: 0 | J57: 1 | K57: 1 | L57: =IF(INTRO!$E$37="Endémique",IF($H57>0,IF($H57=4,"Inconnu",IF($H57=99,"Interrompu",$D57)),0),"Non requis") -> Non requis | M57: =IF(INTRO!$E$39="Endémique", IF($I57>0, IF($I57=4,"Inconnu",IF($I57=99,"Interrompu",$D57)), 0),"Non requis") -> 0 | N57: =IF(INTRO!$E$41="Endémique", IF($J57>1, IF($J57=4, "Inconnu", IF($J57=99, "Surveillance", E57)), 0),"Non requis") -> 0 | O57: =IF(INTRO!$E$41="Endémique", IF($J57>1, IF($J57=4, "Inconnu", IF($J57=99, "Surveillance", F57)), 0),"Non requis") -> 0 | P57: =IF(INTRO!$E$41="Endémique", IF($J57>1, IF($J57=4, "Inconnu", IF($J57=99, "Surveillance", ROUND(D57*INTRO!$E$51,0))), 0),"Non requis") -> 0 | Q57: =IF(INTRO!$E$41="Endémique", IF($J57>1, IF($J57=4, "Inconnu", IF($J57=99, "Surveillance", SUM($N57:$P57))), 0),"Non requis") -> 0 | R57: 0 | S57: 0 | T57: 0 | U57: 0 | W57: 0 | X57: 0 | Y57: 0 | AF57: 6418 | AG57: Kinyinya | AJ57: 171059 | AL57: 6419 | AM57: FALSE
A58: =IF(INTRO!$E$33<>0,INTRO!$E$33, " ") -> Burundi | B58: Ruyigi | C58: Ruyigi | D58: 158017 | E58: =IF(INTRO!$E$48="","",ROUND($D58*INTRO!$E$48,0)) -> 20542 | F58: =IF(INTRO!$E$49="","",ROUND($D58*INTRO!$E$49,0)) -> 47294 | G58: =IF(INTRO!$E$50="","",ROUND($D58*INTRO!$E$50,0)) -> 84871 | I58: 0 | J58: 1 | K58: 0 | L58: =IF(INTRO!$E$37="Endémique",IF($H58>0,IF($H58=4,"Inconnu",IF($H58=99,"Interrompu",$D58)),0),"Non requis") -> Non requis | M58: =IF(INTRO!$E$39="Endémique", IF($I58>0, IF($I58=4,"Inconnu",IF($I58=99,"Interrompu",$D58)), 0),"Non requis") -> 0 | N58: =IF(INTRO!$E$41="Endémique", IF($J58>1, IF($J58=4, "Inconnu", IF($J58=99, "Surveillance", E58)), 0),"Non requis") -> 0 | O58: =IF(INTRO!$E$41="Endémique", IF($J58>1, IF($J58=4, "Inconnu", IF($J58=99, "Surveillance", F58)), 0),"Non requis") -> 0 | P58: =IF(INTRO!$E$41="Endémique", IF($J58>1, IF($J58=4, "Inconnu", IF($J58=99, "Surveillance", ROUND(D58*INTRO!$E$51,0))), 0),"Non requis") -> 0 | Q58: =IF(INTRO!$E$41="Endémique", IF($J58>1, IF($J58=4, "Inconnu", IF($J58=99, "Surveillance", SUM($N58:$P58))), 0),"Non requis") -> 0 | R58: 0 | S58: 0 | T58: 0 | U58: 0 | W58: 0 | X58: 0 | Y58: 0 | AF58: 6419 | AG58: Ruyigi | AJ58: 153983 | AL58: 6425 | AM58: FALSE

Sheet DEC (hidden)
A1: Diethylcarbamazine (DEC)
A2: Structure administrative, population ciblée par groupe d'âge, plan de traitement et information sur les comprimés
A4: TOTAL | D4: =SUBTOTAL(9,D$10:D$1010) -> 0 | E4: 0 | F4: 0 | G4: 0 | I4: =SUBTOTAL(9,I$10:I$1010) -> 0 | J4: 0 | K4: 0 | L4: 0
A6: Structure administrative du pays | D6: Population nécessitant un traitement avec DEC | H6: Plan de traitement | I6: Population cible | J6: Diethylcarbamazine (DEC)
A7: Pays | B7: Région/Département | C7: District | D7: EAPréS | E7: EAS | F7: Adultes | G7: Total | H7: FL | I7: FL | J7: Total requis | K7: Reste en stock | L7: Comprimés devant être fournis
A10: =IF(INTRO!$E$39<>"Non endémique", " ", IF(INTRO!$E$37="Non endémique"," ", IF(COUNTRY_INFO!A10=0," ",COUNTRY_INFO!A10))) ->  | B10: =IF(INTRO!$E$39<>"Non endémique", " ", IF(INTRO!$E$37="Non endémique"," ", IF(COUNTRY_INFO!B10=0," ",COUNTRY_INFO!B10))) ->  | C10: =IF(INTRO!$E$39<>"Non endémique", " ", IF(INTRO!$E$37="Non endémique"," ", IF(COUNTRY_INFO!C10=0," ",COUNTRY_INFO!C10))) ->  | D10: =IF(INTRO!$E$39<>"Non endémique", 0, IF(INTRO!$E$37="Non endémique",0,IF(COUNTRY_INFO!$H10=1,COUNTRY_INFO!E10,0))) -> 0 | E10: =IF(INTRO!$E$39<>"Non endémique", 0, IF(INTRO!$E$37="Non endémique",0,IF(COUNTRY_INFO!$H10=1,COUNTRY_INFO!F10,0))) -> 0 | F10: =IF(INTRO!$E$39<>"Non endémique", 0, IF(INTRO!$E$37="Non endémique",0,IF(COUNTRY_INFO!$H10=1,COUNTRY_INFO!G10,0))) -> 0 | G10: =SUM(D10:F10) -> 0 | H10: =IF(INTRO!$E$39="Non endémique",IF(INTRO!$E$37="Non endémique","Non requis",COUNTRY_INFO!V10),"Traiter avec IVM") -> Traiter avec IVM | I10: =IF(H10=1,G10,0) -> 0 | J10: =IF(I10>0,I10*2.5,0) -> 0 | L10: =IF($J10>$K10,$J10-$K10,0) -> 0
A11: =IF(INTRO!$E$39<>"Non endémique", " ", IF(INTRO!$E$37="Non endémique"," ", IF(COUNTRY_INFO!A11=0," ",COUNTRY_INFO!A11))) ->  | B11: =IF(INTRO!$E$39<>"Non endémique", " ", IF(INTRO!$E$37="Non endémique"," ", IF(COUNTRY_INFO!B11=0," ",COUNTRY_INFO!B11))) ->  | C11: =IF(INTRO!$E$39<>"Non endémique", " ", IF(INTRO!$E$37="Non endémique"," ", IF(COUNTRY_INFO!C11=0," ",COUNTRY_INFO!C11))) ->  | D11: =IF(INTRO!$E$39<>"Non endémique", 0, IF(INTRO!$E$37="Non endémique",0,IF(COUNTRY_INFO!$H11=1,COUNTRY_INFO!E11,0))) -> 0 | E11: =IF(INTRO!$E$39<>"Non endémique", 0, IF(INTRO!$E$37="Non endémique",0,IF(COUNTRY_INFO!$H11=1,COUNTRY_INFO!F11,0))) -> 0 | F11: =IF(INTRO!$E$39<>"Non endémique", 0, IF(INTRO!$E$37="Non endémique",0,IF(COUNTRY_INFO!$H11=1,COUNTRY_INFO!G11,0))) -> 0 | G11: =SUM(D11:F11) -> 0 | H11: =IF(INTRO!$E$39="Non endémique",IF(INTRO!$E$37="Non endémique","Non requis",COUNTRY_INFO!V11),"Traiter avec IVM") -> Traiter avec IVM | I11: =IF(H11=1,G11,0) -> 0 | J11: =IF(I11>0,I11*2.5,0) -> 0 | L11: 0
A12: =IF(INTRO!$E$39<>"Non endémique", " ", IF(INTRO!$E$37="Non endémique"," ", IF(COUNTRY_INFO!A12=0," ",COUNTRY_INFO!A12))) ->  | B12: =IF(INTRO!$E$39<>"Non endémique", " ", IF(INTRO!$E$37="Non endémique"," ", IF(COUNTRY_INFO!B12=0," ",COUNTRY_INFO!B12))) ->  | C12: =IF(INTRO!$E$39<>"Non endémique", " ", IF(INTRO!$E$37="Non endémique"," ", IF(COUNTRY_INFO!C12=0," ",COUNTRY_INFO!C12))) ->  | D12: =IF(INTRO!$E$39<>"Non endémique", 0, IF(INTRO!$E$37="Non endémique",0,IF(COUNTRY_INFO!$H12=1,COUNTRY_INFO!E12,0))) -> 0 | E12: =IF(INTRO!$E$39<>"Non endémique", 0, IF(INTRO!$E$37="Non endémique",0,IF(COUNTRY_INFO!$H12=1,COUNTRY_INFO!F12,0))) -> 0 | F12: =IF(INTRO!$E$39<>"Non endémique", 0, IF(INTRO!$E$37="Non endémique",0,IF(COUNTRY_INFO!$H12=1,COUNTRY_INFO!G12,0))) -> 0 | G12: 0 | H12: =IF(INTRO!$E$39="Non endémique",IF(INTRO!$E$37="Non endémique","Non requis",COUNTRY_INFO!V12),"Traiter avec IVM") -> Traiter avec IVM | I12: 0 | J12: 0 | L12: 0
A13: =IF(INTRO!$E$39<>"Non endémique", " ", IF(INTRO!$E$37="Non endémique"," ", IF(COUNTRY_INFO!A13=0," ",COUNTRY_INFO!A13))) ->  | B13: =IF(INTRO!$E$39<>"Non endémique", " ", IF(INTRO!$E$37="Non endémique"," ", IF(COUNTRY_INFO!B13=0," ",COUNTRY_INFO!B13))) ->  | C13: =IF(INTRO!$E$39<>"Non endémique", " ", IF(INTRO!$E$37="Non endémique"," ", IF(COUNTRY_INFO!C13=0," ",COUNTRY_INFO!C13))) ->  | D13: =IF(INTRO!$E$39<>"Non endémique", 0, IF(INTRO!$E$37="Non endémique",0,IF(COUNTRY_INFO!$H13=1,COUNTRY_INFO!E13,0))) -> 0 | E13: =IF(INTRO!$E$39<>"Non endémique", 0, IF(INTRO!$E$37="Non endémique",0,IF(COUNTRY_INFO!$H13=1,COUNTRY_INFO!F13,0))) -> 0 | F13: =IF(INTRO!$E$39<>"Non endémique", 0, IF(INTRO!$E$37="Non endémique",0,IF(COUNTRY_INFO!$H13=1,COUNTRY_INFO!G13,0))) -> 0 | G13: 0 | H13: =IF(INTRO!$E$39="Non endémique",IF(INTRO!$E$37="Non endémique","Non requis",COUNTRY_INFO!V13),"Traiter avec IVM") -> Traiter avec IVM | I13: 0 | J13: 0 | L13: 0
A14: =IF(INTRO!$E$39<>"Non endémique", " ", IF(INTRO!$E$37="Non endémique"," ", IF(COUNTRY_INFO!A14=0," ",COUNTRY_INFO!A14))) ->  | B14: =IF(INTRO!$E$39<>"Non endémique", " ", IF(INTRO!$E$37="Non endémique"," ", IF(COUNTRY_INFO!B14=0," ",COUNTRY_INFO!B14))) ->  | C14: =IF(INTRO!$E$39<>"Non endémique", " ", IF(INTRO!$E$37="Non endémique"," ", IF(COUNTRY_INFO!C14=0," ",COUNTRY_INFO!C14))) ->  | D14: =IF(INTRO!$E$39<>"Non endémique", 0, IF(INTRO!$E$37="Non endémique",0,IF(COUNTRY_INFO!$H14=1,COUNTRY_INFO!E14,0))) -> 0 | E14: =IF(INTRO!$E$39<>"Non endémique", 0, IF(INTRO!$E$37="Non endémique",0,IF(COUNTRY_INFO!$H14=1,COUNTRY_INFO!F14,0))) -> 0 | F14: =IF(INTRO!$E$39<>"Non endémique", 0, IF(INTRO!$E$37="Non endémique",0,IF(COUNTRY_INFO!$H14=1,COUNTRY_INFO!G14,0))) -> 0 | G14: 0 | H14: =IF(INTRO!$E$39="Non endémique",IF(INTRO!$E$37="Non endémique","Non requis",COUNTRY_INFO!V14),"Traiter avec IVM") -> Traiter avec IVM | I14: 0 | J14: 0 | L14: 0
A15: =IF(INTRO!$E$39<>"Non endémique", " ", IF(INTRO!$E$37="Non endémique"," ", IF(COUNTRY_INFO!A15=0," ",COUNTRY_INFO!A15))) ->  | B15: =IF(INTRO!$E$39<>"Non endémique", " ", IF(INTRO!$E$37="Non endémique"," ", IF(COUNTRY_INFO!B15=0," ",COUNTRY_INFO!B15))) ->  | C15: =IF(INTRO!$E$39<>"Non endémique", " ", IF(INTRO!$E$37="Non endémique"," ", IF(COUNTRY_INFO!C15=0," ",COUNTRY_INFO!C15))) ->  | D15: =IF(INTRO!$E$39<>"Non endémique", 0, IF(INTRO!$E$37="Non endémique",0,IF(COUNTRY_INFO!$H15=1,COUNTRY_INFO!E15,0))) -> 0 | E15: =IF(INTRO!$E$39<>"Non endémique", 0, IF(INTRO!$E$37="Non endémique",0,IF(COUNTRY_INFO!$H15=1,COUNTRY_INFO!F15,0))) -> 0 | F15: =IF(INTRO!$E$39<>"Non endémique", 0, IF(INTRO!$E$37="Non endémique",0,IF(COUNTRY_INFO!$H15=1,COUNTRY_INFO!G15,0))) -> 0 | G15: 0 | H15: =IF(INTRO!$E$39="Non endémique",IF(INTRO!$E$37="Non endémique","Non requis",COUNTRY_INFO!V15),"Traiter avec IVM") -> Traiter avec IVM | I15: 0 | J15: 0 | L15: 0
A16: =IF(INTRO!$E$39<>"Non endémique", " ", IF(INTRO!$E$37="Non endémique"," ", IF(COUNTRY_INFO!A16=0," ",COUNTRY_INFO!A16))) ->  | B16: =IF(INTRO!$E$39<>"Non endémique", " ", IF(INTRO!$E$37="Non endémique"," ", IF(COUNTRY_INFO!B16=0," ",COUNTRY_INFO!B16))) ->  | C16: =IF(INTRO!$E$39<>"Non endémique", " ", IF(INTRO!$E$37="Non endémique"," ", IF(COUNTRY_INFO!C16=0," ",COUNTRY_INFO!C16))) ->  | D16: =IF(INTRO!$E$39<>"Non endémique", 0, IF(INTRO!$E$37="Non endémique",0,IF(COUNTRY_INFO!$H16=1,COUNTRY_INFO!E16,0))) -> 0 | E16: =IF(INTRO!$E$39<>"Non endémique", 0, IF(INTRO!$E$37="Non endémique",0,IF(COUNTRY_INFO!$H16=1,COUNTRY_INFO!F16,0))) -> 0 | F16: =IF(INTRO!$E$39<>"Non endémique", 0, IF(INTRO!$E$37="Non endémique",0,IF(COUNTRY_INFO!$H16=1,COUNTRY_INFO!G16,0))) -> 0 | G16: 0 | H16: =IF(INTRO!$E$39="Non endémique",IF(INTRO!$E$37="Non endémique","Non requis",COUNTRY_INFO!V16),"Traiter avec IVM") -> Traiter avec IVM | I16: 0 | J16: 0 | L16: 0
A17: =IF(INTRO!$E$39<>"Non endémique", " ", IF(INTRO!$E$37="Non endémique"," ", IF(COUNTRY_INFO!A17=0," ",COUNTRY_INFO!A17))) ->  | B17: =IF(INTRO!$E$39<>"Non endémique", " ", IF(INTRO!$E$37="Non endémique"," ", IF(COUNTRY_INFO!B17=0," ",COUNTRY_INFO!B17))) ->  | C17: =IF(INTRO!$E$39<>"Non endémique", " ", IF(INTRO!$E$37="Non endémique"," ", IF(COUNTRY_INFO!C17=0," ",COUNTRY_INFO!C17))) ->  | D17: =IF(INTRO!$E$39<>"Non endémique", 0, IF(INTRO!$E$37="Non endémique",0,IF(COUNTRY_INFO!$H17=1,COUNTRY_INFO!E17,0))) -> 0 | E17: =IF(INTRO!$E$39<>"Non endémique", 0, IF(INTRO!$E$37="Non endémique",0,IF(COUNTRY_INFO!$H17=1,COUNTRY_INFO!F17,0))) -> 0 | F17: =IF(INTRO!$E$39<>"Non endémique", 0, IF(INTRO!$E$37="Non endémique",0,IF(COUNTRY_INFO!$H17=1,COUNTRY_INFO!G17,0))) -> 0 | G17: 0 | H17: =IF(INTRO!$E$39="Non endémique",IF(INTRO!$E$37="Non endémique","Non requis",COUNTRY_INFO!V17),"Traiter avec IVM") -> Traiter avec IVM | I17: 0 | J17: 0 | L17: 0
A18: =IF(INTRO!$E$39<>"Non endémique", " ", IF(INTRO!$E$37="Non endémique"," ", IF(COUNTRY_INFO!A18=0," ",COUNTRY_INFO!A18))) ->  | B18: =IF(INTRO!$E$39<>"Non endémique", " ", IF(INTRO!$E$37="Non endémique"," ", IF(COUNTRY_INFO!B18=0," ",COUNTRY_INFO!B18))) ->  | C18: =IF(INTRO!$E$39<>"Non endémique", " ", IF(INTRO!$E$37="Non endémique"," ", IF(COUNTRY_INFO!C18=0," ",COUNTRY_INFO!C18))) ->  | D18: =IF(INTRO!$E$39<>"Non endémique", 0, IF(INTRO!$E$37="Non endémique",0,IF(COUNTRY_INFO!$H18=1,COUNTRY_INFO!E18,0))) -> 0 | E18: =IF(INTRO!$E$39<>"Non endémique", 0, IF(INTRO!$E$37="Non endémique",0,IF(COUNTRY_INFO!$H18=1,COUNTRY_INFO!F18,0))) -> 0 | F18: =IF(INTRO!$E$39<>"Non endémique", 0, IF(INTRO!$E$37="Non endémique",0,IF(COUNTRY_INFO!$H18=1,COUNTRY_INFO!G18,0))) -> 0 | G18: 0 | H18: =IF(INTRO!$E$39="Non endémique",IF(INTRO!$E$37="Non endémique","Non requis",COUNTRY_INFO!V18),"Traiter avec IVM") -> Traiter avec IVM | I18: 0 | J18: 0 | L18: 0
A19: =IF(INTRO!$E$39<>"Non endémique", " ", IF(INTRO!$E$37="Non endémique"," ", IF(COUNTRY_INFO!A19=0," ",COUNTRY_INFO!A19))) ->  | B19: =IF(INTRO!$E$39<>"Non endémique", " ", IF(INTRO!$E$37="Non endémique"," ", IF(COUNTRY_INFO!B19=0," ",COUNTRY_INFO!B19))) ->  | C19: =IF(INTRO!$E$39<>"Non endémique", " ", IF(INTRO!$E$37="Non endémique"," ", IF(COUNTRY_INFO!C19=0," ",COUNTRY_INFO!C19))) ->  | D19: =IF(INTRO!$E$39<>"Non endémique", 0, IF(INTRO!$E$37="Non endémique",0,IF(COUNTRY_INFO!$H19=1,COUNTRY_INFO!E19,0))) -> 0 | E19: =IF(INTRO!$E$39<>"Non endémique", 0, IF(INTRO!$E$37="Non endémique",0,IF(COUNTRY_INFO!$H19=1,COUNTRY_INFO!F19,0))) -> 0 | F19: =IF(INTRO!$E$39<>"Non endémique", 0, IF(INTRO!$E$37="Non endémique",0,IF(COUNTRY_INFO!$H19=1,COUNTRY_INFO!G19,0))) -> 0 | G19: 0 | H19: =IF(INTRO!$E$39="Non endémique",IF(INTRO!$E$37="Non endémique","Non requis",COUNTRY_INFO!V19),"Traiter avec IVM") -> Traiter avec IVM | I19: 0 | J19: 0 | L19: 0
A20: =IF(INTRO!$E$39<>"Non endémique", " ", IF(INTRO!$E$37="Non endémique"," ", IF(COUNTRY_INFO!A20=0," ",COUNTRY_INFO!A20))) ->  | B20: =IF(INTRO!$E$39<>"Non endémique", " ", IF(INTRO!$E$37="Non endémique"," ", IF(COUNTRY_INFO!B20=0," ",COUNTRY_INFO!B20))) ->  | C20: =IF(INTRO!$E$39<>"Non endémique", " ", IF(INTRO!$E$37="Non endémique"," ", IF(COUNTRY_INFO!C20=0," ",COUNTRY_INFO!C20))) ->  | D20: =IF(INTRO!$E$39<>"Non endémique", 0, IF(INTRO!$E$37="Non endémique",0,IF(COUNTRY_INFO!$H20=1,COUNTRY_INFO!E20,0))) -> 0 | E20: =IF(INTRO!$E$39<>"Non endémique", 0, IF(INTRO!$E$37="Non endémique",0,IF(COUNTRY_INFO!$H20=1,COUNTRY_INFO!F20,0))) -> 0 | F20: =IF(INTRO!$E$39<>"Non endémique", 0, IF(INTRO!$E$37="Non endémique",0,IF(COUNTRY_INFO!$H20=1,COUNTRY_INFO!G20,0))) -> 0 | G20: 0 | H20: =IF(INTRO!$E$39="Non endémique",IF(INTRO!$E$37="Non endémique","Non requis",COUNTRY_INFO!V20),"Traiter avec IVM") -> Traiter avec IVM | I20: 0 | J20: 0 | L20: 0
A21: =IF(INTRO!$E$39<>"Non endémique", " ", IF(INTRO!$E$37="Non endémique"," ", IF(COUNTRY_INFO!A21=0," ",COUNTRY_INFO!A21))) ->  | B21: =IF(INTRO!$E$39<>"Non endémique", " ", IF(INTRO!$E$37="Non endémique"," ", IF(COUNTRY_INFO!B21=0," ",COUNTRY_INFO!B21))) ->  | C21: =IF(INTRO!$E$39<>"Non endémique", " ", IF(INTRO!$E$37="Non endémique"," ", IF(COUNTRY_INFO!C21=0," ",COUNTRY_INFO!C21))) ->  | D21: =IF(INTRO!$E$39<>"Non endémique", 0, IF(INTRO!$E$37="Non endémique",0,IF(COUNTRY_INFO!$H21=1,COUNTRY_INFO!E21,0))) -> 0 | E21: =IF(INTRO!$E$39<>"Non endémique", 0, IF(INTRO!$E$37="Non endémique",0,IF(COUNTRY_INFO!$H21=1,COUNTRY_INFO!F21,0))) -> 0 | F21: =IF(INTRO!$E$39<>"Non endémique", 0, IF(INTRO!$E$37="Non endémique",0,IF(COUNTRY_INFO!$H21=1,COUNTRY_INFO!G21,0))) -> 0 | G21: 0 | H21: =IF(INTRO!$E$39="Non endémique",IF(INTRO!$E$37="Non endémique","Non requis",COUNTRY_INFO!V21),"Traiter avec IVM") -> Traiter avec IVM | I21: 0 | J21: 0 | L21: 0
A22: =IF(INTRO!$E$39<>"Non endémique", " ", IF(INTRO!$E$37="Non endémique"," ", IF(COUNTRY_INFO!A22=0," ",COUNTRY_INFO!A22))) ->  | B22: =IF(INTRO!$E$39<>"Non endémique", " ", IF(INTRO!$E$37="Non endémique"," ", IF(COUNTRY_INFO!B22=0," ",COUNTRY_INFO!B22))) ->  | C22: =IF(INTRO!$E$39<>"Non endémique", " ", IF(INTRO!$E$37="Non endémique"," ", IF(COUNTRY_INFO!C22=0," ",COUNTRY_INFO!C22))) ->  | D22: =IF(INTRO!$E$39<>"Non endémique", 0, IF(INTRO!$E$37="Non endémique",0,IF(COUNTRY_INFO!$H22=1,COUNTRY_INFO!E22,0))) -> 0 | E22: =IF(INTRO!$E$39<>"Non endémique", 0, IF(INTRO!$E$37="Non endémique",0,IF(COUNTRY_INFO!$H22=1,COUNTRY_INFO!F22,0))) -> 0 | F22: =IF(INTRO!$E$39<>"Non endémique", 0, IF(INTRO!$E$37="Non endémique",0,IF(COUNTRY_INFO!$H22=1,COUNTRY_INFO!G22,0))) -> 0 | G22: 0 | H22: =IF(INTRO!$E$39="Non endémique",IF(INTRO!$E$37="Non endémique","Non requis",COUNTRY_INFO!V22),"Traiter avec IVM") -> Traiter avec IVM | I22: 0 | J22: 0 | L22: 0
A23: =IF(INTRO!$E$39<>"Non endémique", " ", IF(INTRO!$E$37="Non endémique"," ", IF(COUNTRY_INFO!A23=0," ",COUNTRY_INFO!A23))) ->  | B23: =IF(INTRO!$E$39<>"Non endémique", " ", IF(INTRO!$E$37="Non endémique"," ", IF(COUNTRY_INFO!B23=0," ",COUNTRY_INFO!B23))) ->  | C23: =IF(INTRO!$E$39<>"Non endémique", " ", IF(INTRO!$E$37="Non endémique"," ", IF(COUNTRY_INFO!C23=0," ",COUNTRY_INFO!C23))) ->  | D23: =IF(INTRO!$E$39<>"Non endémique", 0, IF(INTRO!$E$37="Non endémique",0,IF(COUNTRY_INFO!$H23=1,COUNTRY_INFO!E23,0))) -> 0 | E23: =IF(INTRO!$E$39<>"Non endémique", 0, IF(INTRO!$E$37="Non endémique",0,IF(COUNTRY_INFO!$H23=1,COUNTRY_INFO!F23,0))) -> 0 | F23: =IF(INTRO!$E$39<>"Non endémique", 0, IF(INTRO!$E$37="Non endémique",0,IF(COUNTRY_INFO!$H23=1,COUNTRY_INFO!G23,0))) -> 0 | G23: 0 | H23: =IF(INTRO!$E$39="Non endémique",IF(INTRO!$E$37="Non endémique","Non requis",COUNTRY_INFO!V23),"Traiter avec IVM") -> Traiter avec IVM | I23: 0 | J23: 0 | L23: 0
A24: =IF(INTRO!$E$39<>"Non endémique", " ", IF(INTRO!$E$37="Non endémique"," ", IF(COUNTRY_INFO!A24=0," ",COUNTRY_INFO!A24))) ->  | B24: =IF(INTRO!$E$39<>"Non endémique", " ", IF(INTRO!$E$37="Non endémique"," ", IF(COUNTRY_INFO!B24=0," ",COUNTRY_INFO!B24))) ->  | C24: =IF(INTRO!$E$39<>"Non endémique", " ", IF(INTRO!$E$37="Non endémique"," ", IF(COUNTRY_INFO!C24=0," ",COUNTRY_INFO!C24))) ->  | D24: =IF(INTRO!$E$39<>"Non endémique", 0, IF(INTRO!$E$37="Non endémique",0,IF(COUNTRY_INFO!$H24=1,COUNTRY_INFO!E24,0))) -> 0 | E24: =IF(INTRO!$E$39<>"Non endémique", 0, IF(INTRO!$E$37="Non endémique",0,IF(COUNTRY_INFO!$H24=1,COUNTRY_INFO!F24,0))) -> 0 | F24: =IF(INTRO!$E$39<>"Non endémique", 0, IF(INTRO!$E$37="Non endémique",0,IF(COUNTRY_INFO!$H24=1,COUNTRY_INFO!G24,0))) -> 0 | G24: 0 | H24: =IF(INTRO!$E$39="Non endémique",IF(INTRO!$E$37="Non endémique","Non requis",COUNTRY_INFO!V24),"Traiter avec IVM") -> Traiter avec IVM | I24: 0 | J24: 0 | L24: 0
A25: =IF(INTRO!$E$39<>"Non endémique", " ", IF(INTRO!$E$37="Non endémique"," ", IF(COUNTRY_INFO!A25=0," ",COUNTRY_INFO!A25))) ->  | B25: =IF(INTRO!$E$39<>"Non endémique", " ", IF(INTRO!$E$37="Non endémique"," ", IF(COUNTRY_INFO!B25=0," ",COUNTRY_INFO!B25))) ->  | C25: =IF(INTRO!$E$39<>"Non endémique", " ", IF(INTRO!$E$37="Non endémique"," ", IF(COUNTRY_INFO!C25=0," ",COUNTRY_INFO!C25))) ->  | D25: =IF(INTRO!$E$39<>"Non endémique", 0, IF(INTRO!$E$37="Non endémique",0,IF(COUNTRY_INFO!$H25=1,COUNTRY_INFO!E25,0))) -> 0 | E25: =IF(INTRO!$E$39<>"Non endémique", 0, IF(INTRO!$E$37="Non endémique",0,IF(COUNTRY_INFO!$H25=1,COUNTRY_INFO!F25,0))) -> 0 | F25: =IF(INTRO!$E$39<>"Non endémique", 0, IF(INTRO!$E$37="Non endémique",0,IF(COUNTRY_INFO!$H25=1,COUNTRY_INFO!G25,0))) -> 0 | G25: 0 | H25: =IF(INTRO!$E$39="Non endémique",IF(INTRO!$E$37="Non endémique","Non requis",COUNTRY_INFO!V25),"Traiter avec IVM") -> Traiter avec IVM | I25: 0 | J25: 0 | L25: 0
A26: =IF(INTRO!$E$39<>"Non endémique", " ", IF(INTRO!$E$37="Non endémique"," ", IF(COUNTRY_INFO!A26=0," ",COUNTRY_INFO!A26))) ->  | B26: =IF(INTRO!$E$39<>"Non endémique", " ", IF(INTRO!$E$37="Non endémique"," ", IF(COUNTRY_INFO!B26=0," ",COUNTRY_INFO!B26))) ->  | C26: =IF(INTRO!$E$39<>"Non endémique", " ", IF(INTRO!$E$37="Non endémique"," ", IF(COUNTRY_INFO!C26=0," ",COUNTRY_INFO!C26))) ->  | D26: =IF(INTRO!$E$39<>"Non endémique", 0, IF(INTRO!$E$37="Non endémique",0,IF(COUNTRY_INFO!$H26=1,COUNTRY_INFO!E26,0))) -> 0 | E26: =IF(INTRO!$E$39<>"Non endémique", 0, IF(INTRO!$E$37="Non endémique",0,IF(COUNTRY_INFO!$H26=1,COUNTRY_INFO!F26,0))) -> 0 | F26: =IF(INTRO!$E$39<>"Non endémique", 0, IF(INTRO!$E$37="Non endémique",0,IF(COUNTRY_INFO!$H26=1,COUNTRY_INFO!G26,0))) -> 0 | G26: 0 | H26: =IF(INTRO!$E$39="Non endémique",IF(INTRO!$E$37="Non endémique","Non requis",COUNTRY_INFO!V26),"Traiter avec IVM") -> Traiter avec IVM | I26: 0 | J26: 0 | L26: 0
A27: =IF(INTRO!$E$39<>"Non endémique", " ", IF(INTRO!$E$37="Non endémique"," ", IF(COUNTRY_INFO!A27=0," ",COUNTRY_INFO!A27))) ->  | B27: =IF(INTRO!$E$39<>"Non endémique", " ", IF(INTRO!$E$37="Non endémique"," ", IF(COUNTRY_INFO!B27=0," ",COUNTRY_INFO!B27))) ->  | C27: =IF(INTRO!$E$39<>"Non endémique", " ", IF(INTRO!$E$37="Non endémique"," ", IF(COUNTRY_INFO!C27=0," ",COUNTRY_INFO!C27))) ->  | D27: =IF(INTRO!$E$39<>"Non endémique", 0, IF(INTRO!$E$37="Non endémique",0,IF(COUNTRY_INFO!$H27=1,COUNTRY_INFO!E27,0))) -> 0 | E27: =IF(INTRO!$E$39<>"Non endémique", 0, IF(INTRO!$E$37="Non endémique",0,IF(COUNTRY_INFO!$H27=1,COUNTRY_INFO!F27,0))) -> 0 | F27: =IF(INTRO!$E$39<>"Non endémique", 0, IF(INTRO!$E$37="Non endémique",0,IF(COUNTRY_INFO!$H27=1,COUNTRY_INFO!G27,0))) -> 0 | G27: 0 | H27: =IF(INTRO!$E$39="Non endémique",IF(INTRO!$E$37="Non endémique","Non requis",COUNTRY_INFO!V27),"Traiter avec IVM") -> Traiter avec IVM | I27: 0 | J27: 0 | L27: 0
A28: =IF(INTRO!$E$39<>"Non endémique", " ", IF(INTRO!$E$37="Non endémique"," ", IF(COUNTRY_INFO!A28=0," ",COUNTRY_INFO!A28))) ->  | B28: =IF(INTRO!$E$39<>"Non endémique", " ", IF(INTRO!$E$37="Non endémique"," ", IF(COUNTRY_INFO!B28=0," ",COUNTRY_INFO!B28))) ->  | C28: =IF(INTRO!$E$39<>"Non endémique", " ", IF(INTRO!$E$37="Non endémique"," ", IF(COUNTRY_INFO!C28=0," ",COUNTRY_INFO!C28))) ->  | D28: =IF(INTRO!$E$39<>"Non endémique", 0, IF(INTRO!$E$37="Non endémique",0,IF(COUNTRY_INFO!$H28=1,COUNTRY_INFO!E28,0))) -> 0 | E28: =IF(INTRO!$E$39<>"Non endémique", 0, IF(INTRO!$E$37="Non endémique",0,IF(COUNTRY_INFO!$H28=1,COUNTRY_INFO!F28,0))) -> 0 | F28: =IF(INTRO!$E$39<>"Non endémique", 0, IF(INTRO!$E$37="Non endémique",0,IF(COUNTRY_INFO!$H28=1,COUNTRY_INFO!G28,0))) -> 0 | G28: 0 | H28: =IF(INTRO!$E$39="Non endémique",IF(INTRO!$E$37="Non endémique","Non requis",COUNTRY_INFO!V28),"Traiter avec IVM") -> Traiter avec IVM | I28: 0 | J28: 0 | L28: 0
A29: =IF(INTRO!$E$39<>"Non endémique", " ", IF(INTRO!$E$37="Non endémique"," ", IF(COUNTRY_INFO!A29=0," ",COUNTRY_INFO!A29))) ->  | B29: =IF(INTRO!$E$39<>"Non endémique", " ", IF(INTRO!$E$37="Non endémique"," ", IF(COUNTRY_INFO!B29=0," ",COUNTRY_INFO!B29))) ->  | C29: =IF(INTRO!$E$39<>"Non endémique", " ", IF(INTRO!$E$37="Non endémique"," ", IF(COUNTRY_INFO!C29=0," ",COUNTRY_INFO!C29))) ->  | D29: =IF(INTRO!$E$39<>"Non endémique", 0, IF(INTRO!$E$37="Non endémique",0,IF(COUNTRY_INFO!$H29=1,COUNTRY_INFO!E29,0))) -> 0 | E29: =IF(INTRO!$E$39<>"Non endémique", 0, IF(INTRO!$E$37="Non endémique",0,IF(COUNTRY_INFO!$H29=1,COUNTRY_INFO!F29,0))) -> 0 | F29: =IF(INTRO!$E$39<>"Non endémique", 0, IF(INTRO!$E$37="Non endémique",0,IF(COUNTRY_INFO!$H29=1,COUNTRY_INFO!G29,0))) -> 0 | G29: 0 | H29: =IF(INTRO!$E$39="Non endémique",IF(INTRO!$E$37="Non endémique","Non requis",COUNTRY_INFO!V29),"Traiter avec IVM") -> Traiter avec IVM | I29: 0 | J29: 0 | L29: 0
A30: =IF(INTRO!$E$39<>"Non endémique", " ", IF(INTRO!$E$37="Non endémique"," ", IF(COUNTRY_INFO!A30=0," ",COUNTRY_INFO!A30))) ->  | B30: =IF(INTRO!$E$39<>"Non endémique", " ", IF(INTRO!$E$37="Non endémique"," ", IF(COUNTRY_INFO!B30=0," ",COUNTRY_INFO!B30))) ->  | C30: =IF(INTRO!$E$39<>"Non endémique", " ", IF(INTRO!$E$37="Non endémique"," ", IF(COUNTRY_INFO!C30=0," ",COUNTRY_INFO!C30))) ->  | D30: =IF(INTRO!$E$39<>"Non endémique", 0, IF(INTRO!$E$37="Non endémique",0,IF(COUNTRY_INFO!$H30=1,COUNTRY_INFO!E30,0))) -> 0 | E30: =IF(INTRO!$E$39<>"Non endémique", 0, IF(INTRO!$E$37="Non endémique",0,IF(COUNTRY_INFO!$H30=1,COUNTRY_INFO!F30,0))) -> 0 | F30: =IF(INTRO!$E$39<>"Non endémique", 0, IF(INTRO!$E$37="Non endémique",0,IF(COUNTRY_INFO!$H30=1,COUNTRY_INFO!G30,0))) -> 0 | G30: 0 | H30: =IF(INTRO!$E$39="Non endémique",IF(INTRO!$E$37="Non endémique","Non requis",COUNTRY_INFO!V30),"Traiter avec IVM") -> Traiter avec IVM | I30: 0 | J30: 0 | L30: 0
A31: =IF(INTRO!$E$39<>"Non endémique", " ", IF(INTRO!$E$37="Non endémique"," ", IF(COUNTRY_INFO!A31=0," ",COUNTRY_INFO!A31))) ->  | B31: =IF(INTRO!$E$39<>"Non endémique", " ", IF(INTRO!$E$37="Non endémique"," ", IF(COUNTRY_INFO!B31=0," ",COUNTRY_INFO!B31))) ->  | C31: =IF(INTRO!$E$39<>"Non endémique", " ", IF(INTRO!$E$37="Non endémique"," ", IF(COUNTRY_INFO!C31=0," ",COUNTRY_INFO!C31))) ->  | D31: =IF(INTRO!$E$39<>"Non endémique", 0, IF(INTRO!$E$37="Non endémique",0,IF(COUNTRY_INFO!$H31=1,COUNTRY_INFO!E31,0))) -> 0 | E31: =IF(INTRO!$E$39<>"Non endémique", 0, IF(INTRO!$E$37="Non endémique",0,IF(COUNTRY_INFO!$H31=1,COUNTRY_INFO!F31,0))) -> 0 | F31: =IF(INTRO!$E$39<>"Non endémique", 0, IF(INTRO!$E$37="Non endémique",0,IF(COUNTRY_INFO!$H31=1,COUNTRY_INFO!G31,0))) -> 0 | G31: 0 | H31: =IF(INTRO!$E$39="Non endémique",IF(INTRO!$E$37="Non endémique","Non requis",COUNTRY_INFO!V31),"Traiter avec IVM") -> Traiter avec IVM | I31: 0 | J31: 0 | L31: 0
A32: =IF(INTRO!$E$39<>"Non endémique", " ", IF(INTRO!$E$37="Non endémique"," ", IF(COUNTRY_INFO!A32=0," ",COUNTRY_INFO!A32))) ->  | B32: =IF(INTRO!$E$39<>"Non endémique", " ", IF(INTRO!$E$37="Non endémique"," ", IF(COUNTRY_INFO!B32=0," ",COUNTRY_INFO!B32))) ->  | C32: =IF(INTRO!$E$39<>"Non endémique", " ", IF(INTRO!$E$37="Non endémique"," ", IF(COUNTRY_INFO!C32=0," ",COUNTRY_INFO!C32))) ->  | D32: =IF(INTRO!$E$39<>"Non endémique", 0, IF(INTRO!$E$37="Non endémique",0,IF(COUNTRY_INFO!$H32=1,COUNTRY_INFO!E32,0))) -> 0 | E32: =IF(INTRO!$E$39<>"Non endémique", 0, IF(INTRO!$E$37="Non endémique",0,IF(COUNTRY_INFO!$H32=1,COUNTRY_INFO!F32,0))) -> 0 | F32: =IF(INTRO!$E$39<>"Non endémique", 0, IF(INTRO!$E$37="Non endémique",0,IF(COUNTRY_INFO!$H32=1,COUNTRY_INFO!G32,0))) -> 0 | G32: 0 | H32: =IF(INTRO!$E$39="Non endémique",IF(INTRO!$E$37="Non endémique","Non requis",COUNTRY_INFO!V32),"Traiter avec IVM") -> Traiter avec IVM | I32: 0 | J32: 0 | L32: 0
A33: =IF(INTRO!$E$39<>"Non endémique", " ", IF(INTRO!$E$37="Non endémique"," ", IF(COUNTRY_INFO!A33=0," ",COUNTRY_INFO!A33))) ->  | B33: =IF(INTRO!$E$39<>"Non endémique", " ", IF(INTRO!$E$37="Non endémique"," ", IF(COUNTRY_INFO!B33=0," ",COUNTRY_INFO!B33))) ->  | C33: =IF(INTRO!$E$39<>"Non endémique", " ", IF(INTRO!$E$37="Non endémique"," ", IF(COUNTRY_INFO!C33=0," ",COUNTRY_INFO!C33))) ->  | D33: =IF(INTRO!$E$39<>"Non endémique", 0, IF(INTRO!$E$37="Non endémique",0,IF(COUNTRY_INFO!$H33=1,COUNTRY_INFO!E33,0))) -> 0 | E33: =IF(INTRO!$E$39<>"Non endémique", 0, IF(INTRO!$E$37="Non endémique",0,IF(COUNTRY_INFO!$H33=1,COUNTRY_INFO!F33,0))) -> 0 | F33: =IF(INTRO!$E$39<>"Non endémique", 0, IF(INTRO!$E$37="Non endémique",0,IF(COUNTRY_INFO!$H33=1,COUNTRY_INFO!G33,0))) -> 0 | G33: 0 | H33: =IF(INTRO!$E$39="Non endémique",IF(INTRO!$E$37="Non endémique","Non requis",COUNTRY_INFO!V33),"Traiter avec IVM") -> Traiter avec IVM | I33: 0 | J33: 0 | L33: 0
A34: =IF(INTRO!$E$39<>"Non endémique", " ", IF(INTRO!$E$37="Non endémique"," ", IF(COUNTRY_INFO!A34=0," ",COUNTRY_INFO!A34))) ->  | B34: =IF(INTRO!$E$39<>"Non endémique", " ", IF(INTRO!$E$37="Non endémique"," ", IF(COUNTRY_INFO!B34=0," ",COUNTRY_INFO!B34))) ->  | C34: =IF(INTRO!$E$39<>"Non endémique", " ", IF(INTRO!$E$37="Non endémique"," ", IF(COUNTRY_INFO!C34=0," ",COUNTRY_INFO!C34))) ->  | D34: =IF(INTRO!$E$39<>"Non endémique", 0, IF(INTRO!$E$37="Non endémique",0,IF(COUNTRY_INFO!$H34=1,COUNTRY_INFO!E34,0))) -> 0 | E34: =IF(INTRO!$E$39<>"Non endémique", 0, IF(INTRO!$E$37="Non endémique",0,IF(COUNTRY_INFO!$H34=1,COUNTRY_INFO!F34,0))) -> 0 | F34: =IF(INTRO!$E$39<>"Non endémique", 0, IF(INTRO!$E$37="Non endémique",0,IF(COUNTRY_INFO!$H34=1,COUNTRY_INFO!G34,0))) -> 0 | G34: 0 | H34: =IF(INTRO!$E$39="Non endémique",IF(INTRO!$E$37="Non endémique","Non requis",COUNTRY_INFO!V34),"Traiter avec IVM") -> Traiter avec IVM | I34: 0 | J34: 0 | L34: 0
A35: =IF(INTRO!$E$39<>"Non endémique", " ", IF(INTRO!$E$37="Non endémique"," ", IF(COUNTRY_INFO!A35=0," ",COUNTRY_INFO!A35))) ->  | B35: =IF(INTRO!$E$39<>"Non endémique", " ", IF(INTRO!$E$37="Non endémique"," ", IF(COUNTRY_INFO!B35=0," ",COUNTRY_INFO!B35))) ->  | C35: =IF(INTRO!$E$39<>"Non endémique", " ", IF(INTRO!$E$37="Non endémique"," ", IF(COUNTRY_INFO!C35=0," ",COUNTRY_INFO!C35))) ->  | D35: =IF(INTRO!$E$39<>"Non endémique", 0, IF(INTRO!$E$37="Non endémique",0,IF(COUNTRY_INFO!$H35=1,COUNTRY_INFO!E35,0))) -> 0 | E35: =IF(INTRO!$E$39<>"Non endémique", 0, IF(INTRO!$E$37="Non endémique",0,IF(COUNTRY_INFO!$H35=1,COUNTRY_INFO!F35,0))) -> 0 | F35: =IF(INTRO!$E$39<>"Non endémique", 0, IF(INTRO!$E$37="Non endémique",0,IF(COUNTRY_INFO!$H35=1,COUNTRY_INFO!G35,0))) -> 0 | G35: 0 | H35: =IF(INTRO!$E$39="Non endémique",IF(INTRO!$E$37="Non endémique","Non requis",COUNTRY_INFO!V35),"Traiter avec IVM") -> Traiter avec IVM | I35: 0 | J35: 0 | L35: 0
A36: =IF(INTRO!$E$39<>"Non endémique", " ", IF(INTRO!$E$37="Non endémique"," ", IF(COUNTRY_INFO!A36=0," ",COUNTRY_INFO!A36))) ->  | B36: =IF(INTRO!$E$39<>"Non endémique", " ", IF(INTRO!$E$37="Non endémique"," ", IF(COUNTRY_INFO!B36=0," ",COUNTRY_INFO!B36))) ->  | C36: =IF(INTRO!$E$39<>"Non endémique", " ", IF(INTRO!$E$37="Non endémique"," ", IF(COUNTRY_INFO!C36=0," ",COUNTRY_INFO!C36))) ->  | D36: =IF(INTRO!$E$39<>"Non endémique", 0, IF(INTRO!$E$37="Non endémique",0,IF(COUNTRY_INFO!$H36=1,COUNTRY_INFO!E36,0))) -> 0 | E36: =IF(INTRO!$E$39<>"Non endémique", 0, IF(INTRO!$E$37="Non endémique",0,IF(COUNTRY_INFO!$H36=1,COUNTRY_INFO!F36,0))) -> 0 | F36: =IF(INTRO!$E$39<>"Non endémique", 0, IF(INTRO!$E$37="Non endémique",0,IF(COUNTRY_INFO!$H36=1,COUNTRY_INFO!G36,0))) -> 0 | G36: 0 | H36: =IF(INTRO!$E$39="Non endémique",IF(INTRO!$E$37="Non endémique","Non requis",COUNTRY_INFO!V36),"Traiter avec IVM") -> Traiter avec IVM | I36: 0 | J36: 0 | L36: 0
A37: =IF(INTRO!$E$39<>"Non endémique", " ", IF(INTRO!$E$37="Non endémique"," ", IF(COUNTRY_INFO!A37=0," ",COUNTRY_INFO!A37))) ->  | B37: =IF(INTRO!$E$39<>"Non endémique", " ", IF(INTRO!$E$37="Non endémique"," ", IF(COUNTRY_INFO!B37=0," ",COUNTRY_INFO!B37))) ->  | C37: =IF(INTRO!$E$39<>"Non endémique", " ", IF(INTRO!$E$37="Non endémique"," ", IF(COUNTRY_INFO!C37=0," ",COUNTRY_INFO!C37))) ->  | D37: =IF(INTRO!$E$39<>"Non endémique", 0, IF(INTRO!$E$37="Non endémique",0,IF(COUNTRY_INFO!$H37=1,COUNTRY_INFO!E37,0))) -> 0 | E37: =IF(INTRO!$E$39<>"Non endémique", 0, IF(INTRO!$E$37="Non endémique",0,IF(COUNTRY_INFO!$H37=1,COUNTRY_INFO!F37,0))) -> 0 | F37: =IF(INTRO!$E$39<>"Non endémique", 0, IF(INTRO!$E$37="Non endémique",0,IF(COUNTRY_INFO!$H37=1,COUNTRY_INFO!G37,0))) -> 0 | G37: 0 | H37: =IF(INTRO!$E$39="Non endémique",IF(INTRO!$E$37="Non endémique","Non requis",COUNTRY_INFO!V37),"Traiter avec IVM") -> Traiter avec IVM | I37: 0 | J37: 0 | L37: 0
A38: =IF(INTRO!$E$39<>"Non endémique", " ", IF(INTRO!$E$37="Non endémique"," ", IF(COUNTRY_INFO!A38=0," ",COUNTRY_INFO!A38))) ->  | B38: =IF(INTRO!$E$39<>"Non endémique", " ", IF(INTRO!$E$37="Non endémique"," ", IF(COUNTRY_INFO!B38=0," ",COUNTRY_INFO!B38))) ->  | C38: =IF(INTRO!$E$39<>"Non endémique", " ", IF(INTRO!$E$37="Non endémique"," ", IF(COUNTRY_INFO!C38=0," ",COUNTRY_INFO!C38))) ->  | D38: =IF(INTRO!$E$39<>"Non endémique", 0, IF(INTRO!$E$37="Non endémique",0,IF(COUNTRY_INFO!$H38=1,COUNTRY_INFO!E38,0))) -> 0 | E38: =IF(INTRO!$E$39<>"Non endémique", 0, IF(INTRO!$E$37="Non endémique",0,IF(COUNTRY_INFO!$H38=1,COUNTRY_INFO!F38,0))) -> 0 | F38: =IF(INTRO!$E$39<>"Non endémique", 0, IF(INTRO!$E$37="Non endémique",0,IF(COUNTRY_INFO!$H38=1,COUNTRY_INFO!G38,0))) -> 0 | G38: 0 | H38: =IF(INTRO!$E$39="Non endémique",IF(INTRO!$E$37="Non endémique","Non requis",COUNTRY_INFO!V38),"Traiter avec IVM") -> Traiter avec IVM | I38: 0 | J38: 0 | L38: 0
A39: =IF(INTRO!$E$39<>"Non endémique", " ", IF(INTRO!$E$37="Non endémique"," ", IF(COUNTRY_INFO!A39=0," ",COUNTRY_INFO!A39))) ->  | B39: =IF(INTRO!$E$39<>"Non endémique", " ", IF(INTRO!$E$37="Non endémique"," ", IF(COUNTRY_INFO!B39=0," ",COUNTRY_INFO!B39))) ->  | C39: =IF(INTRO!$E$39<>"Non endémique", " ", IF(INTRO!$E$37="Non endémique"," ", IF(COUNTRY_INFO!C39=0," ",COUNTRY_INFO!C39))) ->  | D39: =IF(INTRO!$E$39<>"Non endémique", 0, IF(INTRO!$E$37="Non endémique",0,IF(COUNTRY_INFO!$H39=1,COUNTRY_INFO!E39,0))) -> 0 | E39: =IF(INTRO!$E$39<>"Non endémique", 0, IF(INTRO!$E$37="Non endémique",0,IF(COUNTRY_INFO!$H39=1,COUNTRY_INFO!F39,0))) -> 0 | F39: =IF(INTRO!$E$39<>"Non endémique", 0, IF(INTRO!$E$37="Non endémique",0,IF(COUNTRY_INFO!$H39=1,COUNTRY_INFO!G39,0))) -> 0 | G39: 0 | H39: =IF(INTRO!$E$39="Non endémique",IF(INTRO!$E$37="Non endémique","Non requis",COUNTRY_INFO!V39),"Traiter avec IVM") -> Traiter avec IVM | I39: 0 | J39: 0 | L39: 0
A40: =IF(INTRO!$E$39<>"Non endémique", " ", IF(INTRO!$E$37="Non endémique"," ", IF(COUNTRY_INFO!A40=0," ",COUNTRY_INFO!A40))) ->  | B40: =IF(INTRO!$E$39<>"Non endémique", " ", IF(INTRO!$E$37="Non endémique"," ", IF(COUNTRY_INFO!B40=0," ",COUNTRY_INFO!B40))) ->  | C40: =IF(INTRO!$E$39<>"Non endémique", " ", IF(INTRO!$E$37="Non endémique"," ", IF(COUNTRY_INFO!C40=0," ",COUNTRY_INFO!C40))) ->  | D40: =IF(INTRO!$E$39<>"Non endémique", 0, IF(INTRO!$E$37="Non endémique",0,IF(COUNTRY_INFO!$H40=1,COUNTRY_INFO!E40,0))) -> 0 | E40: =IF(INTRO!$E$39<>"Non endémique", 0, IF(INTRO!$E$37="Non endémique",0,IF(COUNTRY_INFO!$H40=1,COUNTRY_INFO!F40,0))) -> 0 | F40: =IF(INTRO!$E$39<>"Non endémique", 0, IF(INTRO!$E$37="Non endémique",0,IF(COUNTRY_INFO!$H40=1,COUNTRY_INFO!G40,0))) -> 0 | G40: 0 | H40: =IF(INTRO!$E$39="Non endémique",IF(INTRO!$E$37="Non endémique","Non requis",COUNTRY_INFO!V40),"Traiter avec IVM") -> Traiter avec IVM | I40: 0 | J40: 0 | L40: 0
A41: =IF(INTRO!$E$39<>"Non endémique", " ", IF(INTRO!$E$37="Non endémique"," ", IF(COUNTRY_INFO!A41=0," ",COUNTRY_INFO!A41))) ->  | B41: =IF(INTRO!$E$39<>"Non endémique", " ", IF(INTRO!$E$37="Non endémique"," ", IF(COUNTRY_INFO!B41=0," ",COUNTRY_INFO!B41))) ->  | C41: =IF(INTRO!$E$39<>"Non endémique", " ", IF(INTRO!$E$37="Non endémique"," ", IF(COUNTRY_INFO!C41=0," ",COUNTRY_INFO!C41))) ->  | D41: =IF(INTRO!$E$39<>"Non endémique", 0, IF(INTRO!$E$37="Non endémique",0,IF(COUNTRY_INFO!$H41=1,COUNTRY_INFO!E41,0))) -> 0 | E41: =IF(INTRO!$E$39<>"Non endémique", 0, IF(INTRO!$E$37="Non endémique",0,IF(COUNTRY_INFO!$H41=1,COUNTRY_INFO!F41,0))) -> 0 | F41: =IF(INTRO!$E$39<>"Non endémique", 0, IF(INTRO!$E$37="Non endémique",0,IF(COUNTRY_INFO!$H41=1,COUNTRY_INFO!G41,0))) -> 0 | G41: 0 | H41: =IF(INTRO!$E$39="Non endémique",IF(INTRO!$E$37="Non endémique","Non requis",COUNTRY_INFO!V41),"Traiter avec IVM") -> Traiter avec IVM | I41: 0 | J41: 0 | L41: 0
A42: =IF(INTRO!$E$39<>"Non endémique", " ", IF(INTRO!$E$37="Non endémique"," ", IF(COUNTRY_INFO!A42=0," ",COUNTRY_INFO!A42))) ->  | B42: =IF(INTRO!$E$39<>"Non endémique", " ", IF(INTRO!$E$37="Non endémique"," ", IF(COUNTRY_INFO!B42=0," ",COUNTRY_INFO!B42))) ->  | C42: =IF(INTRO!$E$39<>"Non endémique", " ", IF(INTRO!$E$37="Non endémique"," ", IF(COUNTRY_INFO!C42=0," ",COUNTRY_INFO!C42))) ->  | D42: =IF(INTRO!$E$39<>"Non endémique", 0, IF(INTRO!$E$37="Non endémique",0,IF(COUNTRY_INFO!$H42=1,COUNTRY_INFO!E42,0))) -> 0 | E42: =IF(INTRO!$E$39<>"Non endémique", 0, IF(INTRO!$E$37="Non endémique",0,IF(COUNTRY_INFO!$H42=1,COUNTRY_INFO!F42,0))) -> 0 | F42: =IF(INTRO!$E$39<>"Non endémique", 0, IF(INTRO!$E$37="Non endémique",0,IF(COUNTRY_INFO!$H42=1,COUNTRY_INFO!G42,0))) -> 0 | G42: 0 | H42: =IF(INTRO!$E$39="Non endémique",IF(INTRO!$E$37="Non endémique","Non requis",COUNTRY_INFO!V42),"Traiter avec IVM") -> Traiter avec IVM | I42: 0 | J42: 0 | L42: 0
A43: =IF(INTRO!$E$39<>"Non endémique", " ", IF(INTRO!$E$37="Non endémique"," ", IF(COUNTRY_INFO!A43=0," ",COUNTRY_INFO!A43))) ->  | B43: =IF(INTRO!$E$39<>"Non endémique", " ", IF(INTRO!$E$37="Non endémique"," ", IF(COUNTRY_INFO!B43=0," ",COUNTRY_INFO!B43))) ->  | C43: =IF(INTRO!$E$39<>"Non endémique", " ", IF(INTRO!$E$37="Non endémique"," ", IF(COUNTRY_INFO!C43=0," ",COUNTRY_INFO!C43))) ->  | D43: =IF(INTRO!$E$39<>"Non endémique", 0, IF(INTRO!$E$37="Non endémique",0,IF(COUNTRY_INFO!$H43=1,COUNTRY_INFO!E43,0))) -> 0 | E43: =IF(INTRO!$E$39<>"Non endémique", 0, IF(INTRO!$E$37="Non endémique",0,IF(COUNTRY_INFO!$H43=1,COUNTRY_INFO!F43,0))) -> 0 | F43: =IF(INTRO!$E$39<>"Non endémique", 0, IF(INTRO!$E$37="Non endémique",0,IF(COUNTRY_INFO!$H43=1,COUNTRY_INFO!G43,0))) -> 0 | G43: 0 | H43: =IF(INTRO!$E$39="Non endémique",IF(INTRO!$E$37="Non endémique","Non requis",COUNTRY_INFO!V43),"Traiter avec IVM") -> Traiter avec IVM | I43: 0 | J43: 0 | L43: 0
A44: =IF(INTRO!$E$39<>"Non endémique", " ", IF(INTRO!$E$37="Non endémique"," ", IF(COUNTRY_INFO!A44=0," ",COUNTRY_INFO!A44))) ->  | B44: =IF(INTRO!$E$39<>"Non endémique", " ", IF(INTRO!$E$37="Non endémique"," ", IF(COUNTRY_INFO!B44=0," ",COUNTRY_INFO!B44))) ->  | C44: =IF(INTRO!$E$39<>"Non endémique", " ", IF(INTRO!$E$37="Non endémique"," ", IF(COUNTRY_INFO!C44=0," ",COUNTRY_INFO!C44))) ->  | D44: =IF(INTRO!$E$39<>"Non endémique", 0, IF(INTRO!$E$37="Non endémique",0,IF(COUNTRY_INFO!$H44=1,COUNTRY_INFO!E44,0))) -> 0 | E44: =IF(INTRO!$E$39<>"Non endémique", 0, IF(INTRO!$E$37="Non endémique",0,IF(COUNTRY_INFO!$H44=1,COUNTRY_INFO!F44,0))) -> 0 | F44: =IF(INTRO!$E$39<>"Non endémique", 0, IF(INTRO!$E$37="Non endémique",0,IF(COUNTRY_INFO!$H44=1,COUNTRY_INFO!G44,0))) -> 0 | G44: 0 | H44: =IF(INTRO!$E$39="Non endémique",IF(INTRO!$E$37="Non endémique","Non requis",COUNTRY_INFO!V44),"Traiter avec IVM") -> Traiter avec IVM | I44: 0 | J44: 0 | L44: 0
A45: =IF(INTRO!$E$39<>"Non endémique", " ", IF(INTRO!$E$37="Non endémique"," ", IF(COUNTRY_INFO!A45=0," ",COUNTRY_INFO!A45))) ->  | B45: =IF(INTRO!$E$39<>"Non endémique", " ", IF(INTRO!$E$37="Non endémique"," ", IF(COUNTRY_INFO!B45=0," ",COUNTRY_INFO!B45))) ->  | C45: =IF(INTRO!$E$39<>"Non endémique", " ", IF(INTRO!$E$37="Non endémique"," ", IF(COUNTRY_INFO!C45=0," ",COUNTRY_INFO!C45))) ->  | D45: =IF(INTRO!$E$39<>"Non endémique", 0, IF(INTRO!$E$37="Non endémique",0,IF(COUNTRY_INFO!$H45=1,COUNTRY_INFO!E45,0))) -> 0 | E45: =IF(INTRO!$E$39<>"Non endémique", 0, IF(INTRO!$E$37="Non endémique",0,IF(COUNTRY_INFO!$H45=1,COUNTRY_INFO!F45,0))) -> 0 | F45: =IF(INTRO!$E$39<>"Non endémique", 0, IF(INTRO!$E$37="Non endémique",0,IF(COUNTRY_INFO!$H45=1,COUNTRY_INFO!G45,0))) -> 0 | G45: 0 | H45: =IF(INTRO!$E$39="Non endémique",IF(INTRO!$E$37="Non endémique","Non requis",COUNTRY_INFO!V45),"Traiter avec IVM") -> Traiter avec IVM | I45: 0 | J45: 0 | L45: 0
A46: =IF(INTRO!$E$39<>"Non endémique", " ", IF(INTRO!$E$37="Non endémique"," ", IF(COUNTRY_INFO!A46=0," ",COUNTRY_INFO!A46))) ->  | B46: =IF(INTRO!$E$39<>"Non endémique", " ", IF(INTRO!$E$37="Non endémique"," ", IF(COUNTRY_INFO!B46=0," ",COUNTRY_INFO!B46))) ->  | C46: =IF(INTRO!$E$39<>"Non endémique", " ", IF(INTRO!$E$37="Non endémique"," ", IF(COUNTRY_INFO!C46=0," ",COUNTRY_INFO!C46))) ->  | D46: =IF(INTRO!$E$39<>"Non endémique", 0, IF(INTRO!$E$37="Non endémique",0,IF(COUNTRY_INFO!$H46=1,COUNTRY_INFO!E46,0))) -> 0 | E46: =IF(INTRO!$E$39<>"Non endémique", 0, IF(INTRO!$E$37="Non endémique",0,IF(COUNTRY_INFO!$H46=1,COUNTRY_INFO!F46,0))) -> 0 | F46: =IF(INTRO!$E$39<>"Non endémique", 0, IF(INTRO!$E$37="Non endémique",0,IF(COUNTRY_INFO!$H46=1,COUNTRY_INFO!G46,0))) -> 0 | G46: 0 | H46: =IF(INTRO!$E$39="Non endémique",IF(INTRO!$E$37="Non endémique","Non requis",COUNTRY_INFO!V46),"Traiter avec IVM") -> Traiter avec IVM | I46: 0 | J46: 0 | L46: 0
A47: =IF(INTRO!$E$39<>"Non endémique", " ", IF(INTRO!$E$37="Non endémique"," ", IF(COUNTRY_INFO!A47=0," ",COUNTRY_INFO!A47))) ->  | B47: =IF(INTRO!$E$39<>"Non endémique", " ", IF(INTRO!$E$37="Non endémique"," ", IF(COUNTRY_INFO!B47=0," ",COUNTRY_INFO!B47))) ->  | C47: =IF(INTRO!$E$39<>"Non endémique", " ", IF(INTRO!$E$37="Non endémique"," ", IF(COUNTRY_INFO!C47=0," ",COUNTRY_INFO!C47))) ->  | D47: =IF(INTRO!$E$39<>"Non endémique", 0, IF(INTRO!$E$37="Non endémique",0,IF(COUNTRY_INFO!$H47=1,COUNTRY_INFO!E47,0))) -> 0 | E47: =IF(INTRO!$E$39<>"Non endémique", 0, IF(INTRO!$E$37="Non endémique",0,IF(COUNTRY_INFO!$H47=1,COUNTRY_INFO!F47,0))) -> 0 | F47: =IF(INTRO!$E$39<>"Non endémique", 0, IF(INTRO!$E$37="Non endémique",0,IF(COUNTRY_INFO!$H47=1,COUNTRY_INFO!G47,0))) -> 0 | G47: 0 | H47: =IF(INTRO!$E$39="Non endémique",IF(INTRO!$E$37="Non endémique","Non requis",COUNTRY_INFO!V47),"Traiter avec IVM") -> Traiter avec IVM | I47: 0 | J47: 0 | L47: 0
A48: =IF(INTRO!$E$39<>"Non endémique", " ", IF(INTRO!$E$37="Non endémique"," ", IF(COUNTRY_INFO!A48=0," ",COUNTRY_INFO!A48))) ->  | B48: =IF(INTRO!$E$39<>"Non endémique", " ", IF(INTRO!$E$37="Non endémique"," ", IF(COUNTRY_INFO!B48=0," ",COUNTRY_INFO!B48))) ->  | C48: =IF(INTRO!$E$39<>"Non endémique", " ", IF(INTRO!$E$37="Non endémique"," ", IF(COUNTRY_INFO!C48=0," ",COUNTRY_INFO!C48))) ->  | D48: =IF(INTRO!$E$39<>"Non endémique", 0, IF(INTRO!$E$37="Non endémique",0,IF(COUNTRY_INFO!$H48=1,COUNTRY_INFO!E48,0))) -> 0 | E48: =IF(INTRO!$E$39<>"Non endémique", 0, IF(INTRO!$E$37="Non endémique",0,IF(COUNTRY_INFO!$H48=1,COUNTRY_INFO!F48,0))) -> 0 | F48: =IF(INTRO!$E$39<>"Non endémique", 0, IF(INTRO!$E$37="Non endémique",0,IF(COUNTRY_INFO!$H48=1,COUNTRY_INFO!G48,0))) -> 0 | G48: 0 | H48: =IF(INTRO!$E$39="Non endémique",IF(INTRO!$E$37="Non endémique","Non requis",COUNTRY_INFO!V48),"Traiter avec IVM") -> Traiter avec IVM | I48: 0 | J48: 0 | L48: 0
A49: =IF(INTRO!$E$39<>"Non endémique", " ", IF(INTRO!$E$37="Non endémique"," ", IF(COUNTRY_INFO!A49=0," ",COUNTRY_INFO!A49))) ->  | B49: =IF(INTRO!$E$39<>"Non endémique", " ", IF(INTRO!$E$37="Non endémique"," ", IF(COUNTRY_INFO!B49=0," ",COUNTRY_INFO!B49))) ->  | C49: =IF(INTRO!$E$39<>"Non endémique", " ", IF(INTRO!$E$37="Non endémique"," ", IF(COUNTRY_INFO!C49=0," ",COUNTRY_INFO!C49))) ->  | D49: =IF(INTRO!$E$39<>"Non endémique", 0, IF(INTRO!$E$37="Non endémique",0,IF(COUNTRY_INFO!$H49=1,COUNTRY_INFO!E49,0))) -> 0 | E49: =IF(INTRO!$E$39<>"Non endémique", 0, IF(INTRO!$E$37="Non endémique",0,IF(COUNTRY_INFO!$H49=1,COUNTRY_INFO!F49,0))) -> 0 | F49: =IF(INTRO!$E$39<>"Non endémique", 0, IF(INTRO!$E$37="Non endémique",0,IF(COUNTRY_INFO!$H49=1,COUNTRY_INFO!G49,0))) -> 0 | G49: 0 | H49: =IF(INTRO!$E$39="Non endémique",IF(INTRO!$E$37="Non endémique","Non requis",COUNTRY_INFO!V49),"Traiter avec IVM") -> Traiter avec IVM | I49: 0 | J49: 0 | L49: 0
A50: =IF(INTRO!$E$39<>"Non endémique", " ", IF(INTRO!$E$37="Non endémique"," ", IF(COUNTRY_INFO!A50=0," ",COUNTRY_INFO!A50))) ->  | B50: =IF(INTRO!$E$39<>"Non endémique", " ", IF(INTRO!$E$37="Non endémique"," ", IF(COUNTRY_INFO!B50=0," ",COUNTRY_INFO!B50))) ->  | C50: =IF(INTRO!$E$39<>"Non endémique", " ", IF(INTRO!$E$37="Non endémique"," ", IF(COUNTRY_INFO!C50=0," ",COUNTRY_INFO!C50))) ->  | D50: =IF(INTRO!$E$39<>"Non endémique", 0, IF(INTRO!$E$37="Non endémique",0,IF(COUNTRY_INFO!$H50=1,COUNTRY_INFO!E50,0))) -> 0 | E50: =IF(INTRO!$E$39<>"Non endémique", 0, IF(INTRO!$E$37="Non endémique",0,IF(COUNTRY_INFO!$H50=1,COUNTRY_INFO!F50,0))) -> 0 | F50: =IF(INTRO!$E$39<>"Non endémique", 0, IF(INTRO!$E$37="Non endémique",0,IF(COUNTRY_INFO!$H50=1,COUNTRY_INFO!G50,0))) -> 0 | G50: 0 | H50: =IF(INTRO!$E$39="Non endémique",IF(INTRO!$E$37="Non endémique","Non requis",COUNTRY_INFO!V50),"Traiter avec IVM") -> Traiter avec IVM | I50: 0 | J50: 0 | L50: 0
A51: =IF(INTRO!$E$39<>"Non endémique", " ", IF(INTRO!$E$37="Non endémique"," ", IF(COUNTRY_INFO!A51=0," ",COUNTRY_INFO!A51))) ->  | B51: =IF(INTRO!$E$39<>"Non endémique", " ", IF(INTRO!$E$37="Non endémique"," ", IF(COUNTRY_INFO!B51=0," ",COUNTRY_INFO!B51))) ->  | C51: =IF(INTRO!$E$39<>"Non endémique", " ", IF(INTRO!$E$37="Non endémique"," ", IF(COUNTRY_INFO!C51=0," ",COUNTRY_INFO!C51))) ->  | D51: =IF(INTRO!$E$39<>"Non endémique", 0, IF(INTRO!$E$37="Non endémique",0,IF(COUNTRY_INFO!$H51=1,COUNTRY_INFO!E51,0))) -> 0 | E51: =IF(INTRO!$E$39<>"Non endémique", 0, IF(INTRO!$E$37="Non endémique",0,IF(COUNTRY_INFO!$H51=1,COUNTRY_INFO!F51,0))) -> 0 | F51: =IF(INTRO!$E$39<>"Non endémique", 0, IF(INTRO!$E$37="Non endémique",0,IF(COUNTRY_INFO!$H51=1,COUNTRY_INFO!G51,0))) -> 0 | G51: 0 | H51: =IF(INTRO!$E$39="Non endémique",IF(INTRO!$E$37="Non endémique","Non requis",COUNTRY_INFO!V51),"Traiter avec IVM") -> Traiter avec IVM | I51: 0 | J51: 0 | L51: 0
A52: =IF(INTRO!$E$39<>"Non endémique", " ", IF(INTRO!$E$37="Non endémique"," ", IF(COUNTRY_INFO!A52=0," ",COUNTRY_INFO!A52))) ->  | B52: =IF(INTRO!$E$39<>"Non endémique", " ", IF(INTRO!$E$37="Non endémique"," ", IF(COUNTRY_INFO!B52=0," ",COUNTRY_INFO!B52))) ->  | C52: =IF(INTRO!$E$39<>"Non endémique", " ", IF(INTRO!$E$37="Non endémique"," ", IF(COUNTRY_INFO!C52=0," ",COUNTRY_INFO!C52))) ->  | D52: =IF(INTRO!$E$39<>"Non endémique", 0, IF(INTRO!$E$37="Non endémique",0,IF(COUNTRY_INFO!$H52=1,COUNTRY_INFO!E52,0))) -> 0 | E52: =IF(INTRO!$E$39<>"Non endémique", 0, IF(INTRO!$E$37="Non endémique",0,IF(COUNTRY_INFO!$H52=1,COUNTRY_INFO!F52,0))) -> 0 | F52: =IF(INTRO!$E$39<>"Non endémique", 0, IF(INTRO!$E$37="Non endémique",0,IF(COUNTRY_INFO!$H52=1,COUNTRY_INFO!G52,0))) -> 0 | G52: 0 | H52: =IF(INTRO!$E$39="Non endémique",IF(INTRO!$E$37="Non endémique","Non requis",COUNTRY_INFO!V52),"Traiter avec IVM") -> Traiter avec IVM | I52: 0 | J52: 0 | L52: 0
A53: =IF(INTRO!$E$39<>"Non endémique", " ", IF(INTRO!$E$37="Non endémique"," ", IF(COUNTRY_INFO!A53=0," ",COUNTRY_INFO!A53))) ->  | B53: =IF(INTRO!$E$39<>"Non endémique", " ", IF(INTRO!$E$37="Non endémique"," ", IF(COUNTRY_INFO!B53=0," ",COUNTRY_INFO!B53))) ->  | C53: =IF(INTRO!$E$39<>"Non endémique", " ", IF(INTRO!$E$37="Non endémique"," ", IF(COUNTRY_INFO!C53=0," ",COUNTRY_INFO!C53))) ->  | D53: =IF(INTRO!$E$39<>"Non endémique", 0, IF(INTRO!$E$37="Non endémique",0,IF(COUNTRY_INFO!$H53=1,COUNTRY_INFO!E53,0))) -> 0 | E53: =IF(INTRO!$E$39<>"Non endémique", 0, IF(INTRO!$E$37="Non endémique",0,IF(COUNTRY_INFO!$H53=1,COUNTRY_INFO!F53,0))) -> 0 | F53: =IF(INTRO!$E$39<>"Non endémique", 0, IF(INTRO!$E$37="Non endémique",0,IF(COUNTRY_INFO!$H53=1,COUNTRY_INFO!G53,0))) -> 0 | G53: 0 | H53: =IF(INTRO!$E$39="Non endémique",IF(INTRO!$E$37="Non endémique","Non requis",COUNTRY_INFO!V53),"Traiter avec IVM") -> Traiter avec IVM | I53: 0 | J53: 0 | L53: 0
A54: =IF(INTRO!$E$39<>"Non endémique", " ", IF(INTRO!$E$37="Non endémique"," ", IF(COUNTRY_INFO!A54=0," ",COUNTRY_INFO!A54))) ->  | B54: =IF(INTRO!$E$39<>"Non endémique", " ", IF(INTRO!$E$37="Non endémique"," ", IF(COUNTRY_INFO!B54=0," ",COUNTRY_INFO!B54))) ->  | C54: =IF(INTRO!$E$39<>"Non endémique", " ", IF(INTRO!$E$37="Non endémique"," ", IF(COUNTRY_INFO!C54=0," ",COUNTRY_INFO!C54))) ->  | D54: =IF(INTRO!$E$39<>"Non endémique", 0, IF(INTRO!$E$37="Non endémique",0,IF(COUNTRY_INFO!$H54=1,COUNTRY_INFO!E54,0))) -> 0 | E54: =IF(INTRO!$E$39<>"Non endémique", 0, IF(INTRO!$E$37="Non endémique",0,IF(COUNTRY_INFO!$H54=1,COUNTRY_INFO!F54,0))) -> 0 | F54: =IF(INTRO!$E$39<>"Non endémique", 0, IF(INTRO!$E$37="Non endémique",0,IF(COUNTRY_INFO!$H54=1,COUNTRY_INFO!G54,0))) -> 0 | G54: 0 | H54: =IF(INTRO!$E$39="Non endémique",IF(INTRO!$E$37="Non endémique","Non requis",COUNTRY_INFO!V54),"Traiter avec IVM") -> Traiter avec IVM | I54: 0 | J54: 0 | L54: 0
A55: =IF(INTRO!$E$39<>"Non endémique", " ", IF(INTRO!$E$37="Non endémique"," ", IF(COUNTRY_INFO!A55=0," ",COUNTRY_INFO!A55))) ->  | B55: =IF(INTRO!$E$39<>"Non endémique", " ", IF(INTRO!$E$37="Non endémique"," ", IF(COUNTRY_INFO!B55=0," ",COUNTRY_INFO!B55))) ->  | C55: =IF(INTRO!$E$39<>"Non endémique", " ", IF(INTRO!$E$37="Non endémique"," ", IF(COUNTRY_INFO!C55=0," ",COUNTRY_INFO!C55))) ->  | D55: =IF(INTRO!$E$39<>"Non endémique", 0, IF(INTRO!$E$37="Non endémique",0,IF(COUNTRY_INFO!$H55=1,COUNTRY_INFO!E55,0))) -> 0 | E55: =IF(INTRO!$E$39<>"Non endémique", 0, IF(INTRO!$E$37="Non endémique",0,IF(COUNTRY_INFO!$H55=1,COUNTRY_INFO!F55,0))) -> 0 | F55: =IF(INTRO!$E$39<>"Non endémique", 0, IF(INTRO!$E$37="Non endémique",0,IF(COUNTRY_INFO!$H55=1,COUNTRY_INFO!G55,0))) -> 0 | G55: 0 | H55: =IF(INTRO!$E$39="Non endémique",IF(INTRO!$E$37="Non endémique","Non requis",COUNTRY_INFO!V55),"Traiter avec IVM") -> Traiter avec IVM | I55: 0 | J55: 0 | L55: 0
A56: =IF(INTRO!$E$39<>"Non endémique", " ", IF(INTRO!$E$37="Non endémique"," ", IF(COUNTRY_INFO!A56=0," ",COUNTRY_INFO!A56))) ->  | B56: =IF(INTRO!$E$39<>"Non endémique", " ", IF(INTRO!$E$37="Non endémique"," ", IF(COUNTRY_INFO!B56=0," ",COUNTRY_INFO!B56))) ->  | C56: =IF(INTRO!$E$39<>"Non endémique", " ", IF(INTRO!$E$37="Non endémique"," ", IF(COUNTRY_INFO!C56=0," ",COUNTRY_INFO!C56))) ->  | D56: =IF(INTRO!$E$39<>"Non endémique", 0, IF(INTRO!$E$37="Non endémique",0,IF(COUNTRY_INFO!$H56=1,COUNTRY_INFO!E56,0))) -> 0 | E56: =IF(INTRO!$E$39<>"Non endémique", 0, IF(INTRO!$E$37="Non endémique",0,IF(COUNTRY_INFO!$H56=1,COUNTRY_INFO!F56,0))) -> 0 | F56: =IF(INTRO!$E$39<>"Non endémique", 0, IF(INTRO!$E$37="Non endémique",0,IF(COUNTRY_INFO!$H56=1,COUNTRY_INFO!G56,0))) -> 0 | G56: 0 | H56: =IF(INTRO!$E$39="Non endémique",IF(INTRO!$E$37="Non endémique","Non requis",COUNTRY_INFO!V56),"Traiter avec IVM") -> Traiter avec IVM | I56: 0 | J56: 0 | L56: 0
A57: =IF(INTRO!$E$39<>"Non endémique", " ", IF(INTRO!$E$37="Non endémique"," ", IF(COUNTRY_INFO!A57=0," ",COUNTRY_INFO!A57))) ->  | B57: =IF(INTRO!$E$39<>"Non endémique", " ", IF(INTRO!$E$37="Non endémique"," ", IF(COUNTRY_INFO!B57=0," ",COUNTRY_INFO!B57))) ->  | C57: =IF(INTRO!$E$39<>"Non endémique", " ", IF(INTRO!$E$37="Non endémique"," ", IF(COUNTRY_INFO!C57=0," ",COUNTRY_INFO!C57))) ->  | D57: =IF(INTRO!$E$39<>"Non endémique", 0, IF(INTRO!$E$37="Non endémique",0,IF(COUNTRY_INFO!$H57=1,COUNTRY_INFO!E57,0))) -> 0 | E57: =IF(INTRO!$E$39<>"Non endémique", 0, IF(INTRO!$E$37="Non endémique",0,IF(COUNTRY_INFO!$H57=1,COUNTRY_INFO!F57,0))) -> 0 | F57: =IF(INTRO!$E$39<>"Non endémique", 0, IF(INTRO!$E$37="Non endémique",0,IF(COUNTRY_INFO!$H57=1,COUNTRY_INFO!G57,0))) -> 0 | G57: 0 | H57: =IF(INTRO!$E$39="Non endémique",IF(INTRO!$E$37="Non endémique","Non requis",COUNTRY_INFO!V57),"Traiter avec IVM") -> Traiter avec IVM | I57: 0 | J57: 0 | L57: 0
A58: =IF(INTRO!$E$39<>"Non endémique", " ", IF(INTRO!$E$37="Non endémique"," ", IF(COUNTRY_INFO!A58=0," ",COUNTRY_INFO!A58))) ->  | B58: =IF(INTRO!$E$39<>"Non endémique", " ", IF(INTRO!$E$37="Non endémique"," ", IF(COUNTRY_INFO!B58=0," ",COUNTRY_INFO!B58))) ->  | C58: =IF(INTRO!$E$39<>"Non endémique", " ", IF(INTRO!$E$37="Non endémique"," ", IF(COUNTRY_INFO!C58=0," ",COUNTRY_INFO!C58))) ->  | D58: =IF(INTRO!$E$39<>"Non endémique", 0, IF(INTRO!$E$37="Non endémique",0,IF(COUNTRY_INFO!$H58=1,COUNTRY_INFO!E58,0))) -> 0 | E58: =IF(INTRO!$E$39<>"Non endémique", 0, IF(INTRO!$E$37="Non endémique",0,IF(COUNTRY_INFO!$H58=1,COUNTRY_INFO!F58,0))) -> 0 | F58: =IF(INTRO!$E$39<>"Non endémique", 0, IF(INTRO!$E$37="Non endémique",0,IF(COUNTRY_INFO!$H58=1,COUNTRY_INFO!G58,0))) -> 0 | G58: 0 | H58: =IF(INTRO!$E$39="Non endémique",IF(INTRO!$E$37="Non endémique","Non requis",COUNTRY_INFO!V58),"Traiter avec IVM") -> Traiter avec IVM | I58: 0 | J58: 0 | L58: 0

Sheet ALB_MBD
A1: Albendazole (ALB) et Mebendazole (MBD) | G1: Choisir le médicament pour le traitement de STH pour chaque groupe d'âge
A2: Structure administrative, population ciblée par groupe d'âge, plan de traitement et information sur les comprimés | I2: ALB
A4: TOTAL | F4: =SUBTOTAL(9,F$10:F$1010) -> 0 | H4: =SUBTOTAL(9,H$10:H$1010) -> 347332 | I4: 799665 | K4: 617716 | L4: 1764713 | M4: 0 | N4: 0 | O4: 0 | P4: 799665 | Q4: 0 | R4: 799665 | S4: 0 | T4: 0 | U4: 0
A6: Structure administrative du pays | D6: Plan de traitement | F6: Population couverte par le PEFL avec ALB | G6: Population cible pour STH | M6: Albendazole (ALB) | S6: Mebendazole (MBD)
A7: Pays | B7: Région/Département | C7: District | D7: FL | E7: STH | G7: EAPréS | I7: EAS | J7: FAP | L7: Total | M7: Total requis (FL) | N7: Reste en stock (FL) | O7: Comprimés devant être fournis (FL) | P7: Total requis (STH) | Q7: Reste en stock (STH) | R7: Comprimés devant être fournis (STH) | S7: Total requis | T7: Reste en stock | U7: Comprimés devant être fournis
G8: Tournées | H8: Personnes | I8: Personnes | J8: Tournées | K8: Personnes
A10: =IF(AND(INTRO!$E$37="Non endémique",INTRO!$E$41="Non endémique")," ",IF(COUNTRY_INFO!A10=0," ",COUNTRY_INFO!A10)) -> Burundi | B10: =IF(AND(INTRO!$E$37="Non endémique",INTRO!$E$41="Non endémique")," ",IF(COUNTRY_INFO!B10=0," ",COUNTRY_INFO!B10)) -> Bubanza | C10: =IF(AND(INTRO!$E$37="Non endémique",INTRO!$E$41="Non endémique")," ",IF(COUNTRY_INFO!C10=0," ",COUNTRY_INFO!C10)) -> Bubanza | D10: =IF(AND(INTRO!$E$37="Non endémique",INTRO!$E$41="Non endémique"),0,COUNTRY_INFO!V10) -> 0 | E10: =IF(AND(INTRO!$E$37="Non endémique",INTRO!$E$41="Non endémique"),0,COUNTRY_INFO!X10) -> 0 | F10: =IF(INTRO!$E$39="Non endémique",IF($D10=1,DEC!I10,0),IF($D10=1,IVM!G10,0)) -> 0 | H10: =IF(OR(COUNTRY_INFO!N10="Inconnu",COUNTRY_INFO!N10="Surveillance",COUNTRY_INFO!N10="Non requis",COUNTRY_INFO!N10=0),0,IF(INTRO!$E$39="Non endémique",IF(AND($E10<>0,$G10=""),IF($F10=0,COUNTRY_INFO!N10*$E10,COUNTRY_INFO!N10*($E10-$D10)),IF(AND($E10<>0,$G10<>0),IF($F10=0,COUNTRY_INFO!N10*$G10,COUNTRY_INFO!N10*($G10-$D10)),0)),IF($G10="",COUNTRY_INFO!N10*$E10,COUNTRY_INFO!N10*$G10))) -> 0 | I10: =IF(OR(COUNTRY_INFO!O10="Inconnu",COUNTRY_INFO!O10="Surveillance",COUNTRY_INFO!O10="Non requis",COUNTRY_INFO!O10=0),0,IF($E10<>0, IF($F10=0,COUNTRY_INFO!O10*$E10,COUNTRY_INFO!O10*($E10-$D10)),COUNTRY_INFO!O10*$E10)) -> 0 | K10: =IF(OR(COUNTRY_INFO!P10="Inconnu",COUNTRY_INFO!P10="Surveillance",COUNTRY_INFO!P10="Non requis",COUNTRY_INFO!P10=0),0,IF(AND($E10<>0,$J10=""),IF($F10=0,COUNTRY_INFO!P10*$E10,COUNTRY_INFO!P10*($E10-$D10)), IF(AND($E10<>0,$J10<>0),IF($F10=0,COUNTRY_INFO!P10*$J10,COUNTRY_INFO!P10*($J10-$D10)), COUNTRY_INFO!P10*$J10))) -> 0 | L10: =ROUND($H10,0)+ROUND($I10,0)+ROUND($K10,0) -> 0 | M10: =$F10 -> 0 | O10: =IF($M10>$N10, $M10-$N10,0) -> 0 | P10: =ROUND((IF($G$2="ALB",$H10,0)+IF($I$2="ALB",$I10,0)+IF($J$2="ALB",$K10,0)),0) -> 0 | R10: =IF($P10>$Q10,$P10-$Q10,0) -> 0 | S10: =ROUND((IF($G$2="MBD",$H10,0)+IF($I$2="MBD",$I10,0)+IF($J$2="MBD",$K10,0)),0) -> 0 | U10: =IF($S10>$T10,$S10-$T10,0) -> 0
A11: =IF(AND(INTRO!$E$37="Non endémique",INTRO!$E$41="Non endémique")," ",IF(COUNTRY_INFO!A11=0," ",COUNTRY_INFO!A11)) -> Burundi | B11: =IF(AND(INTRO!$E$37="Non endémique",INTRO!$E$41="Non endémique")," ",IF(COUNTRY_INFO!B11=0," ",COUNTRY_INFO!B11)) -> Bubanza | C11: =IF(AND(INTRO!$E$37="Non endémique",INTRO!$E$41="Non endémique")," ",IF(COUNTRY_INFO!C11=0," ",COUNTRY_INFO!C11)) -> Mpanda | D11: =IF(AND(INTRO!$E$37="Non endémique",INTRO!$E$41="Non endémique"),0,COUNTRY_INFO!V11) -> 0 | E11: =IF(AND(INTRO!$E$37="Non endémique",INTRO!$E$41="Non endémique"),0,COUNTRY_INFO!X11) -> 0 | F11: =IF(INTRO!$E$39="Non endémique",IF($D11=1,DEC!I11,0),IF($D11=1,IVM!G11,0)) -> 0 | H11: =IF(OR(COUNTRY_INFO!N11="Inconnu",COUNTRY_INFO!N11="Surveillance",COUNTRY_INFO!N11="Non requis",COUNTRY_INFO!N11=0),0,IF(INTRO!$E$39="Non endémique",IF(AND($E11<>0,$G11=""),IF($F11=0,COUNTRY_INFO!N11*$E11,COUNTRY_INFO!N11*($E11-$D11)),IF(AND($E11<>0,$G11<>0),IF($F11=0,COUNTRY_INFO!N11*$G11,COUNTRY_INFO!N11*($G11-$D11)),0)),IF($G11="",COUNTRY_INFO!N11*$E11,COUNTRY_INFO!N11*$G11))) -> 0 | I11: =IF(OR(COUNTRY_INFO!O11="Inconnu",COUNTRY_INFO!O11="Surveillance",COUNTRY_INFO!O11="Non requis",COUNTRY_INFO!O11=0),0,IF($E11<>0, IF($F11=0,COUNTRY_INFO!O11*$E11,COUNTRY_INFO!O11*($E11-$D11)),COUNTRY_INFO!O11*$E11)) -> 0 | K11: =IF(OR(COUNTRY_INFO!P11="Inconnu",COUNTRY_INFO!P11="Surveillance",COUNTRY_INFO!P11="Non requis",COUNTRY_INFO!P11=0),0,IF(AND($E11<>0,$J11=""),IF($F11=0,COUNTRY_INFO!P11*$E11,COUNTRY_INFO!P11*($E11-$D11)), IF(AND($E11<>0,$J11<>0),IF($F11=0,COUNTRY_INFO!P11*$J11,COUNTRY_INFO!P11*($J11-$D11)), COUNTRY_INFO!P11*$J11))) -> 0 | L11: 0 | M11: 0 | O11: 0 | P11: 0 | R11: 0 | S11: 0 | U11: 0
A12: =IF(AND(INTRO!$E$37="Non endémique",INTRO!$E$41="Non endémique")," ",IF(COUNTRY_INFO!A12=0," ",COUNTRY_INFO!A12)) -> Burundi | B12: =IF(AND(INTRO!$E$37="Non endémique",INTRO!$E$41="Non endémique")," ",IF(COUNTRY_INFO!B12=0," ",COUNTRY_INFO!B12)) -> Bujumbura Mairie | C12: =IF(AND(INTRO!$E$37="Non endémique",INTRO!$E$41="Non endémique")," ",IF(COUNTRY_INFO!C12=0," ",COUNTRY_INFO!C12)) -> Zone Centre | D12: =IF(AND(INTRO!$E$37="Non endémique",INTRO!$E$41="Non endémique"),0,COUNTRY_INFO!V12) -> 0 | E12: =IF(AND(INTRO!$E$37="Non endémique",INTRO!$E$41="Non endémique"),0,COUNTRY_INFO!X12) -> 0 | F12: =IF(INTRO!$E$39="Non endémique",IF($D12=1,DEC!I12,0),IF($D12=1,IVM!G12,0)) -> 0 | H12: =IF(OR(COUNTRY_INFO!N12="Inconnu",COUNTRY_INFO!N12="Surveillance",COUNTRY_INFO!N12="Non requis",COUNTRY_INFO!N12=0),0,IF(INTRO!$E$39="Non endémique",IF(AND($E12<>0,$G12=""),IF($F12=0,COUNTRY_INFO!N12*$E12,COUNTRY_INFO!N12*($E12-$D12)),IF(AND($E12<>0,$G12<>0),IF($F12=0,COUNTRY_INFO!N12*$G12,COUNTRY_INFO!N12*($G12-$D12)),0)),IF($G12="",COUNTRY_INFO!N12*$E12,COUNTRY_INFO!N12*$G12))) -> 0 | I12: =IF(OR(COUNTRY_INFO!O12="Inconnu",COUNTRY_INFO!O12="Surveillance",COUNTRY_INFO!O12="Non requis",COUNTRY_INFO!O12=0),0,IF($E12<>0, IF($F12=0,COUNTRY_INFO!O12*$E12,COUNTRY_INFO!O12*($E12-$D12)),COUNTRY_INFO!O12*$E12)) -> 0 | K12: =IF(OR(COUNTRY_INFO!P12="Inconnu",COUNTRY_INFO!P12="Surveillance",COUNTRY_INFO!P12="Non requis",COUNTRY_INFO!P12=0),0,IF(AND($E12<>0,$J12=""),IF($F12=0,COUNTRY_INFO!P12*$E12,COUNTRY_INFO!P12*($E12-$D12)), IF(AND($E12<>0,$J12<>0),IF($F12=0,COUNTRY_INFO!P12*$J12,COUNTRY_INFO!P12*($J12-$D12)), COUNTRY_INFO!P12*$J12))) -> 0 | L12: 0 | M12: 0 | O12: 0 | P12: 0 | R12: 0 | S12: 0 | U12: 0
A13: =IF(AND(INTRO!$E$37="Non endémique",INTRO!$E$41="Non endémique")," ",IF(COUNTRY_INFO!A13=0," ",COUNTRY_INFO!A13)) -> Burundi | B13: =IF(AND(INTRO!$E$37="Non endémique",INTRO!$E$41="Non endémique")," ",IF(COUNTRY_INFO!B13=0," ",COUNTRY_INFO!B13)) -> Bujumbura Mairie | C13: =IF(AND(INTRO!$E$37="Non endémique",INTRO!$E$41="Non endémique")," ",IF(COUNTRY_INFO!C13=0," ",COUNTRY_INFO!C13)) -> Zone Nord | D13: =IF(AND(INTRO!$E$37="Non endémique",INTRO!$E$41="Non endémique"),0,COUNTRY_INFO!V13) -> 0 | E13: =IF(AND(INTRO!$E$37="Non endémique",INTRO!$E$41="Non endémique"),0,COUNTRY_INFO!X13) -> 0 | F13: =IF(INTRO!$E$39="Non endémique",IF($D13=1,DEC!I13,0),IF($D13=1,IVM!G13,0)) -> 0 | H13: =IF(OR(COUNTRY_INFO!N13="Inconnu",COUNTRY_INFO!N13="Surveillance",COUNTRY_INFO!N13="Non requis",COUNTRY_INFO!N13=0),0,IF(INTRO!$E$39="Non endémique",IF(AND($E13<>0,$G13=""),IF($F13=0,COUNTRY_INFO!N13*$E13,COUNTRY_INFO!N13*($E13-$D13)),IF(AND($E13<>0,$G13<>0),IF($F13=0,COUNTRY_INFO!N13*$G13,COUNTRY_INFO!N13*($G13-$D13)),0)),IF($G13="",COUNTRY_INFO!N13*$E13,COUNTRY_INFO!N13*$G13))) -> 0 | I13: =IF(OR(COUNTRY_INFO!O13="Inconnu",COUNTRY_INFO!O13="Surveillance",COUNTRY_INFO!O13="Non requis",COUNTRY_INFO!O13=0),0,IF($E13<>0, IF($F13=0,COUNTRY_INFO!O13*$E13,COUNTRY_INFO!O13*($E13-$D13)),COUNTRY_INFO!O13*$E13)) -> 0 | K13: =IF(OR(COUNTRY_INFO!P13="Inconnu",COUNTRY_INFO!P13="Surveillance",COUNTRY_INFO!P13="Non requis",COUNTRY_INFO!P13=0),0,IF(AND($E13<>0,$J13=""),IF($F13=0,COUNTRY_INFO!P13*$E13,COUNTRY_INFO!P13*($E13-$D13)), IF(AND($E13<>0,$J13<>0),IF($F13=0,COUNTRY_INFO!P13*$J13,COUNTRY_INFO!P13*($J13-$D13)), COUNTRY_INFO!P13*$J13))) -> 0 | L13: 0 | M13: 0 | O13: 0 | P13: 0 | R13: 0 | S13: 0 | U13: 0
A14: =IF(AND(INTRO!$E$37="Non endémique",INTRO!$E$41="Non endémique")," ",IF(COUNTRY_INFO!A14=0," ",COUNTRY_INFO!A14)) -> Burundi | B14: =IF(AND(INTRO!$E$37="Non endémique",INTRO!$E$41="Non endémique")," ",IF(COUNTRY_INFO!B14=0," ",COUNTRY_INFO!B14)) -> Bujumbura Mairie | C14: =IF(AND(INTRO!$E$37="Non endémique",INTRO!$E$41="Non endémique")," ",IF(COUNTRY_INFO!C14=0," ",COUNTRY_INFO!C14)) -> Zone Sud | D14: =IF(AND(INTRO!$E$37="Non endémique",INTRO!$E$41="Non endémique"),0,COUNTRY_INFO!V14) -> 0 | E14: =IF(AND(INTRO!$E$37="Non endémique",INTRO!$E$41="Non endémique"),0,COUNTRY_INFO!X14) -> 0 | F14: =IF(INTRO!$E$39="Non endémique",IF($D14=1,DEC!I14,0),IF($D14=1,IVM!G14,0)) -> 0 | H14: =IF(OR(COUNTRY_INFO!N14="Inconnu",COUNTRY_INFO!N14="Surveillance",COUNTRY_INFO!N14="Non requis",COUNTRY_INFO!N14=0),0,IF(INTRO!$E$39="Non endémique",IF(AND($E14<>0,$G14=""),IF($F14=0,COUNTRY_INFO!N14*$E14,COUNTRY_INFO!N14*($E14-$D14)),IF(AND($E14<>0,$G14<>0),IF($F14=0,COUNTRY_INFO!N14*$G14,COUNTRY_INFO!N14*($G14-$D14)),0)),IF($G14="",COUNTRY_INFO!N14*$E14,COUNTRY_INFO!N14*$G14))) -> 0 | I14: =IF(OR(COUNTRY_INFO!O14="Inconnu",COUNTRY_INFO!O14="Surveillance",COUNTRY_INFO!O14="Non requis",COUNTRY_INFO!O14=0),0,IF($E14<>0, IF($F14=0,COUNTRY_INFO!O14*$E14,COUNTRY_INFO!O14*($E14-$D14)),COUNTRY_INFO!O14*$E14)) -> 0 | K14: =IF(OR(COUNTRY_INFO!P14="Inconnu",COUNTRY_INFO!P14="Surveillance",COUNTRY_INFO!P14="Non requis",COUNTRY_INFO!P14=0),0,IF(AND($E14<>0,$J14=""),IF($F14=0,COUNTRY_INFO!P14*$E14,COUNTRY_INFO!P14*($E14-$D14)), IF(AND($E14<>0,$J14<>0),IF($F14=0,COUNTRY_INFO!P14*$J14,COUNTRY_INFO!P14*($J14-$D14)), COUNTRY_INFO!P14*$J14))) -> 0 | L14: 0 | M14: 0 | O14: 0 | P14: 0 | R14: 0 | S14: 0 | U14: 0
A15: =IF(AND(INTRO!$E$37="Non endémique",INTRO!$E$41="Non endémique")," ",IF(COUNTRY_INFO!A15=0," ",COUNTRY_INFO!A15)) -> Burundi | B15: =IF(AND(INTRO!$E$37="Non endémique",INTRO!$E$41="Non endémique")," ",IF(COUNTRY_INFO!B15=0," ",COUNTRY_INFO!B15)) -> Bujumbura Rural | C15: =IF(AND(INTRO!$E$37="Non endémique",INTRO!$E$41="Non endémique")," ",IF(COUNTRY_INFO!C15=0," ",COUNTRY_INFO!C15)) -> Isare | D15: =IF(AND(INTRO!$E$37="Non endémique",INTRO!$E$41="Non endémique"),0,COUNTRY_INFO!V15) -> 0 | E15: =IF(AND(INTRO!$E$37="Non endémique",INTRO!$E$41="Non endémique"),0,COUNTRY_INFO!X15) -> 1 | F15: =IF(INTRO!$E$39="Non endémique",IF($D15=1,DEC!I15,0),IF($D15=1,IVM!G15,0)) -> 0 | H15: =IF(OR(COUNTRY_INFO!N15="Inconnu",COUNTRY_INFO!N15="Surveillance",COUNTRY_INFO!N15="Non requis",COUNTRY_INFO!N15=0),0,IF(INTRO!$E$39="Non endémique",IF(AND($E15<>0,$G15=""),IF($F15=0,COUNTRY_INFO!N15*$E15,COUNTRY_INFO!N15*($E15-$D15)),IF(AND($E15<>0,$G15<>0),IF($F15=0,COUNTRY_INFO!N15*$G15,COUNTRY_INFO!N15*($G15-$D15)),0)),IF($G15="",COUNTRY_INFO!N15*$E15,COUNTRY_INFO!N15*$G15))) -> 41453 | I15: =IF(OR(COUNTRY_INFO!O15="Inconnu",COUNTRY_INFO!O15="Surveillance",COUNTRY_INFO!O15="Non requis",COUNTRY_INFO!O15=0),0,IF($E15<>0, IF($F15=0,COUNTRY_INFO!O15*$E15,COUNTRY_INFO!O15*($E15-$D15)),COUNTRY_INFO!O15*$E15)) -> 95437 | K15: =IF(OR(COUNTRY_INFO!P15="Inconnu",COUNTRY_INFO!P15="Surveillance",COUNTRY_INFO!P15="Non requis",COUNTRY_INFO!P15=0),0,IF(AND($E15<>0,$J15=""),IF($F15=0,COUNTRY_INFO!P15*$E15,COUNTRY_INFO!P15*($E15-$D15)), IF(AND($E15<>0,$J15<>0),IF($F15=0,COUNTRY_INFO!P15*$J15,COUNTRY_INFO!P15*($J15-$D15)), COUNTRY_INFO!P15*$J15))) -> 73723 | L15: 210613 | M15: 0 | O15: 0 | P15: 95437 | R15: 95437 | S15: 0 | U15: 0
A16: =IF(AND(INTRO!$E$37="Non endémique",INTRO!$E$41="Non endémique")," ",IF(COUNTRY_INFO!A16=0," ",COUNTRY_INFO!A16)) -> Burundi | B16: =IF(AND(INTRO!$E$37="Non endémique",INTRO!$E$41="Non endémique")," ",IF(COUNTRY_INFO!B16=0," ",COUNTRY_INFO!B16)) -> Bujumbura Rural | C16: =IF(AND(INTRO!$E$37="Non endémique",INTRO!$E$41="Non endémique")," ",IF(COUNTRY_INFO!C16=0," ",COUNTRY_INFO!C16)) -> Kabezi | D16: =IF(AND(INTRO!$E$37="Non endémique",INTRO!$E$41="Non endémique"),0,COUNTRY_INFO!V16) -> 0 | E16: =IF(AND(INTRO!$E$37="Non endémique",INTRO!$E$41="Non endémique"),0,COUNTRY_INFO!X16) -> 1 | F16: =IF(INTRO!$E$39="Non endémique",IF($D16=1,DEC!I16,0),IF($D16=1,IVM!G16,0)) -> 0 | H16: =IF(OR(COUNTRY_INFO!N16="Inconnu",COUNTRY_INFO!N16="Surveillance",COUNTRY_INFO!N16="Non requis",COUNTRY_INFO!N16=0),0,IF(INTRO!$E$39="Non endémique",IF(AND($E16<>0,$G16=""),IF($F16=0,COUNTRY_INFO!N16*$E16,COUNTRY_INFO!N16*($E16-$D16)),IF(AND($E16<>0,$G16<>0),IF($F16=0,COUNTRY_INFO!N16*$G16,COUNTRY_INFO!N16*($G16-$D16)),0)),IF($G16="",COUNTRY_INFO!N16*$E16,COUNTRY_INFO!N16*$G16))) -> 37462 | I16: =IF(OR(COUNTRY_INFO!O16="Inconnu",COUNTRY_INFO!O16="Surveillance",COUNTRY_INFO!O16="Non requis",COUNTRY_INFO!O16=0),0,IF($E16<>0, IF($F16=0,COUNTRY_INFO!O16*$E16,COUNTRY_INFO!O16*($E16-$D16)),COUNTRY_INFO!O16*$E16)) -> 86248 | K16: =IF(OR(COUNTRY_INFO!P16="Inconnu",COUNTRY_INFO!P16="Surveillance",COUNTRY_INFO!P16="Non requis",COUNTRY_INFO!P16=0),0,IF(AND($E16<>0,$J16=""),IF($F16=0,COUNTRY_INFO!P16*$E16,COUNTRY_INFO!P16*($E16-$D16)), IF(AND($E16<>0,$J16<>0),IF($F16=0,COUNTRY_INFO!P16*$J16,COUNTRY_INFO!P16*($J16-$D16)), COUNTRY_INFO!P16*$J16))) -> 66624 | L16: 190334 | M16: 0 | O16: 0 | P16: 86248 | R16: 86248 | S16: 0 | U16: 0
A17: =IF(AND(INTRO!$E$37="Non endémique",INTRO!$E$41="Non endémique")," ",IF(COUNTRY_INFO!A17=0," ",COUNTRY_INFO!A17)) -> Burundi | B17: =IF(AND(INTRO!$E$37="Non endémique",INTRO!$E$41="Non endémique")," ",IF(COUNTRY_INFO!B17=0," ",COUNTRY_INFO!B17)) -> Bujumbura Rural | C17: =IF(AND(INTRO!$E$37="Non endémique",INTRO!$E$41="Non endémique")," ",IF(COUNTRY_INFO!C17=0," ",COUNTRY_INFO!C17)) -> Rwibaga | D17: =IF(AND(INTRO!$E$37="Non endémique",INTRO!$E$41="Non endémique"),0,COUNTRY_INFO!V17) -> 0 | E17: =IF(AND(INTRO!$E$37="Non endémique",INTRO!$E$41="Non endémique"),0,COUNTRY_INFO!X17) -> 1 | F17: =IF(INTRO!$E$39="Non endémique",IF($D17=1,DEC!I17,0),IF($D17=1,IVM!G17,0)) -> 0 | H17: =IF(OR(COUNTRY_INFO!N17="Inconnu",COUNTRY_INFO!N17="Surveillance",COUNTRY_INFO!N17="Non requis",COUNTRY_INFO!N17=0),0,IF(INTRO!$E$39="Non endémique",IF(AND($E17<>0,$G17=""),IF($F17=0,COUNTRY_INFO!N17*$E17,COUNTRY_INFO!N17*($E17-$D17)),IF(AND($E17<>0,$G17<>0),IF($F17=0,COUNTRY_INFO!N17*$G17,COUNTRY_INFO!N17*($G17-$D17)),0)),IF($G17="",COUNTRY_INFO!N17*$E17,COUNTRY_INFO!N17*$G17))) -> 22521 | I17: =IF(OR(COUNTRY_INFO!O17="Inconnu",COUNTRY_INFO!O17="Surveillance",COUNTRY_INFO!O17="Non requis",COUNTRY_INFO!O17=0),0,IF($E17<>0, IF($F17=0,COUNTRY_INFO!O17*$E17,COUNTRY_INFO!O17*($E17-$D17)),COUNTRY_INFO!O17*$E17)) -> 51850 | K17: =IF(OR(COUNTRY_INFO!P17="Inconnu",COUNTRY_INFO!P17="Surveillance",COUNTRY_INFO!P17="Non requis",COUNTRY_INFO!P17=0),0,IF(AND($E17<>0,$J17=""),IF($F17=0,COUNTRY_INFO!P17*$E17,COUNTRY_INFO!P17*($E17-$D17)), IF(AND($E17<>0,$J17<>0),IF($F17=0,COUNTRY_INFO!P17*$J17,COUNTRY_INFO!P17*($J17-$D17)), COUNTRY_INFO!P17*$J17))) -> 40052 | L17: 114423 | M17: 0 | O17: 0 | P17: 51850 | R17: 51850 | S17: 0 | U17: 0
A18: =IF(AND(INTRO!$E$37="Non endémique",INTRO!$E$41="Non endémique")," ",IF(COUNTRY_INFO!A18=0," ",COUNTRY_INFO!A18)) -> Burundi | B18: =IF(AND(INTRO!$E$37="Non endémique",INTRO!$E$41="Non endémique")," ",IF(COUNTRY_INFO!B18=0," ",COUNTRY_INFO!B18)) -> Bururi | C18: =IF(AND(INTRO!$E$37="Non endémique",INTRO!$E$41="Non endémique")," ",IF(COUNTRY_INFO!C18=0," ",COUNTRY_INFO!C18)) -> Bururi | D18: =IF(AND(INTRO!$E$37="Non endémique",INTRO!$E$41="Non endémique"),0,COUNTRY_INFO!V18) -> 0 | E18: =IF(AND(INTRO!$E$37="Non endémique",INTRO!$E$41="Non endémique"),0,COUNTRY_INFO!X18) -> 0 | F18: =IF(INTRO!$E$39="Non endémique",IF($D18=1,DEC!I18,0),IF($D18=1,IVM!G18,0)) -> 0 | H18: =IF(OR(COUNTRY_INFO!N18="Inconnu",COUNTRY_INFO!N18="Surveillance",COUNTRY_INFO!N18="Non requis",COUNTRY_INFO!N18=0),0,IF(INTRO!$E$39="Non endémique",IF(AND($E18<>0,$G18=""),IF($F18=0,COUNTRY_INFO!N18*$E18,COUNTRY_INFO!N18*($E18-$D18)),IF(AND($E18<>0,$G18<>0),IF($F18=0,COUNTRY_INFO!N18*$G18,COUNTRY_INFO!N18*($G18-$D18)),0)),IF($G18="",COUNTRY_INFO!N18*$E18,COUNTRY_INFO!N18*$G18))) -> 0 | I18: =IF(OR(COUNTRY_INFO!O18="Inconnu",COUNTRY_INFO!O18="Surveillance",COUNTRY_INFO!O18="Non requis",COUNTRY_INFO!O18=0),0,IF($E18<>0, IF($F18=0,COUNTRY_INFO!O18*$E18,COUNTRY_INFO!O18*($E18-$D18)),COUNTRY_INFO!O18*$E18)) -> 0 | K18: =IF(OR(COUNTRY_INFO!P18="Inconnu",COUNTRY_INFO!P18="Surveillance",COUNTRY_INFO!P18="Non requis",COUNTRY_INFO!P18=0),0,IF(AND($E18<>0,$J18=""),IF($F18=0,COUNTRY_INFO!P18*$E18,COUNTRY_INFO!P18*($E18-$D18)), IF(AND($E18<>0,$J18<>0),IF($F18=0,COUNTRY_INFO!P18*$J18,COUNTRY_INFO!P18*($J18-$D18)), COUNTRY_INFO!P18*$J18))) -> 0 | L18: 0 | M18: 0 | O18: 0 | P18: 0 | R18: 0 | S18: 0 | U18: 0
A19: =IF(AND(INTRO!$E$37="Non endémique",INTRO!$E$41="Non endémique")," ",IF(COUNTRY_INFO!A19=0," ",COUNTRY_INFO!A19)) -> Burundi | B19: =IF(AND(INTRO!$E$37="Non endémique",INTRO!$E$41="Non endémique")," ",IF(COUNTRY_INFO!B19=0," ",COUNTRY_INFO!B19)) -> Bururi | C19: =IF(AND(INTRO!$E$37="Non endémique",INTRO!$E$41="Non endémique")," ",IF(COUNTRY_INFO!C19=0," ",COUNTRY_INFO!C19)) -> Matana | D19: =IF(AND(INTRO!$E$37="Non endémique",INTRO!$E$41="Non endémique"),0,COUNTRY_INFO!V19) -> 0 | E19: =IF(AND(INTRO!$E$37="Non endémique",INTRO!$E$41="Non endémique"),0,COUNTRY_INFO!X19) -> 0 | F19: =IF(INTRO!$E$39="Non endémique",IF($D19=1,DEC!I19,0),IF($D19=1,IVM!G19,0)) -> 0 | H19: =IF(OR(COUNTRY_INFO!N19="Inconnu",COUNTRY_INFO!N19="Surveillance",COUNTRY_INFO!N19="Non requis",COUNTRY_INFO!N19=0),0,IF(INTRO!$E$39="Non endémique",IF(AND($E19<>0,$G19=""),IF($F19=0,COUNTRY_INFO!N19*$E19,COUNTRY_INFO!N19*($E19-$D19)),IF(AND($E19<>0,$G19<>0),IF($F19=0,COUNTRY_INFO!N19*$G19,COUNTRY_INFO!N19*($G19-$D19)),0)),IF($G19="",COUNTRY_INFO!N19*$E19,COUNTRY_INFO!N19*$G19))) -> 0 | I19: =IF(OR(COUNTRY_INFO!O19="Inconnu",COUNTRY_INFO!O19="Surveillance",COUNTRY_INFO!O19="Non requis",COUNTRY_INFO!O19=0),0,IF($E19<>0, IF($F19=0,COUNTRY_INFO!O19*$E19,COUNTRY_INFO!O19*($E19-$D19)),COUNTRY_INFO!O19*$E19)) -> 0 | K19: =IF(OR(COUNTRY_INFO!P19="Inconnu",COUNTRY_INFO!P19="Surveillance",COUNTRY_INFO!P19="Non requis",COUNTRY_INFO!P19=0),0,IF(AND($E19<>0,$J19=""),IF($F19=0,COUNTRY_INFO!P19*$E19,COUNTRY_INFO!P19*($E19-$D19)), IF(AND($E19<>0,$J19<>0),IF($F19=0,COUNTRY_INFO!P19*$J19,COUNTRY_INFO!P19*($J19-$D19)), COUNTRY_INFO!P19*$J19))) -> 0 | L19: 0 | M19: 0 | O19: 0 | P19: 0 | R19: 0 | S19: 0 | U19: 0
A20: =IF(AND(INTRO!$E$37="Non endémique",INTRO!$E$41="Non endémique")," ",IF(COUNTRY_INFO!A20=0," ",COUNTRY_INFO!A20)) -> Burundi | B20: =IF(AND(INTRO!$E$37="Non endémique",INTRO!$E$41="Non endémique")," ",IF(COUNTRY_INFO!B20=0," ",COUNTRY_INFO!B20)) -> Bururi | C20: =IF(AND(INTRO!$E$37="Non endémique",INTRO!$E$41="Non endémique")," ",IF(COUNTRY_INFO!C20=0," ",COUNTRY_INFO!C20)) -> Rutovu | D20: =IF(AND(INTRO!$E$37="Non endémique",INTRO!$E$41="Non endémique"),0,COUNTRY_INFO!V20) -> 0 | E20: =IF(AND(INTRO!$E$37="Non endémique",INTRO!$E$41="Non endémique"),0,COUNTRY_INFO!X20) -> 0 | F20: =IF(INTRO!$E$39="Non endémique",IF($D20=1,DEC!I20,0),IF($D20=1,IVM!G20,0)) -> 0 | H20: =IF(OR(COUNTRY_INFO!N20="Inconnu",COUNTRY_INFO!N20="Surveillance",COUNTRY_INFO!N20="Non requis",COUNTRY_INFO!N20=0),0,IF(INTRO!$E$39="Non endémique",IF(AND($E20<>0,$G20=""),IF($F20=0,COUNTRY_INFO!N20*$E20,COUNTRY_INFO!N20*($E20-$D20)),IF(AND($E20<>0,$G20<>0),IF($F20=0,COUNTRY_INFO!N20*$G20,COUNTRY_INFO!N20*($G20-$D20)),0)),IF($G20="",COUNTRY_INFO!N20*$E20,COUNTRY_INFO!N20*$G20))) -> 0 | I20: =IF(OR(COUNTRY_INFO!O20="Inconnu",COUNTRY_INFO!O20="Surveillance",COUNTRY_INFO!O20="Non requis",COUNTRY_INFO!O20=0),0,IF($E20<>0, IF($F20=0,COUNTRY_INFO!O20*$E20,COUNTRY_INFO!O20*($E20-$D20)),COUNTRY_INFO!O20*$E20)) -> 0 | K20: =IF(OR(COUNTRY_INFO!P20="Inconnu",COUNTRY_INFO!P20="Surveillance",COUNTRY_INFO!P20="Non requis",COUNTRY_INFO!P20=0),0,IF(AND($E20<>0,$J20=""),IF($F20=0,COUNTRY_INFO!P20*$E20,COUNTRY_INFO!P20*($E20-$D20)), IF(AND($E20<>0,$J20<>0),IF($F20=0,COUNTRY_INFO!P20*$J20,COUNTRY_INFO!P20*($J20-$D20)), COUNTRY_INFO!P20*$J20))) -> 0 | L20: 0 | M20: 0 | O20: 0 | P20: 0 | R20: 0 | S20: 0 | U20: 0
A21: =IF(AND(INTRO!$E$37="Non endémique",INTRO!$E$41="Non endémique")," ",IF(COUNTRY_INFO!A21=0," ",COUNTRY_INFO!A21)) -> Burundi | B21: =IF(AND(INTRO!$E$37="Non endémique",INTRO!$E$41="Non endémique")," ",IF(COUNTRY_INFO!B21=0," ",COUNTRY_INFO!B21)) -> Cankuzo | C21: =IF(AND(INTRO!$E$37="Non endémique",INTRO!$E$41="Non endémique")," ",IF(COUNTRY_INFO!C21=0," ",COUNTRY_INFO!C21)) -> Cankuzo | D21: =IF(AND(INTRO!$E$37="Non endémique",INTRO!$E$41="Non endémique"),0,COUNTRY_INFO!V21) -> 0 | E21: =IF(AND(INTRO!$E$37="Non endémique",INTRO!$E$41="Non endémique"),0,COUNTRY_INFO!X21) -> 0 | F21: =IF(INTRO!$E$39="Non endémique",IF($D21=1,DEC!I21,0),IF($D21=1,IVM!G21,0)) -> 0 | H21: =IF(OR(COUNTRY_INFO!N21="Inconnu",COUNTRY_INFO!N21="Surveillance",COUNTRY_INFO!N21="Non requis",COUNTRY_INFO!N21=0),0,IF(INTRO!$E$39="Non endémique",IF(AND($E21<>0,$G21=""),IF($F21=0,COUNTRY_INFO!N21*$E21,COUNTRY_INFO!N21*($E21-$D21)),IF(AND($E21<>0,$G21<>0),IF($F21=0,COUNTRY_INFO!N21*$G21,COUNTRY_INFO!N21*($G21-$D21)),0)),IF($G21="",COUNTRY_INFO!N21*$E21,COUNTRY_INFO!N21*$G21))) -> 0 | I21: =IF(OR(COUNTRY_INFO!O21="Inconnu",COUNTRY_INFO!O21="Surveillance",COUNTRY_INFO!O21="Non requis",COUNTRY_INFO!O21=0),0,IF($E21<>0, IF($F21=0,COUNTRY_INFO!O21*$E21,COUNTRY_INFO!O21*($E21-$D21)),COUNTRY_INFO!O21*$E21)) -> 0 | K21: =IF(OR(COUNTRY_INFO!P21="Inconnu",COUNTRY_INFO!P21="Surveillance",COUNTRY_INFO!P21="Non requis",COUNTRY_INFO!P21=0),0,IF(AND($E21<>0,$J21=""),IF($F21=0,COUNTRY_INFO!P21*$E21,COUNTRY_INFO!P21*($E21-$D21)), IF(AND($E21<>0,$J21<>0),IF($F21=0,COUNTRY_INFO!P21*$J21,COUNTRY_INFO!P21*($J21-$D21)), COUNTRY_INFO!P21*$J21))) -> 0 | L21: 0 | M21: 0 | O21: 0 | P21: 0 | R21: 0 | S21: 0 | U21: 0
A22: =IF(AND(INTRO!$E$37="Non endémique",INTRO!$E$41="Non endémique")," ",IF(COUNTRY_INFO!A22=0," ",COUNTRY_INFO!A22)) -> Burundi | B22: =IF(AND(INTRO!$E$37="Non endémique",INTRO!$E$41="Non endémique")," ",IF(COUNTRY_INFO!B22=0," ",COUNTRY_INFO!B22)) -> Cankuzo | C22: =IF(AND(INTRO!$E$37="Non endémique",INTRO!$E$41="Non endémique")," ",IF(COUNTRY_INFO!C22=0," ",COUNTRY_INFO!C22)) -> Murore | D22: =IF(AND(INTRO!$E$37="Non endémique",INTRO!$E$41="Non endémique"),0,COUNTRY_INFO!V22) -> 0 | E22: =IF(AND(INTRO!$E$37="Non endémique",INTRO!$E$41="Non endémique"),0,COUNTRY_INFO!X22) -> 0 | F22: =IF(INTRO!$E$39="Non endémique",IF($D22=1,DEC!I22,0),IF($D22=1,IVM!G22,0)) -> 0 | H22: =IF(OR(COUNTRY_INFO!N22="Inconnu",COUNTRY_INFO!N22="Surveillance",COUNTRY_INFO!N22="Non requis",COUNTRY_INFO!N22=0),0,IF(INTRO!$E$39="Non endémique",IF(AND($E22<>0,$G22=""),IF($F22=0,COUNTRY_INFO!N22*$E22,COUNTRY_INFO!N22*($E22-$D22)),IF(AND($E22<>0,$G22<>0),IF($F22=0,COUNTRY_INFO!N22*$G22,COUNTRY_INFO!N22*($G22-$D22)),0)),IF($G22="",COUNTRY_INFO!N22*$E22,COUNTRY_INFO!N22*$G22))) -> 0 | I22: =IF(OR(COUNTRY_INFO!O22="Inconnu",COUNTRY_INFO!O22="Surveillance",COUNTRY_INFO!O22="Non requis",COUNTRY_INFO!O22=0),0,IF($E22<>0, IF($F22=0,COUNTRY_INFO!O22*$E22,COUNTRY_INFO!O22*($E22-$D22)),COUNTRY_INFO!O22*$E22)) -> 0 | K22: =IF(OR(COUNTRY_INFO!P22="Inconnu",COUNTRY_INFO!P22="Surveillance",COUNTRY_INFO!P22="Non requis",COUNTRY_INFO!P22=0),0,IF(AND($E22<>0,$J22=""),IF($F22=0,COUNTRY_INFO!P22*$E22,COUNTRY_INFO!P22*($E22-$D22)), IF(AND($E22<>0,$J22<>0),IF($F22=0,COUNTRY_INFO!P22*$J22,COUNTRY_INFO!P22*($J22-$D22)), COUNTRY_INFO!P22*$J22))) -> 0 | L22: 0 | M22: 0 | O22: 0 | P22: 0 | R22: 0 | S22: 0 | U22: 0
A23: =IF(AND(INTRO!$E$37="Non endémique",INTRO!$E$41="Non endémique")," ",IF(COUNTRY_INFO!A23=0," ",COUNTRY_INFO!A23)) -> Burundi | B23: =IF(AND(INTRO!$E$37="Non endémique",INTRO!$E$41="Non endémique")," ",IF(COUNTRY_INFO!B23=0," ",COUNTRY_INFO!B23)) -> Cibitoke | C23: =IF(AND(INTRO!$E$37="Non endémique",INTRO!$E$41="Non endémique")," ",IF(COUNTRY_INFO!C23=0," ",COUNTRY_INFO!C23)) -> Bukinanyana | D23: =IF(AND(INTRO!$E$37="Non endémique",INTRO!$E$41="Non endémique"),0,COUNTRY_INFO!V23) -> 0 | E23: =IF(AND(INTRO!$E$37="Non endémique",INTRO!$E$41="Non endémique"),0,COUNTRY_INFO!X23) -> 0 | F23: =IF(INTRO!$E$39="Non endémique",IF($D23=1,DEC!I23,0),IF($D23=1,IVM!G23,0)) -> 0 | H23: =IF(OR(COUNTRY_INFO!N23="Inconnu",COUNTRY_INFO!N23="Surveillance",COUNTRY_INFO!N23="Non requis",COUNTRY_INFO!N23=0),0,IF(INTRO!$E$39="Non endémique",IF(AND($E23<>0,$G23=""),IF($F23=0,COUNTRY_INFO!N23*$E23,COUNTRY_INFO!N23*($E23-$D23)),IF(AND($E23<>0,$G23<>0),IF($F23=0,COUNTRY_INFO!N23*$G23,COUNTRY_INFO!N23*($G23-$D23)),0)),IF($G23="",COUNTRY_INFO!N23*$E23,COUNTRY_INFO!N23*$G23))) -> 0 | I23: =IF(OR(COUNTRY_INFO!O23="Inconnu",COUNTRY_INFO!O23="Surveillance",COUNTRY_INFO!O23="Non requis",COUNTRY_INFO!O23=0),0,IF($E23<>0, IF($F23=0,COUNTRY_INFO!O23*$E23,COUNTRY_INFO!O23*($E23-$D23)),COUNTRY_INFO!O23*$E23)) -> 0 | K23: =IF(OR(COUNTRY_INFO!P23="Inconnu",COUNTRY_INFO!P23="Surveillance",COUNTRY_INFO!P23="Non requis",COUNTRY_INFO!P23=0),0,IF(AND($E23<>0,$J23=""),IF($F23=0,COUNTRY_INFO!P23*$E23,COUNTRY_INFO!P23*($E23-$D23)), IF(AND($E23<>0,$J23<>0),IF($F23=0,COUNTRY_INFO!P23*$J23,COUNTRY_INFO!P23*($J23-$D23)), COUNTRY_INFO!P23*$J23))) -> 0 | L23: 0 | M23: 0 | O23: 0 | P23: 0 | R23: 0 | S23: 0 | U23: 0
A24: =IF(AND(INTRO!$E$37="Non endémique",INTRO!$E$41="Non endémique")," ",IF(COUNTRY_INFO!A24=0," ",COUNTRY_INFO!A24)) -> Burundi | B24: =IF(AND(INTRO!$E$37="Non endémique",INTRO!$E$41="Non endémique")," ",IF(COUNTRY_INFO!B24=0," ",COUNTRY_INFO!B24)) -> Cibitoke | C24: =IF(AND(INTRO!$E$37="Non endémique",INTRO!$E$41="Non endémique")," ",IF(COUNTRY_INFO!C24=0," ",COUNTRY_INFO!C24)) -> Cibitoke | D24: =IF(AND(INTRO!$E$37="Non endémique",INTRO!$E$41="Non endémique"),0,COUNTRY_INFO!V24) -> 0 | E24: =IF(AND(INTRO!$E$37="Non endémique",INTRO!$E$41="Non endémique"),0,COUNTRY_INFO!X24) -> 0 | F24: =IF(INTRO!$E$39="Non endémique",IF($D24=1,DEC!I24,0),IF($D24=1,IVM!G24,0)) -> 0 | H24: =IF(OR(COUNTRY_INFO!N24="Inconnu",COUNTRY_INFO!N24="Surveillance",COUNTRY_INFO!N24="Non requis",COUNTRY_INFO!N24=0),0,IF(INTRO!$E$39="Non endémique",IF(AND($E24<>0,$G24=""),IF($F24=0,COUNTRY_INFO!N24*$E24,COUNTRY_INFO!N24*($E24-$D24)),IF(AND($E24<>0,$G24<>0),IF($F24=0,COUNTRY_INFO!N24*$G24,COUNTRY_INFO!N24*($G24-$D24)),0)),IF($G24="",COUNTRY_INFO!N24*$E24,COUNTRY_INFO!N24*$G24))) -> 0 | I24: =IF(OR(COUNTRY_INFO!O24="Inconnu",COUNTRY_INFO!O24="Surveillance",COUNTRY_INFO!O24="Non requis",COUNTRY_INFO!O24=0),0,IF($E24<>0, IF($F24=0,COUNTRY_INFO!O24*$E24,COUNTRY_INFO!O24*($E24-$D24)),COUNTRY_INFO!O24*$E24)) -> 0 | K24: =IF(OR(COUNTRY_INFO!P24="Inconnu",COUNTRY_INFO!P24="Surveillance",COUNTRY_INFO!P24="Non requis",COUNTRY_INFO!P24=0),0,IF(AND($E24<>0,$J24=""),IF($F24=0,COUNTRY_INFO!P24*$E24,COUNTRY_INFO!P24*($E24-$D24)), IF(AND($E24<>0,$J24<>0),IF($F24=0,COUNTRY_INFO!P24*$J24,COUNTRY_INFO!P24*($J24-$D24)), COUNTRY_INFO!P24*$J24))) -> 0 | L24: 0 | M24: 0 | O24: 0 | P24: 0 | R24: 0 | S24: 0 | U24: 0
A25: =IF(AND(INTRO!$E$37="Non endémique",INTRO!$E$41="Non endémique")," ",IF(COUNTRY_INFO!A25=0," ",COUNTRY_INFO!A25)) -> Burundi | B25: =IF(AND(INTRO!$E$37="Non endémique",INTRO!$E$41="Non endémique")," ",IF(COUNTRY_INFO!B25=0," ",COUNTRY_INFO!B25)) -> Cibitoke | C25: =IF(AND(INTRO!$E$37="Non endémique",INTRO!$E$41="Non endémique")," ",IF(COUNTRY_INFO!C25=0," ",COUNTRY_INFO!C25)) -> Mabayi | D25: =IF(AND(INTRO!$E$37="Non endémique",INTRO!$E$41="Non endémique"),0,COUNTRY_INFO!V25) -> 0 | E25: =IF(AND(INTRO!$E$37="Non endémique",INTRO!$E$41="Non endémique"),0,COUNTRY_INFO!X25) -> 0 | F25: =IF(INTRO!$E$39="Non endémique",IF($D25=1,DEC!I25,0),IF($D25=1,IVM!G25,0)) -> 0 | H25: =IF(OR(COUNTRY_INFO!N25="Inconnu",COUNTRY_INFO!N25="Surveillance",COUNTRY_INFO!N25="Non requis",COUNTRY_INFO!N25=0),0,IF(INTRO!$E$39="Non endémique",IF(AND($E25<>0,$G25=""),IF($F25=0,COUNTRY_INFO!N25*$E25,COUNTRY_INFO!N25*($E25-$D25)),IF(AND($E25<>0,$G25<>0),IF($F25=0,COUNTRY_INFO!N25*$G25,COUNTRY_INFO!N25*($G25-$D25)),0)),IF($G25="",COUNTRY_INFO!N25*$E25,COUNTRY_INFO!N25*$G25))) -> 0 | I25: =IF(OR(COUNTRY_INFO!O25="Inconnu",COUNTRY_INFO!O25="Surveillance",COUNTRY_INFO!O25="Non requis",COUNTRY_INFO!O25=0),0,IF($E25<>0, IF($F25=0,COUNTRY_INFO!O25*$E25,COUNTRY_INFO!O25*($E25-$D25)),COUNTRY_INFO!O25*$E25)) -> 0 | K25: =IF(OR(COUNTRY_INFO!P25="Inconnu",COUNTRY_INFO!P25="Surveillance",COUNTRY_INFO!P25="Non requis",COUNTRY_INFO!P25=0),0,IF(AND($E25<>0,$J25=""),IF($F25=0,COUNTRY_INFO!P25*$E25,COUNTRY_INFO!P25*($E25-$D25)), IF(AND($E25<>0,$J25<>0),IF($F25=0,COUNTRY_INFO!P25*$J25,COUNTRY_INFO!P25*($J25-$D25)), COUNTRY_INFO!P25*$J25))) -> 0 | L25: 0 | M25: 0 | O25: 0 | P25: 0 | R25: 0 | S25: 0 | U25: 0
A26: =IF(AND(INTRO!$E$37="Non endémique",INTRO!$E$41="Non endémique")," ",IF(COUNTRY_INFO!A26=0," ",COUNTRY_INFO!A26)) -> Burundi | B26: =IF(AND(INTRO!$E$37="Non endémique",INTRO!$E$41="Non endémique")," ",IF(COUNTRY_INFO!B26=0," ",COUNTRY_INFO!B26)) -> Gitega | C26: =IF(AND(INTRO!$E$37="Non endémique",INTRO!$E$41="Non endémique")," ",IF(COUNTRY_INFO!C26=0," ",COUNTRY_INFO!C26)) -> Gitega | D26: =IF(AND(INTRO!$E$37="Non endémique",INTRO!$E$41="Non endémique"),0,COUNTRY_INFO!V26) -> 0 | E26: =IF(AND(INTRO!$E$37="Non endémique",INTRO!$E$41="Non endémique"),0,COUNTRY_INFO!X26) -> 0 | F26: =IF(INTRO!$E$39="Non endémique",IF($D26=1,DEC!I26,0),IF($D26=1,IVM!G26,0)) -> 0 | H26: =IF(OR(COUNTRY_INFO!N26="Inconnu",COUNTRY_INFO!N26="Surveillance",COUNTRY_INFO!N26="Non requis",COUNTRY_INFO!N26=0),0,IF(INTRO!$E$39="Non endémique",IF(AND($E26<>0,$G26=""),IF($F26=0,COUNTRY_INFO!N26*$E26,COUNTRY_INFO!N26*($E26-$D26)),IF(AND($E26<>0,$G26<>0),IF($F26=0,COUNTRY_INFO!N26*$G26,COUNTRY_INFO!N26*($G26-$D26)),0)),IF($G26="",COUNTRY_INFO!N26*$E26,COUNTRY_INFO!N26*$G26))) -> 0 | I26: =IF(OR(COUNTRY_INFO!O26="Inconnu",COUNTRY_INFO!O26="Surveillance",COUNTRY_INFO!O26="Non requis",COUNTRY_INFO!O26=0),0,IF($E26<>0, IF($F26=0,COUNTRY_INFO!O26*$E26,COUNTRY_INFO!O26*($E26-$D26)),COUNTRY_INFO!O26*$E26)) -> 0 | K26: =IF(OR(COUNTRY_INFO!P26="Inconnu",COUNTRY_INFO!P26="Surveillance",COUNTRY_INFO!P26="Non requis",COUNTRY_INFO!P26=0),0,IF(AND($E26<>0,$J26=""),IF($F26=0,COUNTRY_INFO!P26*$E26,COUNTRY_INFO!P26*($E26-$D26)), IF(AND($E26<>0,$J26<>0),IF($F26=0,COUNTRY_INFO!P26*$J26,COUNTRY_INFO!P26*($J26-$D26)), COUNTRY_INFO!P26*$J26))) -> 0 | L26: 0 | M26: 0 | O26: 0 | P26: 0 | R26: 0 | S26: 0 | U26: 0
A27: =IF(AND(INTRO!$E$37="Non endémique",INTRO!$E$41="Non endémique")," ",IF(COUNTRY_INFO!A27=0," ",COUNTRY_INFO!A27)) -> Burundi | B27: =IF(AND(INTRO!$E$37="Non endémique",INTRO!$E$41="Non endémique")," ",IF(COUNTRY_INFO!B27=0," ",COUNTRY_INFO!B27)) -> Gitega | C27: =IF(AND(INTRO!$E$37="Non endémique",INTRO!$E$41="Non endémique")," ",IF(COUNTRY_INFO!C27=0," ",COUNTRY_INFO!C27)) -> Kibuye | D27: =IF(AND(INTRO!$E$37="Non endémique",INTRO!$E$41="Non endémique"),0,COUNTRY_INFO!V27) -> 0 | E27: =IF(AND(INTRO!$E$37="Non endémique",INTRO!$E$41="Non endémique"),0,COUNTRY_INFO!X27) -> 0 | F27: =IF(INTRO!$E$39="Non endémique",IF($D27=1,DEC!I27,0),IF($D27=1,IVM!G27,0)) -> 0 | H27: =IF(OR(COUNTRY_INFO!N27="Inconnu",COUNTRY_INFO!N27="Surveillance",COUNTRY_INFO!N27="Non requis",COUNTRY_INFO!N27=0),0,IF(INTRO!$E$39="Non endémique",IF(AND($E27<>0,$G27=""),IF($F27=0,COUNTRY_INFO!N27*$E27,COUNTRY_INFO!N27*($E27-$D27)),IF(AND($E27<>0,$G27<>0),IF($F27=0,COUNTRY_INFO!N27*$G27,COUNTRY_INFO!N27*($G27-$D27)),0)),IF($G27="",COUNTRY_INFO!N27*$E27,COUNTRY_INFO!N27*$G27))) -> 0 | I27: =IF(OR(COUNTRY_INFO!O27="Inconnu",COUNTRY_INFO!O27="Surveillance",COUNTRY_INFO!O27="Non requis",COUNTRY_INFO!O27=0),0,IF($E27<>0, IF($F27=0,COUNTRY_INFO!O27*$E27,COUNTRY_INFO!O27*($E27-$D27)),COUNTRY_INFO!O27*$E27)) -> 0 | K27: =IF(OR(COUNTRY_INFO!P27="Inconnu",COUNTRY_INFO!P27="Surveillance",COUNTRY_INFO!P27="Non requis",COUNTRY_INFO!P27=0),0,IF(AND($E27<>0,$J27=""),IF($F27=0,COUNTRY_INFO!P27*$E27,COUNTRY_INFO!P27*($E27-$D27)), IF(AND($E27<>0,$J27<>0),IF($F27=0,COUNTRY_INFO!P27*$J27,COUNTRY_INFO!P27*($J27-$D27)), COUNTRY_INFO!P27*$J27))) -> 0 | L27: 0 | M27: 0 | O27: 0 | P27: 0 | R27: 0 | S27: 0 | U27: 0
A28: =IF(AND(INTRO!$E$37="Non endémique",INTRO!$E$41="Non endémique")," ",IF(COUNTRY_INFO!A28=0," ",COUNTRY_INFO!A28)) -> Burundi | B28: =IF(AND(INTRO!$E$37="Non endémique",INTRO!$E$41="Non endémique")," ",IF(COUNTRY_INFO!B28=0," ",COUNTRY_INFO!B28)) -> Gitega | C28: =IF(AND(INTRO!$E$37="Non endémique",INTRO!$E$41="Non endémique")," ",IF(COUNTRY_INFO!C28=0," ",COUNTRY_INFO!C28)) -> Mutaho | D28: =IF(AND(INTRO!$E$37="Non endémique",INTRO!$E$41="Non endémique"),0,COUNTRY_INFO!V28) -> 0 | E28: =IF(AND(INTRO!$E$37="Non endémique",INTRO!$E$41="Non endémique"),0,COUNTRY_INFO!X28) -> 0 | F28: =IF(INTRO!$E$39="Non endémique",IF($D28=1,DEC!I28,0),IF($D28=1,IVM!G28,0)) -> 0 | H28: =IF(OR(COUNTRY_INFO!N28="Inconnu",COUNTRY_INFO!N28="Surveillance",COUNTRY_INFO!N28="Non requis",COUNTRY_INFO!N28=0),0,IF(INTRO!$E$39="Non endémique",IF(AND($E28<>0,$G28=""),IF($F28=0,COUNTRY_INFO!N28*$E28,COUNTRY_INFO!N28*($E28-$D28)),IF(AND($E28<>0,$G28<>0),IF($F28=0,COUNTRY_INFO!N28*$G28,COUNTRY_INFO!N28*($G28-$D28)),0)),IF($G28="",COUNTRY_INFO!N28*$E28,COUNTRY_INFO!N28*$G28))) -> 0 | I28: =IF(OR(COUNTRY_INFO!O28="Inconnu",COUNTRY_INFO!O28="Surveillance",COUNTRY_INFO!O28="Non requis",COUNTRY_INFO!O28=0),0,IF($E28<>0, IF($F28=0,COUNTRY_INFO!O28*$E28,COUNTRY_INFO!O28*($E28-$D28)),COUNTRY_INFO!O28*$E28)) -> 0 | K28: =IF(OR(COUNTRY_INFO!P28="Inconnu",COUNTRY_INFO!P28="Surveillance",COUNTRY_INFO!P28="Non requis",COUNTRY_INFO!P28=0),0,IF(AND($E28<>0,$J28=""),IF($F28=0,COUNTRY_INFO!P28*$E28,COUNTRY_INFO!P28*($E28-$D28)), IF(AND($E28<>0,$J28<>0),IF($F28=0,COUNTRY_INFO!P28*$J28,COUNTRY_INFO!P28*($J28-$D28)), COUNTRY_INFO!P28*$J28))) -> 0 | L28: 0 | M28: 0 | O28: 0 | P28: 0 | R28: 0 | S28: 0 | U28: 0
A29: =IF(AND(INTRO!$E$37="Non endémique",INTRO!$E$41="Non endémique")," ",IF(COUNTRY_INFO!A29=0," ",COUNTRY_INFO!A29)) -> Burundi | B29: =IF(AND(INTRO!$E$37="Non endémique",INTRO!$E$41="Non endémique")," ",IF(COUNTRY_INFO!B29=0," ",COUNTRY_INFO!B29)) -> Gitega | C29: =IF(AND(INTRO!$E$37="Non endémique",INTRO!$E$41="Non endémique")," ",IF(COUNTRY_INFO!C29=0," ",COUNTRY_INFO!C29)) -> Ryansoro | D29: =IF(AND(INTRO!$E$37="Non endémique",INTRO!$E$41="Non endémique"),0,COUNTRY_INFO!V29) -> 0 | E29: =IF(AND(INTRO!$E$37="Non endémique",INTRO!$E$41="Non endémique"),0,COUNTRY_INFO!X29) -> 0 | F29: =IF(INTRO!$E$39="Non endémique",IF($D29=1,DEC!I29,0),IF($D29=1,IVM!G29,0)) -> 0 | H29: =IF(OR(COUNTRY_INFO!N29="Inconnu",COUNTRY_INFO!N29="Surveillance",COUNTRY_INFO!N29="Non requis",COUNTRY_INFO!N29=0),0,IF(INTRO!$E$39="Non endémique",IF(AND($E29<>0,$G29=""),IF($F29=0,COUNTRY_INFO!N29*$E29,COUNTRY_INFO!N29*($E29-$D29)),IF(AND($E29<>0,$G29<>0),IF($F29=0,COUNTRY_INFO!N29*$G29,COUNTRY_INFO!N29*($G29-$D29)),0)),IF($G29="",COUNTRY_INFO!N29*$E29,COUNTRY_INFO!N29*$G29))) -> 0 | I29: =IF(OR(COUNTRY_INFO!O29="Inconnu",COUNTRY_INFO!O29="Surveillance",COUNTRY_INFO!O29="Non requis",COUNTRY_INFO!O29=0),0,IF($E29<>0, IF($F29=0,COUNTRY_INFO!O29*$E29,COUNTRY_INFO!O29*($E29-$D29)),COUNTRY_INFO!O29*$E29)) -> 0 | K29: =IF(OR(COUNTRY_INFO!P29="Inconnu",COUNTRY_INFO!P29="Surveillance",COUNTRY_INFO!P29="Non requis",COUNTRY_INFO!P29=0),0,IF(AND($E29<>0,$J29=""),IF($F29=0,COUNTRY_INFO!P29*$E29,COUNTRY_INFO!P29*($E29-$D29)), IF(AND($E29<>0,$J29<>0),IF($F29=0,COUNTRY_INFO!P29*$J29,COUNTRY_INFO!P29*($J29-$D29)), COUNTRY_INFO!P29*$J29))) -> 0 | L29: 0 | M29: 0 | O29: 0 | P29: 0 | R29: 0 | S29: 0 | U29: 0
A30: =IF(AND(INTRO!$E$37="Non endémique",INTRO!$E$41="Non endémique")," ",IF(COUNTRY_INFO!A30=0," ",COUNTRY_INFO!A30)) -> Burundi | B30: =IF(AND(INTRO!$E$37="Non endémique",INTRO!$E$41="Non endémique")," ",IF(COUNTRY_INFO!B30=0," ",COUNTRY_INFO!B30)) -> Karusi | C30: =IF(AND(INTRO!$E$37="Non endémique",INTRO!$E$41="Non endémique")," ",IF(COUNTRY_INFO!C30=0," ",COUNTRY_INFO!C30)) -> Buhiga | D30: =IF(AND(INTRO!$E$37="Non endémique",INTRO!$E$41="Non endémique"),0,COUNTRY_INFO!V30) -> 0 | E30: =IF(AND(INTRO!$E$37="Non endémique",INTRO!$E$41="Non endémique"),0,COUNTRY_INFO!X30) -> 0 | F30: =IF(INTRO!$E$39="Non endémique",IF($D30=1,DEC!I30,0),IF($D30=1,IVM!G30,0)) -> 0 | H30: =IF(OR(COUNTRY_INFO!N30="Inconnu",COUNTRY_INFO!N30="Surveillance",COUNTRY_INFO!N30="Non requis",COUNTRY_INFO!N30=0),0,IF(INTRO!$E$39="Non endémique",IF(AND($E30<>0,$G30=""),IF($F30=0,COUNTRY_INFO!N30*$E30,COUNTRY_INFO!N30*($E30-$D30)),IF(AND($E30<>0,$G30<>0),IF($F30=0,COUNTRY_INFO!N30*$G30,COUNTRY_INFO!N30*($G30-$D30)),0)),IF($G30="",COUNTRY_INFO!N30*$E30,COUNTRY_INFO!N30*$G30))) -> 0 | I30: =IF(OR(COUNTRY_INFO!O30="Inconnu",COUNTRY_INFO!O30="Surveillance",COUNTRY_INFO!O30="Non requis",COUNTRY_INFO!O30=0),0,IF($E30<>0, IF($F30=0,COUNTRY_INFO!O30*$E30,COUNTRY_INFO!O30*($E30-$D30)),COUNTRY_INFO!O30*$E30)) -> 0 | K30: =IF(OR(COUNTRY_INFO!P30="Inconnu",COUNTRY_INFO!P30="Surveillance",COUNTRY_INFO!P30="Non requis",COUNTRY_INFO!P30=0),0,IF(AND($E30<>0,$J30=""),IF($F30=0,COUNTRY_INFO!P30*$E30,COUNTRY_INFO!P30*($E30-$D30)), IF(AND($E30<>0,$J30<>0),IF($F30=0,COUNTRY_INFO!P30*$J30,COUNTRY_INFO!P30*($J30-$D30)), COUNTRY_INFO!P30*$J30))) -> 0 | L30: 0 | M30: 0 | O30: 0 | P30: 0 | R30: 0 | S30: 0 | U30: 0
A31: =IF(AND(INTRO!$E$37="Non endémique",INTRO!$E$41="Non endémique")," ",IF(COUNTRY_INFO!A31=0," ",COUNTRY_INFO!A31)) -> Burundi | B31: =IF(AND(INTRO!$E$37="Non endémique",INTRO!$E$41="Non endémique")," ",IF(COUNTRY_INFO!B31=0," ",COUNTRY_INFO!B31)) -> Karusi | C31: =IF(AND(INTRO!$E$37="Non endémique",INTRO!$E$41="Non endémique")," ",IF(COUNTRY_INFO!C31=0," ",COUNTRY_INFO!C31)) -> Nyabikere | D31: =IF(AND(INTRO!$E$37="Non endémique",INTRO!$E$41="Non endémique"),0,COUNTRY_INFO!V31) -> 0 | E31: =IF(AND(INTRO!$E$37="Non endémique",INTRO!$E$41="Non endémique"),0,COUNTRY_INFO!X31) -> 0 | F31: =IF(INTRO!$E$39="Non endémique",IF($D31=1,DEC!I31,0),IF($D31=1,IVM!G31,0)) -> 0 | H31: =IF(OR(COUNTRY_INFO!N31="Inconnu",COUNTRY_INFO!N31="Surveillance",COUNTRY_INFO!N31="Non requis",COUNTRY_INFO!N31=0),0,IF(INTRO!$E$39="Non endémique",IF(AND($E31<>0,$G31=""),IF($F31=0,COUNTRY_INFO!N31*$E31,COUNTRY_INFO!N31*($E31-$D31)),IF(AND($E31<>0,$G31<>0),IF($F31=0,COUNTRY_INFO!N31*$G31,COUNTRY_INFO!N31*($G31-$D31)),0)),IF($G31="",COUNTRY_INFO!N31*$E31,COUNTRY_INFO!N31*$G31))) -> 0 | I31: =IF(OR(COUNTRY_INFO!O31="Inconnu",COUNTRY_INFO!O31="Surveillance",COUNTRY_INFO!O31="Non requis",COUNTRY_INFO!O31=0),0,IF($E31<>0, IF($F31=0,COUNTRY_INFO!O31*$E31,COUNTRY_INFO!O31*($E31-$D31)),COUNTRY_INFO!O31*$E31)) -> 0 | K31: =IF(OR(COUNTRY_INFO!P31="Inconnu",COUNTRY_INFO!P31="Surveillance",COUNTRY_INFO!P31="Non requis",COUNTRY_INFO!P31=0),0,IF(AND($E31<>0,$J31=""),IF($F31=0,COUNTRY_INFO!P31*$E31,COUNTRY_INFO!P31*($E31-$D31)), IF(AND($E31<>0,$J31<>0),IF($F31=0,COUNTRY_INFO!P31*$J31,COUNTRY_INFO!P31*($J31-$D31)), COUNTRY_INFO!P31*$J31))) -> 0 | L31: 0 | M31: 0 | O31: 0 | P31: 0 | R31: 0 | S31: 0 | U31: 0
A32: =IF(AND(INTRO!$E$37="Non endémique",INTRO!$E$41="Non endémique")," ",IF(COUNTRY_INFO!A32=0," ",COUNTRY_INFO!A32)) -> Burundi | B32: =IF(AND(INTRO!$E$37="Non endémique",INTRO!$E$41="Non endémique")," ",IF(COUNTRY_INFO!B32=0," ",COUNTRY_INFO!B32)) -> Kayanza | C32: =IF(AND(INTRO!$E$37="Non endémique",INTRO!$E$41="Non endémique")," ",IF(COUNTRY_INFO!C32=0," ",COUNTRY_INFO!C32)) -> Gahombo | D32: =IF(AND(INTRO!$E$37="Non endémique",INTRO!$E$41="Non endémique"),0,COUNTRY_INFO!V32) -> 0 | E32: =IF(AND(INTRO!$E$37="Non endémique",INTRO!$E$41="Non endémique"),0,COUNTRY_INFO!X32) -> 1 | F32: =IF(INTRO!$E$39="Non endémique",IF($D32=1,DEC!I32,0),IF($D32=1,IVM!G32,0)) -> 0 | H32: =IF(OR(COUNTRY_INFO!N32="Inconnu",COUNTRY_INFO!N32="Surveillance",COUNTRY_INFO!N32="Non requis",COUNTRY_INFO!N32=0),0,IF(INTRO!$E$39="Non endémique",IF(AND($E32<>0,$G32=""),IF($F32=0,COUNTRY_INFO!N32*$E32,COUNTRY_INFO!N32*($E32-$D32)),IF(AND($E32<>0,$G32<>0),IF($F32=0,COUNTRY_INFO!N32*$G32,COUNTRY_INFO!N32*($G32-$D32)),0)),IF($G32="",COUNTRY_INFO!N32*$E32,COUNTRY_INFO!N32*$G32))) -> 36711 | I32: =IF(OR(COUNTRY_INFO!O32="Inconnu",COUNTRY_INFO!O32="Surveillance",COUNTRY_INFO!O32="Non requis",COUNTRY_INFO!O32=0),0,IF($E32<>0, IF($F32=0,COUNTRY_INFO!O32*$E32,COUNTRY_INFO!O32*($E32-$D32)),COUNTRY_INFO!O32*$E32)) -> 84521 | K32: =IF(OR(COUNTRY_INFO!P32="Inconnu",COUNTRY_INFO!P32="Surveillance",COUNTRY_INFO!P32="Non requis",COUNTRY_INFO!P32=0),0,IF(AND($E32<>0,$J32=""),IF($F32=0,COUNTRY_INFO!P32*$E32,COUNTRY_INFO!P32*($E32-$D32)), IF(AND($E32<>0,$J32<>0),IF($F32=0,COUNTRY_INFO!P32*$J32,COUNTRY_INFO!P32*($J32-$D32)), COUNTRY_INFO!P32*$J32))) -> 65289 | L32: 186521 | M32: 0 | O32: 0 | P32: 84521 | R32: 84521 | S32: 0 | U32: 0
A33: =IF(AND(INTRO!$E$37="Non endémique",INTRO!$E$41="Non endémique")," ",IF(COUNTRY_INFO!A33=0," ",COUNTRY_INFO!A33)) -> Burundi | B33: =IF(AND(INTRO!$E$37="Non endémique",INTRO!$E$41="Non endémique")," ",IF(COUNTRY_INFO!B33=0," ",COUNTRY_INFO!B33)) -> Kayanza | C33: =IF(AND(INTRO!$E$37="Non endémique",INTRO!$E$41="Non endémique")," ",IF(COUNTRY_INFO!C33=0," ",COUNTRY_INFO!C33)) -> Kayanza | D33: =IF(AND(INTRO!$E$37="Non endémique",INTRO!$E$41="Non endémique"),0,COUNTRY_INFO!V33) -> 0 | E33: =IF(AND(INTRO!$E$37="Non endémique",INTRO!$E$41="Non endémique"),0,COUNTRY_INFO!X33) -> 1 | F33: =IF(INTRO!$E$39="Non endémique",IF($D33=1,DEC!I33,0),IF($D33=1,IVM!G33,0)) -> 0 | H33: =IF(OR(COUNTRY_INFO!N33="Inconnu",COUNTRY_INFO!N33="Surveillance",COUNTRY_INFO!N33="Non requis",COUNTRY_INFO!N33=0),0,IF(INTRO!$E$39="Non endémique",IF(AND($E33<>0,$G33=""),IF($F33=0,COUNTRY_INFO!N33*$E33,COUNTRY_INFO!N33*($E33-$D33)),IF(AND($E33<>0,$G33<>0),IF($F33=0,COUNTRY_INFO!N33*$G33,COUNTRY_INFO!N33*($G33-$D33)),0)),IF($G33="",COUNTRY_INFO!N33*$E33,COUNTRY_INFO!N33*$G33))) -> 47452 | I33: =IF(OR(COUNTRY_INFO!O33="Inconnu",COUNTRY_INFO!O33="Surveillance",COUNTRY_INFO!O33="Non requis",COUNTRY_INFO!O33=0),0,IF($E33<>0, IF($F33=0,COUNTRY_INFO!O33*$E33,COUNTRY_INFO!O33*($E33-$D33)),COUNTRY_INFO!O33*$E33)) -> 109249 | K33: =IF(OR(COUNTRY_INFO!P33="Inconnu",COUNTRY_INFO!P33="Surveillance",COUNTRY_INFO!P33="Non requis",COUNTRY_INFO!P33=0),0,IF(AND($E33<>0,$J33=""),IF($F33=0,COUNTRY_INFO!P33*$E33,COUNTRY_INFO!P33*($E33-$D33)), IF(AND($E33<>0,$J33<>0),IF($F33=0,COUNTRY_INFO!P33*$J33,COUNTRY_INFO!P33*($J33-$D33)), COUNTRY_INFO!P33*$J33))) -> 84391 | L33: 241092 | M33: 0 | O33: 0 | P33: 109249 | R33: 109249 | S33: 0 | U33: 0
A34: =IF(AND(INTRO!$E$37="Non endémique",INTRO!$E$41="Non endémique")," ",IF(COUNTRY_INFO!A34=0," ",COUNTRY_INFO!A34)) -> Burundi | B34: =IF(AND(INTRO!$E$37="Non endémique",INTRO!$E$41="Non endémique")," ",IF(COUNTRY_INFO!B34=0," ",COUNTRY_INFO!B34)) -> Kayanza | C34: =IF(AND(INTRO!$E$37="Non endémique",INTRO!$E$41="Non endémique")," ",IF(COUNTRY_INFO!C34=0," ",COUNTRY_INFO!C34)) -> Musema | D34: =IF(AND(INTRO!$E$37="Non endémique",INTRO!$E$41="Non endémique"),0,COUNTRY_INFO!V34) -> 0 | E34: =IF(AND(INTRO!$E$37="Non endémique",INTRO!$E$41="Non endémique"),0,COUNTRY_INFO!X34) -> 1 | F34: =IF(INTRO!$E$39="Non endémique",IF($D34=1,DEC!I34,0),IF($D34=1,IVM!G34,0)) -> 0 | H34: =IF(OR(COUNTRY_INFO!N34="Inconnu",COUNTRY_INFO!N34="Surveillance",COUNTRY_INFO!N34="Non requis",COUNTRY_INFO!N34=0),0,IF(INTRO!$E$39="Non endémique",IF(AND($E34<>0,$G34=""),IF($F34=0,COUNTRY_INFO!N34*$E34,COUNTRY_INFO!N34*($E34-$D34)),IF(AND($E34<>0,$G34<>0),IF($F34=0,COUNTRY_INFO!N34*$G34,COUNTRY_INFO!N34*($G34-$D34)),0)),IF($G34="",COUNTRY_INFO!N34*$E34,COUNTRY_INFO!N34*$G34))) -> 43589 | I34: =IF(OR(COUNTRY_INFO!O34="Inconnu",COUNTRY_INFO!O34="Surveillance",COUNTRY_INFO!O34="Non requis",COUNTRY_INFO!O34=0),0,IF($E34<>0, IF($F34=0,COUNTRY_INFO!O34*$E34,COUNTRY_INFO!O34*($E34-$D34)),COUNTRY_INFO!O34*$E34)) -> 100356 | K34: =IF(OR(COUNTRY_INFO!P34="Inconnu",COUNTRY_INFO!P34="Surveillance",COUNTRY_INFO!P34="Non requis",COUNTRY_INFO!P34=0),0,IF(AND($E34<>0,$J34=""),IF($F34=0,COUNTRY_INFO!P34*$E34,COUNTRY_INFO!P34*($E34-$D34)), IF(AND($E34<>0,$J34<>0),IF($F34=0,COUNTRY_INFO!P34*$J34,COUNTRY_INFO!P34*($J34-$D34)), COUNTRY_INFO!P34*$J34))) -> 77522 | L34: 221467 | M34: 0 | O34: 0 | P34: 100356 | R34: 100356 | S34: 0 | U34: 0
A35: =IF(AND(INTRO!$E$37="Non endémique",INTRO!$E$41="Non endémique")," ",IF(COUNTRY_INFO!A35=0," ",COUNTRY_INFO!A35)) -> Burundi | B35: =IF(AND(INTRO!$E$37="Non endémique",INTRO!$E$41="Non endémique")," ",IF(COUNTRY_INFO!B35=0," ",COUNTRY_INFO!B35)) -> Kirundo | C35: =IF(AND(INTRO!$E$37="Non endémique",INTRO!$E$41="Non endémique")," ",IF(COUNTRY_INFO!C35=0," ",COUNTRY_INFO!C35)) -> Busoni | D35: =IF(AND(INTRO!$E$37="Non endémique",INTRO!$E$41="Non endémique"),0,COUNTRY_INFO!V35) -> 0 | E35: =IF(AND(INTRO!$E$37="Non endémique",INTRO!$E$41="Non endémique"),0,COUNTRY_INFO!X35) -> 0 | F35: =IF(INTRO!$E$39="Non endémique",IF($D35=1,DEC!I35,0),IF($D35=1,IVM!G35,0)) -> 0 | H35: =IF(OR(COUNTRY_INFO!N35="Inconnu",COUNTRY_INFO!N35="Surveillance",COUNTRY_INFO!N35="Non requis",COUNTRY_INFO!N35=0),0,IF(INTRO!$E$39="Non endémique",IF(AND($E35<>0,$G35=""),IF($F35=0,COUNTRY_INFO!N35*$E35,COUNTRY_INFO!N35*($E35-$D35)),IF(AND($E35<>0,$G35<>0),IF($F35=0,COUNTRY_INFO!N35*$G35,COUNTRY_INFO!N35*($G35-$D35)),0)),IF($G35="",COUNTRY_INFO!N35*$E35,COUNTRY_INFO!N35*$G35))) -> 0 | I35: =IF(OR(COUNTRY_INFO!O35="Inconnu",COUNTRY_INFO!O35="Surveillance",COUNTRY_INFO!O35="Non requis",COUNTRY_INFO!O35=0),0,IF($E35<>0, IF($F35=0,COUNTRY_INFO!O35*$E35,COUNTRY_INFO!O35*($E35-$D35)),COUNTRY_INFO!O35*$E35)) -> 0 | K35: =IF(OR(COUNTRY_INFO!P35="Inconnu",COUNTRY_INFO!P35="Surveillance",COUNTRY_INFO!P35="Non requis",COUNTRY_INFO!P35=0),0,IF(AND($E35<>0,$J35=""),IF($F35=0,COUNTRY_INFO!P35*$E35,COUNTRY_INFO!P35*($E35-$D35)), IF(AND($E35<>0,$J35<>0),IF($F35=0,COUNTRY_INFO!P35*$J35,COUNTRY_INFO!P35*($J35-$D35)), COUNTRY_INFO!P35*$J35))) -> 0 | L35: 0 | M35: 0 | O35: 0 | P35: 0 | R35: 0 | S35: 0 | U35: 0
A36: =IF(AND(INTRO!$E$37="Non endémique",INTRO!$E$41="Non endémique")," ",IF(COUNTRY_INFO!A36=0," ",COUNTRY_INFO!A36)) -> Burundi | B36: =IF(AND(INTRO!$E$37="Non endémique",INTRO!$E$41="Non endémique")," ",IF(COUNTRY_INFO!B36=0," ",COUNTRY_INFO!B36)) -> Kirundo | C36: =IF(AND(INTRO!$E$37="Non endémique",INTRO!$E$41="Non endémique")," ",IF(COUNTRY_INFO!C36=0," ",COUNTRY_INFO!C36)) -> Kirundo | D36: =IF(AND(INTRO!$E$37="Non endémique",INTRO!$E$41="Non endémique"),0,COUNTRY_INFO!V36) -> 0 | E36: =IF(AND(INTRO!$E$37="Non endémique",INTRO!$E$41="Non endémique"),0,COUNTRY_INFO!X36) -> 0 | F36: =IF(INTRO!$E$39="Non endémique",IF($D36=1,DEC!I36,0),IF($D36=1,IVM!G36,0)) -> 0 | H36: =IF(OR(COUNTRY_INFO!N36="Inconnu",COUNTRY_INFO!N36="Surveillance",COUNTRY_INFO!N36="Non requis",COUNTRY_INFO!N36=0),0,IF(INTRO!$E$39="Non endémique",IF(AND($E36<>0,$G36=""),IF($F36=0,COUNTRY_INFO!N36*$E36,COUNTRY_INFO!N36*($E36-$D36)),IF(AND($E36<>0,$G36<>0),IF($F36=0,COUNTRY_INFO!N36*$G36,COUNTRY_INFO!N36*($G36-$D36)),0)),IF($G36="",COUNTRY_INFO!N36*$E36,COUNTRY_INFO!N36*$G36))) -> 0 | I36: =IF(OR(COUNTRY_INFO!O36="Inconnu",COUNTRY_INFO!O36="Surveillance",COUNTRY_INFO!O36="Non requis",COUNTRY_INFO!O36=0),0,IF($E36<>0, IF($F36=0,COUNTRY_INFO!O36*$E36,COUNTRY_INFO!O36*($E36-$D36)),COUNTRY_INFO!O36*$E36)) -> 0 | K36: =IF(OR(COUNTRY_INFO!P36="Inconnu",COUNTRY_INFO!P36="Surveillance",COUNTRY_INFO!P36="Non requis",COUNTRY_INFO!P36=0),0,IF(AND($E36<>0,$J36=""),IF($F36=0,COUNTRY_INFO!P36*$E36,COUNTRY_INFO!P36*($E36-$D36)), IF(AND($E36<>0,$J36<>0),IF($F36=0,COUNTRY_INFO!P36*$J36,COUNTRY_INFO!P36*($J36-$D36)), COUNTRY_INFO!P36*$J36))) -> 0 | L36: 0 | M36: 0 | O36: 0 | P36: 0 | R36: 0 | S36: 0 | U36: 0
A37: =IF(AND(INTRO!$E$37="Non endémique",INTRO!$E$41="Non endémique")," ",IF(COUNTRY_INFO!A37=0," ",COUNTRY_INFO!A37)) -> Burundi | B37: =IF(AND(INTRO!$E$37="Non endémique",INTRO!$E$41="Non endémique")," ",IF(COUNTRY_INFO!B37=0," ",COUNTRY_INFO!B37)) -> Kirundo | C37: =IF(AND(INTRO!$E$37="Non endémique",INTRO!$E$41="Non endémique")," ",IF(COUNTRY_INFO!C37=0," ",COUNTRY_INFO!C37)) -> Mukenke | D37: =IF(AND(INTRO!$E$37="Non endémique",INTRO!$E$41="Non endémique"),0,COUNTRY_INFO!V37) -> 0 | E37: =IF(AND(INTRO!$E$37="Non endémique",INTRO!$E$41="Non endémique"),0,COUNTRY_INFO!X37) -> 0 | F37: =IF(INTRO!$E$39="Non endémique",IF($D37=1,DEC!I37,0),IF($D37=1,IVM!G37,0)) -> 0 | H37: =IF(OR(COUNTRY_INFO!N37="Inconnu",COUNTRY_INFO!N37="Surveillance",COUNTRY_INFO!N37="Non requis",COUNTRY_INFO!N37=0),0,IF(INTRO!$E$39="Non endémique",IF(AND($E37<>0,$G37=""),IF($F37=0,COUNTRY_INFO!N37*$E37,COUNTRY_INFO!N37*($E37-$D37)),IF(AND($E37<>0,$G37<>0),IF($F37=0,COUNTRY_INFO!N37*$G37,COUNTRY_INFO!N37*($G37-$D37)),0)),IF($G37="",COUNTRY_INFO!N37*$E37,COUNTRY_INFO!N37*$G37))) -> 0 | I37: =IF(OR(COUNTRY_INFO!O37="Inconnu",COUNTRY_INFO!O37="Surveillance",COUNTRY_INFO!O37="Non requis",COUNTRY_INFO!O37=0),0,IF($E37<>0, IF($F37=0,COUNTRY_INFO!O37*$E37,COUNTRY_INFO!O37*($E37-$D37)),COUNTRY_INFO!O37*$E37)) -> 0 | K37: =IF(OR(COUNTRY_INFO!P37="Inconnu",COUNTRY_INFO!P37="Surveillance",COUNTRY_INFO!P37="Non requis",COUNTRY_INFO!P37=0),0,IF(AND($E37<>0,$J37=""),IF($F37=0,COUNTRY_INFO!P37*$E37,COUNTRY_INFO!P37*($E37-$D37)), IF(AND($E37<>0,$J37<>0),IF($F37=0,COUNTRY_INFO!P37*$J37,COUNTRY_INFO!P37*($J37-$D37)), COUNTRY_INFO!P37*$J37))) -> 0 | L37: 0 | M37: 0 | O37: 0 | P37: 0 | R37: 0 | S37: 0 | U37: 0
A38: =IF(AND(INTRO!$E$37="Non endémique",INTRO!$E$41="Non endémique")," ",IF(COUNTRY_INFO!A38=0," ",COUNTRY_INFO!A38)) -> Burundi | B38: =IF(AND(INTRO!$E$37="Non endémique",INTRO!$E$41="Non endémique")," ",IF(COUNTRY_INFO!B38=0," ",COUNTRY_INFO!B38)) -> Kirundo | C38: =IF(AND(INTRO!$E$37="Non endémique",INTRO!$E$41="Non endémique")," ",IF(COUNTRY_INFO!C38=0," ",COUNTRY_INFO!C38)) -> Vumbi | D38: =IF(AND(INTRO!$E$37="Non endémique",INTRO!$E$41="Non endémique"),0,COUNTRY_INFO!V38) -> 0 | E38: =IF(AND(INTRO!$E$37="Non endémique",INTRO!$E$41="Non endémique"),0,COUNTRY_INFO!X38) -> 0 | F38: =IF(INTRO!$E$39="Non endémique",IF($D38=1,DEC!I38,0),IF($D38=1,IVM!G38,0)) -> 0 | H38: =IF(OR(COUNTRY_INFO!N38="Inconnu",COUNTRY_INFO!N38="Surveillance",COUNTRY_INFO!N38="Non requis",COUNTRY_INFO!N38=0),0,IF(INTRO!$E$39="Non endémique",IF(AND($E38<>0,$G38=""),IF($F38=0,COUNTRY_INFO!N38*$E38,COUNTRY_INFO!N38*($E38-$D38)),IF(AND($E38<>0,$G38<>0),IF($F38=0,COUNTRY_INFO!N38*$G38,COUNTRY_INFO!N38*($G38-$D38)),0)),IF($G38="",COUNTRY_INFO!N38*$E38,COUNTRY_INFO!N38*$G38))) -> 0 | I38: =IF(OR(COUNTRY_INFO!O38="Inconnu",COUNTRY_INFO!O38="Surveillance",COUNTRY_INFO!O38="Non requis",COUNTRY_INFO!O38=0),0,IF($E38<>0, IF($F38=0,COUNTRY_INFO!O38*$E38,COUNTRY_INFO!O38*($E38-$D38)),COUNTRY_INFO!O38*$E38)) -> 0 | K38: =IF(OR(COUNTRY_INFO!P38="Inconnu",COUNTRY_INFO!P38="Surveillance",COUNTRY_INFO!P38="Non requis",COUNTRY_INFO!P38=0),0,IF(AND($E38<>0,$J38=""),IF($F38=0,COUNTRY_INFO!P38*$E38,COUNTRY_INFO!P38*($E38-$D38)), IF(AND($E38<>0,$J38<>0),IF($F38=0,COUNTRY_INFO!P38*$J38,COUNTRY_INFO!P38*($J38-$D38)), COUNTRY_INFO!P38*$J38))) -> 0 | L38: 0 | M38: 0 | O38: 0 | P38: 0 | R38: 0 | S38: 0 | U38: 0
A39: =IF(AND(INTRO!$E$37="Non endémique",INTRO!$E$41="Non endémique")," ",IF(COUNTRY_INFO!A39=0," ",COUNTRY_INFO!A39)) -> Burundi | B39: =IF(AND(INTRO!$E$37="Non endémique",INTRO!$E$41="Non endémique")," ",IF(COUNTRY_INFO!B39=0," ",COUNTRY_INFO!B39)) -> Makamba | C39: =IF(AND(INTRO!$E$37="Non endémique",INTRO!$E$41="Non endémique")," ",IF(COUNTRY_INFO!C39=0," ",COUNTRY_INFO!C39)) -> Makamba | D39: =IF(AND(INTRO!$E$37="Non endémique",INTRO!$E$41="Non endémique"),0,COUNTRY_INFO!V39) -> 0 | E39: =IF(AND(INTRO!$E$37="Non endémique",INTRO!$E$41="Non endémique"),0,COUNTRY_INFO!X39) -> 0 | F39: =IF(INTRO!$E$39="Non endémique",IF($D39=1,DEC!I39,0),IF($D39=1,IVM!G39,0)) -> 0 | H39: =IF(OR(COUNTRY_INFO!N39="Inconnu",COUNTRY_INFO!N39="Surveillance",COUNTRY_INFO!N39="Non requis",COUNTRY_INFO!N39=0),0,IF(INTRO!$E$39="Non endémique",IF(AND($E39<>0,$G39=""),IF($F39=0,COUNTRY_INFO!N39*$E39,COUNTRY_INFO!N39*($E39-$D39)),IF(AND($E39<>0,$G39<>0),IF($F39=0,COUNTRY_INFO!N39*$G39,COUNTRY_INFO!N39*($G39-$D39)),0)),IF($G39="",COUNTRY_INFO!N39*$E39,COUNTRY_INFO!N39*$G39))) -> 0 | I39: =IF(OR(COUNTRY_INFO!O39="Inconnu",COUNTRY_INFO!O39="Surveillance",COUNTRY_INFO!O39="Non requis",COUNTRY_INFO!O39=0),0,IF($E39<>0, IF($F39=0,COUNTRY_INFO!O39*$E39,COUNTRY_INFO!O39*($E39-$D39)),COUNTRY_INFO!O39*$E39)) -> 0 | K39: =IF(OR(COUNTRY_INFO!P39="Inconnu",COUNTRY_INFO!P39="Surveillance",COUNTRY_INFO!P39="Non requis",COUNTRY_INFO!P39=0),0,IF(AND($E39<>0,$J39=""),IF($F39=0,COUNTRY_INFO!P39*$E39,COUNTRY_INFO!P39*($E39-$D39)), IF(AND($E39<>0,$J39<>0),IF($F39=0,COUNTRY_INFO!P39*$J39,COUNTRY_INFO!P39*($J39-$D39)), COUNTRY_INFO!P39*$J39))) -> 0 | L39: 0 | M39: 0 | O39: 0 | P39: 0 | R39: 0 | S39: 0 | U39: 0
A40: =IF(AND(INTRO!$E$37="Non endémique",INTRO!$E$41="Non endémique")," ",IF(COUNTRY_INFO!A40=0," ",COUNTRY_INFO!A40)) -> Burundi | B40: =IF(AND(INTRO!$E$37="Non endémique",INTRO!$E$41="Non endémique")," ",IF(COUNTRY_INFO!B40=0," ",COUNTRY_INFO!B40)) -> Makamba | C40: =IF(AND(INTRO!$E$37="Non endémique",INTRO!$E$41="Non endémique")," ",IF(COUNTRY_INFO!C40=0," ",COUNTRY_INFO!C40)) -> Nyanza-Lac | D40: =IF(AND(INTRO!$E$37="Non endémique",INTRO!$E$41="Non endémique"),0,COUNTRY_INFO!V40) -> 0 | E40: =IF(AND(INTRO!$E$37="Non endémique",INTRO!$E$41="Non endémique"),0,COUNTRY_INFO!X40) -> 0 | F40: =IF(INTRO!$E$39="Non endémique",IF($D40=1,DEC!I40,0),IF($D40=1,IVM!G40,0)) -> 0 | H40: =IF(OR(COUNTRY_INFO!N40="Inconnu",COUNTRY_INFO!N40="Surveillance",COUNTRY_INFO!N40="Non requis",COUNTRY_INFO!N40=0),0,IF(INTRO!$E$39="Non endémique",IF(AND($E40<>0,$G40=""),IF($F40=0,COUNTRY_INFO!N40*$E40,COUNTRY_INFO!N40*($E40-$D40)),IF(AND($E40<>0,$G40<>0),IF($F40=0,COUNTRY_INFO!N40*$G40,COUNTRY_INFO!N40*($G40-$D40)),0)),IF($G40="",COUNTRY_INFO!N40*$E40,COUNTRY_INFO!N40*$G40))) -> 0 | I40: =IF(OR(COUNTRY_INFO!O40="Inconnu",COUNTRY_INFO!O40="Surveillance",COUNTRY_INFO!O40="Non requis",COUNTRY_INFO!O40=0),0,IF($E40<>0, IF($F40=0,COUNTRY_INFO!O40*$E40,COUNTRY_INFO!O40*($E40-$D40)),COUNTRY_INFO!O40*$E40)) -> 0 | K40: =IF(OR(COUNTRY_INFO!P40="Inconnu",COUNTRY_INFO!P40="Surveillance",COUNTRY_INFO!P40="Non requis",COUNTRY_INFO!P40=0),0,IF(AND($E40<>0,$J40=""),IF($F40=0,COUNTRY_INFO!P40*$E40,COUNTRY_INFO!P40*($E40-$D40)), IF(AND($E40<>0,$J40<>0),IF($F40=0,COUNTRY_INFO!P40*$J40,COUNTRY_INFO!P40*($J40-$D40)), COUNTRY_INFO!P40*$J40))) -> 0 | L40: 0 | M40: 0 | O40: 0 | P40: 0 | R40: 0 | S40: 0 | U40: 0
A41: =IF(AND(INTRO!$E$37="Non endémique",INTRO!$E$41="Non endémique")," ",IF(COUNTRY_INFO!A41=0," ",COUNTRY_INFO!A41)) -> Burundi | B41: =IF(AND(INTRO!$E$37="Non endémique",INTRO!$E$41="Non endémique")," ",IF(COUNTRY_INFO!B41=0," ",COUNTRY_INFO!B41)) -> Muramvya | C41: =IF(AND(INTRO!$E$37="Non endémique",INTRO!$E$41="Non endémique")," ",IF(COUNTRY_INFO!C41=0," ",COUNTRY_INFO!C41)) -> Kiganda | D41: =IF(AND(INTRO!$E$37="Non endémique",INTRO!$E$41="Non endémique"),0,COUNTRY_INFO!V41) -> 0 | E41: =IF(AND(INTRO!$E$37="Non endémique",INTRO!$E$41="Non endémique"),0,COUNTRY_INFO!X41) -> 1 | F41: =IF(INTRO!$E$39="Non endémique",IF($D41=1,DEC!I41,0),IF($D41=1,IVM!G41,0)) -> 0 | H41: =IF(OR(COUNTRY_INFO!N41="Inconnu",COUNTRY_INFO!N41="Surveillance",COUNTRY_INFO!N41="Non requis",COUNTRY_INFO!N41=0),0,IF(INTRO!$E$39="Non endémique",IF(AND($E41<>0,$G41=""),IF($F41=0,COUNTRY_INFO!N41*$E41,COUNTRY_INFO!N41*($E41-$D41)),IF(AND($E41<>0,$G41<>0),IF($F41=0,COUNTRY_INFO!N41*$G41,COUNTRY_INFO!N41*($G41-$D41)),0)),IF($G41="",COUNTRY_INFO!N41*$E41,COUNTRY_INFO!N41*$G41))) -> 31696 | I41: =IF(OR(COUNTRY_INFO!O41="Inconnu",COUNTRY_INFO!O41="Surveillance",COUNTRY_INFO!O41="Non requis",COUNTRY_INFO!O41=0),0,IF($E41<>0, IF($F41=0,COUNTRY_INFO!O41*$E41,COUNTRY_INFO!O41*($E41-$D41)),COUNTRY_INFO!O41*$E41)) -> 72973 | K41: =IF(OR(COUNTRY_INFO!P41="Inconnu",COUNTRY_INFO!P41="Surveillance",COUNTRY_INFO!P41="Non requis",COUNTRY_INFO!P41=0),0,IF(AND($E41<>0,$J41=""),IF($F41=0,COUNTRY_INFO!P41*$E41,COUNTRY_INFO!P41*($E41-$D41)), IF(AND($E41<>0,$J41<>0),IF($F41=0,COUNTRY_INFO!P41*$J41,COUNTRY_INFO!P41*($J41-$D41)), COUNTRY_INFO!P41*$J41))) -> 56370 | L41: 161039 | M41: 0 | O41: 0 | P41: 72973 | R41: 72973 | S41: 0 | U41: 0
A42: =IF(AND(INTRO!$E$37="Non endémique",INTRO!$E$41="Non endémique")," ",IF(COUNTRY_INFO!A42=0," ",COUNTRY_INFO!A42)) -> Burundi | B42: =IF(AND(INTRO!$E$37="Non endémique",INTRO!$E$41="Non endémique")," ",IF(COUNTRY_INFO!B42=0," ",COUNTRY_INFO!B42)) -> Muramvya | C42: =IF(AND(INTRO!$E$37="Non endémique",INTRO!$E$41="Non endémique")," ",IF(COUNTRY_INFO!C42=0," ",COUNTRY_INFO!C42)) -> Muramvya | D42: =IF(AND(INTRO!$E$37="Non endémique",INTRO!$E$41="Non endémique"),0,COUNTRY_INFO!V42) -> 0 | E42: =IF(AND(INTRO!$E$37="Non endémique",INTRO!$E$41="Non endémique"),0,COUNTRY_INFO!X42) -> 0 | F42: =IF(INTRO!$E$39="Non endémique",IF($D42=1,DEC!I42,0),IF($D42=1,IVM!G42,0)) -> 0 | H42: =IF(OR(COUNTRY_INFO!N42="Inconnu",COUNTRY_INFO!N42="Surveillance",COUNTRY_INFO!N42="Non requis",COUNTRY_INFO!N42=0),0,IF(INTRO!$E$39="Non endémique",IF(AND($E42<>0,$G42=""),IF($F42=0,COUNTRY_INFO!N42*$E42,COUNTRY_INFO!N42*($E42-$D42)),IF(AND($E42<>0,$G42<>0),IF($F42=0,COUNTRY_INFO!N42*$G42,COUNTRY_INFO!N42*($G42-$D42)),0)),IF($G42="",COUNTRY_INFO!N42*$E42,COUNTRY_INFO!N42*$G42))) -> 0 | I42: =IF(OR(COUNTRY_INFO!O42="Inconnu",COUNTRY_INFO!O42="Surveillance",COUNTRY_INFO!O42="Non requis",COUNTRY_INFO!O42=0),0,IF($E42<>0, IF($F42=0,COUNTRY_INFO!O42*$E42,COUNTRY_INFO!O42*($E42-$D42)),COUNTRY_INFO!O42*$E42)) -> 0 | K42: =IF(OR(COUNTRY_INFO!P42="Inconnu",COUNTRY_INFO!P42="Surveillance",COUNTRY_INFO!P42="Non requis",COUNTRY_INFO!P42=0),0,IF(AND($E42<>0,$J42=""),IF($F42=0,COUNTRY_INFO!P42*$E42,COUNTRY_INFO!P42*($E42-$D42)), IF(AND($E42<>0,$J42<>0),IF($F42=0,COUNTRY_INFO!P42*$J42,COUNTRY_INFO!P42*($J42-$D42)), COUNTRY_INFO!P42*$J42))) -> 0 | L42: 0 | M42: 0 | O42: 0 | P42: 0 | R42: 0 | S42: 0 | U42: 0
A43: =IF(AND(INTRO!$E$37="Non endémique",INTRO!$E$41="Non endémique")," ",IF(COUNTRY_INFO!A43=0," ",COUNTRY_INFO!A43)) -> Burundi | B43: =IF(AND(INTRO!$E$37="Non endémique",INTRO!$E$41="Non endémique")," ",IF(COUNTRY_INFO!B43=0," ",COUNTRY_INFO!B43)) -> Muyinga | C43: =IF(AND(INTRO!$E$37="Non endémique",INTRO!$E$41="Non endémique")," ",IF(COUNTRY_INFO!C43=0," ",COUNTRY_INFO!C43)) -> Gashoho | D43: =IF(AND(INTRO!$E$37="Non endémique",INTRO!$E$41="Non endémique"),0,COUNTRY_INFO!V43) -> 0 | E43: =IF(AND(INTRO!$E$37="Non endémique",INTRO!$E$41="Non endémique"),0,COUNTRY_INFO!X43) -> 1 | F43: =IF(INTRO!$E$39="Non endémique",IF($D43=1,DEC!I43,0),IF($D43=1,IVM!G43,0)) -> 0 | H43: =IF(OR(COUNTRY_INFO!N43="Inconnu",COUNTRY_INFO!N43="Surveillance",COUNTRY_INFO!N43="Non requis",COUNTRY_INFO!N43=0),0,IF(INTRO!$E$39="Non endémique",IF(AND($E43<>0,$G43=""),IF($F43=0,COUNTRY_INFO!N43*$E43,COUNTRY_INFO!N43*($E43-$D43)),IF(AND($E43<>0,$G43<>0),IF($F43=0,COUNTRY_INFO!N43*$G43,COUNTRY_INFO!N43*($G43-$D43)),0)),IF($G43="",COUNTRY_INFO!N43*$E43,COUNTRY_INFO!N43*$G43))) -> 32320 | I43: =IF(OR(COUNTRY_INFO!O43="Inconnu",COUNTRY_INFO!O43="Surveillance",COUNTRY_INFO!O43="Non requis",COUNTRY_INFO!O43=0),0,IF($E43<>0, IF($F43=0,COUNTRY_INFO!O43*$E43,COUNTRY_INFO!O43*($E43-$D43)),COUNTRY_INFO!O43*$E43)) -> 74411 | K43: =IF(OR(COUNTRY_INFO!P43="Inconnu",COUNTRY_INFO!P43="Surveillance",COUNTRY_INFO!P43="Non requis",COUNTRY_INFO!P43=0),0,IF(AND($E43<>0,$J43=""),IF($F43=0,COUNTRY_INFO!P43*$E43,COUNTRY_INFO!P43*($E43-$D43)), IF(AND($E43<>0,$J43<>0),IF($F43=0,COUNTRY_INFO!P43*$J43,COUNTRY_INFO!P43*($J43-$D43)), COUNTRY_INFO!P43*$J43))) -> 57480 | L43: 164211 | M43: 0 | O43: 0 | P43: 74411 | R43: 74411 | S43: 0 | U43: 0
A44: =IF(AND(INTRO!$E$37="Non endémique",INTRO!$E$41="Non endémique")," ",IF(COUNTRY_INFO!A44=0," ",COUNTRY_INFO!A44)) -> Burundi | B44: =IF(AND(INTRO!$E$37="Non endémique",INTRO!$E$41="Non endémique")," ",IF(COUNTRY_INFO!B44=0," ",COUNTRY_INFO!B44)) -> Muyinga | C44: =IF(AND(INTRO!$E$37="Non endémique",INTRO!$E$41="Non endémique")," ",IF(COUNTRY_INFO!C44=0," ",COUNTRY_INFO!C44)) -> Giteranyi | D44: =IF(AND(INTRO!$E$37="Non endémique",INTRO!$E$41="Non endémique"),0,COUNTRY_INFO!V44) -> 0 | E44: =IF(AND(INTRO!$E$37="Non endémique",INTRO!$E$41="Non endémique"),0,COUNTRY_INFO!X44) -> 0 | F44: =IF(INTRO!$E$39="Non endémique",IF($D44=1,DEC!I44,0),IF($D44=1,IVM!G44,0)) -> 0 | H44: =IF(OR(COUNTRY_INFO!N44="Inconnu",COUNTRY_INFO!N44="Surveillance",COUNTRY_INFO!N44="Non requis",COUNTRY_INFO!N44=0),0,IF(INTRO!$E$39="Non endémique",IF(AND($E44<>0,$G44=""),IF($F44=0,COUNTRY_INFO!N44*$E44,COUNTRY_INFO!N44*($E44-$D44)),IF(AND($E44<>0,$G44<>0),IF($F44=0,COUNTRY_INFO!N44*$G44,COUNTRY_INFO!N44*($G44-$D44)),0)),IF($G44="",COUNTRY_INFO!N44*$E44,COUNTRY_INFO!N44*$G44))) -> 0 | I44: =IF(OR(COUNTRY_INFO!O44="Inconnu",COUNTRY_INFO!O44="Surveillance",COUNTRY_INFO!O44="Non requis",COUNTRY_INFO!O44=0),0,IF($E44<>0, IF($F44=0,COUNTRY_INFO!O44*$E44,COUNTRY_INFO!O44*($E44-$D44)),COUNTRY_INFO!O44*$E44)) -> 0 | K44: =IF(OR(COUNTRY_INFO!P44="Inconnu",COUNTRY_INFO!P44="Surveillance",COUNTRY_INFO!P44="Non requis",COUNTRY_INFO!P44=0),0,IF(AND($E44<>0,$J44=""),IF($F44=0,COUNTRY_INFO!P44*$E44,COUNTRY_INFO!P44*($E44-$D44)), IF(AND($E44<>0,$J44<>0),IF($F44=0,COUNTRY_INFO!P44*$J44,COUNTRY_INFO!P44*($J44-$D44)), COUNTRY_INFO!P44*$J44))) -> 0 | L44: 0 | M44: 0 | O44: 0 | P44: 0 | R44: 0 | S44: 0 | U44: 0
A45: =IF(AND(INTRO!$E$37="Non endémique",INTRO!$E$41="Non endémique")," ",IF(COUNTRY_INFO!A45=0," ",COUNTRY_INFO!A45)) -> Burundi | B45: =IF(AND(INTRO!$E$37="Non endémique",INTRO!$E$41="Non endémique")," ",IF(COUNTRY_INFO!B45=0," ",COUNTRY_INFO!B45)) -> Muyinga | C45: =IF(AND(INTRO!$E$37="Non endémique",INTRO!$E$41="Non endémique")," ",IF(COUNTRY_INFO!C45=0," ",COUNTRY_INFO!C45)) -> Muyinga | D45: =IF(AND(INTRO!$E$37="Non endémique",INTRO!$E$41="Non endémique"),0,COUNTRY_INFO!V45) -> 0 | E45: =IF(AND(INTRO!$E$37="Non endémique",INTRO!$E$41="Non endémique"),0,COUNTRY_INFO!X45) -> 0 | F45: =IF(INTRO!$E$39="Non endémique",IF($D45=1,DEC!I45,0),IF($D45=1,IVM!G45,0)) -> 0 | H45: =IF(OR(COUNTRY_INFO!N45="Inconnu",COUNTRY_INFO!N45="Surveillance",COUNTRY_INFO!N45="Non requis",COUNTRY_INFO!N45=0),0,IF(INTRO!$E$39="Non endémique",IF(AND($E45<>0,$G45=""),IF($F45=0,COUNTRY_INFO!N45*$E45,COUNTRY_INFO!N45*($E45-$D45)),IF(AND($E45<>0,$G45<>0),IF($F45=0,COUNTRY_INFO!N45*$G45,COUNTRY_INFO!N45*($G45-$D45)),0)),IF($G45="",COUNTRY_INFO!N45*$E45,COUNTRY_INFO!N45*$G45))) -> 0 | I45: =IF(OR(COUNTRY_INFO!O45="Inconnu",COUNTRY_INFO!O45="Surveillance",COUNTRY_INFO!O45="Non requis",COUNTRY_INFO!O45=0),0,IF($E45<>0, IF($F45=0,COUNTRY_INFO!O45*$E45,COUNTRY_INFO!O45*($E45-$D45)),COUNTRY_INFO!O45*$E45)) -> 0 | K45: =IF(OR(COUNTRY_INFO!P45="Inconnu",COUNTRY_INFO!P45="Surveillance",COUNTRY_INFO!P45="Non requis",COUNTRY_INFO!P45=0),0,IF(AND($E45<>0,$J45=""),IF($F45=0,COUNTRY_INFO!P45*$E45,COUNTRY_INFO!P45*($E45-$D45)), IF(AND($E45<>0,$J45<>0),IF($F45=0,COUNTRY_INFO!P45*$J45,COUNTRY_INFO!P45*($J45-$D45)), COUNTRY_INFO!P45*$J45))) -> 0 | L45: 0 | M45: 0 | O45: 0 | P45: 0 | R45: 0 | S45: 0 | U45: 0
A46: =IF(AND(INTRO!$E$37="Non endémique",INTRO!$E$41="Non endémique")," ",IF(COUNTRY_INFO!A46=0," ",COUNTRY_INFO!A46)) -> Burundi | B46: =IF(AND(INTRO!$E$37="Non endémique",INTRO!$E$41="Non endémique")," ",IF(COUNTRY_INFO!B46=0," ",COUNTRY_INFO!B46)) -> Mwaro | C46: =IF(AND(INTRO!$E$37="Non endémique",INTRO!$E$41="Non endémique")," ",IF(COUNTRY_INFO!C46=0," ",COUNTRY_INFO!C46)) -> Fota | D46: =IF(AND(INTRO!$E$37="Non endémique",INTRO!$E$41="Non endémique"),0,COUNTRY_INFO!V46) -> 0 | E46: =IF(AND(INTRO!$E$37="Non endémique",INTRO!$E$41="Non endémique"),0,COUNTRY_INFO!X46) -> 0 | F46: =IF(INTRO!$E$39="Non endémique",IF($D46=1,DEC!I46,0),IF($D46=1,IVM!G46,0)) -> 0 | H46: =IF(OR(COUNTRY_INFO!N46="Inconnu",COUNTRY_INFO!N46="Surveillance",COUNTRY_INFO!N46="Non requis",COUNTRY_INFO!N46=0),0,IF(INTRO!$E$39="Non endémique",IF(AND($E46<>0,$G46=""),IF($F46=0,COUNTRY_INFO!N46*$E46,COUNTRY_INFO!N46*($E46-$D46)),IF(AND($E46<>0,$G46<>0),IF($F46=0,COUNTRY_INFO!N46*$G46,COUNTRY_INFO!N46*($G46-$D46)),0)),IF($G46="",COUNTRY_INFO!N46*$E46,COUNTRY_INFO!N46*$G46))) -> 0 | I46: =IF(OR(COUNTRY_INFO!O46="Inconnu",COUNTRY_INFO!O46="Surveillance",COUNTRY_INFO!O46="Non requis",COUNTRY_INFO!O46=0),0,IF($E46<>0, IF($F46=0,COUNTRY_INFO!O46*$E46,COUNTRY_INFO!O46*($E46-$D46)),COUNTRY_INFO!O46*$E46)) -> 0 | K46: =IF(OR(COUNTRY_INFO!P46="Inconnu",COUNTRY_INFO!P46="Surveillance",COUNTRY_INFO!P46="Non requis",COUNTRY_INFO!P46=0),0,IF(AND($E46<>0,$J46=""),IF($F46=0,COUNTRY_INFO!P46*$E46,COUNTRY_INFO!P46*($E46-$D46)), IF(AND($E46<>0,$J46<>0),IF($F46=0,COUNTRY_INFO!P46*$J46,COUNTRY_INFO!P46*($J46-$D46)), COUNTRY_INFO!P46*$J46))) -> 0 | L46: 0 | M46: 0 | O46: 0 | P46: 0 | R46: 0 | S46: 0 | U46: 0
A47: =IF(AND(INTRO!$E$37="Non endémique",INTRO!$E$41="Non endémique")," ",IF(COUNTRY_INFO!A47=0," ",COUNTRY_INFO!A47)) -> Burundi | B47: =IF(AND(INTRO!$E$37="Non endémique",INTRO!$E$41="Non endémique")," ",IF(COUNTRY_INFO!B47=0," ",COUNTRY_INFO!B47)) -> Mwaro | C47: =IF(AND(INTRO!$E$37="Non endémique",INTRO!$E$41="Non endémique")," ",IF(COUNTRY_INFO!C47=0," ",COUNTRY_INFO!C47)) -> Kibumbu | D47: =IF(AND(INTRO!$E$37="Non endémique",INTRO!$E$41="Non endémique"),0,COUNTRY_INFO!V47) -> 0 | E47: =IF(AND(INTRO!$E$37="Non endémique",INTRO!$E$41="Non endémique"),0,COUNTRY_INFO!X47) -> 0 | F47: =IF(INTRO!$E$39="Non endémique",IF($D47=1,DEC!I47,0),IF($D47=1,IVM!G47,0)) -> 0 | H47: =IF(OR(COUNTRY_INFO!N47="Inconnu",COUNTRY_INFO!N47="Surveillance",COUNTRY_INFO!N47="Non requis",COUNTRY_INFO!N47=0),0,IF(INTRO!$E$39="Non endémique",IF(AND($E47<>0,$G47=""),IF($F47=0,COUNTRY_INFO!N47*$E47,COUNTRY_INFO!N47*($E47-$D47)),IF(AND($E47<>0,$G47<>0),IF($F47=0,COUNTRY_INFO!N47*$G47,COUNTRY_INFO!N47*($G47-$D47)),0)),IF($G47="",COUNTRY_INFO!N47*$E47,COUNTRY_INFO!N47*$G47))) -> 0 | I47: =IF(OR(COUNTRY_INFO!O47="Inconnu",COUNTRY_INFO!O47="Surveillance",COUNTRY_INFO!O47="Non requis",COUNTRY_INFO!O47=0),0,IF($E47<>0, IF($F47=0,COUNTRY_INFO!O47*$E47,COUNTRY_INFO!O47*($E47-$D47)),COUNTRY_INFO!O47*$E47)) -> 0 | K47: =IF(OR(COUNTRY_INFO!P47="Inconnu",COUNTRY_INFO!P47="Surveillance",COUNTRY_INFO!P47="Non requis",COUNTRY_INFO!P47=0),0,IF(AND($E47<>0,$J47=""),IF($F47=0,COUNTRY_INFO!P47*$E47,COUNTRY_INFO!P47*($E47-$D47)), IF(AND($E47<>0,$J47<>0),IF($F47=0,COUNTRY_INFO!P47*$J47,COUNTRY_INFO!P47*($J47-$D47)), COUNTRY_INFO!P47*$J47))) -> 0 | L47: 0 | M47: 0 | O47: 0 | P47: 0 | R47: 0 | S47: 0 | U47: 0
A48: =IF(AND(INTRO!$E$37="Non endémique",INTRO!$E$41="Non endémique")," ",IF(COUNTRY_INFO!A48=0," ",COUNTRY_INFO!A48)) -> Burundi | B48: =IF(AND(INTRO!$E$37="Non endémique",INTRO!$E$41="Non endémique")," ",IF(COUNTRY_INFO!B48=0," ",COUNTRY_INFO!B48)) -> Ngozi | C48: =IF(AND(INTRO!$E$37="Non endémique",INTRO!$E$41="Non endémique")," ",IF(COUNTRY_INFO!C48=0," ",COUNTRY_INFO!C48)) -> Buye | D48: =IF(AND(INTRO!$E$37="Non endémique",INTRO!$E$41="Non endémique"),0,COUNTRY_INFO!V48) -> 0 | E48: =IF(AND(INTRO!$E$37="Non endémique",INTRO!$E$41="Non endémique"),0,COUNTRY_INFO!X48) -> 0 | F48: =IF(INTRO!$E$39="Non endémique",IF($D48=1,DEC!I48,0),IF($D48=1,IVM!G48,0)) -> 0 | H48: =IF(OR(COUNTRY_INFO!N48="Inconnu",COUNTRY_INFO!N48="Surveillance",COUNTRY_INFO!N48="Non requis",COUNTRY_INFO!N48=0),0,IF(INTRO!$E$39="Non endémique",IF(AND($E48<>0,$G48=""),IF($F48=0,COUNTRY_INFO!N48*$E48,COUNTRY_INFO!N48*($E48-$D48)),IF(AND($E48<>0,$G48<>0),IF($F48=0,COUNTRY_INFO!N48*$G48,COUNTRY_INFO!N48*($G48-$D48)),0)),IF($G48="",COUNTRY_INFO!N48*$E48,COUNTRY_INFO!N48*$G48))) -> 0 | I48: =IF(OR(COUNTRY_INFO!O48="Inconnu",COUNTRY_INFO!O48="Surveillance",COUNTRY_INFO!O48="Non requis",COUNTRY_INFO!O48=0),0,IF($E48<>0, IF($F48=0,COUNTRY_INFO!O48*$E48,COUNTRY_INFO!O48*($E48-$D48)),COUNTRY_INFO!O48*$E48)) -> 0 | K48: =IF(OR(COUNTRY_INFO!P48="Inconnu",COUNTRY_INFO!P48="Surveillance",COUNTRY_INFO!P48="Non requis",COUNTRY_INFO!P48=0),0,IF(AND($E48<>0,$J48=""),IF($F48=0,COUNTRY_INFO!P48*$E48,COUNTRY_INFO!P48*($E48-$D48)), IF(AND($E48<>0,$J48<>0),IF($F48=0,COUNTRY_INFO!P48*$J48,COUNTRY_INFO!P48*($J48-$D48)), COUNTRY_INFO!P48*$J48))) -> 0 | L48: 0 | M48: 0 | O48: 0 | P48: 0 | R48: 0 | S48: 0 | U48: 0
A49: =IF(AND(INTRO!$E$37="Non endémique",INTRO!$E$41="Non endémique")," ",IF(COUNTRY_INFO!A49=0," ",COUNTRY_INFO!A49)) -> Burundi | B49: =IF(AND(INTRO!$E$37="Non endémique",INTRO!$E$41="Non endémique")," ",IF(COUNTRY_INFO!B49=0," ",COUNTRY_INFO!B49)) -> Ngozi | C49: =IF(AND(INTRO!$E$37="Non endémique",INTRO!$E$41="Non endémique")," ",IF(COUNTRY_INFO!C49=0," ",COUNTRY_INFO!C49)) -> Kiremba | D49: =IF(AND(INTRO!$E$37="Non endémique",INTRO!$E$41="Non endémique"),0,COUNTRY_INFO!V49) -> 0 | E49: =IF(AND(INTRO!$E$37="Non endémique",INTRO!$E$41="Non endémique"),0,COUNTRY_INFO!X49) -> 0 | F49: =IF(INTRO!$E$39="Non endémique",IF($D49=1,DEC!I49,0),IF($D49=1,IVM!G49,0)) -> 0 | H49: =IF(OR(COUNTRY_INFO!N49="Inconnu",COUNTRY_INFO!N49="Surveillance",COUNTRY_INFO!N49="Non requis",COUNTRY_INFO!N49=0),0,IF(INTRO!$E$39="Non endémique",IF(AND($E49<>0,$G49=""),IF($F49=0,COUNTRY_INFO!N49*$E49,COUNTRY_INFO!N49*($E49-$D49)),IF(AND($E49<>0,$G49<>0),IF($F49=0,COUNTRY_INFO!N49*$G49,COUNTRY_INFO!N49*($G49-$D49)),0)),IF($G49="",COUNTRY_INFO!N49*$E49,COUNTRY_INFO!N49*$G49))) -> 0 | I49: =IF(OR(COUNTRY_INFO!O49="Inconnu",COUNTRY_INFO!O49="Surveillance",COUNTRY_INFO!O49="Non requis",COUNTRY_INFO!O49=0),0,IF($E49<>0, IF($F49=0,COUNTRY_INFO!O49*$E49,COUNTRY_INFO!O49*($E49-$D49)),COUNTRY_INFO!O49*$E49)) -> 0 | K49: =IF(OR(COUNTRY_INFO!P49="Inconnu",COUNTRY_INFO!P49="Surveillance",COUNTRY_INFO!P49="Non requis",COUNTRY_INFO!P49=0),0,IF(AND($E49<>0,$J49=""),IF($F49=0,COUNTRY_INFO!P49*$E49,COUNTRY_INFO!P49*($E49-$D49)), IF(AND($E49<>0,$J49<>0),IF($F49=0,COUNTRY_INFO!P49*$J49,COUNTRY_INFO!P49*($J49-$D49)), COUNTRY_INFO!P49*$J49))) -> 0 | L49: 0 | M49: 0 | O49: 0 | P49: 0 | R49: 0 | S49: 0 | U49: 0
A50: =IF(AND(INTRO!$E$37="Non endémique",INTRO!$E$41="Non endémique")," ",IF(COUNTRY_INFO!A50=0," ",COUNTRY_INFO!A50)) -> Burundi | B50: =IF(AND(INTRO!$E$37="Non endémique",INTRO!$E$41="Non endémique")," ",IF(COUNTRY_INFO!B50=0," ",COUNTRY_INFO!B50)) -> Ngozi | C50: =IF(AND(INTRO!$E$37="Non endémique",INTRO!$E$41="Non endémique")," ",IF(COUNTRY_INFO!C50=0," ",COUNTRY_INFO!C50)) -> Ngozi | D50: =IF(AND(INTRO!$E$37="Non endémique",INTRO!$E$41="Non endémique"),0,COUNTRY_INFO!V50) -> 0 | E50: =IF(AND(INTRO!$E$37="Non endémique",INTRO!$E$41="Non endémique"),0,COUNTRY_INFO!X50) -> 1 | F50: =IF(INTRO!$E$39="Non endémique",IF($D50=1,DEC!I50,0),IF($D50=1,IVM!G50,0)) -> 0 | H50: =IF(OR(COUNTRY_INFO!N50="Inconnu",COUNTRY_INFO!N50="Surveillance",COUNTRY_INFO!N50="Non requis",COUNTRY_INFO!N50=0),0,IF(INTRO!$E$39="Non endémique",IF(AND($E50<>0,$G50=""),IF($F50=0,COUNTRY_INFO!N50*$E50,COUNTRY_INFO!N50*($E50-$D50)),IF(AND($E50<>0,$G50<>0),IF($F50=0,COUNTRY_INFO!N50*$G50,COUNTRY_INFO!N50*($G50-$D50)),0)),IF($G50="",COUNTRY_INFO!N50*$E50,COUNTRY_INFO!N50*$G50))) -> 54128 | I50: =IF(OR(COUNTRY_INFO!O50="Inconnu",COUNTRY_INFO!O50="Surveillance",COUNTRY_INFO!O50="Non requis",COUNTRY_INFO!O50=0),0,IF($E50<>0, IF($F50=0,COUNTRY_INFO!O50*$E50,COUNTRY_INFO!O50*($E50-$D50)),COUNTRY_INFO!O50*$E50)) -> 124620 | K50: =IF(OR(COUNTRY_INFO!P50="Inconnu",COUNTRY_INFO!P50="Surveillance",COUNTRY_INFO!P50="Non requis",COUNTRY_INFO!P50=0),0,IF(AND($E50<>0,$J50=""),IF($F50=0,COUNTRY_INFO!P50*$E50,COUNTRY_INFO!P50*($E50-$D50)), IF(AND($E50<>0,$J50<>0),IF($F50=0,COUNTRY_INFO!P50*$J50,COUNTRY_INFO!P50*($J50-$D50)), COUNTRY_INFO!P50*$J50))) -> 96265 | L50: 275013 | M50: 0 | O50: 0 | P50: 124620 | R50: 124620 | S50: 0 | U50: 0
A51: =IF(AND(INTRO!$E$37="Non endémique",INTRO!$E$41="Non endémique")," ",IF(COUNTRY_INFO!A51=0," ",COUNTRY_INFO!A51)) -> Burundi | B51: =IF(AND(INTRO!$E$37="Non endémique",INTRO!$E$41="Non endémique")," ",IF(COUNTRY_INFO!B51=0," ",COUNTRY_INFO!B51)) -> Rumonge | C51: =IF(AND(INTRO!$E$37="Non endémique",INTRO!$E$41="Non endémique")," ",IF(COUNTRY_INFO!C51=0," ",COUNTRY_INFO!C51)) -> Bugarama | D51: =IF(AND(INTRO!$E$37="Non endémique",INTRO!$E$41="Non endémique"),0,COUNTRY_INFO!V51) -> 0 | E51: =IF(AND(INTRO!$E$37="Non endémique",INTRO!$E$41="Non endémique"),0,COUNTRY_INFO!X51) -> 0 | F51: =IF(INTRO!$E$39="Non endémique",IF($D51=1,DEC!I51,0),IF($D51=1,IVM!G51,0)) -> 0 | H51: =IF(OR(COUNTRY_INFO!N51="Inconnu",COUNTRY_INFO!N51="Surveillance",COUNTRY_INFO!N51="Non requis",COUNTRY_INFO!N51=0),0,IF(INTRO!$E$39="Non endémique",IF(AND($E51<>0,$G51=""),IF($F51=0,COUNTRY_INFO!N51*$E51,COUNTRY_INFO!N51*($E51-$D51)),IF(AND($E51<>0,$G51<>0),IF($F51=0,COUNTRY_INFO!N51*$G51,COUNTRY_INFO!N51*($G51-$D51)),0)),IF($G51="",COUNTRY_INFO!N51*$E51,COUNTRY_INFO!N51*$G51))) -> 0 | I51: =IF(OR(COUNTRY_INFO!O51="Inconnu",COUNTRY_INFO!O51="Surveillance",COUNTRY_INFO!O51="Non requis",COUNTRY_INFO!O51=0),0,IF($E51<>0, IF($F51=0,COUNTRY_INFO!O51*$E51,COUNTRY_INFO!O51*($E51-$D51)),COUNTRY_INFO!O51*$E51)) -> 0 | K51: =IF(OR(COUNTRY_INFO!P51="Inconnu",COUNTRY_INFO!P51="Surveillance",COUNTRY_INFO!P51="Non requis",COUNTRY_INFO!P51=0),0,IF(AND($E51<>0,$J51=""),IF($F51=0,COUNTRY_INFO!P51*$E51,COUNTRY_INFO!P51*($E51-$D51)), IF(AND($E51<>0,$J51<>0),IF($F51=0,COUNTRY_INFO!P51*$J51,COUNTRY_INFO!P51*($J51-$D51)), COUNTRY_INFO!P51*$J51))) -> 0 | L51: 0 | M51: 0 | O51: 0 | P51: 0 | R51: 0 | S51: 0 | U51: 0
A52: =IF(AND(INTRO!$E$37="Non endémique",INTRO!$E$41="Non endémique")," ",IF(COUNTRY_INFO!A52=0," ",COUNTRY_INFO!A52)) -> Burundi | B52: =IF(AND(INTRO!$E$37="Non endémique",INTRO!$E$41="Non endémique")," ",IF(COUNTRY_INFO!B52=0," ",COUNTRY_INFO!B52)) -> Rumonge | C52: =IF(AND(INTRO!$E$37="Non endémique",INTRO!$E$41="Non endémique")," ",IF(COUNTRY_INFO!C52=0," ",COUNTRY_INFO!C52)) -> Rumonge | D52: =IF(AND(INTRO!$E$37="Non endémique",INTRO!$E$41="Non endémique"),0,COUNTRY_INFO!V52) -> 0 | E52: =IF(AND(INTRO!$E$37="Non endémique",INTRO!$E$41="Non endémique"),0,COUNTRY_INFO!X52) -> 0 | F52: =IF(INTRO!$E$39="Non endémique",IF($D52=1,DEC!I52,0),IF($D52=1,IVM!G52,0)) -> 0 | H52: =IF(OR(COUNTRY_INFO!N52="Inconnu",COUNTRY_INFO!N52="Surveillance",COUNTRY_INFO!N52="Non requis",COUNTRY_INFO!N52=0),0,IF(INTRO!$E$39="Non endémique",IF(AND($E52<>0,$G52=""),IF($F52=0,COUNTRY_INFO!N52*$E52,COUNTRY_INFO!N52*($E52-$D52)),IF(AND($E52<>0,$G52<>0),IF($F52=0,COUNTRY_INFO!N52*$G52,COUNTRY_INFO!N52*($G52-$D52)),0)),IF($G52="",COUNTRY_INFO!N52*$E52,COUNTRY_INFO!N52*$G52))) -> 0 | I52: =IF(OR(COUNTRY_INFO!O52="Inconnu",COUNTRY_INFO!O52="Surveillance",COUNTRY_INFO!O52="Non requis",COUNTRY_INFO!O52=0),0,IF($E52<>0, IF($F52=0,COUNTRY_INFO!O52*$E52,COUNTRY_INFO!O52*($E52-$D52)),COUNTRY_INFO!O52*$E52)) -> 0 | K52: =IF(OR(COUNTRY_INFO!P52="Inconnu",COUNTRY_INFO!P52="Surveillance",COUNTRY_INFO!P52="Non requis",COUNTRY_INFO!P52=0),0,IF(AND($E52<>0,$J52=""),IF($F52=0,COUNTRY_INFO!P52*$E52,COUNTRY_INFO!P52*($E52-$D52)), IF(AND($E52<>0,$J52<>0),IF($F52=0,COUNTRY_INFO!P52*$J52,COUNTRY_INFO!P52*($J52-$D52)), COUNTRY_INFO!P52*$J52))) -> 0 | L52: 0 | M52: 0 | O52: 0 | P52: 0 | R52: 0 | S52: 0 | U52: 0
A53: =IF(AND(INTRO!$E$37="Non endémique",INTRO!$E$41="Non endémique")," ",IF(COUNTRY_INFO!A53=0," ",COUNTRY_INFO!A53)) -> Burundi | B53: =IF(AND(INTRO!$E$37="Non endémique",INTRO!$E$41="Non endémique")," ",IF(COUNTRY_INFO!B53=0," ",COUNTRY_INFO!B53)) -> Rutana | C53: =IF(AND(INTRO!$E$37="Non endémique",INTRO!$E$41="Non endémique")," ",IF(COUNTRY_INFO!C53=0," ",COUNTRY_INFO!C53)) -> Gihofi | D53: =IF(AND(INTRO!$E$37="Non endémique",INTRO!$E$41="Non endémique"),0,COUNTRY_INFO!V53) -> 0 | E53: =IF(AND(INTRO!$E$37="Non endémique",INTRO!$E$41="Non endémique"),0,COUNTRY_INFO!X53) -> 0 | F53: =IF(INTRO!$E$39="Non endémique",IF($D53=1,DEC!I53,0),IF($D53=1,IVM!G53,0)) -> 0 | H53: =IF(OR(COUNTRY_INFO!N53="Inconnu",COUNTRY_INFO!N53="Surveillance",COUNTRY_INFO!N53="Non requis",COUNTRY_INFO!N53=0),0,IF(INTRO!$E$39="Non endémique",IF(AND($E53<>0,$G53=""),IF($F53=0,COUNTRY_INFO!N53*$E53,COUNTRY_INFO!N53*($E53-$D53)),IF(AND($E53<>0,$G53<>0),IF($F53=0,COUNTRY_INFO!N53*$G53,COUNTRY_INFO!N53*($G53-$D53)),0)),IF($G53="",COUNTRY_INFO!N53*$E53,COUNTRY_INFO!N53*$G53))) -> 0 | I53: =IF(OR(COUNTRY_INFO!O53="Inconnu",COUNTRY_INFO!O53="Surveillance",COUNTRY_INFO!O53="Non requis",COUNTRY_INFO!O53=0),0,IF($E53<>0, IF($F53=0,COUNTRY_INFO!O53*$E53,COUNTRY_INFO!O53*($E53-$D53)),COUNTRY_INFO!O53*$E53)) -> 0 | K53: =IF(OR(COUNTRY_INFO!P53="Inconnu",COUNTRY_INFO!P53="Surveillance",COUNTRY_INFO!P53="Non requis",COUNTRY_INFO!P53=0),0,IF(AND($E53<>0,$J53=""),IF($F53=0,COUNTRY_INFO!P53*$E53,COUNTRY_INFO!P53*($E53-$D53)), IF(AND($E53<>0,$J53<>0),IF($F53=0,COUNTRY_INFO!P53*$J53,COUNTRY_INFO!P53*($J53-$D53)), COUNTRY_INFO!P53*$J53))) -> 0 | L53: 0 | M53: 0 | O53: 0 | P53: 0 | R53: 0 | S53: 0 | U53: 0
A54: =IF(AND(INTRO!$E$37="Non endémique",INTRO!$E$41="Non endémique")," ",IF(COUNTRY_INFO!A54=0," ",COUNTRY_INFO!A54)) -> Burundi | B54: =IF(AND(INTRO!$E$37="Non endémique",INTRO!$E$41="Non endémique")," ",IF(COUNTRY_INFO!B54=0," ",COUNTRY_INFO!B54)) -> Rutana | C54: =IF(AND(INTRO!$E$37="Non endémique",INTRO!$E$41="Non endémique")," ",IF(COUNTRY_INFO!C54=0," ",COUNTRY_INFO!C54)) -> Rutana | D54: =IF(AND(INTRO!$E$37="Non endémique",INTRO!$E$41="Non endémique"),0,COUNTRY_INFO!V54) -> 0 | E54: =IF(AND(INTRO!$E$37="Non endémique",INTRO!$E$41="Non endémique"),0,COUNTRY_INFO!X54) -> 0 | F54: =IF(INTRO!$E$39="Non endémique",IF($D54=1,DEC!I54,0),IF($D54=1,IVM!G54,0)) -> 0 | H54: =IF(OR(COUNTRY_INFO!N54="Inconnu",COUNTRY_INFO!N54="Surveillance",COUNTRY_INFO!N54="Non requis",COUNTRY_INFO!N54=0),0,IF(INTRO!$E$39="Non endémique",IF(AND($E54<>0,$G54=""),IF($F54=0,COUNTRY_INFO!N54*$E54,COUNTRY_INFO!N54*($E54-$D54)),IF(AND($E54<>0,$G54<>0),IF($F54=0,COUNTRY_INFO!N54*$G54,COUNTRY_INFO!N54*($G54-$D54)),0)),IF($G54="",COUNTRY_INFO!N54*$E54,COUNTRY_INFO!N54*$G54))) -> 0 | I54: =IF(OR(COUNTRY_INFO!O54="Inconnu",COUNTRY_INFO!O54="Surveillance",COUNTRY_INFO!O54="Non requis",COUNTRY_INFO!O54=0),0,IF($E54<>0, IF($F54=0,COUNTRY_INFO!O54*$E54,COUNTRY_INFO!O54*($E54-$D54)),COUNTRY_INFO!O54*$E54)) -> 0 | K54: =IF(OR(COUNTRY_INFO!P54="Inconnu",COUNTRY_INFO!P54="Surveillance",COUNTRY_INFO!P54="Non requis",COUNTRY_INFO!P54=0),0,IF(AND($E54<>0,$J54=""),IF($F54=0,COUNTRY_INFO!P54*$E54,COUNTRY_INFO!P54*($E54-$D54)), IF(AND($E54<>0,$J54<>0),IF($F54=0,COUNTRY_INFO!P54*$J54,COUNTRY_INFO!P54*($J54-$D54)), COUNTRY_INFO!P54*$J54))) -> 0 | L54: 0 | M54: 0 | O54: 0 | P54: 0 | R54: 0 | S54: 0 | U54: 0
A55: =IF(AND(INTRO!$E$37="Non endémique",INTRO!$E$41="Non endémique")," ",IF(COUNTRY_INFO!A55=0," ",COUNTRY_INFO!A55)) -> Burundi | B55: =IF(AND(INTRO!$E$37="Non endémique",INTRO!$E$41="Non endémique")," ",IF(COUNTRY_INFO!B55=0," ",COUNTRY_INFO!B55)) -> Ruyigi | C55: =IF(AND(INTRO!$E$37="Non endémique",INTRO!$E$41="Non endémique")," ",IF(COUNTRY_INFO!C55=0," ",COUNTRY_INFO!C55)) -> Butezi | D55: =IF(AND(INTRO!$E$37="Non endémique",INTRO!$E$41="Non endémique"),0,COUNTRY_INFO!V55) -> 0 | E55: =IF(AND(INTRO!$E$37="Non endémique",INTRO!$E$41="Non endémique"),0,COUNTRY_INFO!X55) -> 0 | F55: =IF(INTRO!$E$39="Non endémique",IF($D55=1,DEC!I55,0),IF($D55=1,IVM!G55,0)) -> 0 | H55: =IF(OR(COUNTRY_INFO!N55="Inconnu",COUNTRY_INFO!N55="Surveillance",COUNTRY_INFO!N55="Non requis",COUNTRY_INFO!N55=0),0,IF(INTRO!$E$39="Non endémique",IF(AND($E55<>0,$G55=""),IF($F55=0,COUNTRY_INFO!N55*$E55,COUNTRY_INFO!N55*($E55-$D55)),IF(AND($E55<>0,$G55<>0),IF($F55=0,COUNTRY_INFO!N55*$G55,COUNTRY_INFO!N55*($G55-$D55)),0)),IF($G55="",COUNTRY_INFO!N55*$E55,COUNTRY_INFO!N55*$G55))) -> 0 | I55: =IF(OR(COUNTRY_INFO!O55="Inconnu",COUNTRY_INFO!O55="Surveillance",COUNTRY_INFO!O55="Non requis",COUNTRY_INFO!O55=0),0,IF($E55<>0, IF($F55=0,COUNTRY_INFO!O55*$E55,COUNTRY_INFO!O55*($E55-$D55)),COUNTRY_INFO!O55*$E55)) -> 0 | K55: =IF(OR(COUNTRY_INFO!P55="Inconnu",COUNTRY_INFO!P55="Surveillance",COUNTRY_INFO!P55="Non requis",COUNTRY_INFO!P55=0),0,IF(AND($E55<>0,$J55=""),IF($F55=0,COUNTRY_INFO!P55*$E55,COUNTRY_INFO!P55*($E55-$D55)), IF(AND($E55<>0,$J55<>0),IF($F55=0,COUNTRY_INFO!P55*$J55,COUNTRY_INFO!P55*($J55-$D55)), COUNTRY_INFO!P55*$J55))) -> 0 | L55: 0 | M55: 0 | O55: 0 | P55: 0 | R55: 0 | S55: 0 | U55: 0
A56: =IF(AND(INTRO!$E$37="Non endémique",INTRO!$E$41="Non endémique")," ",IF(COUNTRY_INFO!A56=0," ",COUNTRY_INFO!A56)) -> Burundi | B56: =IF(AND(INTRO!$E$37="Non endémique",INTRO!$E$41="Non endémique")," ",IF(COUNTRY_INFO!B56=0," ",COUNTRY_INFO!B56)) -> Gisuru | C56: =IF(AND(INTRO!$E$37="Non endémique",INTRO!$E$41="Non endémique")," ",IF(COUNTRY_INFO!C56=0," ",COUNTRY_INFO!C56)) -> Gisuru | D56: =IF(AND(INTRO!$E$37="Non endémique",INTRO!$E$41="Non endémique"),0,COUNTRY_INFO!V56) -> 0 | E56: =IF(AND(INTRO!$E$37="Non endémique",INTRO!$E$41="Non endémique"),0,COUNTRY_INFO!X56) -> 0 | F56: =IF(INTRO!$E$39="Non endémique",IF($D56=1,DEC!I56,0),IF($D56=1,IVM!G56,0)) -> 0 | H56: =IF(OR(COUNTRY_INFO!N56="Inconnu",COUNTRY_INFO!N56="Surveillance",COUNTRY_INFO!N56="Non requis",COUNTRY_INFO!N56=0),0,IF(INTRO!$E$39="Non endémique",IF(AND($E56<>0,$G56=""),IF($F56=0,COUNTRY_INFO!N56*$E56,COUNTRY_INFO!N56*($E56-$D56)),IF(AND($E56<>0,$G56<>0),IF($F56=0,COUNTRY_INFO!N56*$G56,COUNTRY_INFO!N56*($G56-$D56)),0)),IF($G56="",COUNTRY_INFO!N56*$E56,COUNTRY_INFO!N56*$G56))) -> 0 | I56: =IF(OR(COUNTRY_INFO!O56="Inconnu",COUNTRY_INFO!O56="Surveillance",COUNTRY_INFO!O56="Non requis",COUNTRY_INFO!O56=0),0,IF($E56<>0, IF($F56=0,COUNTRY_INFO!O56*$E56,COUNTRY_INFO!O56*($E56-$D56)),COUNTRY_INFO!O56*$E56)) -> 0 | K56: =IF(OR(COUNTRY_INFO!P56="Inconnu",COUNTRY_INFO!P56="Surveillance",COUNTRY_INFO!P56="Non requis",COUNTRY_INFO!P56=0),0,IF(AND($E56<>0,$J56=""),IF($F56=0,COUNTRY_INFO!P56*$E56,COUNTRY_INFO!P56*($E56-$D56)), IF(AND($E56<>0,$J56<>0),IF($F56=0,COUNTRY_INFO!P56*$J56,COUNTRY_INFO!P56*($J56-$D56)), COUNTRY_INFO!P56*$J56))) -> 0 | L56: 0 | M56: 0 | O56: 0 | P56: 0 | R56: 0 | S56: 0 | U56: 0
A57: =IF(AND(INTRO!$E$37="Non endémique",INTRO!$E$41="Non endémique")," ",IF(COUNTRY_INFO!A57=0," ",COUNTRY_INFO!A57)) -> Burundi | B57: =IF(AND(INTRO!$E$37="Non endémique",INTRO!$E$41="Non endémique")," ",IF(COUNTRY_INFO!B57=0," ",COUNTRY_INFO!B57)) -> Ruyigi | C57: =IF(AND(INTRO!$E$37="Non endémique",INTRO!$E$41="Non endémique")," ",IF(COUNTRY_INFO!C57=0," ",COUNTRY_INFO!C57)) -> Kinyinya | D57: =IF(AND(INTRO!$E$37="Non endémique",INTRO!$E$41="Non endémique"),0,COUNTRY_INFO!V57) -> 0 | E57: =IF(AND(INTRO!$E$37="Non endémique",INTRO!$E$41="Non endémique"),0,COUNTRY_INFO!X57) -> 0 | F57: =IF(INTRO!$E$39="Non endémique",IF($D57=1,DEC!I57,0),IF($D57=1,IVM!G57,0)) -> 0 | H57: =IF(OR(COUNTRY_INFO!N57="Inconnu",COUNTRY_INFO!N57="Surveillance",COUNTRY_INFO!N57="Non requis",COUNTRY_INFO!N57=0),0,IF(INTRO!$E$39="Non endémique",IF(AND($E57<>0,$G57=""),IF($F57=0,COUNTRY_INFO!N57*$E57,COUNTRY_INFO!N57*($E57-$D57)),IF(AND($E57<>0,$G57<>0),IF($F57=0,COUNTRY_INFO!N57*$G57,COUNTRY_INFO!N57*($G57-$D57)),0)),IF($G57="",COUNTRY_INFO!N57*$E57,COUNTRY_INFO!N57*$G57))) -> 0 | I57: =IF(OR(COUNTRY_INFO!O57="Inconnu",COUNTRY_INFO!O57="Surveillance",COUNTRY_INFO!O57="Non requis",COUNTRY_INFO!O57=0),0,IF($E57<>0, IF($F57=0,COUNTRY_INFO!O57*$E57,COUNTRY_INFO!O57*($E57-$D57)),COUNTRY_INFO!O57*$E57)) -> 0 | K57: =IF(OR(COUNTRY_INFO!P57="Inconnu",COUNTRY_INFO!P57="Surveillance",COUNTRY_INFO!P57="Non requis",COUNTRY_INFO!P57=0),0,IF(AND($E57<>0,$J57=""),IF($F57=0,COUNTRY_INFO!P57*$E57,COUNTRY_INFO!P57*($E57-$D57)), IF(AND($E57<>0,$J57<>0),IF($F57=0,COUNTRY_INFO!P57*$J57,COUNTRY_INFO!P57*($J57-$D57)), COUNTRY_INFO!P57*$J57))) -> 0 | L57: 0 | M57: 0 | O57: 0 | P57: 0 | R57: 0 | S57: 0 | U57: 0
A58: =IF(AND(INTRO!$E$37="Non endémique",INTRO!$E$41="Non endémique")," ",IF(COUNTRY_INFO!A58=0," ",COUNTRY_INFO!A58)) -> Burundi | B58: =IF(AND(INTRO!$E$37="Non endémique",INTRO!$E$41="Non endémique")," ",IF(COUNTRY_INFO!B58=0," ",COUNTRY_INFO!B58)) -> Ruyigi | C58: =IF(AND(INTRO!$E$37="Non endémique",INTRO!$E$41="Non endémique")," ",IF(COUNTRY_INFO!C58=0," ",COUNTRY_INFO!C58)) -> Ruyigi | D58: =IF(AND(INTRO!$E$37="Non endémique",INTRO!$E$41="Non endémique"),0,COUNTRY_INFO!V58) -> 0 | E58: =IF(AND(INTRO!$E$37="Non endémique",INTRO!$E$41="Non endémique"),0,COUNTRY_INFO!X58) -> 0 | F58: =IF(INTRO!$E$39="Non endémique",IF($D58=1,DEC!I58,0),IF($D58=1,IVM!G58,0)) -> 0 | H58: =IF(OR(COUNTRY_INFO!N58="Inconnu",COUNTRY_INFO!N58="Surveillance",COUNTRY_INFO!N58="Non requis",COUNTRY_INFO!N58=0),0,IF(INTRO!$E$39="Non endémique",IF(AND($E58<>0,$G58=""),IF($F58=0,COUNTRY_INFO!N58*$E58,COUNTRY_INFO!N58*($E58-$D58)),IF(AND($E58<>0,$G58<>0),IF($F58=0,COUNTRY_INFO!N58*$G58,COUNTRY_INFO!N58*($G58-$D58)),0)),IF($G58="",COUNTRY_INFO!N58*$E58,COUNTRY_INFO!N58*$G58))) -> 0 | I58: =IF(OR(COUNTRY_INFO!O58="Inconnu",COUNTRY_INFO!O58="Surveillance",COUNTRY_INFO!O58="Non requis",COUNTRY_INFO!O58=0),0,IF($E58<>0, IF($F58=0,COUNTRY_INFO!O58*$E58,COUNTRY_INFO!O58*($E58-$D58)),COUNTRY_INFO!O58*$E58)) -> 0 | K58: =IF(OR(COUNTRY_INFO!P58="Inconnu",COUNTRY_INFO!P58="Surveillance",COUNTRY_INFO!P58="Non requis",COUNTRY_INFO!P58=0),0,IF(AND($E58<>0,$J58=""),IF($F58=0,COUNTRY_INFO!P58*$E58,COUNTRY_INFO!P58*($E58-$D58)), IF(AND($E58<>0,$J58<>0),IF($F58=0,COUNTRY_INFO!P58*$J58,COUNTRY_INFO!P58*($J58-$D58)), COUNTRY_INFO!P58*$J58))) -> 0 | L58: 0 | M58: 0 | O58: 0 | P58: 0 | R58: 0 | S58: 0 | U58: 0

Sheet PZQ
A1: Praziquantel (PZQ)
A2: Structure administrative, population ciblée par groupe d'âge, plan de traitement et information sur les comprimés
A4: TOTAL | E4: =SUBTOTAL(9,E$10:E$1010) -> 108387 | F4: 249285 | G4: 447716 | H4: 805388 | J4: 0 | M4: =SUBTOTAL(9,M$10:M$1010) -> 0 | N4: 498570 | O4: 1343148 | P4: 1841718 | Q4: 0 | R4: 1841718
A6: Structure administrative du pays | D6: Plan de traitement SCH | E6: Population cible pour SCH | I6: Hotspots | K6: Année précédent l’AMM | M6: Praziquantel (PZQ)
A7: Pays | B7: Région/Département | C7: District | E7: EAPréS | F7: EAS | G7: Adultes | H7: Total | I7: Prévue | J7: Population | K7: Tournées | L7: Groupes d'âge | M7: EAPréS | N7: EAS | O7: Adultes | P7: Total requis | Q7: Reste en stock | R7: Comprimés devant être fournis
A10: =IF(INTRO!$E$43="Non endémique"," ", IF(COUNTRY_INFO!A10=0," ",COUNTRY_INFO!A10)) -> Burundi | B10: =IF(INTRO!$E$43="Non endémique"," ", IF(COUNTRY_INFO!B10=0," ",COUNTRY_INFO!B10)) -> Bubanza | C10: =IF(INTRO!$E$43="Non endémique"," ", IF(COUNTRY_INFO!C10=0," ",COUNTRY_INFO!C10)) -> Bubanza | D10: =IF(INTRO!$E$43="Non endémique", "Non requis", COUNTRY_INFO!Y10) -> 0 | E10: =IF(OR(COUNTRY_INFO!R10="Inconnu",COUNTRY_INFO!R10="Surveillance",COUNTRY_INFO!R10="Non requis",COUNTRY_INFO!R10=0),0,IF($D10<>0, COUNTRY_INFO!R10,0)) -> 0 | F10: =IF(OR(COUNTRY_INFO!S10="Inconnu",COUNTRY_INFO!S10="Surveillance",COUNTRY_INFO!S10="Non requis",COUNTRY_INFO!S10=0),0,IF($D10<>0, COUNTRY_INFO!S10,0)) -> 0 | G10: =IF(OR(COUNTRY_INFO!T10="Inconnu",COUNTRY_INFO!T10="Surveillance",COUNTRY_INFO!T10="Non requis",COUNTRY_INFO!T10=0),0,IF($D10<>0, COUNTRY_INFO!T10,0)) -> 0 | H10: =SUM(E10:G10) -> 0 | N10: =IF($I10<>"Oui",$F10*2,($F10+ROUND(J10*$F10/SUM(COUNTRY_INFO!$E10:$G10),0))*2) -> 0 | O10: =IF($I10<>"Oui",$G10*3,($G10+ROUND(J10*$G10/SUM(COUNTRY_INFO!$E10:$G10),0))*3) -> 0 | P10: =SUM(M10:O10) -> 0 | R10: =IF($P10>$Q10,P10-Q10,0) -> 0
A11: =IF(INTRO!$E$43="Non endémique"," ", IF(COUNTRY_INFO!A11=0," ",COUNTRY_INFO!A11)) -> Burundi | B11: =IF(INTRO!$E$43="Non endémique"," ", IF(COUNTRY_INFO!B11=0," ",COUNTRY_INFO!B11)) -> Bubanza | C11: =IF(INTRO!$E$43="Non endémique"," ", IF(COUNTRY_INFO!C11=0," ",COUNTRY_INFO!C11)) -> Mpanda | D11: =IF(INTRO!$E$43="Non endémique", "Non requis", COUNTRY_INFO!Y11) -> 1 | E11: =IF(OR(COUNTRY_INFO!R11="Inconnu",COUNTRY_INFO!R11="Surveillance",COUNTRY_INFO!R11="Non requis",COUNTRY_INFO!R11=0),0,IF($D11<>0, COUNTRY_INFO!R11,0)) -> 10539 | F11: =IF(OR(COUNTRY_INFO!S11="Inconnu",COUNTRY_INFO!S11="Surveillance",COUNTRY_INFO!S11="Non requis",COUNTRY_INFO!S11=0),0,IF($D11<>0, COUNTRY_INFO!S11,0)) -> 24240 | G11: =IF(OR(COUNTRY_INFO!T11="Inconnu",COUNTRY_INFO!T11="Surveillance",COUNTRY_INFO!T11="Non requis",COUNTRY_INFO!T11=0),0,IF($D11<>0, COUNTRY_INFO!T11,0)) -> 43534 | H11: =SUM(E11:G11) -> 78313 | N11: =IF($I11<>"Oui",$F11*2,($F11+ROUND(J11*$F11/SUM(COUNTRY_INFO!$E11:$G11),0))*2) -> 48480 | O11: =IF($I11<>"Oui",$G11*3,($G11+ROUND(J11*$G11/SUM(COUNTRY_INFO!$E11:$G11),0))*3) -> 130602 | P11: =SUM(M11:O11) -> 179082 | R11: =IF($P11>$Q11,P11-Q11,0) -> 179082
A12: =IF(INTRO!$E$43="Non endémique"," ", IF(COUNTRY_INFO!A12=0," ",COUNTRY_INFO!A12)) -> Burundi | B12: =IF(INTRO!$E$43="Non endémique"," ", IF(COUNTRY_INFO!B12=0," ",COUNTRY_INFO!B12)) -> Bujumbura Mairie | C12: =IF(INTRO!$E$43="Non endémique"," ", IF(COUNTRY_INFO!C12=0," ",COUNTRY_INFO!C12)) -> Zone Centre | D12: =IF(INTRO!$E$43="Non endémique", "Non requis", COUNTRY_INFO!Y12) -> 1 | E12: =IF(OR(COUNTRY_INFO!R12="Inconnu",COUNTRY_INFO!R12="Surveillance",COUNTRY_INFO!R12="Non requis",COUNTRY_INFO!R12=0),0,IF($D12<>0, COUNTRY_INFO!R12,0)) -> 4351 | F12: =IF(OR(COUNTRY_INFO!S12="Inconnu",COUNTRY_INFO!S12="Surveillance",COUNTRY_INFO!S12="Non requis",COUNTRY_INFO!S12=0),0,IF($D12<>0, COUNTRY_INFO!S12,0)) -> 10010 | G12: =IF(OR(COUNTRY_INFO!T12="Inconnu",COUNTRY_INFO!T12="Surveillance",COUNTRY_INFO!T12="Non requis",COUNTRY_INFO!T12=0),0,IF($D12<>0, COUNTRY_INFO!T12,0)) -> 17977 | H12: 32338 | N12: =IF($I12<>"Oui",$F12*2,($F12+ROUND(J12*$F12/SUM(COUNTRY_INFO!$E12:$G12),0))*2) -> 20020 | O12: =IF($I12<>"Oui",$G12*3,($G12+ROUND(J12*$G12/SUM(COUNTRY_INFO!$E12:$G12),0))*3) -> 53931 | P12: 73951 | R12: 73951
A13: =IF(INTRO!$E$43="Non endémique"," ", IF(COUNTRY_INFO!A13=0," ",COUNTRY_INFO!A13)) -> Burundi | B13: =IF(INTRO!$E$43="Non endémique"," ", IF(COUNTRY_INFO!B13=0," ",COUNTRY_INFO!B13)) -> Bujumbura Mairie | C13: =IF(INTRO!$E$43="Non endémique"," ", IF(COUNTRY_INFO!C13=0," ",COUNTRY_INFO!C13)) -> Zone Nord | D13: =IF(INTRO!$E$43="Non endémique", "Non requis", COUNTRY_INFO!Y13) -> 1 | E13: =IF(OR(COUNTRY_INFO!R13="Inconnu",COUNTRY_INFO!R13="Surveillance",COUNTRY_INFO!R13="Non requis",COUNTRY_INFO!R13=0),0,IF($D13<>0, COUNTRY_INFO!R13,0)) -> 12750 | F13: =IF(OR(COUNTRY_INFO!S13="Inconnu",COUNTRY_INFO!S13="Surveillance",COUNTRY_INFO!S13="Non requis",COUNTRY_INFO!S13=0),0,IF($D13<>0, COUNTRY_INFO!S13,0)) -> 29322 | G13: =IF(OR(COUNTRY_INFO!T13="Inconnu",COUNTRY_INFO!T13="Surveillance",COUNTRY_INFO!T13="Non requis",COUNTRY_INFO!T13=0),0,IF($D13<>0, COUNTRY_INFO!T13,0)) -> 52664 | H13: 94736 | N13: =IF($I13<>"Oui",$F13*2,($F13+ROUND(J13*$F13/SUM(COUNTRY_INFO!$E13:$G13),0))*2) -> 58644 | O13: =IF($I13<>"Oui",$G13*3,($G13+ROUND(J13*$G13/SUM(COUNTRY_INFO!$E13:$G13),0))*3) -> 157992 | P13: 216636 | R13: 216636
A14: =IF(INTRO!$E$43="Non endémique"," ", IF(COUNTRY_INFO!A14=0," ",COUNTRY_INFO!A14)) -> Burundi | B14: =IF(INTRO!$E$43="Non endémique"," ", IF(COUNTRY_INFO!B14=0," ",COUNTRY_INFO!B14)) -> Bujumbura Mairie | C14: =IF(INTRO!$E$43="Non endémique"," ", IF(COUNTRY_INFO!C14=0," ",COUNTRY_INFO!C14)) -> Zone Sud | D14: =IF(INTRO!$E$43="Non endémique", "Non requis", COUNTRY_INFO!Y14) -> 0 | E14: =IF(OR(COUNTRY_INFO!R14="Inconnu",COUNTRY_INFO!R14="Surveillance",COUNTRY_INFO!R14="Non requis",COUNTRY_INFO!R14=0),0,IF($D14<>0, COUNTRY_INFO!R14,0)) -> 0 | F14: =IF(OR(COUNTRY_INFO!S14="Inconnu",COUNTRY_INFO!S14="Surveillance",COUNTRY_INFO!S14="Non requis",COUNTRY_INFO!S14=0),0,IF($D14<>0, COUNTRY_INFO!S14,0)) -> 0 | G14: =IF(OR(COUNTRY_INFO!T14="Inconnu",COUNTRY_INFO!T14="Surveillance",COUNTRY_INFO!T14="Non requis",COUNTRY_INFO!T14=0),0,IF($D14<>0, COUNTRY_INFO!T14,0)) -> 0 | H14: 0 | N14: =IF($I14<>"Oui",$F14*2,($F14+ROUND(J14*$F14/SUM(COUNTRY_INFO!$E14:$G14),0))*2) -> 0 | O14: =IF($I14<>"Oui",$G14*3,($G14+ROUND(J14*$G14/SUM(COUNTRY_INFO!$E14:$G14),0))*3) -> 0 | P14: 0 | R14: 0
A15: =IF(INTRO!$E$43="Non endémique"," ", IF(COUNTRY_INFO!A15=0," ",COUNTRY_INFO!A15)) -> Burundi | B15: =IF(INTRO!$E$43="Non endémique"," ", IF(COUNTRY_INFO!B15=0," ",COUNTRY_INFO!B15)) -> Bujumbura Rural | C15: =IF(INTRO!$E$43="Non endémique"," ", IF(COUNTRY_INFO!C15=0," ",COUNTRY_INFO!C15)) -> Isare | D15: =IF(INTRO!$E$43="Non endémique", "Non requis", COUNTRY_INFO!Y15) -> 1 | E15: =IF(OR(COUNTRY_INFO!R15="Inconnu",COUNTRY_INFO!R15="Surveillance",COUNTRY_INFO!R15="Non requis",COUNTRY_INFO!R15=0),0,IF($D15<>0, COUNTRY_INFO!R15,0)) -> 6286 | F15: =IF(OR(COUNTRY_INFO!S15="Inconnu",COUNTRY_INFO!S15="Surveillance",COUNTRY_INFO!S15="Non requis",COUNTRY_INFO!S15=0),0,IF($D15<>0, COUNTRY_INFO!S15,0)) -> 14458 | G15: =IF(OR(COUNTRY_INFO!T15="Inconnu",COUNTRY_INFO!T15="Surveillance",COUNTRY_INFO!T15="Non requis",COUNTRY_INFO!T15=0),0,IF($D15<>0, COUNTRY_INFO!T15,0)) -> 25967 | H15: 46711 | N15: =IF($I15<>"Oui",$F15*2,($F15+ROUND(J15*$F15/SUM(COUNTRY_INFO!$E15:$G15),0))*2) -> 28916 | O15: =IF($I15<>"Oui",$G15*3,($G15+ROUND(J15*$G15/SUM(COUNTRY_INFO!$E15:$G15),0))*3) -> 77901 | P15: 106817 | R15: 106817
A16: =IF(INTRO!$E$43="Non endémique"," ", IF(COUNTRY_INFO!A16=0," ",COUNTRY_INFO!A16)) -> Burundi | B16: =IF(INTRO!$E$43="Non endémique"," ", IF(COUNTRY_INFO!B16=0," ",COUNTRY_INFO!B16)) -> Bujumbura Rural | C16: =IF(INTRO!$E$43="Non endémique"," ", IF(COUNTRY_INFO!C16=0," ",COUNTRY_INFO!C16)) -> Kabezi | D16: =IF(INTRO!$E$43="Non endémique", "Non requis", COUNTRY_INFO!Y16) -> 0 | E16: =IF(OR(COUNTRY_INFO!R16="Inconnu",COUNTRY_INFO!R16="Surveillance",COUNTRY_INFO!R16="Non requis",COUNTRY_INFO!R16=0),0,IF($D16<>0, COUNTRY_INFO!R16,0)) -> 0 | F16: =IF(OR(COUNTRY_INFO!S16="Inconnu",COUNTRY_INFO!S16="Surveillance",COUNTRY_INFO!S16="Non requis",COUNTRY_INFO!S16=0),0,IF($D16<>0, COUNTRY_INFO!S16,0)) -> 0 | G16: =IF(OR(COUNTRY_INFO!T16="Inconnu",COUNTRY_INFO!T16="Surveillance",COUNTRY_INFO!T16="Non requis",COUNTRY_INFO!T16=0),0,IF($D16<>0, COUNTRY_INFO!T16,0)) -> 0 | H16: 0 | N16: =IF($I16<>"Oui",$F16*2,($F16+ROUND(J16*$F16/SUM(COUNTRY_INFO!$E16:$G16),0))*2) -> 0 | O16: =IF($I16<>"Oui",$G16*3,($G16+ROUND(J16*$G16/SUM(COUNTRY_INFO!$E16:$G16),0))*3) -> 0 | P16: 0 | R16: 0
A17: =IF(INTRO!$E$43="Non endémique"," ", IF(COUNTRY_INFO!A17=0," ",COUNTRY_INFO!A17)) -> Burundi | B17: =IF(INTRO!$E$43="Non endémique"," ", IF(COUNTRY_INFO!B17=0," ",COUNTRY_INFO!B17)) -> Bujumbura Rural | C17: =IF(INTRO!$E$43="Non endémique"," ", IF(COUNTRY_INFO!C17=0," ",COUNTRY_INFO!C17)) -> Rwibaga | D17: =IF(INTRO!$E$43="Non endémique", "Non requis", COUNTRY_INFO!Y17) -> 0 | E17: =IF(OR(COUNTRY_INFO!R17="Inconnu",COUNTRY_INFO!R17="Surveillance",COUNTRY_INFO!R17="Non requis",COUNTRY_INFO!R17=0),0,IF($D17<>0, COUNTRY_INFO!R17,0)) -> 0 | F17: =IF(OR(COUNTRY_INFO!S17="Inconnu",COUNTRY_INFO!S17="Surveillance",COUNTRY_INFO!S17="Non requis",COUNTRY_INFO!S17=0),0,IF($D17<>0, COUNTRY_INFO!S17,0)) -> 0 | G17: =IF(OR(COUNTRY_INFO!T17="Inconnu",COUNTRY_INFO!T17="Surveillance",COUNTRY_INFO!T17="Non requis",COUNTRY_INFO!T17=0),0,IF($D17<>0, COUNTRY_INFO!T17,0)) -> 0 | H17: 0 | N17: =IF($I17<>"Oui",$F17*2,($F17+ROUND(J17*$F17/SUM(COUNTRY_INFO!$E17:$G17),0))*2) -> 0 | O17: =IF($I17<>"Oui",$G17*3,($G17+ROUND(J17*$G17/SUM(COUNTRY_INFO!$E17:$G17),0))*3) -> 0 | P17: 0 | R17: 0
A18: =IF(INTRO!$E$43="Non endémique"," ", IF(COUNTRY_INFO!A18=0," ",COUNTRY_INFO!A18)) -> Burundi | B18: =IF(INTRO!$E$43="Non endémique"," ", IF(COUNTRY_INFO!B18=0," ",COUNTRY_INFO!B18)) -> Bururi | C18: =IF(INTRO!$E$43="Non endémique"," ", IF(COUNTRY_INFO!C18=0," ",COUNTRY_INFO!C18)) -> Bururi | D18: =IF(INTRO!$E$43="Non endémique", "Non requis", COUNTRY_INFO!Y18) -> 0 | E18: =IF(OR(COUNTRY_INFO!R18="Inconnu",COUNTRY_INFO!R18="Surveillance",COUNTRY_INFO!R18="Non requis",COUNTRY_INFO!R18=0),0,IF($D18<>0, COUNTRY_INFO!R18,0)) -> 0 | F18: =IF(OR(COUNTRY_INFO!S18="Inconnu",COUNTRY_INFO!S18="Surveillance",COUNTRY_INFO!S18="Non requis",COUNTRY_INFO!S18=0),0,IF($D18<>0, COUNTRY_INFO!S18,0)) -> 0 | G18: =IF(OR(COUNTRY_INFO!T18="Inconnu",COUNTRY_INFO!T18="Surveillance",COUNTRY_INFO!T18="Non requis",COUNTRY_INFO!T18=0),0,IF($D18<>0, COUNTRY_INFO!T18,0)) -> 0 | H18: 0 | N18: =IF($I18<>"Oui",$F18*2,($F18+ROUND(J18*$F18/SUM(COUNTRY_INFO!$E18:$G18),0))*2) -> 0 | O18: =IF($I18<>"Oui",$G18*3,($G18+ROUND(J18*$G18/SUM(COUNTRY_INFO!$E18:$G18),0))*3) -> 0 | P18: 0 | R18: 0
A19: =IF(INTRO!$E$43="Non endémique"," ", IF(COUNTRY_INFO!A19=0," ",COUNTRY_INFO!A19)) -> Burundi | B19: =IF(INTRO!$E$43="Non endémique"," ", IF(COUNTRY_INFO!B19=0," ",COUNTRY_INFO!B19)) -> Bururi | C19: =IF(INTRO!$E$43="Non endémique"," ", IF(COUNTRY_INFO!C19=0," ",COUNTRY_INFO!C19)) -> Matana | D19: =IF(INTRO!$E$43="Non endémique", "Non requis", COUNTRY_INFO!Y19) -> 0 | E19: =IF(OR(COUNTRY_INFO!R19="Inconnu",COUNTRY_INFO!R19="Surveillance",COUNTRY_INFO!R19="Non requis",COUNTRY_INFO!R19=0),0,IF($D19<>0, COUNTRY_INFO!R19,0)) -> 0 | F19: =IF(OR(COUNTRY_INFO!S19="Inconnu",COUNTRY_INFO!S19="Surveillance",COUNTRY_INFO!S19="Non requis",COUNTRY_INFO!S19=0),0,IF($D19<>0, COUNTRY_INFO!S19,0)) -> 0 | G19: =IF(OR(COUNTRY_INFO!T19="Inconnu",COUNTRY_INFO!T19="Surveillance",COUNTRY_INFO!T19="Non requis",COUNTRY_INFO!T19=0),0,IF($D19<>0, COUNTRY_INFO!T19,0)) -> 0 | H19: 0 | N19: =IF($I19<>"Oui",$F19*2,($F19+ROUND(J19*$F19/SUM(COUNTRY_INFO!$E19:$G19),0))*2) -> 0 | O19: =IF($I19<>"Oui",$G19*3,($G19+ROUND(J19*$G19/SUM(COUNTRY_INFO!$E19:$G19),0))*3) -> 0 | P19: 0 | R19: 0
A20: =IF(INTRO!$E$43="Non endémique"," ", IF(COUNTRY_INFO!A20=0," ",COUNTRY_INFO!A20)) -> Burundi | B20: =IF(INTRO!$E$43="Non endémique"," ", IF(COUNTRY_INFO!B20=0," ",COUNTRY_INFO!B20)) -> Bururi | C20: =IF(INTRO!$E$43="Non endémique"," ", IF(COUNTRY_INFO!C20=0," ",COUNTRY_INFO!C20)) -> Rutovu | D20: =IF(INTRO!$E$43="Non endémique", "Non requis", COUNTRY_INFO!Y20) -> 0 | E20: =IF(OR(COUNTRY_INFO!R20="Inconnu",COUNTRY_INFO!R20="Surveillance",COUNTRY_INFO!R20="Non requis",COUNTRY_INFO!R20=0),0,IF($D20<>0, COUNTRY_INFO!R20,0)) -> 0 | F20: =IF(OR(COUNTRY_INFO!S20="Inconnu",COUNTRY_INFO!S20="Surveillance",COUNTRY_INFO!S20="Non requis",COUNTRY_INFO!S20=0),0,IF($D20<>0, COUNTRY_INFO!S20,0)) -> 0 | G20: =IF(OR(COUNTRY_INFO!T20="Inconnu",COUNTRY_INFO!T20="Surveillance",COUNTRY_INFO!T20="Non requis",COUNTRY_INFO!T20=0),0,IF($D20<>0, COUNTRY_INFO!T20,0)) -> 0 | H20: 0 | N20: =IF($I20<>"Oui",$F20*2,($F20+ROUND(J20*$F20/SUM(COUNTRY_INFO!$E20:$G20),0))*2) -> 0 | O20: =IF($I20<>"Oui",$G20*3,($G20+ROUND(J20*$G20/SUM(COUNTRY_INFO!$E20:$G20),0))*3) -> 0 | P20: 0 | R20: 0
A21: =IF(INTRO!$E$43="Non endémique"," ", IF(COUNTRY_INFO!A21=0," ",COUNTRY_INFO!A21)) -> Burundi | B21: =IF(INTRO!$E$43="Non endémique"," ", IF(COUNTRY_INFO!B21=0," ",COUNTRY_INFO!B21)) -> Cankuzo | C21: =IF(INTRO!$E$43="Non endémique"," ", IF(COUNTRY_INFO!C21=0," ",COUNTRY_INFO!C21)) -> Cankuzo | D21: =IF(INTRO!$E$43="Non endémique", "Non requis", COUNTRY_INFO!Y21) -> 0 | E21: =IF(OR(COUNTRY_INFO!R21="Inconnu",COUNTRY_INFO!R21="Surveillance",COUNTRY_INFO!R21="Non requis",COUNTRY_INFO!R21=0),0,IF($D21<>0, COUNTRY_INFO!R21,0)) -> 0 | F21: =IF(OR(COUNTRY_INFO!S21="Inconnu",COUNTRY_INFO!S21="Surveillance",COUNTRY_INFO!S21="Non requis",COUNTRY_INFO!S21=0),0,IF($D21<>0, COUNTRY_INFO!S21,0)) -> 0 | G21: =IF(OR(COUNTRY_INFO!T21="Inconnu",COUNTRY_INFO!T21="Surveillance",COUNTRY_INFO!T21="Non requis",COUNTRY_INFO!T21=0),0,IF($D21<>0, COUNTRY_INFO!T21,0)) -> 0 | H21: 0 | N21: =IF($I21<>"Oui",$F21*2,($F21+ROUND(J21*$F21/SUM(COUNTRY_INFO!$E21:$G21),0))*2) -> 0 | O21: =IF($I21<>"Oui",$G21*3,($G21+ROUND(J21*$G21/SUM(COUNTRY_INFO!$E21:$G21),0))*3) -> 0 | P21: 0 | R21: 0
A22: =IF(INTRO!$E$43="Non endémique"," ", IF(COUNTRY_INFO!A22=0," ",COUNTRY_INFO!A22)) -> Burundi | B22: =IF(INTRO!$E$43="Non endémique"," ", IF(COUNTRY_INFO!B22=0," ",COUNTRY_INFO!B22)) -> Cankuzo | C22: =IF(INTRO!$E$43="Non endémique"," ", IF(COUNTRY_INFO!C22=0," ",COUNTRY_INFO!C22)) -> Murore | D22: =IF(INTRO!$E$43="Non endémique", "Non requis", COUNTRY_INFO!Y22) -> 0 | E22: =IF(OR(COUNTRY_INFO!R22="Inconnu",COUNTRY_INFO!R22="Surveillance",COUNTRY_INFO!R22="Non requis",COUNTRY_INFO!R22=0),0,IF($D22<>0, COUNTRY_INFO!R22,0)) -> 0 | F22: =IF(OR(COUNTRY_INFO!S22="Inconnu",COUNTRY_INFO!S22="Surveillance",COUNTRY_INFO!S22="Non requis",COUNTRY_INFO!S22=0),0,IF($D22<>0, COUNTRY_INFO!S22,0)) -> 0 | G22: =IF(OR(COUNTRY_INFO!T22="Inconnu",COUNTRY_INFO!T22="Surveillance",COUNTRY_INFO!T22="Non requis",COUNTRY_INFO!T22=0),0,IF($D22<>0, COUNTRY_INFO!T22,0)) -> 0 | H22: 0 | N22: =IF($I22<>"Oui",$F22*2,($F22+ROUND(J22*$F22/SUM(COUNTRY_INFO!$E22:$G22),0))*2) -> 0 | O22: =IF($I22<>"Oui",$G22*3,($G22+ROUND(J22*$G22/SUM(COUNTRY_INFO!$E22:$G22),0))*3) -> 0 | P22: 0 | R22: 0
A23: =IF(INTRO!$E$43="Non endémique"," ", IF(COUNTRY_INFO!A23=0," ",COUNTRY_INFO!A23)) -> Burundi | B23: =IF(INTRO!$E$43="Non endémique"," ", IF(COUNTRY_INFO!B23=0," ",COUNTRY_INFO!B23)) -> Cibitoke | C23: =IF(INTRO!$E$43="Non endémique"," ", IF(COUNTRY_INFO!C23=0," ",COUNTRY_INFO!C23)) -> Bukinanyana | D23: =IF(INTRO!$E$43="Non endémique", "Non requis", COUNTRY_INFO!Y23) -> 0 | E23: =IF(OR(COUNTRY_INFO!R23="Inconnu",COUNTRY_INFO!R23="Surveillance",COUNTRY_INFO!R23="Non requis",COUNTRY_INFO!R23=0),0,IF($D23<>0, COUNTRY_INFO!R23,0)) -> 0 | F23: =IF(OR(COUNTRY_INFO!S23="Inconnu",COUNTRY_INFO!S23="Surveillance",COUNTRY_INFO!S23="Non requis",COUNTRY_INFO!S23=0),0,IF($D23<>0, COUNTRY_INFO!S23,0)) -> 0 | G23: =IF(OR(COUNTRY_INFO!T23="Inconnu",COUNTRY_INFO!T23="Surveillance",COUNTRY_INFO!T23="Non requis",COUNTRY_INFO!T23=0),0,IF($D23<>0, COUNTRY_INFO!T23,0)) -> 0 | H23: 0 | N23: =IF($I23<>"Oui",$F23*2,($F23+ROUND(J23*$F23/SUM(COUNTRY_INFO!$E23:$G23),0))*2) -> 0 | O23: =IF($I23<>"Oui",$G23*3,($G23+ROUND(J23*$G23/SUM(COUNTRY_INFO!$E23:$G23),0))*3) -> 0 | P23: 0 | R23: 0
A24: =IF(INTRO!$E$43="Non endémique"," ", IF(COUNTRY_INFO!A24=0," ",COUNTRY_INFO!A24)) -> Burundi | B24: =IF(INTRO!$E$43="Non endémique"," ", IF(COUNTRY_INFO!B24=0," ",COUNTRY_INFO!B24)) -> Cibitoke | C24: =IF(INTRO!$E$43="Non endémique"," ", IF(COUNTRY_INFO!C24=0," ",COUNTRY_INFO!C24)) -> Cibitoke | D24: =IF(INTRO!$E$43="Non endémique", "Non requis", COUNTRY_INFO!Y24) -> 1 | E24: =IF(OR(COUNTRY_INFO!R24="Inconnu",COUNTRY_INFO!R24="Surveillance",COUNTRY_INFO!R24="Non requis",COUNTRY_INFO!R24=0),0,IF($D24<>0, COUNTRY_INFO!R24,0)) -> 6955 | F24: =IF(OR(COUNTRY_INFO!S24="Inconnu",COUNTRY_INFO!S24="Surveillance",COUNTRY_INFO!S24="Non requis",COUNTRY_INFO!S24=0),0,IF($D24<>0, COUNTRY_INFO!S24,0)) -> 15996 | G24: =IF(OR(COUNTRY_INFO!T24="Inconnu",COUNTRY_INFO!T24="Surveillance",COUNTRY_INFO!T24="Non requis",COUNTRY_INFO!T24=0),0,IF($D24<>0, COUNTRY_INFO!T24,0)) -> 28729 | H24: 51680 | N24: =IF($I24<>"Oui",$F24*2,($F24+ROUND(J24*$F24/SUM(COUNTRY_INFO!$E24:$G24),0))*2) -> 31992 | O24: =IF($I24<>"Oui",$G24*3,($G24+ROUND(J24*$G24/SUM(COUNTRY_INFO!$E24:$G24),0))*3) -> 86187 | P24: 118179 | R24: 118179
A25: =IF(INTRO!$E$43="Non endémique"," ", IF(COUNTRY_INFO!A25=0," ",COUNTRY_INFO!A25)) -> Burundi | B25: =IF(INTRO!$E$43="Non endémique"," ", IF(COUNTRY_INFO!B25=0," ",COUNTRY_INFO!B25)) -> Cibitoke | C25: =IF(INTRO!$E$43="Non endémique"," ", IF(COUNTRY_INFO!C25=0," ",COUNTRY_INFO!C25)) -> Mabayi | D25: =IF(INTRO!$E$43="Non endémique", "Non requis", COUNTRY_INFO!Y25) -> 1 | E25: =IF(OR(COUNTRY_INFO!R25="Inconnu",COUNTRY_INFO!R25="Surveillance",COUNTRY_INFO!R25="Non requis",COUNTRY_INFO!R25=0),0,IF($D25<>0, COUNTRY_INFO!R25,0)) -> 7204 | F25: =IF(OR(COUNTRY_INFO!S25="Inconnu",COUNTRY_INFO!S25="Surveillance",COUNTRY_INFO!S25="Non requis",COUNTRY_INFO!S25=0),0,IF($D25<>0, COUNTRY_INFO!S25,0)) -> 16567 | G25: =IF(OR(COUNTRY_INFO!T25="Inconnu",COUNTRY_INFO!T25="Surveillance",COUNTRY_INFO!T25="Non requis",COUNTRY_INFO!T25=0),0,IF($D25<>0, COUNTRY_INFO!T25,0)) -> 29754 | H25: 53525 | N25: =IF($I25<>"Oui",$F25*2,($F25+ROUND(J25*$F25/SUM(COUNTRY_INFO!$E25:$G25),0))*2) -> 33134 | O25: =IF($I25<>"Oui",$G25*3,($G25+ROUND(J25*$G25/SUM(COUNTRY_INFO!$E25:$G25),0))*3) -> 89262 | P25: 122396 | R25: 122396
A26: =IF(INTRO!$E$43="Non endémique"," ", IF(COUNTRY_INFO!A26=0," ",COUNTRY_INFO!A26)) -> Burundi | B26: =IF(INTRO!$E$43="Non endémique"," ", IF(COUNTRY_INFO!B26=0," ",COUNTRY_INFO!B26)) -> Gitega | C26: =IF(INTRO!$E$43="Non endémique"," ", IF(COUNTRY_INFO!C26=0," ",COUNTRY_INFO!C26)) -> Gitega | D26: =IF(INTRO!$E$43="Non endémique", "Non requis", COUNTRY_INFO!Y26) -> 0 | E26: =IF(OR(COUNTRY_INFO!R26="Inconnu",COUNTRY_INFO!R26="Surveillance",COUNTRY_INFO!R26="Non requis",COUNTRY_INFO!R26=0),0,IF($D26<>0, COUNTRY_INFO!R26,0)) -> 0 | F26: =IF(OR(COUNTRY_INFO!S26="Inconnu",COUNTRY_INFO!S26="Surveillance",COUNTRY_INFO!S26="Non requis",COUNTRY_INFO!S26=0),0,IF($D26<>0, COUNTRY_INFO!S26,0)) -> 0 | G26: =IF(OR(COUNTRY_INFO!T26="Inconnu",COUNTRY_INFO!T26="Surveillance",COUNTRY_INFO!T26="Non requis",COUNTRY_INFO!T26=0),0,IF($D26<>0, COUNTRY_INFO!T26,0)) -> 0 | H26: 0 | N26: =IF($I26<>"Oui",$F26*2,($F26+ROUND(J26*$F26/SUM(COUNTRY_INFO!$E26:$G26),0))*2) -> 0 | O26: =IF($I26<>"Oui",$G26*3,($G26+ROUND(J26*$G26/SUM(COUNTRY_INFO!$E26:$G26),0))*3) -> 0 | P26: 0 | R26: 0
A27: =IF(INTRO!$E$43="Non endémique"," ", IF(COUNTRY_INFO!A27=0," ",COUNTRY_INFO!A27)) -> Burundi | B27: =IF(INTRO!$E$43="Non endémique"," ", IF(COUNTRY_INFO!B27=0," ",COUNTRY_INFO!B27)) -> Gitega | C27: =IF(INTRO!$E$43="Non endémique"," ", IF(COUNTRY_INFO!C27=0," ",COUNTRY_INFO!C27)) -> Kibuye | D27: =IF(INTRO!$E$43="Non endémique", "Non requis", COUNTRY_INFO!Y27) -> 0 | E27: =IF(OR(COUNTRY_INFO!R27="Inconnu",COUNTRY_INFO!R27="Surveillance",COUNTRY_INFO!R27="Non requis",COUNTRY_INFO!R27=0),0,IF($D27<>0, COUNTRY_INFO!R27,0)) -> 0 | F27: =IF(OR(COUNTRY_INFO!S27="Inconnu",COUNTRY_INFO!S27="Surveillance",COUNTRY_INFO!S27="Non requis",COUNTRY_INFO!S27=0),0,IF($D27<>0, COUNTRY_INFO!S27,0)) -> 0 | G27: =IF(OR(COUNTRY_INFO!T27="Inconnu",COUNTRY_INFO!T27="Surveillance",COUNTRY_INFO!T27="Non requis",COUNTRY_INFO!T27=0),0,IF($D27<>0, COUNTRY_INFO!T27,0)) -> 0 | H27: 0 | N27: =IF($I27<>"Oui",$F27*2,($F27+ROUND(J27*$F27/SUM(COUNTRY_INFO!$E27:$G27),0))*2) -> 0 | O27: =IF($I27<>"Oui",$G27*3,($G27+ROUND(J27*$G27/SUM(COUNTRY_INFO!$E27:$G27),0))*3) -> 0 | P27: 0 | R27: 0
A28: =IF(INTRO!$E$43="Non endémique"," ", IF(COUNTRY_INFO!A28=0," ",COUNTRY_INFO!A28)) -> Burundi | B28: =IF(INTRO!$E$43="Non endémique"," ", IF(COUNTRY_INFO!B28=0," ",COUNTRY_INFO!B28)) -> Gitega | C28: =IF(INTRO!$E$43="Non endémique"," ", IF(COUNTRY_INFO!C28=0," ",COUNTRY_INFO!C28)) -> Mutaho | D28: =IF(INTRO!$E$43="Non endémique", "Non requis", COUNTRY_INFO!Y28) -> 0 | E28: =IF(OR(COUNTRY_INFO!R28="Inconnu",COUNTRY_INFO!R28="Surveillance",COUNTRY_INFO!R28="Non requis",COUNTRY_INFO!R28=0),0,IF($D28<>0, COUNTRY_INFO!R28,0)) -> 0 | F28: =IF(OR(COUNTRY_INFO!S28="Inconnu",COUNTRY_INFO!S28="Surveillance",COUNTRY_INFO!S28="Non requis",COUNTRY_INFO!S28=0),0,IF($D28<>0, COUNTRY_INFO!S28,0)) -> 0 | G28: =IF(OR(COUNTRY_INFO!T28="Inconnu",COUNTRY_INFO!T28="Surveillance",COUNTRY_INFO!T28="Non requis",COUNTRY_INFO!T28=0),0,IF($D28<>0, COUNTRY_INFO!T28,0)) -> 0 | H28: 0 | N28: =IF($I28<>"Oui",$F28*2,($F28+ROUND(J28*$F28/SUM(COUNTRY_INFO!$E28:$G28),0))*2) -> 0 | O28: =IF($I28<>"Oui",$G28*3,($G28+ROUND(J28*$G28/SUM(COUNTRY_INFO!$E28:$G28),0))*3) -> 0 | P28: 0 | R28: 0
A29: =IF(INTRO!$E$43="Non endémique"," ", IF(COUNTRY_INFO!A29=0," ",COUNTRY_INFO!A29)) -> Burundi | B29: =IF(INTRO!$E$43="Non endémique"," ", IF(COUNTRY_INFO!B29=0," ",COUNTRY_INFO!B29)) -> Gitega | C29: =IF(INTRO!$E$43="Non endémique"," ", IF(COUNTRY_INFO!C29=0," ",COUNTRY_INFO!C29)) -> Ryansoro | D29: =IF(INTRO!$E$43="Non endémique", "Non requis", COUNTRY_INFO!Y29) -> 0 | E29: =IF(OR(COUNTRY_INFO!R29="Inconnu",COUNTRY_INFO!R29="Surveillance",COUNTRY_INFO!R29="Non requis",COUNTRY_INFO!R29=0),0,IF($D29<>0, COUNTRY_INFO!R29,0)) -> 0 | F29: =IF(OR(COUNTRY_INFO!S29="Inconnu",COUNTRY_INFO!S29="Surveillance",COUNTRY_INFO!S29="Non requis",COUNTRY_INFO!S29=0),0,IF($D29<>0, COUNTRY_INFO!S29,0)) -> 0 | G29: =IF(OR(COUNTRY_INFO!T29="Inconnu",COUNTRY_INFO!T29="Surveillance",COUNTRY_INFO!T29="Non requis",COUNTRY_INFO!T29=0),0,IF($D29<>0, COUNTRY_INFO!T29,0)) -> 0 | H29: 0 | N29: =IF($I29<>"Oui",$F29*2,($F29+ROUND(J29*$F29/SUM(COUNTRY_INFO!$E29:$G29),0))*2) -> 0 | O29: =IF($I29<>"Oui",$G29*3,($G29+ROUND(J29*$G29/SUM(COUNTRY_INFO!$E29:$G29),0))*3) -> 0 | P29: 0 | R29: 0
A30: =IF(INTRO!$E$43="Non endémique"," ", IF(COUNTRY_INFO!A30=0," ",COUNTRY_INFO!A30)) -> Burundi | B30: =IF(INTRO!$E$43="Non endémique"," ", IF(COUNTRY_INFO!B30=0," ",COUNTRY_INFO!B30)) -> Karusi | C30: =IF(INTRO!$E$43="Non endémique"," ", IF(COUNTRY_INFO!C30=0," ",COUNTRY_INFO!C30)) -> Buhiga | D30: =IF(INTRO!$E$43="Non endémique", "Non requis", COUNTRY_INFO!Y30) -> 0 | E30: =IF(OR(COUNTRY_INFO!R30="Inconnu",COUNTRY_INFO!R30="Surveillance",COUNTRY_INFO!R30="Non requis",COUNTRY_INFO!R30=0),0,IF($D30<>0, COUNTRY_INFO!R30,0)) -> 0 | F30: =IF(OR(COUNTRY_INFO!S30="Inconnu",COUNTRY_INFO!S30="Surveillance",COUNTRY_INFO!S30="Non requis",COUNTRY_INFO!S30=0),0,IF($D30<>0, COUNTRY_INFO!S30,0)) -> 0 | G30: =IF(OR(COUNTRY_INFO!T30="Inconnu",COUNTRY_INFO!T30="Surveillance",COUNTRY_INFO!T30="Non requis",COUNTRY_INFO!T30=0),0,IF($D30<>0, COUNTRY_INFO!T30,0)) -> 0 | H30: 0 | N30: =IF($I30<>"Oui",$F30*2,($F30+ROUND(J30*$F30/SUM(COUNTRY_INFO!$E30:$G30),0))*2) -> 0 | O30: =IF($I30<>"Oui",$G30*3,($G30+ROUND(J30*$G30/SUM(COUNTRY_INFO!$E30:$G30),0))*3) -> 0 | P30: 0 | R30: 0
A31: =IF(INTRO!$E$43="Non endémique"," ", IF(COUNTRY_INFO!A31=0," ",COUNTRY_INFO!A31)) -> Burundi | B31: =IF(INTRO!$E$43="Non endémique"," ", IF(COUNTRY_INFO!B31=0," ",COUNTRY_INFO!B31)) -> Karusi | C31: =IF(INTRO!$E$43="Non endémique"," ", IF(COUNTRY_INFO!C31=0," ",COUNTRY_INFO!C31)) -> Nyabikere | D31: =IF(INTRO!$E$43="Non endémique", "Non requis", COUNTRY_INFO!Y31) -> 0 | E31: =IF(OR(COUNTRY_INFO!R31="Inconnu",COUNTRY_INFO!R31="Surveillance",COUNTRY_INFO!R31="Non requis",COUNTRY_INFO!R31=0),0,IF($D31<>0, COUNTRY_INFO!R31,0)) -> 0 | F31: =IF(OR(COUNTRY_INFO!S31="Inconnu",COUNTRY_INFO!S31="Surveillance",COUNTRY_INFO!S31="Non requis",COUNTRY_INFO!S31=0),0,IF($D31<>0, COUNTRY_INFO!S31,0)) -> 0 | G31: =IF(OR(COUNTRY_INFO!T31="Inconnu",COUNTRY_INFO!T31="Surveillance",COUNTRY_INFO!T31="Non requis",COUNTRY_INFO!T31=0),0,IF($D31<>0, COUNTRY_INFO!T31,0)) -> 0 | H31: 0 | N31: =IF($I31<>"Oui",$F31*2,($F31+ROUND(J31*$F31/SUM(COUNTRY_INFO!$E31:$G31),0))*2) -> 0 | O31: =IF($I31<>"Oui",$G31*3,($G31+ROUND(J31*$G31/SUM(COUNTRY_INFO!$E31:$G31),0))*3) -> 0 | P31: 0 | R31: 0
A32: =IF(INTRO!$E$43="Non endémique"," ", IF(COUNTRY_INFO!A32=0," ",COUNTRY_INFO!A32)) -> Burundi | B32: =IF(INTRO!$E$43="Non endémique"," ", IF(COUNTRY_INFO!B32=0," ",COUNTRY_INFO!B32)) -> Kayanza | C32: =IF(INTRO!$E$43="Non endémique"," ", IF(COUNTRY_INFO!C32=0," ",COUNTRY_INFO!C32)) -> Gahombo | D32: =IF(INTRO!$E$43="Non endémique", "Non requis", COUNTRY_INFO!Y32) -> 1 | E32: =IF(OR(COUNTRY_INFO!R32="Inconnu",COUNTRY_INFO!R32="Surveillance",COUNTRY_INFO!R32="Non requis",COUNTRY_INFO!R32=0),0,IF($D32<>0, COUNTRY_INFO!R32,0)) -> 9741 | F32: =IF(OR(COUNTRY_INFO!S32="Inconnu",COUNTRY_INFO!S32="Surveillance",COUNTRY_INFO!S32="Non requis",COUNTRY_INFO!S32=0),0,IF($D32<>0, COUNTRY_INFO!S32,0)) -> 22402 | G32: =IF(OR(COUNTRY_INFO!T32="Inconnu",COUNTRY_INFO!T32="Surveillance",COUNTRY_INFO!T32="Non requis",COUNTRY_INFO!T32=0),0,IF($D32<>0, COUNTRY_INFO!T32,0)) -> 40236 | H32: 72379 | N32: =IF($I32<>"Oui",$F32*2,($F32+ROUND(J32*$F32/SUM(COUNTRY_INFO!$E32:$G32),0))*2) -> 44804 | O32: =IF($I32<>"Oui",$G32*3,($G32+ROUND(J32*$G32/SUM(COUNTRY_INFO!$E32:$G32),0))*3) -> 120708 | P32: 165512 | R32: 165512
A33: =IF(INTRO!$E$43="Non endémique"," ", IF(COUNTRY_INFO!A33=0," ",COUNTRY_INFO!A33)) -> Burundi | B33: =IF(INTRO!$E$43="Non endémique"," ", IF(COUNTRY_INFO!B33=0," ",COUNTRY_INFO!B33)) -> Kayanza | C33: =IF(INTRO!$E$43="Non endémique"," ", IF(COUNTRY_INFO!C33=0," ",COUNTRY_INFO!C33)) -> Kayanza | D33: =IF(INTRO!$E$43="Non endémique", "Non requis", COUNTRY_INFO!Y33) -> 0 | E33: =IF(OR(COUNTRY_INFO!R33="Inconnu",COUNTRY_INFO!R33="Surveillance",COUNTRY_INFO!R33="Non requis",COUNTRY_INFO!R33=0),0,IF($D33<>0, COUNTRY_INFO!R33,0)) -> 0 | F33: =IF(OR(COUNTRY_INFO!S33="Inconnu",COUNTRY_INFO!S33="Surveillance",COUNTRY_INFO!S33="Non requis",COUNTRY_INFO!S33=0),0,IF($D33<>0, COUNTRY_INFO!S33,0)) -> 0 | G33: =IF(OR(COUNTRY_INFO!T33="Inconnu",COUNTRY_INFO!T33="Surveillance",COUNTRY_INFO!T33="Non requis",COUNTRY_INFO!T33=0),0,IF($D33<>0, COUNTRY_INFO!T33,0)) -> 0 | H33: 0 | N33: =IF($I33<>"Oui",$F33*2,($F33+ROUND(J33*$F33/SUM(COUNTRY_INFO!$E33:$G33),0))*2) -> 0 | O33: =IF($I33<>"Oui",$G33*3,($G33+ROUND(J33*$G33/SUM(COUNTRY_INFO!$E33:$G33),0))*3) -> 0 | P33: 0 | R33: 0
A34: =IF(INTRO!$E$43="Non endémique"," ", IF(COUNTRY_INFO!A34=0," ",COUNTRY_INFO!A34)) -> Burundi | B34: =IF(INTRO!$E$43="Non endémique"," ", IF(COUNTRY_INFO!B34=0," ",COUNTRY_INFO!B34)) -> Kayanza | C34: =IF(INTRO!$E$43="Non endémique"," ", IF(COUNTRY_INFO!C34=0," ",COUNTRY_INFO!C34)) -> Musema | D34: =IF(INTRO!$E$43="Non endémique", "Non requis", COUNTRY_INFO!Y34) -> 0 | E34: =IF(OR(COUNTRY_INFO!R34="Inconnu",COUNTRY_INFO!R34="Surveillance",COUNTRY_INFO!R34="Non requis",COUNTRY_INFO!R34=0),0,IF($D34<>0, COUNTRY_INFO!R34,0)) -> 0 | F34: =IF(OR(COUNTRY_INFO!S34="Inconnu",COUNTRY_INFO!S34="Surveillance",COUNTRY_INFO!S34="Non requis",COUNTRY_INFO!S34=0),0,IF($D34<>0, COUNTRY_INFO!S34,0)) -> 0 | G34: =IF(OR(COUNTRY_INFO!T34="Inconnu",COUNTRY_INFO!T34="Surveillance",COUNTRY_INFO!T34="Non requis",COUNTRY_INFO!T34=0),0,IF($D34<>0, COUNTRY_INFO!T34,0)) -> 0 | H34: 0 | N34: =IF($I34<>"Oui",$F34*2,($F34+ROUND(J34*$F34/SUM(COUNTRY_INFO!$E34:$G34),0))*2) -> 0 | O34: =IF($I34<>"Oui",$G34*3,($G34+ROUND(J34*$G34/SUM(COUNTRY_INFO!$E34:$G34),0))*3) -> 0 | P34: 0 | R34: 0
A35: =IF(INTRO!$E$43="Non endémique"," ", IF(COUNTRY_INFO!A35=0," ",COUNTRY_INFO!A35)) -> Burundi | B35: =IF(INTRO!$E$43="Non endémique"," ", IF(COUNTRY_INFO!B35=0," ",COUNTRY_INFO!B35)) -> Kirundo | C35: =IF(INTRO!$E$43="Non endémique"," ", IF(COUNTRY_INFO!C35=0," ",COUNTRY_INFO!C35)) -> Busoni | D35: =IF(INTRO!$E$43="Non endémique", "Non requis", COUNTRY_INFO!Y35) -> 0 | E35: =IF(OR(COUNTRY_INFO!R35="Inconnu",COUNTRY_INFO!R35="Surveillance",COUNTRY_INFO!R35="Non requis",COUNTRY_INFO!R35=0),0,IF($D35<>0, COUNTRY_INFO!R35,0)) -> 0 | F35: =IF(OR(COUNTRY_INFO!S35="Inconnu",COUNTRY_INFO!S35="Surveillance",COUNTRY_INFO!S35="Non requis",COUNTRY_INFO!S35=0),0,IF($D35<>0, COUNTRY_INFO!S35,0)) -> 0 | G35: =IF(OR(COUNTRY_INFO!T35="Inconnu",COUNTRY_INFO!T35="Surveillance",COUNTRY_INFO!T35="Non requis",COUNTRY_INFO!T35=0),0,IF($D35<>0, COUNTRY_INFO!T35,0)) -> 0 | H35: 0 | N35: =IF($I35<>"Oui",$F35*2,($F35+ROUND(J35*$F35/SUM(COUNTRY_INFO!$E35:$G35),0))*2) -> 0 | O35: =IF($I35<>"Oui",$G35*3,($G35+ROUND(J35*$G35/SUM(COUNTRY_INFO!$E35:$G35),0))*3) -> 0 | P35: 0 | R35: 0
A36: =IF(INTRO!$E$43="Non endémique"," ", IF(COUNTRY_INFO!A36=0," ",COUNTRY_INFO!A36)) -> Burundi | B36: =IF(INTRO!$E$43="Non endémique"," ", IF(COUNTRY_INFO!B36=0," ",COUNTRY_INFO!B36)) -> Kirundo | C36: =IF(INTRO!$E$43="Non endémique"," ", IF(COUNTRY_INFO!C36=0," ",COUNTRY_INFO!C36)) -> Kirundo | D36: =IF(INTRO!$E$43="Non endémique", "Non requis", COUNTRY_INFO!Y36) -> 0 | E36: =IF(OR(COUNTRY_INFO!R36="Inconnu",COUNTRY_INFO!R36="Surveillance",COUNTRY_INFO!R36="Non requis",COUNTRY_INFO!R36=0),0,IF($D36<>0, COUNTRY_INFO!R36,0)) -> 0 | F36: =IF(OR(COUNTRY_INFO!S36="Inconnu",COUNTRY_INFO!S36="Surveillance",COUNTRY_INFO!S36="Non requis",COUNTRY_INFO!S36=0),0,IF($D36<>0, COUNTRY_INFO!S36,0)) -> 0 | G36: =IF(OR(COUNTRY_INFO!T36="Inconnu",COUNTRY_INFO!T36="Surveillance",COUNTRY_INFO!T36="Non requis",COUNTRY_INFO!T36=0),0,IF($D36<>0, COUNTRY_INFO!T36,0)) -> 0 | H36: 0 | N36: =IF($I36<>"Oui",$F36*2,($F36+ROUND(J36*$F36/SUM(COUNTRY_INFO!$E36:$G36),0))*2) -> 0 | O36: =IF($I36<>"Oui",$G36*3,($G36+ROUND(J36*$G36/SUM(COUNTRY_INFO!$E36:$G36),0))*3) -> 0 | P36: 0 | R36: 0
A37: =IF(INTRO!$E$43="Non endémique"," ", IF(COUNTRY_INFO!A37=0," ",COUNTRY_INFO!A37)) -> Burundi | B37: =IF(INTRO!$E$43="Non endémique"," ", IF(COUNTRY_INFO!B37=0," ",COUNTRY_INFO!B37)) -> Kirundo | C37: =IF(INTRO!$E$43="Non endémique"," ", IF(COUNTRY_INFO!C37=0," ",COUNTRY_INFO!C37)) -> Mukenke | D37: =IF(INTRO!$E$43="Non endémique", "Non requis", COUNTRY_INFO!Y37) -> 0 | E37: =IF(OR(COUNTRY_INFO!R37="Inconnu",COUNTRY_INFO!R37="Surveillance",COUNTRY_INFO!R37="Non requis",COUNTRY_INFO!R37=0),0,IF($D37<>0, COUNTRY_INFO!R37,0)) -> 0 | F37: =IF(OR(COUNTRY_INFO!S37="Inconnu",COUNTRY_INFO!S37="Surveillance",COUNTRY_INFO!S37="Non requis",COUNTRY_INFO!S37=0),0,IF($D37<>0, COUNTRY_INFO!S37,0)) -> 0 | G37: =IF(OR(COUNTRY_INFO!T37="Inconnu",COUNTRY_INFO!T37="Surveillance",COUNTRY_INFO!T37="Non requis",COUNTRY_INFO!T37=0),0,IF($D37<>0, COUNTRY_INFO!T37,0)) -> 0 | H37: 0 | N37: =IF($I37<>"Oui",$F37*2,($F37+ROUND(J37*$F37/SUM(COUNTRY_INFO!$E37:$G37),0))*2) -> 0 | O37: =IF($I37<>"Oui",$G37*3,($G37+ROUND(J37*$G37/SUM(COUNTRY_INFO!$E37:$G37),0))*3) -> 0 | P37: 0 | R37: 0
A38: =IF(INTRO!$E$43="Non endémique"," ", IF(COUNTRY_INFO!A38=0," ",COUNTRY_INFO!A38)) -> Burundi | B38: =IF(INTRO!$E$43="Non endémique"," ", IF(COUNTRY_INFO!B38=0," ",COUNTRY_INFO!B38)) -> Kirundo | C38: =IF(INTRO!$E$43="Non endémique"," ", IF(COUNTRY_INFO!C38=0," ",COUNTRY_INFO!C38)) -> Vumbi | D38: =IF(INTRO!$E$43="Non endémique", "Non requis", COUNTRY_INFO!Y38) -> 0 | E38: =IF(OR(COUNTRY_INFO!R38="Inconnu",COUNTRY_INFO!R38="Surveillance",COUNTRY_INFO!R38="Non requis",COUNTRY_INFO!R38=0),0,IF($D38<>0, COUNTRY_INFO!R38,0)) -> 0 | F38: =IF(OR(COUNTRY_INFO!S38="Inconnu",COUNTRY_INFO!S38="Surveillance",COUNTRY_INFO!S38="Non requis",COUNTRY_INFO!S38=0),0,IF($D38<>0, COUNTRY_INFO!S38,0)) -> 0 | G38: =IF(OR(COUNTRY_INFO!T38="Inconnu",COUNTRY_INFO!T38="Surveillance",COUNTRY_INFO!T38="Non requis",COUNTRY_INFO!T38=0),0,IF($D38<>0, COUNTRY_INFO!T38,0)) -> 0 | H38: 0 | N38: =IF($I38<>"Oui",$F38*2,($F38+ROUND(J38*$F38/SUM(COUNTRY_INFO!$E38:$G38),0))*2) -> 0 | O38: =IF($I38<>"Oui",$G38*3,($G38+ROUND(J38*$G38/SUM(COUNTRY_INFO!$E38:$G38),0))*3) -> 0 | P38: 0 | R38: 0
A39: =IF(INTRO!$E$43="Non endémique"," ", IF(COUNTRY_INFO!A39=0," ",COUNTRY_INFO!A39)) -> Burundi | B39: =IF(INTRO!$E$43="Non endémique"," ", IF(COUNTRY_INFO!B39=0," ",COUNTRY_INFO!B39)) -> Makamba | C39: =IF(INTRO!$E$43="Non endémique"," ", IF(COUNTRY_INFO!C39=0," ",COUNTRY_INFO!C39)) -> Makamba | D39: =IF(INTRO!$E$43="Non endémique", "Non requis", COUNTRY_INFO!Y39) -> 0 | E39: =IF(OR(COUNTRY_INFO!R39="Inconnu",COUNTRY_INFO!R39="Surveillance",COUNTRY_INFO!R39="Non requis",COUNTRY_INFO!R39=0),0,IF($D39<>0, COUNTRY_INFO!R39,0)) -> 0 | F39: =IF(OR(COUNTRY_INFO!S39="Inconnu",COUNTRY_INFO!S39="Surveillance",COUNTRY_INFO!S39="Non requis",COUNTRY_INFO!S39=0),0,IF($D39<>0, COUNTRY_INFO!S39,0)) -> 0 | G39: =IF(OR(COUNTRY_INFO!T39="Inconnu",COUNTRY_INFO!T39="Surveillance",COUNTRY_INFO!T39="Non requis",COUNTRY_INFO!T39=0),0,IF($D39<>0, COUNTRY_INFO!T39,0)) -> 0 | H39: 0 | N39: =IF($I39<>"Oui",$F39*2,($F39+ROUND(J39*$F39/SUM(COUNTRY_INFO!$E39:$G39),0))*2) -> 0 | O39: =IF($I39<>"Oui",$G39*3,($G39+ROUND(J39*$G39/SUM(COUNTRY_INFO!$E39:$G39),0))*3) -> 0 | P39: 0 | R39: 0
A40: =IF(INTRO!$E$43="Non endémique"," ", IF(COUNTRY_INFO!A40=0," ",COUNTRY_INFO!A40)) -> Burundi | B40: =IF(INTRO!$E$43="Non endémique"," ", IF(COUNTRY_INFO!B40=0," ",COUNTRY_INFO!B40)) -> Makamba | C40: =IF(INTRO!$E$43="Non endémique"," ", IF(COUNTRY_INFO!C40=0," ",COUNTRY_INFO!C40)) -> Nyanza-Lac | D40: =IF(INTRO!$E$43="Non endémique", "Non requis", COUNTRY_INFO!Y40) -> 1 | E40: =IF(OR(COUNTRY_INFO!R40="Inconnu",COUNTRY_INFO!R40="Surveillance",COUNTRY_INFO!R40="Non requis",COUNTRY_INFO!R40=0),0,IF($D40<>0, COUNTRY_INFO!R40,0)) -> 23692 | F40: =IF(OR(COUNTRY_INFO!S40="Inconnu",COUNTRY_INFO!S40="Surveillance",COUNTRY_INFO!S40="Non requis",COUNTRY_INFO!S40=0),0,IF($D40<>0, COUNTRY_INFO!S40,0)) -> 54493 | G40: =IF(OR(COUNTRY_INFO!T40="Inconnu",COUNTRY_INFO!T40="Surveillance",COUNTRY_INFO!T40="Non requis",COUNTRY_INFO!T40=0),0,IF($D40<>0, COUNTRY_INFO!T40,0)) -> 97868 | H40: 176053 | N40: =IF($I40<>"Oui",$F40*2,($F40+ROUND(J40*$F40/SUM(COUNTRY_INFO!$E40:$G40),0))*2) -> 108986 | O40: =IF($I40<>"Oui",$G40*3,($G40+ROUND(J40*$G40/SUM(COUNTRY_INFO!$E40:$G40),0))*3) -> 293604 | P40: 402590 | R40: 402590
A41: =IF(INTRO!$E$43="Non endémique"," ", IF(COUNTRY_INFO!A41=0," ",COUNTRY_INFO!A41)) -> Burundi | B41: =IF(INTRO!$E$43="Non endémique"," ", IF(COUNTRY_INFO!B41=0," ",COUNTRY_INFO!B41)) -> Muramvya | C41: =IF(INTRO!$E$43="Non endémique"," ", IF(COUNTRY_INFO!C41=0," ",COUNTRY_INFO!C41)) -> Kiganda | D41: =IF(INTRO!$E$43="Non endémique", "Non requis", COUNTRY_INFO!Y41) -> 0 | E41: =IF(OR(COUNTRY_INFO!R41="Inconnu",COUNTRY_INFO!R41="Surveillance",COUNTRY_INFO!R41="Non requis",COUNTRY_INFO!R41=0),0,IF($D41<>0, COUNTRY_INFO!R41,0)) -> 0 | F41: =IF(OR(COUNTRY_INFO!S41="Inconnu",COUNTRY_INFO!S41="Surveillance",COUNTRY_INFO!S41="Non requis",COUNTRY_INFO!S41=0),0,IF($D41<>0, COUNTRY_INFO!S41,0)) -> 0 | G41: =IF(OR(COUNTRY_INFO!T41="Inconnu",COUNTRY_INFO!T41="Surveillance",COUNTRY_INFO!T41="Non requis",COUNTRY_INFO!T41=0),0,IF($D41<>0, COUNTRY_INFO!T41,0)) -> 0 | H41: 0 | N41: =IF($I41<>"Oui",$F41*2,($F41+ROUND(J41*$F41/SUM(COUNTRY_INFO!$E41:$G41),0))*2) -> 0 | O41: =IF($I41<>"Oui",$G41*3,($G41+ROUND(J41*$G41/SUM(COUNTRY_INFO!$E41:$G41),0))*3) -> 0 | P41: 0 | R41: 0
A42: =IF(INTRO!$E$43="Non endémique"," ", IF(COUNTRY_INFO!A42=0," ",COUNTRY_INFO!A42)) -> Burundi | B42: =IF(INTRO!$E$43="Non endémique"," ", IF(COUNTRY_INFO!B42=0," ",COUNTRY_INFO!B42)) -> Muramvya | C42: =IF(INTRO!$E$43="Non endémique"," ", IF(COUNTRY_INFO!C42=0," ",COUNTRY_INFO!C42)) -> Muramvya | D42: =IF(INTRO!$E$43="Non endémique", "Non requis", COUNTRY_INFO!Y42) -> 0 | E42: =IF(OR(COUNTRY_INFO!R42="Inconnu",COUNTRY_INFO!R42="Surveillance",COUNTRY_INFO!R42="Non requis",COUNTRY_INFO!R42=0),0,IF($D42<>0, COUNTRY_INFO!R42,0)) -> 0 | F42: =IF(OR(COUNTRY_INFO!S42="Inconnu",COUNTRY_INFO!S42="Surveillance",COUNTRY_INFO!S42="Non requis",COUNTRY_INFO!S42=0),0,IF($D42<>0, COUNTRY_INFO!S42,0)) -> 0 | G42: =IF(OR(COUNTRY_INFO!T42="Inconnu",COUNTRY_INFO!T42="Surveillance",COUNTRY_INFO!T42="Non requis",COUNTRY_INFO!T42=0),0,IF($D42<>0, COUNTRY_INFO!T42,0)) -> 0 | H42: 0 | N42: =IF($I42<>"Oui",$F42*2,($F42+ROUND(J42*$F42/SUM(COUNTRY_INFO!$E42:$G42),0))*2) -> 0 | O42: =IF($I42<>"Oui",$G42*3,($G42+ROUND(J42*$G42/SUM(COUNTRY_INFO!$E42:$G42),0))*3) -> 0 | P42: 0 | R42: 0
A43: =IF(INTRO!$E$43="Non endémique"," ", IF(COUNTRY_INFO!A43=0," ",COUNTRY_INFO!A43)) -> Burundi | B43: =IF(INTRO!$E$43="Non endémique"," ", IF(COUNTRY_INFO!B43=0," ",COUNTRY_INFO!B43)) -> Muyinga | C43: =IF(INTRO!$E$43="Non endémique"," ", IF(COUNTRY_INFO!C43=0," ",COUNTRY_INFO!C43)) -> Gashoho | D43: =IF(INTRO!$E$43="Non endémique", "Non requis", COUNTRY_INFO!Y43) -> 0 | E43: =IF(OR(COUNTRY_INFO!R43="Inconnu",COUNTRY_INFO!R43="Surveillance",COUNTRY_INFO!R43="Non requis",COUNTRY_INFO!R43=0),0,IF($D43<>0, COUNTRY_INFO!R43,0)) -> 0 | F43: =IF(OR(COUNTRY_INFO!S43="Inconnu",COUNTRY_INFO!S43="Surveillance",COUNTRY_INFO!S43="Non requis",COUNTRY_INFO!S43=0),0,IF($D43<>0, COUNTRY_INFO!S43,0)) -> 0 | G43: =IF(OR(COUNTRY_INFO!T43="Inconnu",COUNTRY_INFO!T43="Surveillance",COUNTRY_INFO!T43="Non requis",COUNTRY_INFO!T43=0),0,IF($D43<>0, COUNTRY_INFO!T43,0)) -> 0 | H43: 0 | N43: =IF($I43<>"Oui",$F43*2,($F43+ROUND(J43*$F43/SUM(COUNTRY_INFO!$E43:$G43),0))*2) -> 0 | O43: =IF($I43<>"Oui",$G43*3,($G43+ROUND(J43*$G43/SUM(COUNTRY_INFO!$E43:$G43),0))*3) -> 0 | P43: 0 | R43: 0
A44: =IF(INTRO!$E$43="Non endémique"," ", IF(COUNTRY_INFO!A44=0," ",COUNTRY_INFO!A44)) -> Burundi | B44: =IF(INTRO!$E$43="Non endémique"," ", IF(COUNTRY_INFO!B44=0," ",COUNTRY_INFO!B44)) -> Muyinga | C44: =IF(INTRO!$E$43="Non endémique"," ", IF(COUNTRY_INFO!C44=0," ",COUNTRY_INFO!C44)) -> Giteranyi | D44: =IF(INTRO!$E$43="Non endémique", "Non requis", COUNTRY_INFO!Y44) -> 0 | E44: =IF(OR(COUNTRY_INFO!R44="Inconnu",COUNTRY_INFO!R44="Surveillance",COUNTRY_INFO!R44="Non requis",COUNTRY_INFO!R44=0),0,IF($D44<>0, COUNTRY_INFO!R44,0)) -> 0 | F44: =IF(OR(COUNTRY_INFO!S44="Inconnu",COUNTRY_INFO!S44="Surveillance",COUNTRY_INFO!S44="Non requis",COUNTRY_INFO!S44=0),0,IF($D44<>0, COUNTRY_INFO!S44,0)) -> 0 | G44: =IF(OR(COUNTRY_INFO!T44="Inconnu",COUNTRY_INFO!T44="Surveillance",COUNTRY_INFO!T44="Non requis",COUNTRY_INFO!T44=0),0,IF($D44<>0, COUNTRY_INFO!T44,0)) -> 0 | H44: 0 | N44: =IF($I44<>"Oui",$F44*2,($F44+ROUND(J44*$F44/SUM(COUNTRY_INFO!$E44:$G44),0))*2) -> 0 | O44: =IF($I44<>"Oui",$G44*3,($G44+ROUND(J44*$G44/SUM(COUNTRY_INFO!$E44:$G44),0))*3) -> 0 | P44: 0 | R44: 0
A45: =IF(INTRO!$E$43="Non endémique"," ", IF(COUNTRY_INFO!A45=0," ",COUNTRY_INFO!A45)) -> Burundi | B45: =IF(INTRO!$E$43="Non endémique"," ", IF(COUNTRY_INFO!B45=0," ",COUNTRY_INFO!B45)) -> Muyinga | C45: =IF(INTRO!$E$43="Non endémique"," ", IF(COUNTRY_INFO!C45=0," ",COUNTRY_INFO!C45)) -> Muyinga | D45: =IF(INTRO!$E$43="Non endémique", "Non requis", COUNTRY_INFO!Y45) -> 0 | E45: =IF(OR(COUNTRY_INFO!R45="Inconnu",COUNTRY_INFO!R45="Surveillance",COUNTRY_INFO!R45="Non requis",COUNTRY_INFO!R45=0),0,IF($D45<>0, COUNTRY_INFO!R45,0)) -> 0 | F45: =IF(OR(COUNTRY_INFO!S45="Inconnu",COUNTRY_INFO!S45="Surveillance",COUNTRY_INFO!S45="Non requis",COUNTRY_INFO!S45=0),0,IF($D45<>0, COUNTRY_INFO!S45,0)) -> 0 | G45: =IF(OR(COUNTRY_INFO!T45="Inconnu",COUNTRY_INFO!T45="Surveillance",COUNTRY_INFO!T45="Non requis",COUNTRY_INFO!T45=0),0,IF($D45<>0, COUNTRY_INFO!T45,0)) -> 0 | H45: 0 | N45: =IF($I45<>"Oui",$F45*2,($F45+ROUND(J45*$F45/SUM(COUNTRY_INFO!$E45:$G45),0))*2) -> 0 | O45: =IF($I45<>"Oui",$G45*3,($G45+ROUND(J45*$G45/SUM(COUNTRY_INFO!$E45:$G45),0))*3) -> 0 | P45: 0 | R45: 0
A46: =IF(INTRO!$E$43="Non endémique"," ", IF(COUNTRY_INFO!A46=0," ",COUNTRY_INFO!A46)) -> Burundi | B46: =IF(INTRO!$E$43="Non endémique"," ", IF(COUNTRY_INFO!B46=0," ",COUNTRY_INFO!B46)) -> Mwaro | C46: =IF(INTRO!$E$43="Non endémique"," ", IF(COUNTRY_INFO!C46=0," ",COUNTRY_INFO!C46)) -> Fota | D46: =IF(INTRO!$E$43="Non endémique", "Non requis", COUNTRY_INFO!Y46) -> 0 | E46: =IF(OR(COUNTRY_INFO!R46="Inconnu",COUNTRY_INFO!R46="Surveillance",COUNTRY_INFO!R46="Non requis",COUNTRY_INFO!R46=0),0,IF($D46<>0, COUNTRY_INFO!R46,0)) -> 0 | F46: =IF(OR(COUNTRY_INFO!S46="Inconnu",COUNTRY_INFO!S46="Surveillance",COUNTRY_INFO!S46="Non requis",COUNTRY_INFO!S46=0),0,IF($D46<>0, COUNTRY_INFO!S46,0)) -> 0 | G46: =IF(OR(COUNTRY_INFO!T46="Inconnu",COUNTRY_INFO!T46="Surveillance",COUNTRY_INFO!T46="Non requis",COUNTRY_INFO!T46=0),0,IF($D46<>0, COUNTRY_INFO!T46,0)) -> 0 | H46: 0 | N46: =IF($I46<>"Oui",$F46*2,($F46+ROUND(J46*$F46/SUM(COUNTRY_INFO!$E46:$G46),0))*2) -> 0 | O46: =IF($I46<>"Oui",$G46*3,($G46+ROUND(J46*$G46/SUM(COUNTRY_INFO!$E46:$G46),0))*3) -> 0 | P46: 0 | R46: 0
A47: =IF(INTRO!$E$43="Non endémique"," ", IF(COUNTRY_INFO!A47=0," ",COUNTRY_INFO!A47)) -> Burundi | B47: =IF(INTRO!$E$43="Non endémique"," ", IF(COUNTRY_INFO!B47=0," ",COUNTRY_INFO!B47)) -> Mwaro | C47: =IF(INTRO!$E$43="Non endémique"," ", IF(COUNTRY_INFO!C47=0," ",COUNTRY_INFO!C47)) -> Kibumbu | D47: =IF(INTRO!$E$43="Non endémique", "Non requis", COUNTRY_INFO!Y47) -> 0 | E47: =IF(OR(COUNTRY_INFO!R47="Inconnu",COUNTRY_INFO!R47="Surveillance",COUNTRY_INFO!R47="Non requis",COUNTRY_INFO!R47=0),0,IF($D47<>0, COUNTRY_INFO!R47,0)) -> 0 | F47: =IF(OR(COUNTRY_INFO!S47="Inconnu",COUNTRY_INFO!S47="Surveillance",COUNTRY_INFO!S47="Non requis",COUNTRY_INFO!S47=0),0,IF($D47<>0, COUNTRY_INFO!S47,0)) -> 0 | G47: =IF(OR(COUNTRY_INFO!T47="Inconnu",COUNTRY_INFO!T47="Surveillance",COUNTRY_INFO!T47="Non requis",COUNTRY_INFO!T47=0),0,IF($D47<>0, COUNTRY_INFO!T47,0)) -> 0 | H47: 0 | N47: =IF($I47<>"Oui",$F47*2,($F47+ROUND(J47*$F47/SUM(COUNTRY_INFO!$E47:$G47),0))*2) -> 0 | O47: =IF($I47<>"Oui",$G47*3,($G47+ROUND(J47*$G47/SUM(COUNTRY_INFO!$E47:$G47),0))*3) -> 0 | P47: 0 | R47: 0
A48: =IF(INTRO!$E$43="Non endémique"," ", IF(COUNTRY_INFO!A48=0," ",COUNTRY_INFO!A48)) -> Burundi | B48: =IF(INTRO!$E$43="Non endémique"," ", IF(COUNTRY_INFO!B48=0," ",COUNTRY_INFO!B48)) -> Ngozi | C48: =IF(INTRO!$E$43="Non endémique"," ", IF(COUNTRY_INFO!C48=0," ",COUNTRY_INFO!C48)) -> Buye | D48: =IF(INTRO!$E$43="Non endémique", "Non requis", COUNTRY_INFO!Y48) -> 0 | E48: =IF(OR(COUNTRY_INFO!R48="Inconnu",COUNTRY_INFO!R48="Surveillance",COUNTRY_INFO!R48="Non requis",COUNTRY_INFO!R48=0),0,IF($D48<>0, COUNTRY_INFO!R48,0)) -> 0 | F48: =IF(OR(COUNTRY_INFO!S48="Inconnu",COUNTRY_INFO!S48="Surveillance",COUNTRY_INFO!S48="Non requis",COUNTRY_INFO!S48=0),0,IF($D48<>0, COUNTRY_INFO!S48,0)) -> 0 | G48: =IF(OR(COUNTRY_INFO!T48="Inconnu",COUNTRY_INFO!T48="Surveillance",COUNTRY_INFO!T48="Non requis",COUNTRY_INFO!T48=0),0,IF($D48<>0, COUNTRY_INFO!T48,0)) -> 0 | H48: 0 | N48: =IF($I48<>"Oui",$F48*2,($F48+ROUND(J48*$F48/SUM(COUNTRY_INFO!$E48:$G48),0))*2) -> 0 | O48: =IF($I48<>"Oui",$G48*3,($G48+ROUND(J48*$G48/SUM(COUNTRY_INFO!$E48:$G48),0))*3) -> 0 | P48: 0 | R48: 0
A49: =IF(INTRO!$E$43="Non endémique"," ", IF(COUNTRY_INFO!A49=0," ",COUNTRY_INFO!A49)) -> Burundi | B49: =IF(INTRO!$E$43="Non endémique"," ", IF(COUNTRY_INFO!B49=0," ",COUNTRY_INFO!B49)) -> Ngozi | C49: =IF(INTRO!$E$43="Non endémique"," ", IF(COUNTRY_INFO!C49=0," ",COUNTRY_INFO!C49)) -> Kiremba | D49: =IF(INTRO!$E$43="Non endémique", "Non requis", COUNTRY_INFO!Y49) -> 0 | E49: =IF(OR(COUNTRY_INFO!R49="Inconnu",COUNTRY_INFO!R49="Surveillance",COUNTRY_INFO!R49="Non requis",COUNTRY_INFO!R49=0),0,IF($D49<>0, COUNTRY_INFO!R49,0)) -> 0 | F49: =IF(OR(COUNTRY_INFO!S49="Inconnu",COUNTRY_INFO!S49="Surveillance",COUNTRY_INFO!S49="Non requis",COUNTRY_INFO!S49=0),0,IF($D49<>0, COUNTRY_INFO!S49,0)) -> 0 | G49: =IF(OR(COUNTRY_INFO!T49="Inconnu",COUNTRY_INFO!T49="Surveillance",COUNTRY_INFO!T49="Non requis",COUNTRY_INFO!T49=0),0,IF($D49<>0, COUNTRY_INFO!T49,0)) -> 0 | H49: 0 | N49: =IF($I49<>"Oui",$F49*2,($F49+ROUND(J49*$F49/SUM(COUNTRY_INFO!$E49:$G49),0))*2) -> 0 | O49: =IF($I49<>"Oui",$G49*3,($G49+ROUND(J49*$G49/SUM(COUNTRY_INFO!$E49:$G49),0))*3) -> 0 | P49: 0 | R49: 0
A50: =IF(INTRO!$E$43="Non endémique"," ", IF(COUNTRY_INFO!A50=0," ",COUNTRY_INFO!A50)) -> Burundi | B50: =IF(INTRO!$E$43="Non endémique"," ", IF(COUNTRY_INFO!B50=0," ",COUNTRY_INFO!B50)) -> Ngozi | C50: =IF(INTRO!$E$43="Non endémique"," ", IF(COUNTRY_INFO!C50=0," ",COUNTRY_INFO!C50)) -> Ngozi | D50: =IF(INTRO!$E$43="Non endémique", "Non requis", COUNTRY_INFO!Y50) -> 0 | E50: =IF(OR(COUNTRY_INFO!R50="Inconnu",COUNTRY_INFO!R50="Surveillance",COUNTRY_INFO!R50="Non requis",COUNTRY_INFO!R50=0),0,IF($D50<>0, COUNTRY_INFO!R50,0)) -> 0 | F50: =IF(OR(COUNTRY_INFO!S50="Inconnu",COUNTRY_INFO!S50="Surveillance",COUNTRY_INFO!S50="Non requis",COUNTRY_INFO!S50=0),0,IF($D50<>0, COUNTRY_INFO!S50,0)) -> 0 | G50: =IF(OR(COUNTRY_INFO!T50="Inconnu",COUNTRY_INFO!T50="Surveillance",COUNTRY_INFO!T50="Non requis",COUNTRY_INFO!T50=0),0,IF($D50<>0, COUNTRY_INFO!T50,0)) -> 0 | H50: 0 | N50: =IF($I50<>"Oui",$F50*2,($F50+ROUND(J50*$F50/SUM(COUNTRY_INFO!$E50:$G50),0))*2) -> 0 | O50: =IF($I50<>"Oui",$G50*3,($G50+ROUND(J50*$G50/SUM(COUNTRY_INFO!$E50:$G50),0))*3) -> 0 | P50: 0 | R50: 0
A51: =IF(INTRO!$E$43="Non endémique"," ", IF(COUNTRY_INFO!A51=0," ",COUNTRY_INFO!A51)) -> Burundi | B51: =IF(INTRO!$E$43="Non endémique"," ", IF(COUNTRY_INFO!B51=0," ",COUNTRY_INFO!B51)) -> Rumonge | C51: =IF(INTRO!$E$43="Non endémique"," ", IF(COUNTRY_INFO!C51=0," ",COUNTRY_INFO!C51)) -> Bugarama | D51: =IF(INTRO!$E$43="Non endémique", "Non requis", COUNTRY_INFO!Y51) -> 0 | E51: =IF(OR(COUNTRY_INFO!R51="Inconnu",COUNTRY_INFO!R51="Surveillance",COUNTRY_INFO!R51="Non requis",COUNTRY_INFO!R51=0),0,IF($D51<>0, COUNTRY_INFO!R51,0)) -> 0 | F51: =IF(OR(COUNTRY_INFO!S51="Inconnu",COUNTRY_INFO!S51="Surveillance",COUNTRY_INFO!S51="Non requis",COUNTRY_INFO!S51=0),0,IF($D51<>0, COUNTRY_INFO!S51,0)) -> 0 | G51: =IF(OR(COUNTRY_INFO!T51="Inconnu",COUNTRY_INFO!T51="Surveillance",COUNTRY_INFO!T51="Non requis",COUNTRY_INFO!T51=0),0,IF($D51<>0, COUNTRY_INFO!T51,0)) -> 0 | H51: 0 | N51: =IF($I51<>"Oui",$F51*2,($F51+ROUND(J51*$F51/SUM(COUNTRY_INFO!$E51:$G51),0))*2) -> 0 | O51: =IF($I51<>"Oui",$G51*3,($G51+ROUND(J51*$G51/SUM(COUNTRY_INFO!$E51:$G51),0))*3) -> 0 | P51: 0 | R51: 0
A52: =IF(INTRO!$E$43="Non endémique"," ", IF(COUNTRY_INFO!A52=0," ",COUNTRY_INFO!A52)) -> Burundi | B52: =IF(INTRO!$E$43="Non endémique"," ", IF(COUNTRY_INFO!B52=0," ",COUNTRY_INFO!B52)) -> Rumonge | C52: =IF(INTRO!$E$43="Non endémique"," ", IF(COUNTRY_INFO!C52=0," ",COUNTRY_INFO!C52)) -> Rumonge | D52: =IF(INTRO!$E$43="Non endémique", "Non requis", COUNTRY_INFO!Y52) -> 1 | E52: =IF(OR(COUNTRY_INFO!R52="Inconnu",COUNTRY_INFO!R52="Surveillance",COUNTRY_INFO!R52="Non requis",COUNTRY_INFO!R52=0),0,IF($D52<>0, COUNTRY_INFO!R52,0)) -> 26869 | F52: =IF(OR(COUNTRY_INFO!S52="Inconnu",COUNTRY_INFO!S52="Surveillance",COUNTRY_INFO!S52="Non requis",COUNTRY_INFO!S52=0),0,IF($D52<>0, COUNTRY_INFO!S52,0)) -> 61797 | G52: =IF(OR(COUNTRY_INFO!T52="Inconnu",COUNTRY_INFO!T52="Surveillance",COUNTRY_INFO!T52="Non requis",COUNTRY_INFO!T52=0),0,IF($D52<>0, COUNTRY_INFO!T52,0)) -> 110987 | H52: 199653 | N52: =IF($I52<>"Oui",$F52*2,($F52+ROUND(J52*$F52/SUM(COUNTRY_INFO!$E52:$G52),0))*2) -> 123594 | O52: =IF($I52<>"Oui",$G52*3,($G52+ROUND(J52*$G52/SUM(COUNTRY_INFO!$E52:$G52),0))*3) -> 332961 | P52: 456555 | R52: 456555
A53: =IF(INTRO!$E$43="Non endémique"," ", IF(COUNTRY_INFO!A53=0," ",COUNTRY_INFO!A53)) -> Burundi | B53: =IF(INTRO!$E$43="Non endémique"," ", IF(COUNTRY_INFO!B53=0," ",COUNTRY_INFO!B53)) -> Rutana | C53: =IF(INTRO!$E$43="Non endémique"," ", IF(COUNTRY_INFO!C53=0," ",COUNTRY_INFO!C53)) -> Gihofi | D53: =IF(INTRO!$E$43="Non endémique", "Non requis", COUNTRY_INFO!Y53) -> 0 | E53: =IF(OR(COUNTRY_INFO!R53="Inconnu",COUNTRY_INFO!R53="Surveillance",COUNTRY_INFO!R53="Non requis",COUNTRY_INFO!R53=0),0,IF($D53<>0, COUNTRY_INFO!R53,0)) -> 0 | F53: =IF(OR(COUNTRY_INFO!S53="Inconnu",COUNTRY_INFO!S53="Surveillance",COUNTRY_INFO!S53="Non requis",COUNTRY_INFO!S53=0),0,IF($D53<>0, COUNTRY_INFO!S53,0)) -> 0 | G53: =IF(OR(COUNTRY_INFO!T53="Inconnu",COUNTRY_INFO!T53="Surveillance",COUNTRY_INFO!T53="Non requis",COUNTRY_INFO!T53=0),0,IF($D53<>0, COUNTRY_INFO!T53,0)) -> 0 | H53: 0 | N53: =IF($I53<>"Oui",$F53*2,($F53+ROUND(J53*$F53/SUM(COUNTRY_INFO!$E53:$G53),0))*2) -> 0 | O53: =IF($I53<>"Oui",$G53*3,($G53+ROUND(J53*$G53/SUM(COUNTRY_INFO!$E53:$G53),0))*3) -> 0 | P53: 0 | R53: 0
A54: =IF(INTRO!$E$43="Non endémique"," ", IF(COUNTRY_INFO!A54=0," ",COUNTRY_INFO!A54)) -> Burundi | B54: =IF(INTRO!$E$43="Non endémique"," ", IF(COUNTRY_INFO!B54=0," ",COUNTRY_INFO!B54)) -> Rutana | C54: =IF(INTRO!$E$43="Non endémique"," ", IF(COUNTRY_INFO!C54=0," ",COUNTRY_INFO!C54)) -> Rutana | D54: =IF(INTRO!$E$43="Non endémique", "Non requis", COUNTRY_INFO!Y54) -> 0 | E54: =IF(OR(COUNTRY_INFO!R54="Inconnu",COUNTRY_INFO!R54="Surveillance",COUNTRY_INFO!R54="Non requis",COUNTRY_INFO!R54=0),0,IF($D54<>0, COUNTRY_INFO!R54,0)) -> 0 | F54: =IF(OR(COUNTRY_INFO!S54="Inconnu",COUNTRY_INFO!S54="Surveillance",COUNTRY_INFO!S54="Non requis",COUNTRY_INFO!S54=0),0,IF($D54<>0, COUNTRY_INFO!S54,0)) -> 0 | G54: =IF(OR(COUNTRY_INFO!T54="Inconnu",COUNTRY_INFO!T54="Surveillance",COUNTRY_INFO!T54="Non requis",COUNTRY_INFO!T54=0),0,IF($D54<>0, COUNTRY_INFO!T54,0)) -> 0 | H54: 0 | N54: =IF($I54<>"Oui",$F54*2,($F54+ROUND(J54*$F54/SUM(COUNTRY_INFO!$E54:$G54),0))*2) -> 0 | O54: =IF($I54<>"Oui",$G54*3,($G54+ROUND(J54*$G54/SUM(COUNTRY_INFO!$E54:$G54),0))*3) -> 0 | P54: 0 | R54: 0
A55: =IF(INTRO!$E$43="Non endémique"," ", IF(COUNTRY_INFO!A55=0," ",COUNTRY_INFO!A55)) -> Burundi | B55: =IF(INTRO!$E$43="Non endémique"," ", IF(COUNTRY_INFO!B55=0," ",COUNTRY_INFO!B55)) -> Ruyigi | C55: =IF(INTRO!$E$43="Non endémique"," ", IF(COUNTRY_INFO!C55=0," ",COUNTRY_INFO!C55)) -> Butezi | D55: =IF(INTRO!$E$43="Non endémique", "Non requis", COUNTRY_INFO!Y55) -> 0 | E55: =IF(OR(COUNTRY_INFO!R55="Inconnu",COUNTRY_INFO!R55="Surveillance",COUNTRY_INFO!R55="Non requis",COUNTRY_INFO!R55=0),0,IF($D55<>0, COUNTRY_INFO!R55,0)) -> 0 | F55: =IF(OR(COUNTRY_INFO!S55="Inconnu",COUNTRY_INFO!S55="Surveillance",COUNTRY_INFO!S55="Non requis",COUNTRY_INFO!S55=0),0,IF($D55<>0, COUNTRY_INFO!S55,0)) -> 0 | G55: =IF(OR(COUNTRY_INFO!T55="Inconnu",COUNTRY_INFO!T55="Surveillance",COUNTRY_INFO!T55="Non requis",COUNTRY_INFO!T55=0),0,IF($D55<>0, COUNTRY_INFO!T55,0)) -> 0 | H55: 0 | N55: =IF($I55<>"Oui",$F55*2,($F55+ROUND(J55*$F55/SUM(COUNTRY_INFO!$E55:$G55),0))*2) -> 0 | O55: =IF($I55<>"Oui",$G55*3,($G55+ROUND(J55*$G55/SUM(COUNTRY_INFO!$E55:$G55),0))*3) -> 0 | P55: 0 | R55: 0
A56: =IF(INTRO!$E$43="Non endémique"," ", IF(COUNTRY_INFO!A56=0," ",COUNTRY_INFO!A56)) -> Burundi | B56: =IF(INTRO!$E$43="Non endémique"," ", IF(COUNTRY_INFO!B56=0," ",COUNTRY_INFO!B56)) -> Gisuru | C56: =IF(INTRO!$E$43="Non endémique"," ", IF(COUNTRY_INFO!C56=0," ",COUNTRY_INFO!C56)) -> Gisuru | D56: =IF(INTRO!$E$43="Non endémique", "Non requis", COUNTRY_INFO!Y56) -> 0 | E56: =IF(OR(COUNTRY_INFO!R56="Inconnu",COUNTRY_INFO!R56="Surveillance",COUNTRY_INFO!R56="Non requis",COUNTRY_INFO!R56=0),0,IF($D56<>0, COUNTRY_INFO!R56,0)) -> 0 | F56: =IF(OR(COUNTRY_INFO!S56="Inconnu",COUNTRY_INFO!S56="Surveillance",COUNTRY_INFO!S56="Non requis",COUNTRY_INFO!S56=0),0,IF($D56<>0, COUNTRY_INFO!S56,0)) -> 0 | G56: =IF(OR(COUNTRY_INFO!T56="Inconnu",COUNTRY_INFO!T56="Surveillance",COUNTRY_INFO!T56="Non requis",COUNTRY_INFO!T56=0),0,IF($D56<>0, COUNTRY_INFO!T56,0)) -> 0 | H56: 0 | N56: =IF($I56<>"Oui",$F56*2,($F56+ROUND(J56*$F56/SUM(COUNTRY_INFO!$E56:$G56),0))*2) -> 0 | O56: =IF($I56<>"Oui",$G56*3,($G56+ROUND(J56*$G56/SUM(COUNTRY_INFO!$E56:$G56),0))*3) -> 0 | P56: 0 | R56: 0
A57: =IF(INTRO!$E$43="Non endémique"," ", IF(COUNTRY_INFO!A57=0," ",COUNTRY_INFO!A57)) -> Burundi | B57: =IF(INTRO!$E$43="Non endémique"," ", IF(COUNTRY_INFO!B57=0," ",COUNTRY_INFO!B57)) -> Ruyigi | C57: =IF(INTRO!$E$43="Non endémique"," ", IF(COUNTRY_INFO!C57=0," ",COUNTRY_INFO!C57)) -> Kinyinya | D57: =IF(INTRO!$E$43="Non endémique", "Non requis", COUNTRY_INFO!Y57) -> 0 | E57: =IF(OR(COUNTRY_INFO!R57="Inconnu",COUNTRY_INFO!R57="Surveillance",COUNTRY_INFO!R57="Non requis",COUNTRY_INFO!R57=0),0,IF($D57<>0, COUNTRY_INFO!R57,0)) -> 0 | F57: =IF(OR(COUNTRY_INFO!S57="Inconnu",COUNTRY_INFO!S57="Surveillance",COUNTRY_INFO!S57="Non requis",COUNTRY_INFO!S57=0),0,IF($D57<>0, COUNTRY_INFO!S57,0)) -> 0 | G57: =IF(OR(COUNTRY_INFO!T57="Inconnu",COUNTRY_INFO!T57="Surveillance",COUNTRY_INFO!T57="Non requis",COUNTRY_INFO!T57=0),0,IF($D57<>0, COUNTRY_INFO!T57,0)) -> 0 | H57: 0 | N57: =IF($I57<>"Oui",$F57*2,($F57+ROUND(J57*$F57/SUM(COUNTRY_INFO!$E57:$G57),0))*2) -> 0 | O57: =IF($I57<>"Oui",$G57*3,($G57+ROUND(J57*$G57/SUM(COUNTRY_INFO!$E57:$G57),0))*3) -> 0 | P57: 0 | R57: 0
A58: =IF(INTRO!$E$43="Non endémique"," ", IF(COUNTRY_INFO!A58=0," ",COUNTRY_INFO!A58)) -> Burundi | B58: =IF(INTRO!$E$43="Non endémique"," ", IF(COUNTRY_INFO!B58=0," ",COUNTRY_INFO!B58)) -> Ruyigi | C58: =IF(INTRO!$E$43="Non endémique"," ", IF(COUNTRY_INFO!C58=0," ",COUNTRY_INFO!C58)) -> Ruyigi | D58: =IF(INTRO!$E$43="Non endémique", "Non requis", COUNTRY_INFO!Y58) -> 0 | E58: =IF(OR(COUNTRY_INFO!R58="Inconnu",COUNTRY_INFO!R58="Surveillance",COUNTRY_INFO!R58="Non requis",COUNTRY_INFO!R58=0),0,IF($D58<>0, COUNTRY_INFO!R58,0)) -> 0 | F58: =IF(OR(COUNTRY_INFO!S58="Inconnu",COUNTRY_INFO!S58="Surveillance",COUNTRY_INFO!S58="Non requis",COUNTRY_INFO!S58=0),0,IF($D58<>0, COUNTRY_INFO!S58,0)) -> 0 | G58: =IF(OR(COUNTRY_INFO!T58="Inconnu",COUNTRY_INFO!T58="Surveillance",COUNTRY_INFO!T58="Non requis",COUNTRY_INFO!T58=0),0,IF($D58<>0, COUNTRY_INFO!T58,0)) -> 0 | H58: 0 | N58: =IF($I58<>"Oui",$F58*2,($F58+ROUND(J58*$F58/SUM(COUNTRY_INFO!$E58:$G58),0))*2) -> 0 | O58: =IF($I58<>"Oui",$G58*3,($G58+ROUND(J58*$G58/SUM(COUNTRY_INFO!$E58:$G58),0))*3) -> 0 | P58: 0 | R58: 0

Sheet IVM
A1: Ivermectine (IVM)
A2: Structure administrative, population ciblée par groupe d'âge, plan de traitement et information sur les comprimés
A4: TOTAL | D4: =SUBTOTAL(9,D$10:D$1010) -> 2699017 | G4: =SUBTOTAL(9,G$10:G$1010) -> 0 | H4: 2699017 | I4: 0 | J4: 7557247.6 | K4: 0 | L4: 7557247.6 | M4: 0 | N4: 7557247.6
A6: Structure administrative du pays | D6: Population nécessitant un traitement avec IVM | E6: Plan de traitement | G6: Population cible | I6: Ivermectine (IVM)
A7: Pays | B7: Région/Département | C7: District | E7: FL | F7: Oncho | G7: FL | H7: Oncho | I7: FL uniquement | J7: Oncho uniquement | K7: FL+Oncho | L7: Total requis | M7: Reste en stock | N7: Comprimés devant être fournis
A10: =IF(INTRO!$E$39="Non endémique"," ",IF(COUNTRY_INFO!A10=0," ",COUNTRY_INFO!A10)) -> Burundi | B10: =IF(INTRO!$E$39="Non endémique"," ",IF(COUNTRY_INFO!B10=0," ",COUNTRY_INFO!B10)) -> Bubanza | C10: =IF(INTRO!$E$39="Non endémique"," ",IF(COUNTRY_INFO!C10=0," ",COUNTRY_INFO!C10)) -> Bubanza | D10: =IF(INTRO!$E$39="Non endémique",0,IF(INTRO!$E$39="Endémique mais pas de CP",IF(COUNTRY_INFO!$H10=1,COUNTRY_INFO!F10+COUNTRY_INFO!G10,0),IF(COUNTRY_INFO!$H10=1,COUNTRY_INFO!F10+COUNTRY_INFO!G10,IF(COUNTRY_INFO!$I10=1,IF(COUNTRY_INFO!M10>=(COUNTRY_INFO!F10+COUNTRY_INFO!G10),COUNTRY_INFO!F10+COUNTRY_INFO!G10,COUNTRY_INFO!$M10),0)))) -> 232909 | E10: =IF(AND(INTRO!$E$39="Non endémique",INTRO!$E$37="Non endémique"),"Non requis",IF(INTRO!$E$39="Non endémique","Traiter avec DEC",COUNTRY_INFO!V10)) -> 0 | F10: =IF(INTRO!$E$39<>"Non endémique",COUNTRY_INFO!W10,"Non requis") -> 1 | G10: =IF(COUNTRY_INFO!H10=1, IF($E10=1,$D10, 0),0) -> 0 | H10: =IF(COUNTRY_INFO!I10=1, IF(AND(COUNTRY_INFO!$I10=1,$F10<>0),IF(COUNTRY_INFO!M10>=(COUNTRY_INFO!F10+COUNTRY_INFO!G10),COUNTRY_INFO!F10+COUNTRY_INFO!G10,COUNTRY_INFO!$M10), 0),0) -> 232909 | I10: =IF(G10<H10,0,IF($E10=1, (G10-H10)*2.8, 0)) -> 0 | J10: =IF($E10<$F10, H10*(F10-E10)*2.8, 0) -> 652145.2 | K10: =IF(AND($E10=1, $F10<>0), H10*2.8, 0) -> 0 | L10: =SUM(I10:K10) -> 652145.2 | N10: =IF($L10>$M10,$L10-$M10,0) -> 652145.2
A11: =IF(INTRO!$E$39="Non endémique"," ",IF(COUNTRY_INFO!A11=0," ",COUNTRY_INFO!A11)) -> Burundi | B11: =IF(INTRO!$E$39="Non endémique"," ",IF(COUNTRY_INFO!B11=0," ",COUNTRY_INFO!B11)) -> Bubanza | C11: =IF(INTRO!$E$39="Non endémique"," ",IF(COUNTRY_INFO!C11=0," ",COUNTRY_INFO!C11)) -> Mpanda | D11: =IF(INTRO!$E$39="Non endémique",0,IF(INTRO!$E$39="Endémique mais pas de CP",IF(COUNTRY_INFO!$H11=1,COUNTRY_INFO!F11+COUNTRY_INFO!G11,0),IF(COUNTRY_INFO!$H11=1,COUNTRY_INFO!F11+COUNTRY_INFO!G11,IF(COUNTRY_INFO!$I11=1,IF(COUNTRY_INFO!M11>=(COUNTRY_INFO!F11+COUNTRY_INFO!G11),COUNTRY_INFO!F11+COUNTRY_INFO!G11,COUNTRY_INFO!$M11),0)))) -> 241689 | E11: =IF(AND(INTRO!$E$39="Non endémique",INTRO!$E$37="Non endémique"),"Non requis",IF(INTRO!$E$39="Non endémique","Traiter avec DEC",COUNTRY_INFO!V11)) -> 0 | F11: =IF(INTRO!$E$39<>"Non endémique",COUNTRY_INFO!W11,"Non requis") -> 1 | G11: =IF(COUNTRY_INFO!H11=1, IF($E11=1,$D11, 0),0) -> 0 | H11: =IF(COUNTRY_INFO!I11=1, IF(AND(COUNTRY_INFO!$I11=1,$F11<>0),IF(COUNTRY_INFO!M11>=(COUNTRY_INFO!F11+COUNTRY_INFO!G11),COUNTRY_INFO!F11+COUNTRY_INFO!G11,COUNTRY_INFO!$M11), 0),0) -> 241689 | I11: 0 | J11: 676729.2 | K11: =IF(AND($E11=1, $F11<>0), H11*2.8, 0) -> 0 | L11: =SUM(I11:K11) -> 676729.2 | N11: 676729.2
A12: =IF(INTRO!$E$39="Non endémique"," ",IF(COUNTRY_INFO!A12=0," ",COUNTRY_INFO!A12)) -> Burundi | B12: =IF(INTRO!$E$39="Non endémique"," ",IF(COUNTRY_INFO!B12=0," ",COUNTRY_INFO!B12)) -> Bujumbura Mairie | C12: =IF(INTRO!$E$39="Non endémique"," ",IF(COUNTRY_INFO!C12=0," ",COUNTRY_INFO!C12)) -> Zone Centre | D12: =IF(INTRO!$E$39="Non endémique",0,IF(INTRO!$E$39="Endémique mais pas de CP",IF(COUNTRY_INFO!$H12=1,COUNTRY_INFO!F12+COUNTRY_INFO!G12,0),IF(COUNTRY_INFO!$H12=1,COUNTRY_INFO!F12+COUNTRY_INFO!G12,IF(COUNTRY_INFO!$I12=1,IF(COUNTRY_INFO!M12>=(COUNTRY_INFO!F12+COUNTRY_INFO!G12),COUNTRY_INFO!F12+COUNTRY_INFO!G12,COUNTRY_INFO!$M12),0)))) -> 0 | E12: =IF(AND(INTRO!$E$39="Non endémique",INTRO!$E$37="Non endémique"),"Non requis",IF(INTRO!$E$39="Non endémique","Traiter avec DEC",COUNTRY_INFO!V12)) -> 0 | F12: =IF(INTRO!$E$39<>"Non endémique",COUNTRY_INFO!W12,"Non requis") -> 0 | G12: =IF(COUNTRY_INFO!H12=1, IF($E12=1,$D12, 0),0) -> 0 | H12: =IF(COUNTRY_INFO!I12=1, IF(AND(COUNTRY_INFO!$I12=1,$F12<>0),IF(COUNTRY_INFO!M12>=(COUNTRY_INFO!F12+COUNTRY_INFO!G12),COUNTRY_INFO!F12+COUNTRY_INFO!G12,COUNTRY_INFO!$M12), 0),0) -> 0 | I12: 0 | J12: 0 | K12: 0 | L12: 0 | N12: 0
A13: =IF(INTRO!$E$39="Non endémique"," ",IF(COUNTRY_INFO!A13=0," ",COUNTRY_INFO!A13)) -> Burundi | B13: =IF(INTRO!$E$39="Non endémique"," ",IF(COUNTRY_INFO!B13=0," ",COUNTRY_INFO!B13)) -> Bujumbura Mairie | C13: =IF(INTRO!$E$39="Non endémique"," ",IF(COUNTRY_INFO!C13=0," ",COUNTRY_INFO!C13)) -> Zone Nord | D13: =IF(INTRO!$E$39="Non endémique",0,IF(INTRO!$E$39="Endémique mais pas de CP",IF(COUNTRY_INFO!$H13=1,COUNTRY_INFO!F13+COUNTRY_INFO!G13,0),IF(COUNTRY_INFO!$H13=1,COUNTRY_INFO!F13+COUNTRY_INFO!G13,IF(COUNTRY_INFO!$I13=1,IF(COUNTRY_INFO!M13>=(COUNTRY_INFO!F13+COUNTRY_INFO!G13),COUNTRY_INFO!F13+COUNTRY_INFO!G13,COUNTRY_INFO!$M13),0)))) -> 0 | E13: =IF(AND(INTRO!$E$39="Non endémique",INTRO!$E$37="Non endémique"),"Non requis",IF(INTRO!$E$39="Non endémique","Traiter avec DEC",COUNTRY_INFO!V13)) -> 0 | F13: =IF(INTRO!$E$39<>"Non endémique",COUNTRY_INFO!W13,"Non requis") -> 0 | G13: =IF(COUNTRY_INFO!H13=1, IF($E13=1,$D13, 0),0) -> 0 | H13: =IF(COUNTRY_INFO!I13=1, IF(AND(COUNTRY_INFO!$I13=1,$F13<>0),IF(COUNTRY_INFO!M13>=(COUNTRY_INFO!F13+COUNTRY_INFO!G13),COUNTRY_INFO!F13+COUNTRY_INFO!G13,COUNTRY_INFO!$M13), 0),0) -> 0 | I13: 0 | J13: 0 | K13: 0 | L13: 0 | N13: 0
A14: =IF(INTRO!$E$39="Non endémique"," ",IF(COUNTRY_INFO!A14=0," ",COUNTRY_INFO!A14)) -> Burundi | B14: =IF(INTRO!$E$39="Non endémique"," ",IF(COUNTRY_INFO!B14=0," ",COUNTRY_INFO!B14)) -> Bujumbura Mairie | C14: =IF(INTRO!$E$39="Non endémique"," ",IF(COUNTRY_INFO!C14=0," ",COUNTRY_INFO!C14)) -> Zone Sud | D14: =IF(INTRO!$E$39="Non endémique",0,IF(INTRO!$E$39="Endémique mais pas de CP",IF(COUNTRY_INFO!$H14=1,COUNTRY_INFO!F14+COUNTRY_INFO!G14,0),IF(COUNTRY_INFO!$H14=1,COUNTRY_INFO!F14+COUNTRY_INFO!G14,IF(COUNTRY_INFO!$I14=1,IF(COUNTRY_INFO!M14>=(COUNTRY_INFO!F14+COUNTRY_INFO!G14),COUNTRY_INFO!F14+COUNTRY_INFO!G14,COUNTRY_INFO!$M14),0)))) -> 0 | E14: =IF(AND(INTRO!$E$39="Non endémique",INTRO!$E$37="Non endémique"),"Non requis",IF(INTRO!$E$39="Non endémique","Traiter avec DEC",COUNTRY_INFO!V14)) -> 0 | F14: =IF(INTRO!$E$39<>"Non endémique",COUNTRY_INFO!W14,"Non requis") -> 0 | G14: =IF(COUNTRY_INFO!H14=1, IF($E14=1,$D14, 0),0) -> 0 | H14: =IF(COUNTRY_INFO!I14=1, IF(AND(COUNTRY_INFO!$I14=1,$F14<>0),IF(COUNTRY_INFO!M14>=(COUNTRY_INFO!F14+COUNTRY_INFO!G14),COUNTRY_INFO!F14+COUNTRY_INFO!G14,COUNTRY_INFO!$M14), 0),0) -> 0 | I14: 0 | J14: 0 | K14: 0 | L14: 0 | N14: 0
A15: =IF(INTRO!$E$39="Non endémique"," ",IF(COUNTRY_INFO!A15=0," ",COUNTRY_INFO!A15)) -> Burundi | B15: =IF(INTRO!$E$39="Non endémique"," ",IF(COUNTRY_INFO!B15=0," ",COUNTRY_INFO!B15)) -> Bujumbura Rural | C15: =IF(INTRO!$E$39="Non endémique"," ",IF(COUNTRY_INFO!C15=0," ",COUNTRY_INFO!C15)) -> Isare | D15: =IF(INTRO!$E$39="Non endémique",0,IF(INTRO!$E$39="Endémique mais pas de CP",IF(COUNTRY_INFO!$H15=1,COUNTRY_INFO!F15+COUNTRY_INFO!G15,0),IF(COUNTRY_INFO!$H15=1,COUNTRY_INFO!F15+COUNTRY_INFO!G15,IF(COUNTRY_INFO!$I15=1,IF(COUNTRY_INFO!M15>=(COUNTRY_INFO!F15+COUNTRY_INFO!G15),COUNTRY_INFO!F15+COUNTRY_INFO!G15,COUNTRY_INFO!$M15),0)))) -> 0 | E15: =IF(AND(INTRO!$E$39="Non endémique",INTRO!$E$37="Non endémique"),"Non requis",IF(INTRO!$E$39="Non endémique","Traiter avec DEC",COUNTRY_INFO!V15)) -> 0 | F15: =IF(INTRO!$E$39<>"Non endémique",COUNTRY_INFO!W15,"Non requis") -> 0 | G15: =IF(COUNTRY_INFO!H15=1, IF($E15=1,$D15, 0),0) -> 0 | H15: =IF(COUNTRY_INFO!I15=1, IF(AND(COUNTRY_INFO!$I15=1,$F15<>0),IF(COUNTRY_INFO!M15>=(COUNTRY_INFO!F15+COUNTRY_INFO!G15),COUNTRY_INFO!F15+COUNTRY_INFO!G15,COUNTRY_INFO!$M15), 0),0) -> 0 | I15: 0 | J15: 0 | K15: 0 | L15: 0 | N15: 0
A16: =IF(INTRO!$E$39="Non endémique"," ",IF(COUNTRY_INFO!A16=0," ",COUNTRY_INFO!A16)) -> Burundi | B16: =IF(INTRO!$E$39="Non endémique"," ",IF(COUNTRY_INFO!B16=0," ",COUNTRY_INFO!B16)) -> Bujumbura Rural | C16: =IF(INTRO!$E$39="Non endémique"," ",IF(COUNTRY_INFO!C16=0," ",COUNTRY_INFO!C16)) -> Kabezi | D16: =IF(INTRO!$E$39="Non endémique",0,IF(INTRO!$E$39="Endémique mais pas de CP",IF(COUNTRY_INFO!$H16=1,COUNTRY_INFO!F16+COUNTRY_INFO!G16,0),IF(COUNTRY_INFO!$H16=1,COUNTRY_INFO!F16+COUNTRY_INFO!G16,IF(COUNTRY_INFO!$I16=1,IF(COUNTRY_INFO!M16>=(COUNTRY_INFO!F16+COUNTRY_INFO!G16),COUNTRY_INFO!F16+COUNTRY_INFO!G16,COUNTRY_INFO!$M16),0)))) -> 0 | E16: =IF(AND(INTRO!$E$39="Non endémique",INTRO!$E$37="Non endémique"),"Non requis",IF(INTRO!$E$39="Non endémique","Traiter avec DEC",COUNTRY_INFO!V16)) -> 0 | F16: =IF(INTRO!$E$39<>"Non endémique",COUNTRY_INFO!W16,"Non requis") -> 0 | G16: =IF(COUNTRY_INFO!H16=1, IF($E16=1,$D16, 0),0) -> 0 | H16: =IF(COUNTRY_INFO!I16=1, IF(AND(COUNTRY_INFO!$I16=1,$F16<>0),IF(COUNTRY_INFO!M16>=(COUNTRY_INFO!F16+COUNTRY_INFO!G16),COUNTRY_INFO!F16+COUNTRY_INFO!G16,COUNTRY_INFO!$M16), 0),0) -> 0 | I16: 0 | J16: 0 | K16: 0 | L16: 0 | N16: 0
A17: =IF(INTRO!$E$39="Non endémique"," ",IF(COUNTRY_INFO!A17=0," ",COUNTRY_INFO!A17)) -> Burundi | B17: =IF(INTRO!$E$39="Non endémique"," ",IF(COUNTRY_INFO!B17=0," ",COUNTRY_INFO!B17)) -> Bujumbura Rural | C17: =IF(INTRO!$E$39="Non endémique"," ",IF(COUNTRY_INFO!C17=0," ",COUNTRY_INFO!C17)) -> Rwibaga | D17: =IF(INTRO!$E$39="Non endémique",0,IF(INTRO!$E$39="Endémique mais pas de CP",IF(COUNTRY_INFO!$H17=1,COUNTRY_INFO!F17+COUNTRY_INFO!G17,0),IF(COUNTRY_INFO!$H17=1,COUNTRY_INFO!F17+COUNTRY_INFO!G17,IF(COUNTRY_INFO!$I17=1,IF(COUNTRY_INFO!M17>=(COUNTRY_INFO!F17+COUNTRY_INFO!G17),COUNTRY_INFO!F17+COUNTRY_INFO!G17,COUNTRY_INFO!$M17),0)))) -> 0 | E17: =IF(AND(INTRO!$E$39="Non endémique",INTRO!$E$37="Non endémique"),"Non requis",IF(INTRO!$E$39="Non endémique","Traiter avec DEC",COUNTRY_INFO!V17)) -> 0 | F17: =IF(INTRO!$E$39<>"Non endémique",COUNTRY_INFO!W17,"Non requis") -> 0 | G17: =IF(COUNTRY_INFO!H17=1, IF($E17=1,$D17, 0),0) -> 0 | H17: =IF(COUNTRY_INFO!I17=1, IF(AND(COUNTRY_INFO!$I17=1,$F17<>0),IF(COUNTRY_INFO!M17>=(COUNTRY_INFO!F17+COUNTRY_INFO!G17),COUNTRY_INFO!F17+COUNTRY_INFO!G17,COUNTRY_INFO!$M17), 0),0) -> 0 | I17: 0 | J17: 0 | K17: 0 | L17: 0 | N17: 0
A18: =IF(INTRO!$E$39="Non endémique"," ",IF(COUNTRY_INFO!A18=0," ",COUNTRY_INFO!A18)) -> Burundi | B18: =IF(INTRO!$E$39="Non endémique"," ",IF(COUNTRY_INFO!B18=0," ",COUNTRY_INFO!B18)) -> Bururi | C18: =IF(INTRO!$E$39="Non endémique"," ",IF(COUNTRY_INFO!C18=0," ",COUNTRY_INFO!C18)) -> Bururi | D18: =IF(INTRO!$E$39="Non endémique",0,IF(INTRO!$E$39="Endémique mais pas de CP",IF(COUNTRY_INFO!$H18=1,COUNTRY_INFO!F18+COUNTRY_INFO!G18,0),IF(COUNTRY_INFO!$H18=1,COUNTRY_INFO!F18+COUNTRY_INFO!G18,IF(COUNTRY_INFO!$I18=1,IF(COUNTRY_INFO!M18>=(COUNTRY_INFO!F18+COUNTRY_INFO!G18),COUNTRY_INFO!F18+COUNTRY_INFO!G18,COUNTRY_INFO!$M18),0)))) -> 159076 | E18: =IF(AND(INTRO!$E$39="Non endémique",INTRO!$E$37="Non endémique"),"Non requis",IF(INTRO!$E$39="Non endémique","Traiter avec DEC",COUNTRY_INFO!V18)) -> 0 | F18: =IF(INTRO!$E$39<>"Non endémique",COUNTRY_INFO!W18,"Non requis") -> 1 | G18: =IF(COUNTRY_INFO!H18=1, IF($E18=1,$D18, 0),0) -> 0 | H18: =IF(COUNTRY_INFO!I18=1, IF(AND(COUNTRY_INFO!$I18=1,$F18<>0),IF(COUNTRY_INFO!M18>=(COUNTRY_INFO!F18+COUNTRY_INFO!G18),COUNTRY_INFO!F18+COUNTRY_INFO!G18,COUNTRY_INFO!$M18), 0),0) -> 159076 | I18: 0 | J18: 445412.8 | K18: 0 | L18: 445412.8 | N18: 445412.8
A19: =IF(INTRO!$E$39="Non endémique"," ",IF(COUNTRY_INFO!A19=0," ",COUNTRY_INFO!A19)) -> Burundi | B19: =IF(INTRO!$E$39="Non endémique"," ",IF(COUNTRY_INFO!B19=0," ",COUNTRY_INFO!B19)) -> Bururi | C19: =IF(INTRO!$E$39="Non endémique"," ",IF(COUNTRY_INFO!C19=0," ",COUNTRY_INFO!C19)) -> Matana | D19: =IF(INTRO!$E$39="Non endémique",0,IF(INTRO!$E$39="Endémique mais pas de CP",IF(COUNTRY_INFO!$H19=1,COUNTRY_INFO!F19+COUNTRY_INFO!G19,0),IF(COUNTRY_INFO!$H19=1,COUNTRY_INFO!F19+COUNTRY_INFO!G19,IF(COUNTRY_INFO!$I19=1,IF(COUNTRY_INFO!M19>=(COUNTRY_INFO!F19+COUNTRY_INFO!G19),COUNTRY_INFO!F19+COUNTRY_INFO!G19,COUNTRY_INFO!$M19),0)))) -> 0 | E19: =IF(AND(INTRO!$E$39="Non endémique",INTRO!$E$37="Non endémique"),"Non requis",IF(INTRO!$E$39="Non endémique","Traiter avec DEC",COUNTRY_INFO!V19)) -> 0 | F19: =IF(INTRO!$E$39<>"Non endémique",COUNTRY_INFO!W19,"Non requis") -> 0 | G19: =IF(COUNTRY_INFO!H19=1, IF($E19=1,$D19, 0),0) -> 0 | H19: =IF(COUNTRY_INFO!I19=1, IF(AND(COUNTRY_INFO!$I19=1,$F19<>0),IF(COUNTRY_INFO!M19>=(COUNTRY_INFO!F19+COUNTRY_INFO!G19),COUNTRY_INFO!F19+COUNTRY_INFO!G19,COUNTRY_INFO!$M19), 0),0) -> 0 | I19: 0 | J19: 0 | K19: 0 | L19: 0 | N19: 0
A20: =IF(INTRO!$E$39="Non endémique"," ",IF(COUNTRY_INFO!A20=0," ",COUNTRY_INFO!A20)) -> Burundi | B20: =IF(INTRO!$E$39="Non endémique"," ",IF(COUNTRY_INFO!B20=0," ",COUNTRY_INFO!B20)) -> Bururi | C20: =IF(INTRO!$E$39="Non endémique"," ",IF(COUNTRY_INFO!C20=0," ",COUNTRY_INFO!C20)) -> Rutovu | D20: =IF(INTRO!$E$39="Non endémique",0,IF(INTRO!$E$39="Endémique mais pas de CP",IF(COUNTRY_INFO!$H20=1,COUNTRY_INFO!F20+COUNTRY_INFO!G20,0),IF(COUNTRY_INFO!$H20=1,COUNTRY_INFO!F20+COUNTRY_INFO!G20,IF(COUNTRY_INFO!$I20=1,IF(COUNTRY_INFO!M20>=(COUNTRY_INFO!F20+COUNTRY_INFO!G20),COUNTRY_INFO!F20+COUNTRY_INFO!G20,COUNTRY_INFO!$M20),0)))) -> 137515 | E20: =IF(AND(INTRO!$E$39="Non endémique",INTRO!$E$37="Non endémique"),"Non requis",IF(INTRO!$E$39="Non endémique","Traiter avec DEC",COUNTRY_INFO!V20)) -> 0 | F20: =IF(INTRO!$E$39<>"Non endémique",COUNTRY_INFO!W20,"Non requis") -> 1 | G20: =IF(COUNTRY_INFO!H20=1, IF($E20=1,$D20, 0),0) -> 0 | H20: =IF(COUNTRY_INFO!I20=1, IF(AND(COUNTRY_INFO!$I20=1,$F20<>0),IF(COUNTRY_INFO!M20>=(COUNTRY_INFO!F20+COUNTRY_INFO!G20),COUNTRY_INFO!F20+COUNTRY_INFO!G20,COUNTRY_INFO!$M20), 0),0) -> 137515 | I20: 0 | J20: 385042 | K20: 0 | L20: 385042 | N20: 385042
A21: =IF(INTRO!$E$39="Non endémique"," ",IF(COUNTRY_INFO!A21=0," ",COUNTRY_INFO!A21)) -> Burundi | B21: =IF(INTRO!$E$39="Non endémique"," ",IF(COUNTRY_INFO!B21=0," ",COUNTRY_INFO!B21)) -> Cankuzo | C21: =IF(INTRO!$E$39="Non endémique"," ",IF(COUNTRY_INFO!C21=0," ",COUNTRY_INFO!C21)) -> Cankuzo | D21: =IF(INTRO!$E$39="Non endémique",0,IF(INTRO!$E$39="Endémique mais pas de CP",IF(COUNTRY_INFO!$H21=1,COUNTRY_INFO!F21+COUNTRY_INFO!G21,0),IF(COUNTRY_INFO!$H21=1,COUNTRY_INFO!F21+COUNTRY_INFO!G21,IF(COUNTRY_INFO!$I21=1,IF(COUNTRY_INFO!M21>=(COUNTRY_INFO!F21+COUNTRY_INFO!G21),COUNTRY_INFO!F21+COUNTRY_INFO!G21,COUNTRY_INFO!$M21),0)))) -> 0 | E21: =IF(AND(INTRO!$E$39="Non endémique",INTRO!$E$37="Non endémique"),"Non requis",IF(INTRO!$E$39="Non endémique","Traiter avec DEC",COUNTRY_INFO!V21)) -> 0 | F21: =IF(INTRO!$E$39<>"Non endémique",COUNTRY_INFO!W21,"Non requis") -> 0 | G21: =IF(COUNTRY_INFO!H21=1, IF($E21=1,$D21, 0),0) -> 0 | H21: =IF(COUNTRY_INFO!I21=1, IF(AND(COUNTRY_INFO!$I21=1,$F21<>0),IF(COUNTRY_INFO!M21>=(COUNTRY_INFO!F21+COUNTRY_INFO!G21),COUNTRY_INFO!F21+COUNTRY_INFO!G21,COUNTRY_INFO!$M21), 0),0) -> 0 | I21: 0 | J21: 0 | K21: 0 | L21: 0 | N21: 0
A22: =IF(INTRO!$E$39="Non endémique"," ",IF(COUNTRY_INFO!A22=0," ",COUNTRY_INFO!A22)) -> Burundi | B22: =IF(INTRO!$E$39="Non endémique"," ",IF(COUNTRY_INFO!B22=0," ",COUNTRY_INFO!B22)) -> Cankuzo | C22: =IF(INTRO!$E$39="Non endémique"," ",IF(COUNTRY_INFO!C22=0," ",COUNTRY_INFO!C22)) -> Murore | D22: =IF(INTRO!$E$39="Non endémique",0,IF(INTRO!$E$39="Endémique mais pas de CP",IF(COUNTRY_INFO!$H22=1,COUNTRY_INFO!F22+COUNTRY_INFO!G22,0),IF(COUNTRY_INFO!$H22=1,COUNTRY_INFO!F22+COUNTRY_INFO!G22,IF(COUNTRY_INFO!$I22=1,IF(COUNTRY_INFO!M22>=(COUNTRY_INFO!F22+COUNTRY_INFO!G22),COUNTRY_INFO!F22+COUNTRY_INFO!G22,COUNTRY_INFO!$M22),0)))) -> 0 | E22: =IF(AND(INTRO!$E$39="Non endémique",INTRO!$E$37="Non endémique"),"Non requis",IF(INTRO!$E$39="Non endémique","Traiter avec DEC",COUNTRY_INFO!V22)) -> 0 | F22: =IF(INTRO!$E$39<>"Non endémique",COUNTRY_INFO!W22,"Non requis") -> 0 | G22: =IF(COUNTRY_INFO!H22=1, IF($E22=1,$D22, 0),0) -> 0 | H22: =IF(COUNTRY_INFO!I22=1, IF(AND(COUNTRY_INFO!$I22=1,$F22<>0),IF(COUNTRY_INFO!M22>=(COUNTRY_INFO!F22+COUNTRY_INFO!G22),COUNTRY_INFO!F22+COUNTRY_INFO!G22,COUNTRY_INFO!$M22), 0),0) -> 0 | I22: 0 | J22: 0 | K22: 0 | L22: 0 | N22: 0
A23: =IF(INTRO!$E$39="Non endémique"," ",IF(COUNTRY_INFO!A23=0," ",COUNTRY_INFO!A23)) -> Burundi | B23: =IF(INTRO!$E$39="Non endémique"," ",IF(COUNTRY_INFO!B23=0," ",COUNTRY_INFO!B23)) -> Cibitoke | C23: =IF(INTRO!$E$39="Non endémique"," ",IF(COUNTRY_INFO!C23=0," ",COUNTRY_INFO!C23)) -> Bukinanyana | D23: =IF(INTRO!$E$39="Non endémique",0,IF(INTRO!$E$39="Endémique mais pas de CP",IF(COUNTRY_INFO!$H23=1,COUNTRY_INFO!F23+COUNTRY_INFO!G23,0),IF(COUNTRY_INFO!$H23=1,COUNTRY_INFO!F23+COUNTRY_INFO!G23,IF(COUNTRY_INFO!$I23=1,IF(COUNTRY_INFO!M23>=(COUNTRY_INFO!F23+COUNTRY_INFO!G23),COUNTRY_INFO!F23+COUNTRY_INFO!G23,COUNTRY_INFO!$M23),0)))) -> 221817 | E23: =IF(AND(INTRO!$E$39="Non endémique",INTRO!$E$37="Non endémique"),"Non requis",IF(INTRO!$E$39="Non endémique","Traiter avec DEC",COUNTRY_INFO!V23)) -> 0 | F23: =IF(INTRO!$E$39<>"Non endémique",COUNTRY_INFO!W23,"Non requis") -> 1 | G23: =IF(COUNTRY_INFO!H23=1, IF($E23=1,$D23, 0),0) -> 0 | H23: =IF(COUNTRY_INFO!I23=1, IF(AND(COUNTRY_INFO!$I23=1,$F23<>0),IF(COUNTRY_INFO!M23>=(COUNTRY_INFO!F23+COUNTRY_INFO!G23),COUNTRY_INFO!F23+COUNTRY_INFO!G23,COUNTRY_INFO!$M23), 0),0) -> 221817 | I23: 0 | J23: 621087.6 | K23: 0 | L23: 621087.6 | N23: 621087.6
A24: =IF(INTRO!$E$39="Non endémique"," ",IF(COUNTRY_INFO!A24=0," ",COUNTRY_INFO!A24)) -> Burundi | B24: =IF(INTRO!$E$39="Non endémique"," ",IF(COUNTRY_INFO!B24=0," ",COUNTRY_INFO!B24)) -> Cibitoke | C24: =IF(INTRO!$E$39="Non endémique"," ",IF(COUNTRY_INFO!C24=0," ",COUNTRY_INFO!C24)) -> Cibitoke | D24: =IF(INTRO!$E$39="Non endémique",0,IF(INTRO!$E$39="Endémique mais pas de CP",IF(COUNTRY_INFO!$H24=1,COUNTRY_INFO!F24+COUNTRY_INFO!G24,0),IF(COUNTRY_INFO!$H24=1,COUNTRY_INFO!F24+COUNTRY_INFO!G24,IF(COUNTRY_INFO!$I24=1,IF(COUNTRY_INFO!M24>=(COUNTRY_INFO!F24+COUNTRY_INFO!G24),COUNTRY_INFO!F24+COUNTRY_INFO!G24,COUNTRY_INFO!$M24),0)))) -> 207281 | E24: =IF(AND(INTRO!$E$39="Non endémique",INTRO!$E$37="Non endémique"),"Non requis",IF(INTRO!$E$39="Non endémique","Traiter avec DEC",COUNTRY_INFO!V24)) -> 0 | F24: =IF(INTRO!$E$39<>"Non endémique",COUNTRY_INFO!W24,"Non requis") -> 1 | G24: =IF(COUNTRY_INFO!H24=1, IF($E24=1,$D24, 0),0) -> 0 | H24: =IF(COUNTRY_INFO!I24=1, IF(AND(COUNTRY_INFO!$I24=1,$F24<>0),IF(COUNTRY_INFO!M24>=(COUNTRY_INFO!F24+COUNTRY_INFO!G24),COUNTRY_INFO!F24+COUNTRY_INFO!G24,COUNTRY_INFO!$M24), 0),0) -> 207281 | I24: 0 | J24: 580386.8 | K24: 0 | L24: 580386.8 | N24: 580386.8
A25: =IF(INTRO!$E$39="Non endémique"," ",IF(COUNTRY_INFO!A25=0," ",COUNTRY_INFO!A25)) -> Burundi | B25: =IF(INTRO!$E$39="Non endémique"," ",IF(COUNTRY_INFO!B25=0," ",COUNTRY_INFO!B25)) -> Cibitoke | C25: =IF(INTRO!$E$39="Non endémique"," ",IF(COUNTRY_INFO!C25=0," ",COUNTRY_INFO!C25)) -> Mabayi | D25: =IF(INTRO!$E$39="Non endémique",0,IF(INTRO!$E$39="Endémique mais pas de CP",IF(COUNTRY_INFO!$H25=1,COUNTRY_INFO!F25+COUNTRY_INFO!G25,0),IF(COUNTRY_INFO!$H25=1,COUNTRY_INFO!F25+COUNTRY_INFO!G25,IF(COUNTRY_INFO!$I25=1,IF(COUNTRY_INFO!M25>=(COUNTRY_INFO!F25+COUNTRY_INFO!G25),COUNTRY_INFO!F25+COUNTRY_INFO!G25,COUNTRY_INFO!$M25),0)))) -> 217370 | E25: =IF(AND(INTRO!$E$39="Non endémique",INTRO!$E$37="Non endémique"),"Non requis",IF(INTRO!$E$39="Non endémique","Traiter avec DEC",COUNTRY_INFO!V25)) -> 0 | F25: =IF(INTRO!$E$39<>"Non endémique",COUNTRY_INFO!W25,"Non requis") -> 1 | G25: =IF(COUNTRY_INFO!H25=1, IF($E25=1,$D25, 0),0) -> 0 | H25: =IF(COUNTRY_INFO!I25=1, IF(AND(COUNTRY_INFO!$I25=1,$F25<>0),IF(COUNTRY_INFO!M25>=(COUNTRY_INFO!F25+COUNTRY_INFO!G25),COUNTRY_INFO!F25+COUNTRY_INFO!G25,COUNTRY_INFO!$M25), 0),0) -> 217370 | I25: 0 | J25: 608636 | K25: 0 | L25: 608636 | N25: 608636
A26: =IF(INTRO!$E$39="Non endémique"," ",IF(COUNTRY_INFO!A26=0," ",COUNTRY_INFO!A26)) -> Burundi | B26: =IF(INTRO!$E$39="Non endémique"," ",IF(COUNTRY_INFO!B26=0," ",COUNTRY_INFO!B26)) -> Gitega | C26: =IF(INTRO!$E$39="Non endémique"," ",IF(COUNTRY_INFO!C26=0," ",COUNTRY_INFO!C26)) -> Gitega | D26: =IF(INTRO!$E$39="Non endémique",0,IF(INTRO!$E$39="Endémique mais pas de CP",IF(COUNTRY_INFO!$H26=1,COUNTRY_INFO!F26+COUNTRY_INFO!G26,0),IF(COUNTRY_INFO!$H26=1,COUNTRY_INFO!F26+COUNTRY_INFO!G26,IF(COUNTRY_INFO!$I26=1,IF(COUNTRY_INFO!M26>=(COUNTRY_INFO!F26+COUNTRY_INFO!G26),COUNTRY_INFO!F26+COUNTRY_INFO!G26,COUNTRY_INFO!$M26),0)))) -> 0 | E26: =IF(AND(INTRO!$E$39="Non endémique",INTRO!$E$37="Non endémique"),"Non requis",IF(INTRO!$E$39="Non endémique","Traiter avec DEC",COUNTRY_INFO!V26)) -> 0 | F26: =IF(INTRO!$E$39<>"Non endémique",COUNTRY_INFO!W26,"Non requis") -> 0 | G26: =IF(COUNTRY_INFO!H26=1, IF($E26=1,$D26, 0),0) -> 0 | H26: =IF(COUNTRY_INFO!I26=1, IF(AND(COUNTRY_INFO!$I26=1,$F26<>0),IF(COUNTRY_INFO!M26>=(COUNTRY_INFO!F26+COUNTRY_INFO!G26),COUNTRY_INFO!F26+COUNTRY_INFO!G26,COUNTRY_INFO!$M26), 0),0) -> 0 | I26: 0 | J26: 0 | K26: 0 | L26: 0 | N26: 0
A27: =IF(INTRO!$E$39="Non endémique"," ",IF(COUNTRY_INFO!A27=0," ",COUNTRY_INFO!A27)) -> Burundi | B27: =IF(INTRO!$E$39="Non endémique"," ",IF(COUNTRY_INFO!B27=0," ",COUNTRY_INFO!B27)) -> Gitega | C27: =IF(INTRO!$E$39="Non endémique"," ",IF(COUNTRY_INFO!C27=0," ",COUNTRY_INFO!C27)) -> Kibuye | D27: =IF(INTRO!$E$39="Non endémique",0,IF(INTRO!$E$39="Endémique mais pas de CP",IF(COUNTRY_INFO!$H27=1,COUNTRY_INFO!F27+COUNTRY_INFO!G27,0),IF(COUNTRY_INFO!$H27=1,COUNTRY_INFO!F27+COUNTRY_INFO!G27,IF(COUNTRY_INFO!$I27=1,IF(COUNTRY_INFO!M27>=(COUNTRY_INFO!F27+COUNTRY_INFO!G27),COUNTRY_INFO!F27+COUNTRY_INFO!G27,COUNTRY_INFO!$M27),0)))) -> 0 | E27: =IF(AND(INTRO!$E$39="Non endémique",INTRO!$E$37="Non endémique"),"Non requis",IF(INTRO!$E$39="Non endémique","Traiter avec DEC",COUNTRY_INFO!V27)) -> 0 | F27: =IF(INTRO!$E$39<>"Non endémique",COUNTRY_INFO!W27,"Non requis") -> 0 | G27: =IF(COUNTRY_INFO!H27=1, IF($E27=1,$D27, 0),0) -> 0 | H27: =IF(COUNTRY_INFO!I27=1, IF(AND(COUNTRY_INFO!$I27=1,$F27<>0),IF(COUNTRY_INFO!M27>=(COUNTRY_INFO!F27+COUNTRY_INFO!G27),COUNTRY_INFO!F27+COUNTRY_INFO!G27,COUNTRY_INFO!$M27), 0),0) -> 0 | I27: 0 | J27: 0 | K27: 0 | L27: 0 | N27: 0
A28: =IF(INTRO!$E$39="Non endémique"," ",IF(COUNTRY_INFO!A28=0," ",COUNTRY_INFO!A28)) -> Burundi | B28: =IF(INTRO!$E$39="Non endémique"," ",IF(COUNTRY_INFO!B28=0," ",COUNTRY_INFO!B28)) -> Gitega | C28: =IF(INTRO!$E$39="Non endémique"," ",IF(COUNTRY_INFO!C28=0," ",COUNTRY_INFO!C28)) -> Mutaho | D28: =IF(INTRO!$E$39="Non endémique",0,IF(INTRO!$E$39="Endémique mais pas de CP",IF(COUNTRY_INFO!$H28=1,COUNTRY_INFO!F28+COUNTRY_INFO!G28,0),IF(COUNTRY_INFO!$H28=1,COUNTRY_INFO!F28+COUNTRY_INFO!G28,IF(COUNTRY_INFO!$I28=1,IF(COUNTRY_INFO!M28>=(COUNTRY_INFO!F28+COUNTRY_INFO!G28),COUNTRY_INFO!F28+COUNTRY_INFO!G28,COUNTRY_INFO!$M28),0)))) -> 0 | E28: =IF(AND(INTRO!$E$39="Non endémique",INTRO!$E$37="Non endémique"),"Non requis",IF(INTRO!$E$39="Non endémique","Traiter avec DEC",COUNTRY_INFO!V28)) -> 0 | F28: =IF(INTRO!$E$39<>"Non endémique",COUNTRY_INFO!W28,"Non requis") -> 0 | G28: =IF(COUNTRY_INFO!H28=1, IF($E28=1,$D28, 0),0) -> 0 | H28: =IF(COUNTRY_INFO!I28=1, IF(AND(COUNTRY_INFO!$I28=1,$F28<>0),IF(COUNTRY_INFO!M28>=(COUNTRY_INFO!F28+COUNTRY_INFO!G28),COUNTRY_INFO!F28+COUNTRY_INFO!G28,COUNTRY_INFO!$M28), 0),0) -> 0 | I28: 0 | J28: 0 | K28: 0 | L28: 0 | N28: 0
A29: =IF(INTRO!$E$39="Non endémique"," ",IF(COUNTRY_INFO!A29=0," ",COUNTRY_INFO!A29)) -> Burundi | B29: =IF(INTRO!$E$39="Non endémique"," ",IF(COUNTRY_INFO!B29=0," ",COUNTRY_INFO!B29)) -> Gitega | C29: =IF(INTRO!$E$39="Non endémique"," ",IF(COUNTRY_INFO!C29=0," ",COUNTRY_INFO!C29)) -> Ryansoro | D29: =IF(INTRO!$E$39="Non endémique",0,IF(INTRO!$E$39="Endémique mais pas de CP",IF(COUNTRY_INFO!$H29=1,COUNTRY_INFO!F29+COUNTRY_INFO!G29,0),IF(COUNTRY_INFO!$H29=1,COUNTRY_INFO!F29+COUNTRY_INFO!G29,IF(COUNTRY_INFO!$I29=1,IF(COUNTRY_INFO!M29>=(COUNTRY_INFO!F29+COUNTRY_INFO!G29),COUNTRY_INFO!F29+COUNTRY_INFO!G29,COUNTRY_INFO!$M29),0)))) -> 0 | E29: =IF(AND(INTRO!$E$39="Non endémique",INTRO!$E$37="Non endémique"),"Non requis",IF(INTRO!$E$39="Non endémique","Traiter avec DEC",COUNTRY_INFO!V29)) -> 0 | F29: =IF(INTRO!$E$39<>"Non endémique",COUNTRY_INFO!W29,"Non requis") -> 0 | G29: =IF(COUNTRY_INFO!H29=1, IF($E29=1,$D29, 0),0) -> 0 | H29: =IF(COUNTRY_INFO!I29=1, IF(AND(COUNTRY_INFO!$I29=1,$F29<>0),IF(COUNTRY_INFO!M29>=(COUNTRY_INFO!F29+COUNTRY_INFO!G29),COUNTRY_INFO!F29+COUNTRY_INFO!G29,COUNTRY_INFO!$M29), 0),0) -> 0 | I29: 0 | J29: 0 | K29: 0 | L29: 0 | N29: 0
A30: =IF(INTRO!$E$39="Non endémique"," ",IF(COUNTRY_INFO!A30=0," ",COUNTRY_INFO!A30)) -> Burundi | B30: =IF(INTRO!$E$39="Non endémique"," ",IF(COUNTRY_INFO!B30=0," ",COUNTRY_INFO!B30)) -> Karusi | C30: =IF(INTRO!$E$39="Non endémique"," ",IF(COUNTRY_INFO!C30=0," ",COUNTRY_INFO!C30)) -> Buhiga | D30: =IF(INTRO!$E$39="Non endémique",0,IF(INTRO!$E$39="Endémique mais pas de CP",IF(COUNTRY_INFO!$H30=1,COUNTRY_INFO!F30+COUNTRY_INFO!G30,0),IF(COUNTRY_INFO!$H30=1,COUNTRY_INFO!F30+COUNTRY_INFO!G30,IF(COUNTRY_INFO!$I30=1,IF(COUNTRY_INFO!M30>=(COUNTRY_INFO!F30+COUNTRY_INFO!G30),COUNTRY_INFO!F30+COUNTRY_INFO!G30,COUNTRY_INFO!$M30),0)))) -> 0 | E30: =IF(AND(INTRO!$E$39="Non endémique",INTRO!$E$37="Non endémique"),"Non requis",IF(INTRO!$E$39="Non endémique","Traiter avec DEC",COUNTRY_INFO!V30)) -> 0 | F30: =IF(INTRO!$E$39<>"Non endémique",COUNTRY_INFO!W30,"Non requis") -> 0 | G30: =IF(COUNTRY_INFO!H30=1, IF($E30=1,$D30, 0),0) -> 0 | H30: =IF(COUNTRY_INFO!I30=1, IF(AND(COUNTRY_INFO!$I30=1,$F30<>0),IF(COUNTRY_INFO!M30>=(COUNTRY_INFO!F30+COUNTRY_INFO!G30),COUNTRY_INFO!F30+COUNTRY_INFO!G30,COUNTRY_INFO!$M30), 0),0) -> 0 | I30: 0 | J30: 0 | K30: 0 | L30: 0 | N30: 0
A31: =IF(INTRO!$E$39="Non endémique"," ",IF(COUNTRY_INFO!A31=0," ",COUNTRY_INFO!A31)) -> Burundi | B31: =IF(INTRO!$E$39="Non endémique"," ",IF(COUNTRY_INFO!B31=0," ",COUNTRY_INFO!B31)) -> Karusi | C31: =IF(INTRO!$E$39="Non endémique"," ",IF(COUNTRY_INFO!C31=0," ",COUNTRY_INFO!C31)) -> Nyabikere | D31: =IF(INTRO!$E$39="Non endémique",0,IF(INTRO!$E$39="Endémique mais pas de CP",IF(COUNTRY_INFO!$H31=1,COUNTRY_INFO!F31+COUNTRY_INFO!G31,0),IF(COUNTRY_INFO!$H31=1,COUNTRY_INFO!F31+COUNTRY_INFO!G31,IF(COUNTRY_INFO!$I31=1,IF(COUNTRY_INFO!M31>=(COUNTRY_INFO!F31+COUNTRY_INFO!G31),COUNTRY_INFO!F31+COUNTRY_INFO!G31,COUNTRY_INFO!$M31),0)))) -> 0 | E31: =IF(AND(INTRO!$E$39="Non endémique",INTRO!$E$37="Non endémique"),"Non requis",IF(INTRO!$E$39="Non endémique","Traiter avec DEC",COUNTRY_INFO!V31)) -> 0 | F31: =IF(INTRO!$E$39<>"Non endémique",COUNTRY_INFO!W31,"Non requis") -> 0 | G31: =IF(COUNTRY_INFO!H31=1, IF($E31=1,$D31, 0),0) -> 0 | H31: =IF(COUNTRY_INFO!I31=1, IF(AND(COUNTRY_INFO!$I31=1,$F31<>0),IF(COUNTRY_INFO!M31>=(COUNTRY_INFO!F31+COUNTRY_INFO!G31),COUNTRY_INFO!F31+COUNTRY_INFO!G31,COUNTRY_INFO!$M31), 0),0) -> 0 | I31: 0 | J31: 0 | K31: 0 | L31: 0 | N31: 0
A32: =IF(INTRO!$E$39="Non endémique"," ",IF(COUNTRY_INFO!A32=0," ",COUNTRY_INFO!A32)) -> Burundi | B32: =IF(INTRO!$E$39="Non endémique"," ",IF(COUNTRY_INFO!B32=0," ",COUNTRY_INFO!B32)) -> Kayanza | C32: =IF(INTRO!$E$39="Non endémique"," ",IF(COUNTRY_INFO!C32=0," ",COUNTRY_INFO!C32)) -> Gahombo | D32: =IF(INTRO!$E$39="Non endémique",0,IF(INTRO!$E$39="Endémique mais pas de CP",IF(COUNTRY_INFO!$H32=1,COUNTRY_INFO!F32+COUNTRY_INFO!G32,0),IF(COUNTRY_INFO!$H32=1,COUNTRY_INFO!F32+COUNTRY_INFO!G32,IF(COUNTRY_INFO!$I32=1,IF(COUNTRY_INFO!M32>=(COUNTRY_INFO!F32+COUNTRY_INFO!G32),COUNTRY_INFO!F32+COUNTRY_INFO!G32,COUNTRY_INFO!$M32),0)))) -> 0 | E32: =IF(AND(INTRO!$E$39="Non endémique",INTRO!$E$37="Non endémique"),"Non requis",IF(INTRO!$E$39="Non endémique","Traiter avec DEC",COUNTRY_INFO!V32)) -> 0 | F32: =IF(INTRO!$E$39<>"Non endémique",COUNTRY_INFO!W32,"Non requis") -> 0 | G32: =IF(COUNTRY_INFO!H32=1, IF($E32=1,$D32, 0),0) -> 0 | H32: =IF(COUNTRY_INFO!I32=1, IF(AND(COUNTRY_INFO!$I32=1,$F32<>0),IF(COUNTRY_INFO!M32>=(COUNTRY_INFO!F32+COUNTRY_INFO!G32),COUNTRY_INFO!F32+COUNTRY_INFO!G32,COUNTRY_INFO!$M32), 0),0) -> 0 | I32: 0 | J32: 0 | K32: 0 | L32: 0 | N32: 0
A33: =IF(INTRO!$E$39="Non endémique"," ",IF(COUNTRY_INFO!A33=0," ",COUNTRY_INFO!A33)) -> Burundi | B33: =IF(INTRO!$E$39="Non endémique"," ",IF(COUNTRY_INFO!B33=0," ",COUNTRY_INFO!B33)) -> Kayanza | C33: =IF(INTRO!$E$39="Non endémique"," ",IF(COUNTRY_INFO!C33=0," ",COUNTRY_INFO!C33)) -> Kayanza | D33: =IF(INTRO!$E$39="Non endémique",0,IF(INTRO!$E$39="Endémique mais pas de CP",IF(COUNTRY_INFO!$H33=1,COUNTRY_INFO!F33+COUNTRY_INFO!G33,0),IF(COUNTRY_INFO!$H33=1,COUNTRY_INFO!F33+COUNTRY_INFO!G33,IF(COUNTRY_INFO!$I33=1,IF(COUNTRY_INFO!M33>=(COUNTRY_INFO!F33+COUNTRY_INFO!G33),COUNTRY_INFO!F33+COUNTRY_INFO!G33,COUNTRY_INFO!$M33),0)))) -> 0 | E33: =IF(AND(INTRO!$E$39="Non endémique",INTRO!$E$37="Non endémique"),"Non requis",IF(INTRO!$E$39="Non endémique","Traiter avec DEC",COUNTRY_INFO!V33)) -> 0 | F33: =IF(INTRO!$E$39<>"Non endémique",COUNTRY_INFO!W33,"Non requis") -> 0 | G33: =IF(COUNTRY_INFO!H33=1, IF($E33=1,$D33, 0),0) -> 0 | H33: =IF(COUNTRY_INFO!I33=1, IF(AND(COUNTRY_INFO!$I33=1,$F33<>0),IF(COUNTRY_INFO!M33>=(COUNTRY_INFO!F33+COUNTRY_INFO!G33),COUNTRY_INFO!F33+COUNTRY_INFO!G33,COUNTRY_INFO!$M33), 0),0) -> 0 | I33: 0 | J33: 0 | K33: 0 | L33: 0 | N33: 0
A34: =IF(INTRO!$E$39="Non endémique"," ",IF(COUNTRY_INFO!A34=0," ",COUNTRY_INFO!A34)) -> Burundi | B34: =IF(INTRO!$E$39="Non endémique"," ",IF(COUNTRY_INFO!B34=0," ",COUNTRY_INFO!B34)) -> Kayanza | C34: =IF(INTRO!$E$39="Non endémique"," ",IF(COUNTRY_INFO!C34=0," ",COUNTRY_INFO!C34)) -> Musema | D34: =IF(INTRO!$E$39="Non endémique",0,IF(INTRO!$E$39="Endémique mais pas de CP",IF(COUNTRY_INFO!$H34=1,COUNTRY_INFO!F34+COUNTRY_INFO!G34,0),IF(COUNTRY_INFO!$H34=1,COUNTRY_INFO!F34+COUNTRY_INFO!G34,IF(COUNTRY_INFO!$I34=1,IF(COUNTRY_INFO!M34>=(COUNTRY_INFO!F34+COUNTRY_INFO!G34),COUNTRY_INFO!F34+COUNTRY_INFO!G34,COUNTRY_INFO!$M34),0)))) -> 0 | E34: =IF(AND(INTRO!$E$39="Non endémique",INTRO!$E$37="Non endémique"),"Non requis",IF(INTRO!$E$39="Non endémique","Traiter avec DEC",COUNTRY_INFO!V34)) -> 0 | F34: =IF(INTRO!$E$39<>"Non endémique",COUNTRY_INFO!W34,"Non requis") -> 0 | G34: =IF(COUNTRY_INFO!H34=1, IF($E34=1,$D34, 0),0) -> 0 | H34: =IF(COUNTRY_INFO!I34=1, IF(AND(COUNTRY_INFO!$I34=1,$F34<>0),IF(COUNTRY_INFO!M34>=(COUNTRY_INFO!F34+COUNTRY_INFO!G34),COUNTRY_INFO!F34+COUNTRY_INFO!G34,COUNTRY_INFO!$M34), 0),0) -> 0 | I34: 0 | J34: 0 | K34: 0 | L34: 0 | N34: 0
A35: =IF(INTRO!$E$39="Non endémique"," ",IF(COUNTRY_INFO!A35=0," ",COUNTRY_INFO!A35)) -> Burundi | B35: =IF(INTRO!$E$39="Non endémique"," ",IF(COUNTRY_INFO!B35=0," ",COUNTRY_INFO!B35)) -> Kirundo | C35: =IF(INTRO!$E$39="Non endémique"," ",IF(COUNTRY_INFO!C35=0," ",COUNTRY_INFO!C35)) -> Busoni | D35: =IF(INTRO!$E$39="Non endémique",0,IF(INTRO!$E$39="Endémique mais pas de CP",IF(COUNTRY_INFO!$H35=1,COUNTRY_INFO!F35+COUNTRY_INFO!G35,0),IF(COUNTRY_INFO!$H35=1,COUNTRY_INFO!F35+COUNTRY_INFO!G35,IF(COUNTRY_INFO!$I35=1,IF(COUNTRY_INFO!M35>=(COUNTRY_INFO!F35+COUNTRY_INFO!G35),COUNTRY_INFO!F35+COUNTRY_INFO!G35,COUNTRY_INFO!$M35),0)))) -> 0 | E35: =IF(AND(INTRO!$E$39="Non endémique",INTRO!$E$37="Non endémique"),"Non requis",IF(INTRO!$E$39="Non endémique","Traiter avec DEC",COUNTRY_INFO!V35)) -> 0 | F35: =IF(INTRO!$E$39<>"Non endémique",COUNTRY_INFO!W35,"Non requis") -> 0 | G35: =IF(COUNTRY_INFO!H35=1, IF($E35=1,$D35, 0),0) -> 0 | H35: =IF(COUNTRY_INFO!I35=1, IF(AND(COUNTRY_INFO!$I35=1,$F35<>0),IF(COUNTRY_INFO!M35>=(COUNTRY_INFO!F35+COUNTRY_INFO!G35),COUNTRY_INFO!F35+COUNTRY_INFO!G35,COUNTRY_INFO!$M35), 0),0) -> 0 | I35: 0 | J35: 0 | K35: 0 | L35: 0 | N35: 0
A36: =IF(INTRO!$E$39="Non endémique"," ",IF(COUNTRY_INFO!A36=0," ",COUNTRY_INFO!A36)) -> Burundi | B36: =IF(INTRO!$E$39="Non endémique"," ",IF(COUNTRY_INFO!B36=0," ",COUNTRY_INFO!B36)) -> Kirundo | C36: =IF(INTRO!$E$39="Non endémique"," ",IF(COUNTRY_INFO!C36=0," ",COUNTRY_INFO!C36)) -> Kirundo | D36: =IF(INTRO!$E$39="Non endémique",0,IF(INTRO!$E$39="Endémique mais pas de CP",IF(COUNTRY_INFO!$H36=1,COUNTRY_INFO!F36+COUNTRY_INFO!G36,0),IF(COUNTRY_INFO!$H36=1,COUNTRY_INFO!F36+COUNTRY_INFO!G36,IF(COUNTRY_INFO!$I36=1,IF(COUNTRY_INFO!M36>=(COUNTRY_INFO!F36+COUNTRY_INFO!G36),COUNTRY_INFO!F36+COUNTRY_INFO!G36,COUNTRY_INFO!$M36),0)))) -> 0 | E36: =IF(AND(INTRO!$E$39="Non endémique",INTRO!$E$37="Non endémique"),"Non requis",IF(INTRO!$E$39="Non endémique","Traiter avec DEC",COUNTRY_INFO!V36)) -> 0 | F36: =IF(INTRO!$E$39<>"Non endémique",COUNTRY_INFO!W36,"Non requis") -> 0 | G36: =IF(COUNTRY_INFO!H36=1, IF($E36=1,$D36, 0),0) -> 0 | H36: =IF(COUNTRY_INFO!I36=1, IF(AND(COUNTRY_INFO!$I36=1,$F36<>0),IF(COUNTRY_INFO!M36>=(COUNTRY_INFO!F36+COUNTRY_INFO!G36),COUNTRY_INFO!F36+COUNTRY_INFO!G36,COUNTRY_INFO!$M36), 0),0) -> 0 | I36: 0 | J36: 0 | K36: 0 | L36: 0 | N36: 0
A37: =IF(INTRO!$E$39="Non endémique"," ",IF(COUNTRY_INFO!A37=0," ",COUNTRY_INFO!A37)) -> Burundi | B37: =IF(INTRO!$E$39="Non endémique"," ",IF(COUNTRY_INFO!B37=0," ",COUNTRY_INFO!B37)) -> Kirundo | C37: =IF(INTRO!$E$39="Non endémique"," ",IF(COUNTRY_INFO!C37=0," ",COUNTRY_INFO!C37)) -> Mukenke | D37: =IF(INTRO!$E$39="Non endémique",0,IF(INTRO!$E$39="Endémique mais pas de CP",IF(COUNTRY_INFO!$H37=1,COUNTRY_INFO!F37+COUNTRY_INFO!G37,0),IF(COUNTRY_INFO!$H37=1,COUNTRY_INFO!F37+COUNTRY_INFO!G37,IF(COUNTRY_INFO!$I37=1,IF(COUNTRY_INFO!M37>=(COUNTRY_INFO!F37+COUNTRY_INFO!G37),COUNTRY_INFO!F37+COUNTRY_INFO!G37,COUNTRY_INFO!$M37),0)))) -> 0 | E37: =IF(AND(INTRO!$E$39="Non endémique",INTRO!$E$37="Non endémique"),"Non requis",IF(INTRO!$E$39="Non endémique","Traiter avec DEC",COUNTRY_INFO!V37)) -> 0 | F37: =IF(INTRO!$E$39<>"Non endémique",COUNTRY_INFO!W37,"Non requis") -> 0 | G37: =IF(COUNTRY_INFO!H37=1, IF($E37=1,$D37, 0),0) -> 0 | H37: =IF(COUNTRY_INFO!I37=1, IF(AND(COUNTRY_INFO!$I37=1,$F37<>0),IF(COUNTRY_INFO!M37>=(COUNTRY_INFO!F37+COUNTRY_INFO!G37),COUNTRY_INFO!F37+COUNTRY_INFO!G37,COUNTRY_INFO!$M37), 0),0) -> 0 | I37: 0 | J37: 0 | K37: 0 | L37: 0 | N37: 0
A38: =IF(INTRO!$E$39="Non endémique"," ",IF(COUNTRY_INFO!A38=0," ",COUNTRY_INFO!A38)) -> Burundi | B38: =IF(INTRO!$E$39="Non endémique"," ",IF(COUNTRY_INFO!B38=0," ",COUNTRY_INFO!B38)) -> Kirundo | C38: =IF(INTRO!$E$39="Non endémique"," ",IF(COUNTRY_INFO!C38=0," ",COUNTRY_INFO!C38)) -> Vumbi | D38: =IF(INTRO!$E$39="Non endémique",0,IF(INTRO!$E$39="Endémique mais pas de CP",IF(COUNTRY_INFO!$H38=1,COUNTRY_INFO!F38+COUNTRY_INFO!G38,0),IF(COUNTRY_INFO!$H38=1,COUNTRY_INFO!F38+COUNTRY_INFO!G38,IF(COUNTRY_INFO!$I38=1,IF(COUNTRY_INFO!M38>=(COUNTRY_INFO!F38+COUNTRY_INFO!G38),COUNTRY_INFO!F38+COUNTRY_INFO!G38,COUNTRY_INFO!$M38),0)))) -> 0 | E38: =IF(AND(INTRO!$E$39="Non endémique",INTRO!$E$37="Non endémique"),"Non requis",IF(INTRO!$E$39="Non endémique","Traiter avec DEC",COUNTRY_INFO!V38)) -> 0 | F38: =IF(INTRO!$E$39<>"Non endémique",COUNTRY_INFO!W38,"Non requis") -> 0 | G38: =IF(COUNTRY_INFO!H38=1, IF($E38=1,$D38, 0),0) -> 0 | H38: =IF(COUNTRY_INFO!I38=1, IF(AND(COUNTRY_INFO!$I38=1,$F38<>0),IF(COUNTRY_INFO!M38>=(COUNTRY_INFO!F38+COUNTRY_INFO!G38),COUNTRY_INFO!F38+COUNTRY_INFO!G38,COUNTRY_INFO!$M38), 0),0) -> 0 | I38: 0 | J38: 0 | K38: 0 | L38: 0 | N38: 0
A39: =IF(INTRO!$E$39="Non endémique"," ",IF(COUNTRY_INFO!A39=0," ",COUNTRY_INFO!A39)) -> Burundi | B39: =IF(INTRO!$E$39="Non endémique"," ",IF(COUNTRY_INFO!B39=0," ",COUNTRY_INFO!B39)) -> Makamba | C39: =IF(INTRO!$E$39="Non endémique"," ",IF(COUNTRY_INFO!C39=0," ",COUNTRY_INFO!C39)) -> Makamba | D39: =IF(INTRO!$E$39="Non endémique",0,IF(INTRO!$E$39="Endémique mais pas de CP",IF(COUNTRY_INFO!$H39=1,COUNTRY_INFO!F39+COUNTRY_INFO!G39,0),IF(COUNTRY_INFO!$H39=1,COUNTRY_INFO!F39+COUNTRY_INFO!G39,IF(COUNTRY_INFO!$I39=1,IF(COUNTRY_INFO!M39>=(COUNTRY_INFO!F39+COUNTRY_INFO!G39),COUNTRY_INFO!F39+COUNTRY_INFO!G39,COUNTRY_INFO!$M39),0)))) -> 318841 | E39: =IF(AND(INTRO!$E$39="Non endémique",INTRO!$E$37="Non endémique"),"Non requis",IF(INTRO!$E$39="Non endémique","Traiter avec DEC",COUNTRY_INFO!V39)) -> 0 | F39: =IF(INTRO!$E$39<>"Non endémique",COUNTRY_INFO!W39,"Non requis") -> 1 | G39: =IF(COUNTRY_INFO!H39=1, IF($E39=1,$D39, 0),0) -> 0 | H39: =IF(COUNTRY_INFO!I39=1, IF(AND(COUNTRY_INFO!$I39=1,$F39<>0),IF(COUNTRY_INFO!M39>=(COUNTRY_INFO!F39+COUNTRY_INFO!G39),COUNTRY_INFO!F39+COUNTRY_INFO!G39,COUNTRY_INFO!$M39), 0),0) -> 318841 | I39: 0 | J39: 892754.8 | K39: 0 | L39: 892754.8 | N39: 892754.8
A40: =IF(INTRO!$E$39="Non endémique"," ",IF(COUNTRY_INFO!A40=0," ",COUNTRY_INFO!A40)) -> Burundi | B40: =IF(INTRO!$E$39="Non endémique"," ",IF(COUNTRY_INFO!B40=0," ",COUNTRY_INFO!B40)) -> Makamba | C40: =IF(INTRO!$E$39="Non endémique"," ",IF(COUNTRY_INFO!C40=0," ",COUNTRY_INFO!C40)) -> Nyanza-Lac | D40: =IF(INTRO!$E$39="Non endémique",0,IF(INTRO!$E$39="Endémique mais pas de CP",IF(COUNTRY_INFO!$H40=1,COUNTRY_INFO!F40+COUNTRY_INFO!G40,0),IF(COUNTRY_INFO!$H40=1,COUNTRY_INFO!F40+COUNTRY_INFO!G40,IF(COUNTRY_INFO!$I40=1,IF(COUNTRY_INFO!M40>=(COUNTRY_INFO!F40+COUNTRY_INFO!G40),COUNTRY_INFO!F40+COUNTRY_INFO!G40,COUNTRY_INFO!$M40),0)))) -> 0 | E40: =IF(AND(INTRO!$E$39="Non endémique",INTRO!$E$37="Non endémique"),"Non requis",IF(INTRO!$E$39="Non endémique","Traiter avec DEC",COUNTRY_INFO!V40)) -> 0 | F40: =IF(INTRO!$E$39<>"Non endémique",COUNTRY_INFO!W40,"Non requis") -> 0 | G40: =IF(COUNTRY_INFO!H40=1, IF($E40=1,$D40, 0),0) -> 0 | H40: =IF(COUNTRY_INFO!I40=1, IF(AND(COUNTRY_INFO!$I40=1,$F40<>0),IF(COUNTRY_INFO!M40>=(COUNTRY_INFO!F40+COUNTRY_INFO!G40),COUNTRY_INFO!F40+COUNTRY_INFO!G40,COUNTRY_INFO!$M40), 0),0) -> 0 | I40: 0 | J40: 0 | K40: 0 | L40: 0 | N40: 0
A41: =IF(INTRO!$E$39="Non endémique"," ",IF(COUNTRY_INFO!A41=0," ",COUNTRY_INFO!A41)) -> Burundi | B41: =IF(INTRO!$E$39="Non endémique"," ",IF(COUNTRY_INFO!B41=0," ",COUNTRY_INFO!B41)) -> Muramvya | C41: =IF(INTRO!$E$39="Non endémique"," ",IF(COUNTRY_INFO!C41=0," ",COUNTRY_INFO!C41)) -> Kiganda | D41: =IF(INTRO!$E$39="Non endémique",0,IF(INTRO!$E$39="Endémique mais pas de CP",IF(COUNTRY_INFO!$H41=1,COUNTRY_INFO!F41+COUNTRY_INFO!G41,0),IF(COUNTRY_INFO!$H41=1,COUNTRY_INFO!F41+COUNTRY_INFO!G41,IF(COUNTRY_INFO!$I41=1,IF(COUNTRY_INFO!M41>=(COUNTRY_INFO!F41+COUNTRY_INFO!G41),COUNTRY_INFO!F41+COUNTRY_INFO!G41,COUNTRY_INFO!$M41),0)))) -> 0 | E41: =IF(AND(INTRO!$E$39="Non endémique",INTRO!$E$37="Non endémique"),"Non requis",IF(INTRO!$E$39="Non endémique","Traiter avec DEC",COUNTRY_INFO!V41)) -> 0 | F41: =IF(INTRO!$E$39<>"Non endémique",COUNTRY_INFO!W41,"Non requis") -> 0 | G41: =IF(COUNTRY_INFO!H41=1, IF($E41=1,$D41, 0),0) -> 0 | H41: =IF(COUNTRY_INFO!I41=1, IF(AND(COUNTRY_INFO!$I41=1,$F41<>0),IF(COUNTRY_INFO!M41>=(COUNTRY_INFO!F41+COUNTRY_INFO!G41),COUNTRY_INFO!F41+COUNTRY_INFO!G41,COUNTRY_INFO!$M41), 0),0) -> 0 | I41: 0 | J41: 0 | K41: 0 | L41: 0 | N41: 0
A42: =IF(INTRO!$E$39="Non endémique"," ",IF(COUNTRY_INFO!A42=0," ",COUNTRY_INFO!A42)) -> Burundi | B42: =IF(INTRO!$E$39="Non endémique"," ",IF(COUNTRY_INFO!B42=0," ",COUNTRY_INFO!B42)) -> Muramvya | C42: =IF(INTRO!$E$39="Non endémique"," ",IF(COUNTRY_INFO!C42=0," ",COUNTRY_INFO!C42)) -> Muramvya | D42: =IF(INTRO!$E$39="Non endémique",0,IF(INTRO!$E$39="Endémique mais pas de CP",IF(COUNTRY_INFO!$H42=1,COUNTRY_INFO!F42+COUNTRY_INFO!G42,0),IF(COUNTRY_INFO!$H42=1,COUNTRY_INFO!F42+COUNTRY_INFO!G42,IF(COUNTRY_INFO!$I42=1,IF(COUNTRY_INFO!M42>=(COUNTRY_INFO!F42+COUNTRY_INFO!G42),COUNTRY_INFO!F42+COUNTRY_INFO!G42,COUNTRY_INFO!$M42),0)))) -> 0 | E42: =IF(AND(INTRO!$E$39="Non endémique",INTRO!$E$37="Non endémique"),"Non requis",IF(INTRO!$E$39="Non endémique","Traiter avec DEC",COUNTRY_INFO!V42)) -> 0 | F42: =IF(INTRO!$E$39<>"Non endémique",COUNTRY_INFO!W42,"Non requis") -> 0 | G42: =IF(COUNTRY_INFO!H42=1, IF($E42=1,$D42, 0),0) -> 0 | H42: =IF(COUNTRY_INFO!I42=1, IF(AND(COUNTRY_INFO!$I42=1,$F42<>0),IF(COUNTRY_INFO!M42>=(COUNTRY_INFO!F42+COUNTRY_INFO!G42),COUNTRY_INFO!F42+COUNTRY_INFO!G42,COUNTRY_INFO!$M42), 0),0) -> 0 | I42: =IF(G42<H42,0,IF($E42=1, (G42-H42)*2.8, 0)) -> 0 | J42: =IF($E42<$F42, H42*(F42-E42)*2.8, 0) -> 0 | K42: 0 | L42: 0 | N42: 0
A43: =IF(INTRO!$E$39="Non endémique"," ",IF(COUNTRY_INFO!A43=0," ",COUNTRY_INFO!A43)) -> Burundi | B43: =IF(INTRO!$E$39="Non endémique"," ",IF(COUNTRY_INFO!B43=0," ",COUNTRY_INFO!B43)) -> Muyinga | C43: =IF(INTRO!$E$39="Non endémique"," ",IF(COUNTRY_INFO!C43=0," ",COUNTRY_INFO!C43)) -> Gashoho | D43: =IF(INTRO!$E$39="Non endémique",0,IF(INTRO!$E$39="Endémique mais pas de CP",IF(COUNTRY_INFO!$H43=1,COUNTRY_INFO!F43+COUNTRY_INFO!G43,0),IF(COUNTRY_INFO!$H43=1,COUNTRY_INFO!F43+COUNTRY_INFO!G43,IF(COUNTRY_INFO!$I43=1,IF(COUNTRY_INFO!M43>=(COUNTRY_INFO!F43+COUNTRY_INFO!G43),COUNTRY_INFO!F43+COUNTRY_INFO!G43,COUNTRY_INFO!$M43),0)))) -> 0 | E43: =IF(AND(INTRO!$E$39="Non endémique",INTRO!$E$37="Non endémique"),"Non requis",IF(INTRO!$E$39="Non endémique","Traiter avec DEC",COUNTRY_INFO!V43)) -> 0 | F43: =IF(INTRO!$E$39<>"Non endémique",COUNTRY_INFO!W43,"Non requis") -> 0 | G43: =IF(COUNTRY_INFO!H43=1, IF($E43=1,$D43, 0),0) -> 0 | H43: =IF(COUNTRY_INFO!I43=1, IF(AND(COUNTRY_INFO!$I43=1,$F43<>0),IF(COUNTRY_INFO!M43>=(COUNTRY_INFO!F43+COUNTRY_INFO!G43),COUNTRY_INFO!F43+COUNTRY_INFO!G43,COUNTRY_INFO!$M43), 0),0) -> 0 | I43: 0 | J43: 0 | K43: 0 | L43: 0 | N43: 0
A44: =IF(INTRO!$E$39="Non endémique"," ",IF(COUNTRY_INFO!A44=0," ",COUNTRY_INFO!A44)) -> Burundi | B44: =IF(INTRO!$E$39="Non endémique"," ",IF(COUNTRY_INFO!B44=0," ",COUNTRY_INFO!B44)) -> Muyinga | C44: =IF(INTRO!$E$39="Non endémique"," ",IF(COUNTRY_INFO!C44=0," ",COUNTRY_INFO!C44)) -> Giteranyi | D44: =IF(INTRO!$E$39="Non endémique",0,IF(INTRO!$E$39="Endémique mais pas de CP",IF(COUNTRY_INFO!$H44=1,COUNTRY_INFO!F44+COUNTRY_INFO!G44,0),IF(COUNTRY_INFO!$H44=1,COUNTRY_INFO!F44+COUNTRY_INFO!G44,IF(COUNTRY_INFO!$I44=1,IF(COUNTRY_INFO!M44>=(COUNTRY_INFO!F44+COUNTRY_INFO!G44),COUNTRY_INFO!F44+COUNTRY_INFO!G44,COUNTRY_INFO!$M44),0)))) -> 0 | E44: =IF(AND(INTRO!$E$39="Non endémique",INTRO!$E$37="Non endémique"),"Non requis",IF(INTRO!$E$39="Non endémique","Traiter avec DEC",COUNTRY_INFO!V44)) -> 0 | F44: =IF(INTRO!$E$39<>"Non endémique",COUNTRY_INFO!W44,"Non requis") -> 0 | G44: =IF(COUNTRY_INFO!H44=1, IF($E44=1,$D44, 0),0) -> 0 | H44: =IF(COUNTRY_INFO!I44=1, IF(AND(COUNTRY_INFO!$I44=1,$F44<>0),IF(COUNTRY_INFO!M44>=(COUNTRY_INFO!F44+COUNTRY_INFO!G44),COUNTRY_INFO!F44+COUNTRY_INFO!G44,COUNTRY_INFO!$M44), 0),0) -> 0 | I44: 0 | J44: 0 | K44: 0 | L44: 0 | N44: 0
A45: =IF(INTRO!$E$39="Non endémique"," ",IF(COUNTRY_INFO!A45=0," ",COUNTRY_INFO!A45)) -> Burundi | B45: =IF(INTRO!$E$39="Non endémique"," ",IF(COUNTRY_INFO!B45=0," ",COUNTRY_INFO!B45)) -> Muyinga | C45: =IF(INTRO!$E$39="Non endémique"," ",IF(COUNTRY_INFO!C45=0," ",COUNTRY_INFO!C45)) -> Muyinga | D45: =IF(INTRO!$E$39="Non endémique",0,IF(INTRO!$E$39="Endémique mais pas de CP",IF(COUNTRY_INFO!$H45=1,COUNTRY_INFO!F45+COUNTRY_INFO!G45,0),IF(COUNTRY_INFO!$H45=1,COUNTRY_INFO!F45+COUNTRY_INFO!G45,IF(COUNTRY_INFO!$I45=1,IF(COUNTRY_INFO!M45>=(COUNTRY_INFO!F45+COUNTRY_INFO!G45),COUNTRY_INFO!F45+COUNTRY_INFO!G45,COUNTRY_INFO!$M45),0)))) -> 0 | E45: =IF(AND(INTRO!$E$39="Non endémique",INTRO!$E$37="Non endémique"),"Non requis",IF(INTRO!$E$39="Non endémique","Traiter avec DEC",COUNTRY_INFO!V45)) -> 0 | F45: =IF(INTRO!$E$39<>"Non endémique",COUNTRY_INFO!W45,"Non requis") -> 0 | G45: =IF(COUNTRY_INFO!H45=1, IF($E45=1,$D45, 0),0) -> 0 | H45: =IF(COUNTRY_INFO!I45=1, IF(AND(COUNTRY_INFO!$I45=1,$F45<>0),IF(COUNTRY_INFO!M45>=(COUNTRY_INFO!F45+COUNTRY_INFO!G45),COUNTRY_INFO!F45+COUNTRY_INFO!G45,COUNTRY_INFO!$M45), 0),0) -> 0 | I45: 0 | J45: 0 | K45: 0 | L45: 0 | N45: 0
A46: =IF(INTRO!$E$39="Non endémique"," ",IF(COUNTRY_INFO!A46=0," ",COUNTRY_INFO!A46)) -> Burundi | B46: =IF(INTRO!$E$39="Non endémique"," ",IF(COUNTRY_INFO!B46=0," ",COUNTRY_INFO!B46)) -> Mwaro | C46: =IF(INTRO!$E$39="Non endémique"," ",IF(COUNTRY_INFO!C46=0," ",COUNTRY_INFO!C46)) -> Fota | D46: =IF(INTRO!$E$39="Non endémique",0,IF(INTRO!$E$39="Endémique mais pas de CP",IF(COUNTRY_INFO!$H46=1,COUNTRY_INFO!F46+COUNTRY_INFO!G46,0),IF(COUNTRY_INFO!$H46=1,COUNTRY_INFO!F46+COUNTRY_INFO!G46,IF(COUNTRY_INFO!$I46=1,IF(COUNTRY_INFO!M46>=(COUNTRY_INFO!F46+COUNTRY_INFO!G46),COUNTRY_INFO!F46+COUNTRY_INFO!G46,COUNTRY_INFO!$M46),0)))) -> 0 | E46: =IF(AND(INTRO!$E$39="Non endémique",INTRO!$E$37="Non endémique"),"Non requis",IF(INTRO!$E$39="Non endémique","Traiter avec DEC",COUNTRY_INFO!V46)) -> 0 | F46: =IF(INTRO!$E$39<>"Non endémique",COUNTRY_INFO!W46,"Non requis") -> 0 | G46: =IF(COUNTRY_INFO!H46=1, IF($E46=1,$D46, 0),0) -> 0 | H46: =IF(COUNTRY_INFO!I46=1, IF(AND(COUNTRY_INFO!$I46=1,$F46<>0),IF(COUNTRY_INFO!M46>=(COUNTRY_INFO!F46+COUNTRY_INFO!G46),COUNTRY_INFO!F46+COUNTRY_INFO!G46,COUNTRY_INFO!$M46), 0),0) -> 0 | I46: 0 | J46: 0 | K46: 0 | L46: 0 | N46: 0
A47: =IF(INTRO!$E$39="Non endémique"," ",IF(COUNTRY_INFO!A47=0," ",COUNTRY_INFO!A47)) -> Burundi | B47: =IF(INTRO!$E$39="Non endémique"," ",IF(COUNTRY_INFO!B47=0," ",COUNTRY_INFO!B47)) -> Mwaro | C47: =IF(INTRO!$E$39="Non endémique"," ",IF(COUNTRY_INFO!C47=0," ",COUNTRY_INFO!C47)) -> Kibumbu | D47: =IF(INTRO!$E$39="Non endémique",0,IF(INTRO!$E$39="Endémique mais pas de CP",IF(COUNTRY_INFO!$H47=1,COUNTRY_INFO!F47+COUNTRY_INFO!G47,0),IF(COUNTRY_INFO!$H47=1,COUNTRY_INFO!F47+COUNTRY_INFO!G47,IF(COUNTRY_INFO!$I47=1,IF(COUNTRY_INFO!M47>=(COUNTRY_INFO!F47+COUNTRY_INFO!G47),COUNTRY_INFO!F47+COUNTRY_INFO!G47,COUNTRY_INFO!$M47),0)))) -> 0 | E47: =IF(AND(INTRO!$E$39="Non endémique",INTRO!$E$37="Non endémique"),"Non requis",IF(INTRO!$E$39="Non endémique","Traiter avec DEC",COUNTRY_INFO!V47)) -> 0 | F47: =IF(INTRO!$E$39<>"Non endémique",COUNTRY_INFO!W47,"Non requis") -> 0 | G47: =IF(COUNTRY_INFO!H47=1, IF($E47=1,$D47, 0),0) -> 0 | H47: =IF(COUNTRY_INFO!I47=1, IF(AND(COUNTRY_INFO!$I47=1,$F47<>0),IF(COUNTRY_INFO!M47>=(COUNTRY_INFO!F47+COUNTRY_INFO!G47),COUNTRY_INFO!F47+COUNTRY_INFO!G47,COUNTRY_INFO!$M47), 0),0) -> 0 | I47: 0 | J47: 0 | K47: 0 | L47: 0 | N47: 0
A48: =IF(INTRO!$E$39="Non endémique"," ",IF(COUNTRY_INFO!A48=0," ",COUNTRY_INFO!A48)) -> Burundi | B48: =IF(INTRO!$E$39="Non endémique"," ",IF(COUNTRY_INFO!B48=0," ",COUNTRY_INFO!B48)) -> Ngozi | C48: =IF(INTRO!$E$39="Non endémique"," ",IF(COUNTRY_INFO!C48=0," ",COUNTRY_INFO!C48)) -> Buye | D48: =IF(INTRO!$E$39="Non endémique",0,IF(INTRO!$E$39="Endémique mais pas de CP",IF(COUNTRY_INFO!$H48=1,COUNTRY_INFO!F48+COUNTRY_INFO!G48,0),IF(COUNTRY_INFO!$H48=1,COUNTRY_INFO!F48+COUNTRY_INFO!G48,IF(COUNTRY_INFO!$I48=1,IF(COUNTRY_INFO!M48>=(COUNTRY_INFO!F48+COUNTRY_INFO!G48),COUNTRY_INFO!F48+COUNTRY_INFO!G48,COUNTRY_INFO!$M48),0)))) -> 0 | E48: =IF(AND(INTRO!$E$39="Non endémique",INTRO!$E$37="Non endémique"),"Non requis",IF(INTRO!$E$39="Non endémique","Traiter avec DEC",COUNTRY_INFO!V48)) -> 0 | F48: =IF(INTRO!$E$39<>"Non endémique",COUNTRY_INFO!W48,"Non requis") -> 0 | G48: =IF(COUNTRY_INFO!H48=1, IF($E48=1,$D48, 0),0) -> 0 | H48: =IF(COUNTRY_INFO!I48=1, IF(AND(COUNTRY_INFO!$I48=1,$F48<>0),IF(COUNTRY_INFO!M48>=(COUNTRY_INFO!F48+COUNTRY_INFO!G48),COUNTRY_INFO!F48+COUNTRY_INFO!G48,COUNTRY_INFO!$M48), 0),0) -> 0 | I48: 0 | J48: 0 | K48: 0 | L48: 0 | N48: 0
